{"text_format":"1","workbook":"xlsx","n_sheets":7,"sheets":["2015","2014","Instruction Sheet","useful info","Operating Units","Account Codes","Class Codes"],"not_rendered":{"charts":0,"images":0,"macros":1,"external_links":0,"defined_names":0,"comments":0,"pivot_tables":0},"unopened":[],"bounds":{"document_bytes":16777216,"sheet_cells":100000,"rows_first":2000,"rows_last":500,"rows_between":2000,"halvings":0,"cell_chars":16384,"cell_head_chars":4096},"cells_cut":0,"cells_raw":0,"read":"whole","date_system":"1900"}

{"sheet":"2015","index":0,"n_rows":123,"n_cols":35,"rows_kept":123,"cut":false,"hidden":false,"merged":[[0,22,0,33],[0,0,0,2],[0,3,0,4],[0,6,0,7],[0,8,0,10],[0,11,0,13],[0,17,0,20]]}
["Transaction Info",null,null,"Vendor Approval",null,"I.C. Questionnaire (if applicable)","Authorization (Denise or Kelly)",null,"W-9",null,null,"I.C. Contract",null,null,"Invoice","Date = 1\n\"Process ASAP\" = 2\n(Blank) = 3","All prior fields must be filled before processing FAST TRACK","PAYMENT PROCESS",null,null,null,null,"Additional Information"]
["Vendor","Email","Amount","Sent","Vendor #","Completed (Date)","Sent2","Received","On File (Y/leave blank)","Requested","Received3","On File (Y/leave blank)4","Requested5","Received2","On File(Y/leave blank)","Status (Priority list↑)","REVISE","Started By","Submitted on","FTNumber","Payment Made","Column7","Date of Request","Name of Requester","Operating","Account","Class","ICO #","Description","BEG date","END date","Days Worked","Mailed/Hand Delivered","Notes","Phone Number"]
["Geoffrey Silver (Acis Productions)","geoffrey.silver@acisproductions.com",7800,"NA",86230,"NA","2014-12-19","2014-12-22","Y","NA","NA","NA","NA","NA","Y",{"$f":"IF(AND(TODAY()<Table14[[#This Row],[BEG date]]-14, Table14[[#This Row],[Submitted on]]=\"\"), \"\", IF(AND(Table14[[#This Row],[BEG date]]-14<=TODAY(), TODAY()<Table14[[#This Row],[BEG date]], Table14[[#This Row],[Submitted on]]=\"\"), Table14[[#This Row],[BEG date]], IF(Table14[[#This Row],[Submitted on]]=\"\", \"PROCESS ASAP\", IF(Table14[[#This Row],[Payment Made]]=\"\", \"SUBMITTED\", \"DONE\"))))","v":"DONE"},{"$f":"IF(OR(Table14[[#This Row],[Vendor]]=\"\", Table14[[#This Row],[Email]]=\"\",Table14[[#This Row],[Amount]]=\"\",Table14[[#This Row],[Sent]]=\"\",Table14[[#This Row],[Vendor '#]]=\"\",Table14[[#This Row],[Completed (Date)]]=\"\",Table14[[#This Row],[Sent2]]=\"\",Table14[[#This Row],[Received]]=\"\",Table14[[#This Row],[On File (Y/leave blank)]]=\"\",Table14[[#This Row],[Requested]]=\"\",Table14[[#This Row],[Received3]]=\"\",Table14[[#This Row],[On File (Y/leave blank)4]]=\"\",Table14[[#This Row],[Requested5]]=\"\",Table14[[#This Row],[Received2]]=\"\", Table14[[#This Row],[On File(Y/leave blank)]]=\"\"), \"STOP\", \"GO\")","v":"GO"},"Lindsey","2015-01-07","FT162854","2015-01-09",null,"2014-12-19","Alex Woods",20263380,6200,"00000","ICO 7953","Audio engineering on recording sessions for faculty project. Third of 3 installments.","2014-08-19","2014-12-19",{"$f":"IF(Table14[[#This Row],[END date]]=Table14[[#This Row],[BEG date]],1,IF(Table14[[#This Row],[END date]]=Table14[[#This Row],[BEG date]]+1,2,IF(Table14[[#This Row],[END date]]=Table14[[#This Row],[BEG date]]+2,3,IF(Table14[[#This Row],[END date]]=Table14[[#This Row],[BEG date]]+3,4,IF(Table14[[#This Row],[END date]]=Table14[[#This Row],[BEG date]]+4,5,\">5\")))))","v":">5"},"Mailed","Received approval to use SSN"]
["Garrett Gretsch","gbgretsch@gmail.com",150,"2014-01-06",87831,"NA","NA","NA","NA","NA","NA","NA","NA","NA","Y",{"$f":"IF(AND(TODAY()<Table14[[#This Row],[BEG date]]-14, Table14[[#This Row],[Submitted on]]=\"\"), \"\", IF(AND(Table14[[#This Row],[BEG date]]-14<=TODAY(), TODAY()<Table14[[#This Row],[BEG date]], Table14[[#This Row],[Submitted on]]=\"\"), Table14[[#This Row],[BEG date]], IF(Table14[[#This Row],[Submitted on]]=\"\", \"PROCESS ASAP\", IF(Table14[[#This Row],[Payment Made]]=\"\", \"SUBMITTED\", \"DONE\"))))","v":"DONE"},{"$f":"IF(OR(Table14[[#This Row],[Vendor]]=\"\", Table14[[#This Row],[Email]]=\"\",Table14[[#This Row],[Amount]]=\"\",Table14[[#This Row],[Sent]]=\"\",Table14[[#This Row],[Vendor '#]]=\"\",Table14[[#This Row],[Completed (Date)]]=\"\",Table14[[#This Row],[Sent2]]=\"\",Table14[[#This Row],[Received]]=\"\",Table14[[#This Row],[On File (Y/leave blank)]]=\"\",Table14[[#This Row],[Requested]]=\"\",Table14[[#This Row],[Received3]]=\"\",Table14[[#This Row],[On File (Y/leave blank)4]]=\"\",Table14[[#This Row],[Requested5]]=\"\",Table14[[#This Row],[Received2]]=\"\", Table14[[#This Row],[On File(Y/leave blank)]]=\"\"), \"STOP\", \"GO\")","v":"GO"},"Andrew T","2015-01-09","FT164267","2015-01-14",null,"2015-01-05","Andrew Maxfield",11263000,6200,"00000","AWD 6012","Award given for placing third in Music 286 Business Plan Competition. Per Andrew Maxfield.","2014-01-05","2014-01-05",{"$f":"IF(Table14[[#This Row],[END date]]=Table14[[#This Row],[BEG date]],1,IF(Table14[[#This Row],[END date]]=Table14[[#This Row],[BEG date]]+1,2,IF(Table14[[#This Row],[END date]]=Table14[[#This Row],[BEG date]]+2,3,IF(Table14[[#This Row],[END date]]=Table14[[#This Row],[BEG date]]+3,4,IF(Table14[[#This Row],[END date]]=Table14[[#This Row],[BEG date]]+4,5,\">5\")))))","v":1}]
["David Frost","dfrostproducer@gmail.com",3000,"2015-01-15",87923,"2015-01-13","2015-01-07","2015-01-07","Y","2015-01-09","2015-01-13","Y","2015-01-15","2015-01-15","Y",{"$f":"IF(AND(TODAY()<Table14[[#This Row],[BEG date]]-14, Table14[[#This Row],[Submitted on]]=\"\"), \"\", IF(AND(Table14[[#This Row],[BEG date]]-14<=TODAY(), TODAY()<Table14[[#This Row],[BEG date]], Table14[[#This Row],[Submitted on]]=\"\"), Table14[[#This Row],[BEG date]], IF(Table14[[#This Row],[Submitted on]]=\"\", \"PROCESS ASAP\", IF(Table14[[#This Row],[Payment Made]]=\"\", \"SUBMITTED\", \"DONE\"))))","v":"DONE"},{"$f":"IF(OR(Table14[[#This Row],[Vendor]]=\"\", Table14[[#This Row],[Email]]=\"\",Table14[[#This Row],[Amount]]=\"\",Table14[[#This Row],[Sent]]=\"\",Table14[[#This Row],[Vendor '#]]=\"\",Table14[[#This Row],[Completed (Date)]]=\"\",Table14[[#This Row],[Sent2]]=\"\",Table14[[#This Row],[Received]]=\"\",Table14[[#This Row],[On File (Y/leave blank)]]=\"\",Table14[[#This Row],[Requested]]=\"\",Table14[[#This Row],[Received3]]=\"\",Table14[[#This Row],[On File (Y/leave blank)4]]=\"\",Table14[[#This Row],[Requested5]]=\"\",Table14[[#This Row],[Received2]]=\"\", Table14[[#This Row],[On File(Y/leave blank)]]=\"\"), \"STOP\", \"GO\")","v":"GO"},"Andrew T","2015-01-16","FT165615","2015-01-21",null,"2015-01-05","April Clayton",20263316,6200,35738,"ICO 7950","Three days of recording done by April Clayton during her fall semester sabbatical in New York. This is the invoice payment to the producer.","2014-12-16","2014-12-18",{"$f":"IF(Table14[[#This Row],[END date]]=Table14[[#This Row],[BEG date]],1,IF(Table14[[#This Row],[END date]]=Table14[[#This Row],[BEG date]]+1,2,IF(Table14[[#This Row],[END date]]=Table14[[#This Row],[BEG date]]+2,3,IF(Table14[[#This Row],[END date]]=Table14[[#This Row],[BEG date]]+3,4,IF(Table14[[#This Row],[END date]]=Table14[[#This Row],[BEG date]]+4,5,\">5\")))))","v":3}]
["Silas Brown","silas@legacysound.net",3600,"2015-01-14",87902,"2015-01-13","2015-01-07","2015-01-07","Y","2015-01-12","2015-01-12","Y","2015-01-12","2015-01-12","Y",{"$f":"IF(AND(TODAY()<Table14[[#This Row],[BEG date]]-14, Table14[[#This Row],[Submitted on]]=\"\"), \"\", IF(AND(Table14[[#This Row],[BEG date]]-14<=TODAY(), TODAY()<Table14[[#This Row],[BEG date]], Table14[[#This Row],[Submitted on]]=\"\"), Table14[[#This Row],[BEG date]], IF(Table14[[#This Row],[Submitted on]]=\"\", \"PROCESS ASAP\", IF(Table14[[#This Row],[Payment Made]]=\"\", \"SUBMITTED\", \"DONE\"))))","v":"DONE"},{"$f":"IF(OR(Table14[[#This Row],[Vendor]]=\"\", Table14[[#This Row],[Email]]=\"\",Table14[[#This Row],[Amount]]=\"\",Table14[[#This Row],[Sent]]=\"\",Table14[[#This Row],[Vendor '#]]=\"\",Table14[[#This Row],[Completed (Date)]]=\"\",Table14[[#This Row],[Sent2]]=\"\",Table14[[#This Row],[Received]]=\"\",Table14[[#This Row],[On File (Y/leave blank)]]=\"\",Table14[[#This Row],[Requested]]=\"\",Table14[[#This Row],[Received3]]=\"\",Table14[[#This Row],[On File (Y/leave blank)4]]=\"\",Table14[[#This Row],[Requested5]]=\"\",Table14[[#This Row],[Received2]]=\"\", Table14[[#This Row],[On File(Y/leave blank)]]=\"\"), \"STOP\", \"GO\")","v":"GO"},"Andrew T","2015-01-15","FT165373","2015-01-21",null,"2015-01-05","April Clayton",20263316,6200,35738,"ICO 7950","Audio engineering for recording sessions done by School of Music's April Clayton during her Sabbatical in New York.","2014-12-16","2014-12-18",{"$f":"IF(Table14[[#This Row],[END date]]=Table14[[#This Row],[BEG date]],1,IF(Table14[[#This Row],[END date]]=Table14[[#This Row],[BEG date]]+1,2,IF(Table14[[#This Row],[END date]]=Table14[[#This Row],[BEG date]]+2,3,IF(Table14[[#This Row],[END date]]=Table14[[#This Row],[BEG date]]+3,4,IF(Table14[[#This Row],[END date]]=Table14[[#This Row],[BEG date]]+4,5,\">5\")))))","v":3}]
["Simple Rain Studios (Dovy Paukstys)","info@simplerain.com",100,"NA",63016,"NA","NA","NA","Y","2015-01-12","2015-01-12","NA","NA","NA","Y",{"$f":"IF(AND(TODAY()<Table14[[#This Row],[BEG date]]-14, Table14[[#This Row],[Submitted on]]=\"\"), \"\", IF(AND(Table14[[#This Row],[BEG date]]-14<=TODAY(), TODAY()<Table14[[#This Row],[BEG date]], Table14[[#This Row],[Submitted on]]=\"\"), Table14[[#This Row],[BEG date]], IF(Table14[[#This Row],[Submitted on]]=\"\", \"PROCESS ASAP\", IF(Table14[[#This Row],[Payment Made]]=\"\", \"SUBMITTED\", \"DONE\"))))","v":"DONE"},{"$f":"IF(OR(Table14[[#This Row],[Vendor]]=\"\", Table14[[#This Row],[Email]]=\"\",Table14[[#This Row],[Amount]]=\"\",Table14[[#This Row],[Sent]]=\"\",Table14[[#This Row],[Vendor '#]]=\"\",Table14[[#This Row],[Completed (Date)]]=\"\",Table14[[#This Row],[Sent2]]=\"\",Table14[[#This Row],[Received]]=\"\",Table14[[#This Row],[On File (Y/leave blank)]]=\"\",Table14[[#This Row],[Requested]]=\"\",Table14[[#This Row],[Received3]]=\"\",Table14[[#This Row],[On File (Y/leave blank)4]]=\"\",Table14[[#This Row],[Requested5]]=\"\",Table14[[#This Row],[Received2]]=\"\", Table14[[#This Row],[On File(Y/leave blank)]]=\"\"), \"STOP\", \"GO\")","v":"GO"},"Andrew T","2015-01-13","FT165173","2015-01-15",null,"2015-01-09","Rosalind Hall",13263168,6200,35743,"ICO 8999","Technical work performed for downloads per Men's Chorus (Rosalind Hall).","2014-12-04","2014-12-04",{"$f":"IF(Table14[[#This Row],[END date]]=Table14[[#This Row],[BEG date]],1,IF(Table14[[#This Row],[END date]]=Table14[[#This Row],[BEG date]]+1,2,IF(Table14[[#This Row],[END date]]=Table14[[#This Row],[BEG date]]+2,3,IF(Table14[[#This Row],[END date]]=Table14[[#This Row],[BEG date]]+3,4,IF(Table14[[#This Row],[END date]]=Table14[[#This Row],[BEG date]]+4,5,\">5\")))))","v":1},"Mailed","Email sent to Ros requesting email address","801-706-4076"]
["Jayne Galloway","jcgalloway88@gmail.com",50,"NA",49334,"NA","NA","NA","Y","NA","NA","Y","2015-01-12","2015-01-13","Y",{"$f":"IF(AND(TODAY()<Table14[[#This Row],[BEG date]]-14, Table14[[#This Row],[Submitted on]]=\"\"), \"\", IF(AND(Table14[[#This Row],[BEG date]]-14<=TODAY(), TODAY()<Table14[[#This Row],[BEG date]], Table14[[#This Row],[Submitted on]]=\"\"), Table14[[#This Row],[BEG date]], IF(Table14[[#This Row],[Submitted on]]=\"\", \"PROCESS ASAP\", IF(Table14[[#This Row],[Payment Made]]=\"\", \"SUBMITTED\", \"DONE\"))))","v":"DONE"},{"$f":"IF(OR(Table14[[#This Row],[Vendor]]=\"\", Table14[[#This Row],[Email]]=\"\",Table14[[#This Row],[Amount]]=\"\",Table14[[#This Row],[Sent]]=\"\",Table14[[#This Row],[Vendor '#]]=\"\",Table14[[#This Row],[Completed (Date)]]=\"\",Table14[[#This Row],[Sent2]]=\"\",Table14[[#This Row],[Received]]=\"\",Table14[[#This Row],[On File (Y/leave blank)]]=\"\",Table14[[#This Row],[Requested]]=\"\",Table14[[#This Row],[Received3]]=\"\",Table14[[#This Row],[On File (Y/leave blank)4]]=\"\",Table14[[#This Row],[Requested5]]=\"\",Table14[[#This Row],[Received2]]=\"\", Table14[[#This Row],[On File(Y/leave blank)]]=\"\"), \"STOP\", \"GO\")","v":"GO"},"Andrew T","2015-01-14","FT165376","2015-01-20",null,"2015-01-12","Diane Reich",13263113,6200,21680,"ICO 7951","Accompanying services for Vocal Studio Class per Diane Reich.","2015-01-07","2015-01-07",{"$f":"IF(Table14[[#This Row],[END date]]=Table14[[#This Row],[BEG date]],1,IF(Table14[[#This Row],[END date]]=Table14[[#This Row],[BEG date]]+1,2,IF(Table14[[#This Row],[END date]]=Table14[[#This Row],[BEG date]]+2,3,IF(Table14[[#This Row],[END date]]=Table14[[#This Row],[BEG date]]+3,4,IF(Table14[[#This Row],[END date]]=Table14[[#This Row],[BEG date]]+4,5,\">5\")))))","v":1},"Mailed",null,"801-420-8824"]
["Ken Ueno","djmoderne@gmail.com",1467.14,"2015-01-23",88001,"NA","NA","NA","Y","2015-01-15","2015-01-15","NA","NA","NA","Y",{"$f":"IF(AND(TODAY()<Table14[[#This Row],[BEG date]]-14, Table14[[#This Row],[Submitted on]]=\"\"), \"\", IF(AND(Table14[[#This Row],[BEG date]]-14<=TODAY(), TODAY()<Table14[[#This Row],[BEG date]], Table14[[#This Row],[Submitted on]]=\"\"), Table14[[#This Row],[BEG date]], IF(Table14[[#This Row],[Submitted on]]=\"\", \"PROCESS ASAP\", IF(Table14[[#This Row],[Payment Made]]=\"\", \"SUBMITTED\", \"DONE\"))))","v":"DONE"},{"$f":"IF(OR(Table14[[#This Row],[Vendor]]=\"\", Table14[[#This Row],[Email]]=\"\",Table14[[#This Row],[Amount]]=\"\",Table14[[#This Row],[Sent]]=\"\",Table14[[#This Row],[Vendor '#]]=\"\",Table14[[#This Row],[Completed (Date)]]=\"\",Table14[[#This Row],[Sent2]]=\"\",Table14[[#This Row],[Received]]=\"\",Table14[[#This Row],[On File (Y/leave blank)]]=\"\",Table14[[#This Row],[Requested]]=\"\",Table14[[#This Row],[Received3]]=\"\",Table14[[#This Row],[On File (Y/leave blank)4]]=\"\",Table14[[#This Row],[Requested5]]=\"\",Table14[[#This Row],[Received2]]=\"\", Table14[[#This Row],[On File(Y/leave blank)]]=\"\"), \"STOP\", \"GO\")","v":"GO"},"Andrew T","2015-02-18","FT170128","2015-02-19",null,"2015-01-15","Neil Thornock",23263132,6200,35892,"ICO 8000","This is an honorarium and expense reimbursment for a Barlow Lecturer per Neil Thornock","2015-03-04","2015-03-06",{"$f":"IF(Table14[[#This Row],[END date]]=Table14[[#This Row],[BEG date]],1,IF(Table14[[#This Row],[END date]]=Table14[[#This Row],[BEG date]]+1,2,IF(Table14[[#This Row],[END date]]=Table14[[#This Row],[BEG date]]+2,3,IF(Table14[[#This Row],[END date]]=Table14[[#This Row],[BEG date]]+3,4,IF(Table14[[#This Row],[END date]]=Table14[[#This Row],[BEG date]]+4,5,\">5\")))))","v":3},"Hand delivered",null,"617-331-9348"]
["Ariel Bybee","abybee@unl.edu",150,"NA",54398,"NA","NA","NA","Y","2015-01-16","2015-01-29","NA","NA","NA","Y",{"$f":"IF(AND(TODAY()<Table14[[#This Row],[BEG date]]-14, Table14[[#This Row],[Submitted on]]=\"\"), \"\", IF(AND(Table14[[#This Row],[BEG date]]-14<=TODAY(), TODAY()<Table14[[#This Row],[BEG date]], Table14[[#This Row],[Submitted on]]=\"\"), Table14[[#This Row],[BEG date]], IF(Table14[[#This Row],[Submitted on]]=\"\", \"PROCESS ASAP\", IF(Table14[[#This Row],[Payment Made]]=\"\", \"SUBMITTED\", \"DONE\"))))","v":"DONE"},{"$f":"IF(OR(Table14[[#This Row],[Vendor]]=\"\", Table14[[#This Row],[Email]]=\"\",Table14[[#This Row],[Amount]]=\"\",Table14[[#This Row],[Sent]]=\"\",Table14[[#This Row],[Vendor '#]]=\"\",Table14[[#This Row],[Completed (Date)]]=\"\",Table14[[#This Row],[Sent2]]=\"\",Table14[[#This Row],[Received]]=\"\",Table14[[#This Row],[On File (Y/leave blank)]]=\"\",Table14[[#This Row],[Requested]]=\"\",Table14[[#This Row],[Received3]]=\"\",Table14[[#This Row],[On File (Y/leave blank)4]]=\"\",Table14[[#This Row],[Requested5]]=\"\",Table14[[#This Row],[Received2]]=\"\", Table14[[#This Row],[On File(Y/leave blank)]]=\"\"), \"STOP\", \"GO\")","v":"GO"},"Andrew T","2015-01-29","FT167572","2015-02-03",null,"2015-01-16","Lawrence Vincent",11263013,6200,35767,"ICO 7929","Honorarium for help in the Young Artist in Voice competition per Lawrence Vincent.","2015-01-17","2015-01-17",{"$f":"IF(Table14[[#This Row],[END date]]=Table14[[#This Row],[BEG date]],1,IF(Table14[[#This Row],[END date]]=Table14[[#This Row],[BEG date]]+1,2,IF(Table14[[#This Row],[END date]]=Table14[[#This Row],[BEG date]]+2,3,IF(Table14[[#This Row],[END date]]=Table14[[#This Row],[BEG date]]+3,4,IF(Table14[[#This Row],[END date]]=Table14[[#This Row],[BEG date]]+4,5,\">5\")))))","v":1},"Mailed","Another reminder sent on 1/22"]
["Marc Reynolds","marc65reynolds@gmail.com",150,"2015-01-26",88016,"NA","NA","NA","Y","2015-01-16","2015-01-17","NA","NA","NA","Y",{"$f":"IF(AND(TODAY()<Table14[[#This Row],[BEG date]]-14, Table14[[#This Row],[Submitted on]]=\"\"), \"\", IF(AND(Table14[[#This Row],[BEG date]]-14<=TODAY(), TODAY()<Table14[[#This Row],[BEG date]], Table14[[#This Row],[Submitted on]]=\"\"), Table14[[#This Row],[BEG date]], IF(Table14[[#This Row],[Submitted on]]=\"\", \"PROCESS ASAP\", IF(Table14[[#This Row],[Payment Made]]=\"\", \"SUBMITTED\", \"DONE\"))))","v":"DONE"},{"$f":"IF(OR(Table14[[#This Row],[Vendor]]=\"\", Table14[[#This Row],[Email]]=\"\",Table14[[#This Row],[Amount]]=\"\",Table14[[#This Row],[Sent]]=\"\",Table14[[#This Row],[Vendor '#]]=\"\",Table14[[#This Row],[Completed (Date)]]=\"\",Table14[[#This Row],[Sent2]]=\"\",Table14[[#This Row],[Received]]=\"\",Table14[[#This Row],[On File (Y/leave blank)]]=\"\",Table14[[#This Row],[Requested]]=\"\",Table14[[#This Row],[Received3]]=\"\",Table14[[#This Row],[On File (Y/leave blank)4]]=\"\",Table14[[#This Row],[Requested5]]=\"\",Table14[[#This Row],[Received2]]=\"\", Table14[[#This Row],[On File(Y/leave blank)]]=\"\"), \"STOP\", \"GO\")","v":"GO"},"Andrew T","2015-01-27","FT166883","2015-01-29",null,"2015-01-16","Lawrence Vincent",11263013,6200,35767,"ICO 7929","Honorarium for help in the Young Artist in Voice competition per Lawrence Vincent.","2015-01-17","2015-01-17",{"$f":"IF(Table14[[#This Row],[END date]]=Table14[[#This Row],[BEG date]],1,IF(Table14[[#This Row],[END date]]=Table14[[#This Row],[BEG date]]+1,2,IF(Table14[[#This Row],[END date]]=Table14[[#This Row],[BEG date]]+2,3,IF(Table14[[#This Row],[END date]]=Table14[[#This Row],[BEG date]]+3,4,IF(Table14[[#This Row],[END date]]=Table14[[#This Row],[BEG date]]+4,5,\">5\")))))","v":1},"Mailed"]
["Karen Bruestle","kbrookens@weber.edu",150,"2015-01-26",88015,"NA","NA","NA","Y","2015-01-16","2015-01-16","NA","NA","NA","Y",{"$f":"IF(AND(TODAY()<Table14[[#This Row],[BEG date]]-14, Table14[[#This Row],[Submitted on]]=\"\"), \"\", IF(AND(Table14[[#This Row],[BEG date]]-14<=TODAY(), TODAY()<Table14[[#This Row],[BEG date]], Table14[[#This Row],[Submitted on]]=\"\"), Table14[[#This Row],[BEG date]], IF(Table14[[#This Row],[Submitted on]]=\"\", \"PROCESS ASAP\", IF(Table14[[#This Row],[Payment Made]]=\"\", \"SUBMITTED\", \"DONE\"))))","v":"DONE"},{"$f":"IF(OR(Table14[[#This Row],[Vendor]]=\"\", Table14[[#This Row],[Email]]=\"\",Table14[[#This Row],[Amount]]=\"\",Table14[[#This Row],[Sent]]=\"\",Table14[[#This Row],[Vendor '#]]=\"\",Table14[[#This Row],[Completed (Date)]]=\"\",Table14[[#This Row],[Sent2]]=\"\",Table14[[#This Row],[Received]]=\"\",Table14[[#This Row],[On File (Y/leave blank)]]=\"\",Table14[[#This Row],[Requested]]=\"\",Table14[[#This Row],[Received3]]=\"\",Table14[[#This Row],[On File (Y/leave blank)4]]=\"\",Table14[[#This Row],[Requested5]]=\"\",Table14[[#This Row],[Received2]]=\"\", Table14[[#This Row],[On File(Y/leave blank)]]=\"\"), \"STOP\", \"GO\")","v":"GO"},"Andrew T","2015-01-27","FT166884","2015-01-29",null,"2015-01-16","Lawrence Vincent",11263013,6200,35767,"ICO 7929","Honorarium for help in the Young Artist in Voice competition per Lawrence Vincent.","2015-01-17","2015-01-17",{"$f":"IF(Table14[[#This Row],[END date]]=Table14[[#This Row],[BEG date]],1,IF(Table14[[#This Row],[END date]]=Table14[[#This Row],[BEG date]]+1,2,IF(Table14[[#This Row],[END date]]=Table14[[#This Row],[BEG date]]+2,3,IF(Table14[[#This Row],[END date]]=Table14[[#This Row],[BEG date]]+3,4,IF(Table14[[#This Row],[END date]]=Table14[[#This Row],[BEG date]]+4,5,\">5\")))))","v":1},"Mailed"]
["UMEA","rhonda@infowest.com",300,"NA","LE00009599","NA","NA","NA","Y","NA","NA","NA","NA","NA","Y",{"$f":"IF(AND(TODAY()<Table14[[#This Row],[BEG date]]-14, Table14[[#This Row],[Submitted on]]=\"\"), \"\", IF(AND(Table14[[#This Row],[BEG date]]-14<=TODAY(), TODAY()<Table14[[#This Row],[BEG date]], Table14[[#This Row],[Submitted on]]=\"\"), Table14[[#This Row],[BEG date]], IF(Table14[[#This Row],[Submitted on]]=\"\", \"PROCESS ASAP\", IF(Table14[[#This Row],[Payment Made]]=\"\", \"SUBMITTED\", \"DONE\"))))","v":"DONE"},{"$f":"IF(OR(Table14[[#This Row],[Vendor]]=\"\", Table14[[#This Row],[Email]]=\"\",Table14[[#This Row],[Amount]]=\"\",Table14[[#This Row],[Sent]]=\"\",Table14[[#This Row],[Vendor '#]]=\"\",Table14[[#This Row],[Completed (Date)]]=\"\",Table14[[#This Row],[Sent2]]=\"\",Table14[[#This Row],[Received]]=\"\",Table14[[#This Row],[On File (Y/leave blank)]]=\"\",Table14[[#This Row],[Requested]]=\"\",Table14[[#This Row],[Received3]]=\"\",Table14[[#This Row],[On File (Y/leave blank)4]]=\"\",Table14[[#This Row],[Requested5]]=\"\",Table14[[#This Row],[Received2]]=\"\", Table14[[#This Row],[On File(Y/leave blank)]]=\"\"), \"STOP\", \"GO\")","v":"GO"},"Lindsey","2015-01-22","FT166556","2015-01-25",null,"2015-01-22","Will Kimball",13263296,6160,35864,"GDS 8999","Ad payment for School of Music advertisement in the UMEA magazine per Will Kimball","2015-01-17","2015-01-17",{"$f":"IF(Table14[[#This Row],[END date]]=Table14[[#This Row],[BEG date]],1,IF(Table14[[#This Row],[END date]]=Table14[[#This Row],[BEG date]]+1,2,IF(Table14[[#This Row],[END date]]=Table14[[#This Row],[BEG date]]+2,3,IF(Table14[[#This Row],[END date]]=Table14[[#This Row],[BEG date]]+3,4,IF(Table14[[#This Row],[END date]]=Table14[[#This Row],[BEG date]]+4,5,\">5\")))))","v":1},"Mailed"]
["Daniel Goldmark","dig5@case.edu",600,"2015-01-22",87997,"NA","NA","NA","Y","NA","NA","NA","NA","NA","Y",{"$f":"IF(AND(TODAY()<Table14[[#This Row],[BEG date]]-14, Table14[[#This Row],[Submitted on]]=\"\"), \"\", IF(AND(Table14[[#This Row],[BEG date]]-14<=TODAY(), TODAY()<Table14[[#This Row],[BEG date]], Table14[[#This Row],[Submitted on]]=\"\"), Table14[[#This Row],[BEG date]], IF(Table14[[#This Row],[Submitted on]]=\"\", \"PROCESS ASAP\", IF(Table14[[#This Row],[Payment Made]]=\"\", \"SUBMITTED\", \"DONE\"))))","v":"DONE"},{"$f":"IF(OR(Table14[[#This Row],[Vendor]]=\"\", Table14[[#This Row],[Email]]=\"\",Table14[[#This Row],[Amount]]=\"\",Table14[[#This Row],[Sent]]=\"\",Table14[[#This Row],[Vendor '#]]=\"\",Table14[[#This Row],[Completed (Date)]]=\"\",Table14[[#This Row],[Sent2]]=\"\",Table14[[#This Row],[Received]]=\"\",Table14[[#This Row],[On File (Y/leave blank)]]=\"\",Table14[[#This Row],[Requested]]=\"\",Table14[[#This Row],[Received3]]=\"\",Table14[[#This Row],[On File (Y/leave blank)4]]=\"\",Table14[[#This Row],[Requested5]]=\"\",Table14[[#This Row],[Received2]]=\"\", Table14[[#This Row],[On File(Y/leave blank)]]=\"\"), \"STOP\", \"GO\")","v":"GO"},"Andrew T","2015-01-29","FT166555","2015-02-03",null,"2015-01-22","Luke Howard",13263324,6200,35802,"ICO 8000","Honorarium for Oscarson guest lecture per Luke Howard","2015-02-12","2015-02-12",{"$f":"IF(Table14[[#This Row],[END date]]=Table14[[#This Row],[BEG date]],1,IF(Table14[[#This Row],[END date]]=Table14[[#This Row],[BEG date]]+1,2,IF(Table14[[#This Row],[END date]]=Table14[[#This Row],[BEG date]]+2,3,IF(Table14[[#This Row],[END date]]=Table14[[#This Row],[BEG date]]+3,4,IF(Table14[[#This Row],[END date]]=Table14[[#This Row],[BEG date]]+4,5,\">5\")))))","v":1},"Hand delivered",null,"216-368-2526"]
["Mark Valenti","mark@markvalenti.com",500,"2015-02-04",88158,"NA","NA","NA","Y","2015-01-27","2015-02-03","NA","NA","NA","Y",{"$f":"IF(AND(TODAY()<Table14[[#This Row],[BEG date]]-14, Table14[[#This Row],[Submitted on]]=\"\"), \"\", IF(AND(Table14[[#This Row],[BEG date]]-14<=TODAY(), TODAY()<Table14[[#This Row],[BEG date]], Table14[[#This Row],[Submitted on]]=\"\"), Table14[[#This Row],[BEG date]], IF(Table14[[#This Row],[Submitted on]]=\"\", \"PROCESS ASAP\", IF(Table14[[#This Row],[Payment Made]]=\"\", \"SUBMITTED\", \"DONE\"))))","v":"DONE"},{"$f":"IF(OR(Table14[[#This Row],[Vendor]]=\"\", Table14[[#This Row],[Email]]=\"\",Table14[[#This Row],[Amount]]=\"\",Table14[[#This Row],[Sent]]=\"\",Table14[[#This Row],[Vendor '#]]=\"\",Table14[[#This Row],[Completed (Date)]]=\"\",Table14[[#This Row],[Sent2]]=\"\",Table14[[#This Row],[Received]]=\"\",Table14[[#This Row],[On File (Y/leave blank)]]=\"\",Table14[[#This Row],[Requested]]=\"\",Table14[[#This Row],[Received3]]=\"\",Table14[[#This Row],[On File (Y/leave blank)4]]=\"\",Table14[[#This Row],[Requested5]]=\"\",Table14[[#This Row],[Received2]]=\"\", Table14[[#This Row],[On File(Y/leave blank)]]=\"\"), \"STOP\", \"GO\")","v":"GO"},"Andrew T","2015-02-18","FT168395","2015-02-19",null,"2015-01-22","Scott Holden",13263209,6200,35798,"ICO 7929","Honorarium for guest pianist performing a solo recital per Scott Holden","2015-02-27","2015-02-27",{"$f":"IF(Table14[[#This Row],[END date]]=Table14[[#This Row],[BEG date]],1,IF(Table14[[#This Row],[END date]]=Table14[[#This Row],[BEG date]]+1,2,IF(Table14[[#This Row],[END date]]=Table14[[#This Row],[BEG date]]+2,3,IF(Table14[[#This Row],[END date]]=Table14[[#This Row],[BEG date]]+3,4,IF(Table14[[#This Row],[END date]]=Table14[[#This Row],[BEG date]]+4,5,\">5\")))))","v":1},"Hand delivered","Take half from 11263011-6200-35798"]
["Day Murray Music","info@daymurraymusic.com",492.24,"NA","LE00012661","NA","NA","NA","Y","NA","NA","NA","NA","NA","Y",{"$f":"IF(AND(TODAY()<Table14[[#This Row],[BEG date]]-14, Table14[[#This Row],[Submitted on]]=\"\"), \"\", IF(AND(Table14[[#This Row],[BEG date]]-14<=TODAY(), TODAY()<Table14[[#This Row],[BEG date]], Table14[[#This Row],[Submitted on]]=\"\"), Table14[[#This Row],[BEG date]], IF(Table14[[#This Row],[Submitted on]]=\"\", \"PROCESS ASAP\", IF(Table14[[#This Row],[Payment Made]]=\"\", \"SUBMITTED\", \"DONE\"))))","v":"DONE"},{"$f":"IF(OR(Table14[[#This Row],[Vendor]]=\"\", Table14[[#This Row],[Email]]=\"\",Table14[[#This Row],[Amount]]=\"\",Table14[[#This Row],[Sent]]=\"\",Table14[[#This Row],[Vendor '#]]=\"\",Table14[[#This Row],[Completed (Date)]]=\"\",Table14[[#This Row],[Sent2]]=\"\",Table14[[#This Row],[Received]]=\"\",Table14[[#This Row],[On File (Y/leave blank)]]=\"\",Table14[[#This Row],[Requested]]=\"\",Table14[[#This Row],[Received3]]=\"\",Table14[[#This Row],[On File (Y/leave blank)4]]=\"\",Table14[[#This Row],[Requested5]]=\"\",Table14[[#This Row],[Received2]]=\"\", Table14[[#This Row],[On File(Y/leave blank)]]=\"\"), \"STOP\", \"GO\")","v":"GO"},"Lindsey","2015-01-23","FT166852","2015-01-28",null,"2015-01-23","Don Peterson",13263071,6200,35759,"GDS 8999","Music for Concert Band per Don Peterson",null,null,{"$f":"IF(Table14[[#This Row],[END date]]=Table14[[#This Row],[BEG date]],1,IF(Table14[[#This Row],[END date]]=Table14[[#This Row],[BEG date]]+1,2,IF(Table14[[#This Row],[END date]]=Table14[[#This Row],[BEG date]]+2,3,IF(Table14[[#This Row],[END date]]=Table14[[#This Row],[BEG date]]+3,4,IF(Table14[[#This Row],[END date]]=Table14[[#This Row],[BEG date]]+4,5,\">5\")))))","v":1},"Mailed"]
["Gabriele Terrone","gterrone@utmcs.org",250,"2015-02-03",88132,"NA","NA","NA","Y","2015-01-27","2015-02-02","NA","NA","NA","Y",{"$f":"IF(AND(TODAY()<Table14[[#This Row],[BEG date]]-14, Table14[[#This Row],[Submitted on]]=\"\"), \"\", IF(AND(Table14[[#This Row],[BEG date]]-14<=TODAY(), TODAY()<Table14[[#This Row],[BEG date]], Table14[[#This Row],[Submitted on]]=\"\"), Table14[[#This Row],[BEG date]], IF(Table14[[#This Row],[Submitted on]]=\"\", \"PROCESS ASAP\", IF(Table14[[#This Row],[Payment Made]]=\"\", \"SUBMITTED\", \"DONE\"))))","v":"DONE"},{"$f":"IF(OR(Table14[[#This Row],[Vendor]]=\"\", Table14[[#This Row],[Email]]=\"\",Table14[[#This Row],[Amount]]=\"\",Table14[[#This Row],[Sent]]=\"\",Table14[[#This Row],[Vendor '#]]=\"\",Table14[[#This Row],[Completed (Date)]]=\"\",Table14[[#This Row],[Sent2]]=\"\",Table14[[#This Row],[Received]]=\"\",Table14[[#This Row],[On File (Y/leave blank)]]=\"\",Table14[[#This Row],[Requested]]=\"\",Table14[[#This Row],[Received3]]=\"\",Table14[[#This Row],[On File (Y/leave blank)4]]=\"\",Table14[[#This Row],[Requested5]]=\"\",Table14[[#This Row],[Received2]]=\"\", Table14[[#This Row],[On File(Y/leave blank)]]=\"\"), \"STOP\", \"GO\")","v":"GO"},"Andrew T","2015-02-03","FT168192","2015-02-04",null,"2015-01-27","Don Peterson",13263221,6200,35739,"ICO 7929","Honorarium for master class presenter per Don Cook","2015-02-09","2015-02-09",{"$f":"IF(Table14[[#This Row],[END date]]=Table14[[#This Row],[BEG date]],1,IF(Table14[[#This Row],[END date]]=Table14[[#This Row],[BEG date]]+1,2,IF(Table14[[#This Row],[END date]]=Table14[[#This Row],[BEG date]]+2,3,IF(Table14[[#This Row],[END date]]=Table14[[#This Row],[BEG date]]+3,4,IF(Table14[[#This Row],[END date]]=Table14[[#This Row],[BEG date]]+4,5,\">5\")))))","v":1},"Hand delivered",null,"801-328-8941"]
["Reed LeCheminant","trombaguy@comcast.net",25,"NA",40608,"Y","NA","NA","Y","NA","NA","Y","2015-01-28","2015-02-12","Y",{"$f":"IF(AND(TODAY()<Table14[[#This Row],[BEG date]]-14, Table14[[#This Row],[Submitted on]]=\"\"), \"\", IF(AND(Table14[[#This Row],[BEG date]]-14<=TODAY(), TODAY()<Table14[[#This Row],[BEG date]], Table14[[#This Row],[Submitted on]]=\"\"), Table14[[#This Row],[BEG date]], IF(Table14[[#This Row],[Submitted on]]=\"\", \"PROCESS ASAP\", IF(Table14[[#This Row],[Payment Made]]=\"\", \"SUBMITTED\", \"DONE\"))))","v":"DONE"},{"$f":"IF(OR(Table14[[#This Row],[Vendor]]=\"\", Table14[[#This Row],[Email]]=\"\",Table14[[#This Row],[Amount]]=\"\",Table14[[#This Row],[Sent]]=\"\",Table14[[#This Row],[Vendor '#]]=\"\",Table14[[#This Row],[Completed (Date)]]=\"\",Table14[[#This Row],[Sent2]]=\"\",Table14[[#This Row],[Received]]=\"\",Table14[[#This Row],[On File (Y/leave blank)]]=\"\",Table14[[#This Row],[Requested]]=\"\",Table14[[#This Row],[Received3]]=\"\",Table14[[#This Row],[On File (Y/leave blank)4]]=\"\",Table14[[#This Row],[Requested5]]=\"\",Table14[[#This Row],[Received2]]=\"\", Table14[[#This Row],[On File(Y/leave blank)]]=\"\"), \"STOP\", \"GO\")","v":"GO"},"Andrew T","2015-02-12","FT169578","2015-02-18",null,"2015-01-28","Steve Call",13263073,6200,35736,"ICO 7950","Payment for the arrangement of \"Someday Sweetheart\" per Steve Call.","2015-01-25","2015-01-25",{"$f":"IF(Table14[[#This Row],[END date]]=Table14[[#This Row],[BEG date]],1,IF(Table14[[#This Row],[END date]]=Table14[[#This Row],[BEG date]]+1,2,IF(Table14[[#This Row],[END date]]=Table14[[#This Row],[BEG date]]+2,3,IF(Table14[[#This Row],[END date]]=Table14[[#This Row],[BEG date]]+3,4,IF(Table14[[#This Row],[END date]]=Table14[[#This Row],[BEG date]]+4,5,\">5\")))))","v":1},"Mailed","Request for contract resent on 02/05","801-209-2336"]
["Sarah Halliday","sarahhalliday93@gmail.com ",160,"2015-02-11",88239,"NA","NA","NA","Y","2015-01-26","2015-02-09","NA","NA","NA","Y",{"$f":"IF(AND(TODAY()<Table14[[#This Row],[BEG date]]-14, Table14[[#This Row],[Submitted on]]=\"\"), \"\", IF(AND(Table14[[#This Row],[BEG date]]-14<=TODAY(), TODAY()<Table14[[#This Row],[BEG date]], Table14[[#This Row],[Submitted on]]=\"\"), Table14[[#This Row],[BEG date]], IF(Table14[[#This Row],[Submitted on]]=\"\", \"PROCESS ASAP\", IF(Table14[[#This Row],[Payment Made]]=\"\", \"SUBMITTED\", \"DONE\"))))","v":"DONE"},{"$f":"IF(OR(Table14[[#This Row],[Vendor]]=\"\", Table14[[#This Row],[Email]]=\"\",Table14[[#This Row],[Amount]]=\"\",Table14[[#This Row],[Sent]]=\"\",Table14[[#This Row],[Vendor '#]]=\"\",Table14[[#This Row],[Completed (Date)]]=\"\",Table14[[#This Row],[Sent2]]=\"\",Table14[[#This Row],[Received]]=\"\",Table14[[#This Row],[On File (Y/leave blank)]]=\"\",Table14[[#This Row],[Requested]]=\"\",Table14[[#This Row],[Received3]]=\"\",Table14[[#This Row],[On File (Y/leave blank)4]]=\"\",Table14[[#This Row],[Requested5]]=\"\",Table14[[#This Row],[Received2]]=\"\", Table14[[#This Row],[On File(Y/leave blank)]]=\"\"), \"STOP\", \"GO\")","v":"GO"},"Andrew E","2015-02-11","FT169386","2015-02-17",null,"2015-01-26","Fred McInnis",19263118,6200,35985,"ICO 8999","Assisted Fred McInnis with University Band",null,null,{"$f":"IF(Table14[[#This Row],[END date]]=Table14[[#This Row],[BEG date]],1,IF(Table14[[#This Row],[END date]]=Table14[[#This Row],[BEG date]]+1,2,IF(Table14[[#This Row],[END date]]=Table14[[#This Row],[BEG date]]+2,3,IF(Table14[[#This Row],[END date]]=Table14[[#This Row],[BEG date]]+3,4,IF(Table14[[#This Row],[END date]]=Table14[[#This Row],[BEG date]]+4,5,\">5\")))))","v":1}]
["David Van Komen","david.vankomen@gmail.com ",160,"2015-02-11",88237,"NA","NA","NA","Y","2015-01-26","2015-02-11","NA","NA","NA","Y",{"$f":"IF(AND(TODAY()<Table14[[#This Row],[BEG date]]-14, Table14[[#This Row],[Submitted on]]=\"\"), \"\", IF(AND(Table14[[#This Row],[BEG date]]-14<=TODAY(), TODAY()<Table14[[#This Row],[BEG date]], Table14[[#This Row],[Submitted on]]=\"\"), Table14[[#This Row],[BEG date]], IF(Table14[[#This Row],[Submitted on]]=\"\", \"PROCESS ASAP\", IF(Table14[[#This Row],[Payment Made]]=\"\", \"SUBMITTED\", \"DONE\"))))","v":"DONE"},{"$f":"IF(OR(Table14[[#This Row],[Vendor]]=\"\", Table14[[#This Row],[Email]]=\"\",Table14[[#This Row],[Amount]]=\"\",Table14[[#This Row],[Sent]]=\"\",Table14[[#This Row],[Vendor '#]]=\"\",Table14[[#This Row],[Completed (Date)]]=\"\",Table14[[#This Row],[Sent2]]=\"\",Table14[[#This Row],[Received]]=\"\",Table14[[#This Row],[On File (Y/leave blank)]]=\"\",Table14[[#This Row],[Requested]]=\"\",Table14[[#This Row],[Received3]]=\"\",Table14[[#This Row],[On File (Y/leave blank)4]]=\"\",Table14[[#This Row],[Requested5]]=\"\",Table14[[#This Row],[Received2]]=\"\", Table14[[#This Row],[On File(Y/leave blank)]]=\"\"), \"STOP\", \"GO\")","v":"GO"},"Andrew E","2015-02-11","FT169384","2015-02-17",null,"2015-01-26","Fred McInnis",19263118,6200,35985,"ICO 8999","Assisted Fred McInnis with University Band",null,null,{"$f":"IF(Table14[[#This Row],[END date]]=Table14[[#This Row],[BEG date]],1,IF(Table14[[#This Row],[END date]]=Table14[[#This Row],[BEG date]]+1,2,IF(Table14[[#This Row],[END date]]=Table14[[#This Row],[BEG date]]+2,3,IF(Table14[[#This Row],[END date]]=Table14[[#This Row],[BEG date]]+3,4,IF(Table14[[#This Row],[END date]]=Table14[[#This Row],[BEG date]]+4,5,\">5\")))))","v":1}]
["Brenton Ferrell","ferrettfoot@msn.com",160,"2015-01-26",88027,"NA","NA","NA","Y","2015-01-26","2015-01-26","NA","NA","NA","Y",{"$f":"IF(AND(TODAY()<Table14[[#This Row],[BEG date]]-14, Table14[[#This Row],[Submitted on]]=\"\"), \"\", IF(AND(Table14[[#This Row],[BEG date]]-14<=TODAY(), TODAY()<Table14[[#This Row],[BEG date]], Table14[[#This Row],[Submitted on]]=\"\"), Table14[[#This Row],[BEG date]], IF(Table14[[#This Row],[Submitted on]]=\"\", \"PROCESS ASAP\", IF(Table14[[#This Row],[Payment Made]]=\"\", \"SUBMITTED\", \"DONE\"))))","v":"DONE"},{"$f":"IF(OR(Table14[[#This Row],[Vendor]]=\"\", Table14[[#This Row],[Email]]=\"\",Table14[[#This Row],[Amount]]=\"\",Table14[[#This Row],[Sent]]=\"\",Table14[[#This Row],[Vendor '#]]=\"\",Table14[[#This Row],[Completed (Date)]]=\"\",Table14[[#This Row],[Sent2]]=\"\",Table14[[#This Row],[Received]]=\"\",Table14[[#This Row],[On File (Y/leave blank)]]=\"\",Table14[[#This Row],[Requested]]=\"\",Table14[[#This Row],[Received3]]=\"\",Table14[[#This Row],[On File (Y/leave blank)4]]=\"\",Table14[[#This Row],[Requested5]]=\"\",Table14[[#This Row],[Received2]]=\"\", Table14[[#This Row],[On File(Y/leave blank)]]=\"\"), \"STOP\", \"GO\")","v":"GO"},"Andrew E","2015-01-28","FT167032","2015-02-03",null,"2015-01-26","Fred McInnis",19263118,6200,35985,"ICO 8999","Assisted Fred McInnis with University Band",null,null,{"$f":"IF(Table14[[#This Row],[END date]]=Table14[[#This Row],[BEG date]],1,IF(Table14[[#This Row],[END date]]=Table14[[#This Row],[BEG date]]+1,2,IF(Table14[[#This Row],[END date]]=Table14[[#This Row],[BEG date]]+2,3,IF(Table14[[#This Row],[END date]]=Table14[[#This Row],[BEG date]]+3,4,IF(Table14[[#This Row],[END date]]=Table14[[#This Row],[BEG date]]+4,5,\">5\")))))","v":1}]
["Connor Cunningham","connorbc11@gmail.com ",160,"NA",66445,"NA","NA","NA","Y","2015-01-28","2015-02-06","NA","NA","NA","Y",{"$f":"IF(AND(TODAY()<Table14[[#This Row],[BEG date]]-14, Table14[[#This Row],[Submitted on]]=\"\"), \"\", IF(AND(Table14[[#This Row],[BEG date]]-14<=TODAY(), TODAY()<Table14[[#This Row],[BEG date]], Table14[[#This Row],[Submitted on]]=\"\"), Table14[[#This Row],[BEG date]], IF(Table14[[#This Row],[Submitted on]]=\"\", \"PROCESS ASAP\", IF(Table14[[#This Row],[Payment Made]]=\"\", \"SUBMITTED\", \"DONE\"))))","v":"DONE"},{"$f":"IF(OR(Table14[[#This Row],[Vendor]]=\"\", Table14[[#This Row],[Email]]=\"\",Table14[[#This Row],[Amount]]=\"\",Table14[[#This Row],[Sent]]=\"\",Table14[[#This Row],[Vendor '#]]=\"\",Table14[[#This Row],[Completed (Date)]]=\"\",Table14[[#This Row],[Sent2]]=\"\",Table14[[#This Row],[Received]]=\"\",Table14[[#This Row],[On File (Y/leave blank)]]=\"\",Table14[[#This Row],[Requested]]=\"\",Table14[[#This Row],[Received3]]=\"\",Table14[[#This Row],[On File (Y/leave blank)4]]=\"\",Table14[[#This Row],[Requested5]]=\"\",Table14[[#This Row],[Received2]]=\"\", Table14[[#This Row],[On File(Y/leave blank)]]=\"\"), \"STOP\", \"GO\")","v":"GO"},"Andrew E","2015-02-06","FT168886","2015-02-11",null,"2015-01-26","Fred McInnis",19263118,6200,35985,"ICO 8999","Assisted Fred McInnis with University Band",null,null,{"$f":"IF(Table14[[#This Row],[END date]]=Table14[[#This Row],[BEG date]],1,IF(Table14[[#This Row],[END date]]=Table14[[#This Row],[BEG date]]+1,2,IF(Table14[[#This Row],[END date]]=Table14[[#This Row],[BEG date]]+2,3,IF(Table14[[#This Row],[END date]]=Table14[[#This Row],[BEG date]]+3,4,IF(Table14[[#This Row],[END date]]=Table14[[#This Row],[BEG date]]+4,5,\">5\")))))","v":1}]
["Ellen Dickinson","ellen@ellen.cc",250,"NA",81179,"NA","NA","NA","Y","NA","NA","NA","NA","NA","Y",{"$f":"IF(AND(TODAY()<Table14[[#This Row],[BEG date]]-14, Table14[[#This Row],[Submitted on]]=\"\"), \"\", IF(AND(Table14[[#This Row],[BEG date]]-14<=TODAY(), TODAY()<Table14[[#This Row],[BEG date]], Table14[[#This Row],[Submitted on]]=\"\"), Table14[[#This Row],[BEG date]], IF(Table14[[#This Row],[Submitted on]]=\"\", \"PROCESS ASAP\", IF(Table14[[#This Row],[Payment Made]]=\"\", \"SUBMITTED\", \"DONE\"))))","v":"DONE"},{"$f":"IF(OR(Table14[[#This Row],[Vendor]]=\"\", Table14[[#This Row],[Email]]=\"\",Table14[[#This Row],[Amount]]=\"\",Table14[[#This Row],[Sent]]=\"\",Table14[[#This Row],[Vendor '#]]=\"\",Table14[[#This Row],[Completed (Date)]]=\"\",Table14[[#This Row],[Sent2]]=\"\",Table14[[#This Row],[Received]]=\"\",Table14[[#This Row],[On File (Y/leave blank)]]=\"\",Table14[[#This Row],[Requested]]=\"\",Table14[[#This Row],[Received3]]=\"\",Table14[[#This Row],[On File (Y/leave blank)4]]=\"\",Table14[[#This Row],[Requested5]]=\"\",Table14[[#This Row],[Received2]]=\"\", Table14[[#This Row],[On File(Y/leave blank)]]=\"\"), \"STOP\", \"GO\")","v":"GO"},"Andrew T","2015-01-29","FT167556","2015-02-04",null,"2015-01-29","Don Cook",13263209,6200,21629,"ICO 7929","He will be performing a masterclass at the carrillon per Don Cook","2014-11-17","2014-11-17",{"$f":"IF(Table14[[#This Row],[END date]]=Table14[[#This Row],[BEG date]],1,IF(Table14[[#This Row],[END date]]=Table14[[#This Row],[BEG date]]+1,2,IF(Table14[[#This Row],[END date]]=Table14[[#This Row],[BEG date]]+2,3,IF(Table14[[#This Row],[END date]]=Table14[[#This Row],[BEG date]]+3,4,IF(Table14[[#This Row],[END date]]=Table14[[#This Row],[BEG date]]+4,5,\">5\")))))","v":1},"Mailed",null,"203-536-2601"]
["Ben Walley","bcwalley@gmail.com",590,"2015-01-13",87891,"NA","NA","NA","Y","2015-01-20","2015-01-21","NA","NA","NA","Y",{"$f":"IF(AND(TODAY()<Table14[[#This Row],[BEG date]]-14, Table14[[#This Row],[Submitted on]]=\"\"), \"\", IF(AND(Table14[[#This Row],[BEG date]]-14<=TODAY(), TODAY()<Table14[[#This Row],[BEG date]], Table14[[#This Row],[Submitted on]]=\"\"), Table14[[#This Row],[BEG date]], IF(Table14[[#This Row],[Submitted on]]=\"\", \"PROCESS ASAP\", IF(Table14[[#This Row],[Payment Made]]=\"\", \"SUBMITTED\", \"DONE\"))))","v":"DONE"},{"$f":"IF(OR(Table14[[#This Row],[Vendor]]=\"\", Table14[[#This Row],[Email]]=\"\",Table14[[#This Row],[Amount]]=\"\",Table14[[#This Row],[Sent]]=\"\",Table14[[#This Row],[Vendor '#]]=\"\",Table14[[#This Row],[Completed (Date)]]=\"\",Table14[[#This Row],[Sent2]]=\"\",Table14[[#This Row],[Received]]=\"\",Table14[[#This Row],[On File (Y/leave blank)]]=\"\",Table14[[#This Row],[Requested]]=\"\",Table14[[#This Row],[Received3]]=\"\",Table14[[#This Row],[On File (Y/leave blank)4]]=\"\",Table14[[#This Row],[Requested5]]=\"\",Table14[[#This Row],[Received2]]=\"\", Table14[[#This Row],[On File(Y/leave blank)]]=\"\"), \"STOP\", \"GO\")","v":"GO"},"Andrew E","2015-02-04","FT168469","2015-02-06",null,"2015-01-29","Rob Brandt",null,null,null,null,null,null,null,{"$f":"IF(Table14[[#This Row],[END date]]=Table14[[#This Row],[BEG date]],1,IF(Table14[[#This Row],[END date]]=Table14[[#This Row],[BEG date]]+1,2,IF(Table14[[#This Row],[END date]]=Table14[[#This Row],[BEG date]]+2,3,IF(Table14[[#This Row],[END date]]=Table14[[#This Row],[BEG date]]+3,4,IF(Table14[[#This Row],[END date]]=Table14[[#This Row],[BEG date]]+4,5,\">5\")))))","v":1}]
["Dominique Bellon","dominique.bellon@eku.edu",200,"2015-02-06",88189,"NA","NA","NA","Y","2015-01-30","2015-02-04","NA","NA","NA","Y",{"$f":"IF(AND(TODAY()<Table14[[#This Row],[BEG date]]-14, Table14[[#This Row],[Submitted on]]=\"\"), \"\", IF(AND(Table14[[#This Row],[BEG date]]-14<=TODAY(), TODAY()<Table14[[#This Row],[BEG date]], Table14[[#This Row],[Submitted on]]=\"\"), Table14[[#This Row],[BEG date]], IF(Table14[[#This Row],[Submitted on]]=\"\", \"PROCESS ASAP\", IF(Table14[[#This Row],[Payment Made]]=\"\", \"SUBMITTED\", \"DONE\"))))","v":"DONE"},{"$f":"IF(OR(Table14[[#This Row],[Vendor]]=\"\", Table14[[#This Row],[Email]]=\"\",Table14[[#This Row],[Amount]]=\"\",Table14[[#This Row],[Sent]]=\"\",Table14[[#This Row],[Vendor '#]]=\"\",Table14[[#This Row],[Completed (Date)]]=\"\",Table14[[#This Row],[Sent2]]=\"\",Table14[[#This Row],[Received]]=\"\",Table14[[#This Row],[On File (Y/leave blank)]]=\"\",Table14[[#This Row],[Requested]]=\"\",Table14[[#This Row],[Received3]]=\"\",Table14[[#This Row],[On File (Y/leave blank)4]]=\"\",Table14[[#This Row],[Requested5]]=\"\",Table14[[#This Row],[Received2]]=\"\", Table14[[#This Row],[On File(Y/leave blank)]]=\"\"), \"STOP\", \"GO\")","v":"GO"},"Andrew T","2015-02-11","FT168772","2015-02-12",null,"2015-01-30","Geralyn Giovannetti",13263210,6200,35742,"ICO 7929","Guest performer/lecturer for woodwind masterclass per Geralyn Giovannetti.","2015-02-04","2015-02-04",{"$f":"IF(Table14[[#This Row],[END date]]=Table14[[#This Row],[BEG date]],1,IF(Table14[[#This Row],[END date]]=Table14[[#This Row],[BEG date]]+1,2,IF(Table14[[#This Row],[END date]]=Table14[[#This Row],[BEG date]]+2,3,IF(Table14[[#This Row],[END date]]=Table14[[#This Row],[BEG date]]+3,4,IF(Table14[[#This Row],[END date]]=Table14[[#This Row],[BEG date]]+4,5,\">5\")))))","v":1},"Hand delivered",null,"859-248-0448"]
["Black Bear Development","murali.moorthy4@gmail.com",1800,"NA",86655,"NA","2015-02-03","2015-02-03","Y","2015-02-03","2015-02-10","NA","NA","NA","Y",{"$f":"IF(AND(TODAY()<Table14[[#This Row],[BEG date]]-14, Table14[[#This Row],[Submitted on]]=\"\"), \"\", IF(AND(Table14[[#This Row],[BEG date]]-14<=TODAY(), TODAY()<Table14[[#This Row],[BEG date]], Table14[[#This Row],[Submitted on]]=\"\"), Table14[[#This Row],[BEG date]], IF(Table14[[#This Row],[Submitted on]]=\"\", \"PROCESS ASAP\", IF(Table14[[#This Row],[Payment Made]]=\"\", \"SUBMITTED\", \"DONE\"))))","v":"DONE"},{"$f":"IF(OR(Table14[[#This Row],[Vendor]]=\"\", Table14[[#This Row],[Email]]=\"\",Table14[[#This Row],[Amount]]=\"\",Table14[[#This Row],[Sent]]=\"\",Table14[[#This Row],[Vendor '#]]=\"\",Table14[[#This Row],[Completed (Date)]]=\"\",Table14[[#This Row],[Sent2]]=\"\",Table14[[#This Row],[Received]]=\"\",Table14[[#This Row],[On File (Y/leave blank)]]=\"\",Table14[[#This Row],[Requested]]=\"\",Table14[[#This Row],[Received3]]=\"\",Table14[[#This Row],[On File (Y/leave blank)4]]=\"\",Table14[[#This Row],[Requested5]]=\"\",Table14[[#This Row],[Received2]]=\"\", Table14[[#This Row],[On File(Y/leave blank)]]=\"\"), \"STOP\", \"GO\")","v":"GO"},"Andrew T","2015-02-10","FT169294","2015-02-12",null,"2015-02-02","Brett Thomas",23263123,6220,"00000","RNT 7011","This payment is for studio space for the folk ensemble.","2015-01-28","2015-01-28",{"$f":"IF(Table14[[#This Row],[END date]]=Table14[[#This Row],[BEG date]],1,IF(Table14[[#This Row],[END date]]=Table14[[#This Row],[BEG date]]+1,2,IF(Table14[[#This Row],[END date]]=Table14[[#This Row],[BEG date]]+2,3,IF(Table14[[#This Row],[END date]]=Table14[[#This Row],[BEG date]]+3,4,IF(Table14[[#This Row],[END date]]=Table14[[#This Row],[BEG date]]+4,5,\">5\")))))","v":1},"Mailed",null,"801-373-7765"]
["Boosey & Hawkes","Usrental@boosey.com",240,"NA",3593,"NA","NA","NA","Y","NA","NA","NA","NA","NA","Y",{"$f":"IF(AND(TODAY()<Table14[[#This Row],[BEG date]]-14, Table14[[#This Row],[Submitted on]]=\"\"), \"\", IF(AND(Table14[[#This Row],[BEG date]]-14<=TODAY(), TODAY()<Table14[[#This Row],[BEG date]], Table14[[#This Row],[Submitted on]]=\"\"), Table14[[#This Row],[BEG date]], IF(Table14[[#This Row],[Submitted on]]=\"\", \"PROCESS ASAP\", IF(Table14[[#This Row],[Payment Made]]=\"\", \"SUBMITTED\", \"DONE\"))))","v":"DONE"},{"$f":"IF(OR(Table14[[#This Row],[Vendor]]=\"\", Table14[[#This Row],[Email]]=\"\",Table14[[#This Row],[Amount]]=\"\",Table14[[#This Row],[Sent]]=\"\",Table14[[#This Row],[Vendor '#]]=\"\",Table14[[#This Row],[Completed (Date)]]=\"\",Table14[[#This Row],[Sent2]]=\"\",Table14[[#This Row],[Received]]=\"\",Table14[[#This Row],[On File (Y/leave blank)]]=\"\",Table14[[#This Row],[Requested]]=\"\",Table14[[#This Row],[Received3]]=\"\",Table14[[#This Row],[On File (Y/leave blank)4]]=\"\",Table14[[#This Row],[Requested5]]=\"\",Table14[[#This Row],[Received2]]=\"\", Table14[[#This Row],[On File(Y/leave blank)]]=\"\"), \"STOP\", \"GO\")","v":"GO"},"Andrew T","2015-02-11","FT169336","2015-02-18",null,"2015-02-03","Richard Anderson",11263000,6100,35726,"ROY 8999","Payment for rights fees for the book Richard Anderson will be publishing. Vendor has asked that one copy of invoice be returned with payment.","2015-02-03","2015-02-03",{"$f":"IF(Table14[[#This Row],[END date]]=Table14[[#This Row],[BEG date]],1,IF(Table14[[#This Row],[END date]]=Table14[[#This Row],[BEG date]]+1,2,IF(Table14[[#This Row],[END date]]=Table14[[#This Row],[BEG date]]+2,3,IF(Table14[[#This Row],[END date]]=Table14[[#This Row],[BEG date]]+3,4,IF(Table14[[#This Row],[END date]]=Table14[[#This Row],[BEG date]]+4,5,\">5\")))))","v":1},"Mailed"]
["Boosey & Hawkes","Usrental@boosey.com",270,"NA",3593,"NA","NA","NA","Y","NA","NA","NA","NA","NA","Y",{"$f":"IF(AND(TODAY()<Table14[[#This Row],[BEG date]]-14, Table14[[#This Row],[Submitted on]]=\"\"), \"\", IF(AND(Table14[[#This Row],[BEG date]]-14<=TODAY(), TODAY()<Table14[[#This Row],[BEG date]], Table14[[#This Row],[Submitted on]]=\"\"), Table14[[#This Row],[BEG date]], IF(Table14[[#This Row],[Submitted on]]=\"\", \"PROCESS ASAP\", IF(Table14[[#This Row],[Payment Made]]=\"\", \"SUBMITTED\", \"DONE\"))))","v":"DONE"},{"$f":"IF(OR(Table14[[#This Row],[Vendor]]=\"\", Table14[[#This Row],[Email]]=\"\",Table14[[#This Row],[Amount]]=\"\",Table14[[#This Row],[Sent]]=\"\",Table14[[#This Row],[Vendor '#]]=\"\",Table14[[#This Row],[Completed (Date)]]=\"\",Table14[[#This Row],[Sent2]]=\"\",Table14[[#This Row],[Received]]=\"\",Table14[[#This Row],[On File (Y/leave blank)]]=\"\",Table14[[#This Row],[Requested]]=\"\",Table14[[#This Row],[Received3]]=\"\",Table14[[#This Row],[On File (Y/leave blank)4]]=\"\",Table14[[#This Row],[Requested5]]=\"\",Table14[[#This Row],[Received2]]=\"\", Table14[[#This Row],[On File(Y/leave blank)]]=\"\"), \"STOP\", \"GO\")","v":"GO"},"Andrew T","2015-02-11","FT169337","2015-02-18",null,"2015-02-03","Richard Anderson",11263000,6100,35726,"ROY 8999","Payment for rights fees for the book Richard Anderson will be publishing. Vendor has asked that one copy of invoice be returned with payment.","2015-02-03","2015-02-03",{"$f":"IF(Table14[[#This Row],[END date]]=Table14[[#This Row],[BEG date]],1,IF(Table14[[#This Row],[END date]]=Table14[[#This Row],[BEG date]]+1,2,IF(Table14[[#This Row],[END date]]=Table14[[#This Row],[BEG date]]+2,3,IF(Table14[[#This Row],[END date]]=Table14[[#This Row],[BEG date]]+3,4,IF(Table14[[#This Row],[END date]]=Table14[[#This Row],[BEG date]]+4,5,\">5\")))))","v":1},"Mailed"]
["Boosey & Hawkes","Usrental@boosey.com",50,"NA",3593,"NA","NA","NA","Y","NA","NA","NA","NA","NA","Y",{"$f":"IF(AND(TODAY()<Table14[[#This Row],[BEG date]]-14, Table14[[#This Row],[Submitted on]]=\"\"), \"\", IF(AND(Table14[[#This Row],[BEG date]]-14<=TODAY(), TODAY()<Table14[[#This Row],[BEG date]], Table14[[#This Row],[Submitted on]]=\"\"), Table14[[#This Row],[BEG date]], IF(Table14[[#This Row],[Submitted on]]=\"\", \"PROCESS ASAP\", IF(Table14[[#This Row],[Payment Made]]=\"\", \"SUBMITTED\", \"DONE\"))))","v":"DONE"},{"$f":"IF(OR(Table14[[#This Row],[Vendor]]=\"\", Table14[[#This Row],[Email]]=\"\",Table14[[#This Row],[Amount]]=\"\",Table14[[#This Row],[Sent]]=\"\",Table14[[#This Row],[Vendor '#]]=\"\",Table14[[#This Row],[Completed (Date)]]=\"\",Table14[[#This Row],[Sent2]]=\"\",Table14[[#This Row],[Received]]=\"\",Table14[[#This Row],[On File (Y/leave blank)]]=\"\",Table14[[#This Row],[Requested]]=\"\",Table14[[#This Row],[Received3]]=\"\",Table14[[#This Row],[On File (Y/leave blank)4]]=\"\",Table14[[#This Row],[Requested5]]=\"\",Table14[[#This Row],[Received2]]=\"\", Table14[[#This Row],[On File(Y/leave blank)]]=\"\"), \"STOP\", \"GO\")","v":"GO"},"Andrew T","2015-02-11","FT169338","2015-02-18",null,"2015-02-03","Richard Anderson",11263000,6100,35726,"ROY 8999","Payment for rights fees for the book Richard Anderson will be publishing. Vendor has asked that one copy of invoice be returned with payment.","2015-02-03","2015-02-03",{"$f":"IF(Table14[[#This Row],[END date]]=Table14[[#This Row],[BEG date]],1,IF(Table14[[#This Row],[END date]]=Table14[[#This Row],[BEG date]]+1,2,IF(Table14[[#This Row],[END date]]=Table14[[#This Row],[BEG date]]+2,3,IF(Table14[[#This Row],[END date]]=Table14[[#This Row],[BEG date]]+3,4,IF(Table14[[#This Row],[END date]]=Table14[[#This Row],[BEG date]]+4,5,\">5\")))))","v":1},"Mailed"]
["Boosey & Hawkes","Usrental@boosey.com",50,"NA",3593,"NA","NA","NA","Y","NA","NA","NA","NA","NA","Y",{"$f":"IF(AND(TODAY()<Table14[[#This Row],[BEG date]]-14, Table14[[#This Row],[Submitted on]]=\"\"), \"\", IF(AND(Table14[[#This Row],[BEG date]]-14<=TODAY(), TODAY()<Table14[[#This Row],[BEG date]], Table14[[#This Row],[Submitted on]]=\"\"), Table14[[#This Row],[BEG date]], IF(Table14[[#This Row],[Submitted on]]=\"\", \"PROCESS ASAP\", IF(Table14[[#This Row],[Payment Made]]=\"\", \"SUBMITTED\", \"DONE\"))))","v":"DONE"},{"$f":"IF(OR(Table14[[#This Row],[Vendor]]=\"\", Table14[[#This Row],[Email]]=\"\",Table14[[#This Row],[Amount]]=\"\",Table14[[#This Row],[Sent]]=\"\",Table14[[#This Row],[Vendor '#]]=\"\",Table14[[#This Row],[Completed (Date)]]=\"\",Table14[[#This Row],[Sent2]]=\"\",Table14[[#This Row],[Received]]=\"\",Table14[[#This Row],[On File (Y/leave blank)]]=\"\",Table14[[#This Row],[Requested]]=\"\",Table14[[#This Row],[Received3]]=\"\",Table14[[#This Row],[On File (Y/leave blank)4]]=\"\",Table14[[#This Row],[Requested5]]=\"\",Table14[[#This Row],[Received2]]=\"\", Table14[[#This Row],[On File(Y/leave blank)]]=\"\"), \"STOP\", \"GO\")","v":"GO"},"Andrew T","2015-02-11","FT169341","2015-02-16",null,"2015-02-03","Richard Anderson",11263000,6100,35726,"ROY 8999","Payment for rights fees for the book Richard Anderson will be publishing. Vendor has asked that one copy of invoice be returned with payment.","2015-02-03","2015-02-03",{"$f":"IF(Table14[[#This Row],[END date]]=Table14[[#This Row],[BEG date]],1,IF(Table14[[#This Row],[END date]]=Table14[[#This Row],[BEG date]]+1,2,IF(Table14[[#This Row],[END date]]=Table14[[#This Row],[BEG date]]+2,3,IF(Table14[[#This Row],[END date]]=Table14[[#This Row],[BEG date]]+3,4,IF(Table14[[#This Row],[END date]]=Table14[[#This Row],[BEG date]]+4,5,\">5\")))))","v":1},"Mailed"]
["State Street Feed & Supply","craigkacy@aol.com",698.73,"2015-02-18",88286,"NA","NA","NA","Y","2015-02-06","2015-02-17","NA","NA","NA","Y",{"$f":"IF(AND(TODAY()<Table14[[#This Row],[BEG date]]-14, Table14[[#This Row],[Submitted on]]=\"\"), \"\", IF(AND(Table14[[#This Row],[BEG date]]-14<=TODAY(), TODAY()<Table14[[#This Row],[BEG date]], Table14[[#This Row],[Submitted on]]=\"\"), Table14[[#This Row],[BEG date]], IF(Table14[[#This Row],[Submitted on]]=\"\", \"PROCESS ASAP\", IF(Table14[[#This Row],[Payment Made]]=\"\", \"SUBMITTED\", \"DONE\"))))","v":"DONE"},{"$f":"IF(OR(Table14[[#This Row],[Vendor]]=\"\", Table14[[#This Row],[Email]]=\"\",Table14[[#This Row],[Amount]]=\"\",Table14[[#This Row],[Sent]]=\"\",Table14[[#This Row],[Vendor '#]]=\"\",Table14[[#This Row],[Completed (Date)]]=\"\",Table14[[#This Row],[Sent2]]=\"\",Table14[[#This Row],[Received]]=\"\",Table14[[#This Row],[On File (Y/leave blank)]]=\"\",Table14[[#This Row],[Requested]]=\"\",Table14[[#This Row],[Received3]]=\"\",Table14[[#This Row],[On File (Y/leave blank)4]]=\"\",Table14[[#This Row],[Requested5]]=\"\",Table14[[#This Row],[Received2]]=\"\", Table14[[#This Row],[On File(Y/leave blank)]]=\"\"), \"STOP\", \"GO\")","v":"GO"},"Andrew T","2015-02-18","FT170130","2015-02-20",null,"2015-02-05","Jeremy Grimshaw",11263002,6180,"00000","ICO 8989","Catering services to be provided per Jeremy Grimshaw.","2015-02-13","2015-02-13",{"$f":"IF(Table14[[#This Row],[END date]]=Table14[[#This Row],[BEG date]],1,IF(Table14[[#This Row],[END date]]=Table14[[#This Row],[BEG date]]+1,2,IF(Table14[[#This Row],[END date]]=Table14[[#This Row],[BEG date]]+2,3,IF(Table14[[#This Row],[END date]]=Table14[[#This Row],[BEG date]]+3,4,IF(Table14[[#This Row],[END date]]=Table14[[#This Row],[BEG date]]+4,5,\">5\")))))","v":1},"Mailed","resent on 02/12/2015"]
["American Academy of Arts and Letters","aholmgrain@artsandletters.org",2700,"NA",53554,"NA","NA","NA","Y","NA","NA","NA","NA","NA","Y",{"$f":"IF(AND(TODAY()<Table14[[#This Row],[BEG date]]-14, Table14[[#This Row],[Submitted on]]=\"\"), \"\", IF(AND(Table14[[#This Row],[BEG date]]-14<=TODAY(), TODAY()<Table14[[#This Row],[BEG date]], Table14[[#This Row],[Submitted on]]=\"\"), Table14[[#This Row],[BEG date]], IF(Table14[[#This Row],[Submitted on]]=\"\", \"PROCESS ASAP\", IF(Table14[[#This Row],[Payment Made]]=\"\", \"SUBMITTED\", \"DONE\"))))","v":"DONE"},{"$f":"IF(OR(Table14[[#This Row],[Vendor]]=\"\", Table14[[#This Row],[Email]]=\"\",Table14[[#This Row],[Amount]]=\"\",Table14[[#This Row],[Sent]]=\"\",Table14[[#This Row],[Vendor '#]]=\"\",Table14[[#This Row],[Completed (Date)]]=\"\",Table14[[#This Row],[Sent2]]=\"\",Table14[[#This Row],[Received]]=\"\",Table14[[#This Row],[On File (Y/leave blank)]]=\"\",Table14[[#This Row],[Requested]]=\"\",Table14[[#This Row],[Received3]]=\"\",Table14[[#This Row],[On File (Y/leave blank)4]]=\"\",Table14[[#This Row],[Requested5]]=\"\",Table14[[#This Row],[Received2]]=\"\", Table14[[#This Row],[On File(Y/leave blank)]]=\"\"), \"STOP\", \"GO\")","v":"GO"},"Andrew T","2015-03-04","FT172689","2015-03-05",null,"2015-02-05","April Clayton",20263316,6200,"00000","RNT 7011","This is to pay an invoice from the Academy to BYU and is for an auditorium rental that April Clayton used for her recording.","2015-01-12","2015-01-12",{"$f":"IF(Table14[[#This Row],[END date]]=Table14[[#This Row],[BEG date]],1,IF(Table14[[#This Row],[END date]]=Table14[[#This Row],[BEG date]]+1,2,IF(Table14[[#This Row],[END date]]=Table14[[#This Row],[BEG date]]+2,3,IF(Table14[[#This Row],[END date]]=Table14[[#This Row],[BEG date]]+3,4,IF(Table14[[#This Row],[END date]]=Table14[[#This Row],[BEG date]]+4,5,\">5\")))))","v":1},"Mailed","contract should arrive soon"]
["Michael Gurt","mugurt@lsu.edu",700,"2015-02-12",88253,"NA","NA","NA","Y","2015-02-10","2015-02-11","NA","NA","NA","Y",{"$f":"IF(AND(TODAY()<Table14[[#This Row],[BEG date]]-14, Table14[[#This Row],[Submitted on]]=\"\"), \"\", IF(AND(Table14[[#This Row],[BEG date]]-14<=TODAY(), TODAY()<Table14[[#This Row],[BEG date]], Table14[[#This Row],[Submitted on]]=\"\"), Table14[[#This Row],[BEG date]], IF(Table14[[#This Row],[Submitted on]]=\"\", \"PROCESS ASAP\", IF(Table14[[#This Row],[Payment Made]]=\"\", \"SUBMITTED\", \"DONE\"))))","v":"DONE"},{"$f":"IF(OR(Table14[[#This Row],[Vendor]]=\"\", Table14[[#This Row],[Email]]=\"\",Table14[[#This Row],[Amount]]=\"\",Table14[[#This Row],[Sent]]=\"\",Table14[[#This Row],[Vendor '#]]=\"\",Table14[[#This Row],[Completed (Date)]]=\"\",Table14[[#This Row],[Sent2]]=\"\",Table14[[#This Row],[Received]]=\"\",Table14[[#This Row],[On File (Y/leave blank)]]=\"\",Table14[[#This Row],[Requested]]=\"\",Table14[[#This Row],[Received3]]=\"\",Table14[[#This Row],[On File (Y/leave blank)4]]=\"\",Table14[[#This Row],[Requested5]]=\"\",Table14[[#This Row],[Received2]]=\"\", Table14[[#This Row],[On File(Y/leave blank)]]=\"\"), \"STOP\", \"GO\")","v":"GO"},"Andrew T","2015-02-12","FT169649","2015-02-18",null,"2015-02-09","Scott Holden",13263209,6200,35798,"ICO 7929","Recital and masterclass per Scott Holden","2015-02-11","2015-02-11",{"$f":"IF(Table14[[#This Row],[END date]]=Table14[[#This Row],[BEG date]],1,IF(Table14[[#This Row],[END date]]=Table14[[#This Row],[BEG date]]+1,2,IF(Table14[[#This Row],[END date]]=Table14[[#This Row],[BEG date]]+2,3,IF(Table14[[#This Row],[END date]]=Table14[[#This Row],[BEG date]]+3,4,IF(Table14[[#This Row],[END date]]=Table14[[#This Row],[BEG date]]+4,5,\">5\")))))","v":1},"Mailed","Take half from 11263011-6200-35798","225-578-2651"]
["UMEA","rhonda@infowest.com",280,"NA","LE00009599","NA","NA","NA","Y","NA","NA","NA","NA","NA","Y",{"$f":"IF(AND(TODAY()<Table14[[#This Row],[BEG date]]-14, Table14[[#This Row],[Submitted on]]=\"\"), \"\", IF(AND(Table14[[#This Row],[BEG date]]-14<=TODAY(), TODAY()<Table14[[#This Row],[BEG date]], Table14[[#This Row],[Submitted on]]=\"\"), Table14[[#This Row],[BEG date]], IF(Table14[[#This Row],[Submitted on]]=\"\", \"PROCESS ASAP\", IF(Table14[[#This Row],[Payment Made]]=\"\", \"SUBMITTED\", \"DONE\"))))","v":"DONE"},{"$f":"IF(OR(Table14[[#This Row],[Vendor]]=\"\", Table14[[#This Row],[Email]]=\"\",Table14[[#This Row],[Amount]]=\"\",Table14[[#This Row],[Sent]]=\"\",Table14[[#This Row],[Vendor '#]]=\"\",Table14[[#This Row],[Completed (Date)]]=\"\",Table14[[#This Row],[Sent2]]=\"\",Table14[[#This Row],[Received]]=\"\",Table14[[#This Row],[On File (Y/leave blank)]]=\"\",Table14[[#This Row],[Requested]]=\"\",Table14[[#This Row],[Received3]]=\"\",Table14[[#This Row],[On File (Y/leave blank)4]]=\"\",Table14[[#This Row],[Requested5]]=\"\",Table14[[#This Row],[Received2]]=\"\", Table14[[#This Row],[On File(Y/leave blank)]]=\"\"), \"STOP\", \"GO\")","v":"GO"},"Andrew T","2015-02-10","FT169175","2015-02-11",null,"2015-02-10","Kathy Colton",13263296,6100,35821,"GDS 8999","Ad payment for School of Music advertisement in the UMEA magazine per Kathy Colton","2015-02-10","2015-02-10",{"$f":"IF(Table14[[#This Row],[END date]]=Table14[[#This Row],[BEG date]],1,IF(Table14[[#This Row],[END date]]=Table14[[#This Row],[BEG date]]+1,2,IF(Table14[[#This Row],[END date]]=Table14[[#This Row],[BEG date]]+2,3,IF(Table14[[#This Row],[END date]]=Table14[[#This Row],[BEG date]]+3,4,IF(Table14[[#This Row],[END date]]=Table14[[#This Row],[BEG date]]+4,5,\">5\")))))","v":1},"Mailed"]
["Randall Beach","rbeach63@gmail.com",275,"NA",69339,"NA","NA","NA","Y","NA","NA","NA","NA","NA","Y",{"$f":"IF(AND(TODAY()<Table14[[#This Row],[BEG date]]-14, Table14[[#This Row],[Submitted on]]=\"\"), \"\", IF(AND(Table14[[#This Row],[BEG date]]-14<=TODAY(), TODAY()<Table14[[#This Row],[BEG date]], Table14[[#This Row],[Submitted on]]=\"\"), Table14[[#This Row],[BEG date]], IF(Table14[[#This Row],[Submitted on]]=\"\", \"PROCESS ASAP\", IF(Table14[[#This Row],[Payment Made]]=\"\", \"SUBMITTED\", \"DONE\"))))","v":"DONE"},{"$f":"IF(OR(Table14[[#This Row],[Vendor]]=\"\", Table14[[#This Row],[Email]]=\"\",Table14[[#This Row],[Amount]]=\"\",Table14[[#This Row],[Sent]]=\"\",Table14[[#This Row],[Vendor '#]]=\"\",Table14[[#This Row],[Completed (Date)]]=\"\",Table14[[#This Row],[Sent2]]=\"\",Table14[[#This Row],[Received]]=\"\",Table14[[#This Row],[On File (Y/leave blank)]]=\"\",Table14[[#This Row],[Requested]]=\"\",Table14[[#This Row],[Received3]]=\"\",Table14[[#This Row],[On File (Y/leave blank)4]]=\"\",Table14[[#This Row],[Requested5]]=\"\",Table14[[#This Row],[Received2]]=\"\", Table14[[#This Row],[On File(Y/leave blank)]]=\"\"), \"STOP\", \"GO\")","v":"GO"},"Andrew T","2015-02-18","FT170129","2015-02-19",null,"2015-02-11","Karren Williamson",13263071,6200,"00000","ICO 8998","Will be adjudicating for the BYU concert band festival per Karren Williamson","2015-03-14","2015-03-14",{"$f":"IF(Table14[[#This Row],[END date]]=Table14[[#This Row],[BEG date]],1,IF(Table14[[#This Row],[END date]]=Table14[[#This Row],[BEG date]]+1,2,IF(Table14[[#This Row],[END date]]=Table14[[#This Row],[BEG date]]+2,3,IF(Table14[[#This Row],[END date]]=Table14[[#This Row],[BEG date]]+3,4,IF(Table14[[#This Row],[END date]]=Table14[[#This Row],[BEG date]]+4,5,\">5\")))))","v":1},"Hand delivered",null,"435-213-7013"]
["Joseph Missal","joseph.missal@okstate.edu",500,"NA",88242,"NA","NA","NA","Y","NA","NA","NA","NA","NA","Y",{"$f":"IF(AND(TODAY()<Table14[[#This Row],[BEG date]]-14, Table14[[#This Row],[Submitted on]]=\"\"), \"\", IF(AND(Table14[[#This Row],[BEG date]]-14<=TODAY(), TODAY()<Table14[[#This Row],[BEG date]], Table14[[#This Row],[Submitted on]]=\"\"), Table14[[#This Row],[BEG date]], IF(Table14[[#This Row],[Submitted on]]=\"\", \"PROCESS ASAP\", IF(Table14[[#This Row],[Payment Made]]=\"\", \"SUBMITTED\", \"DONE\"))))","v":"DONE"},{"$f":"IF(OR(Table14[[#This Row],[Vendor]]=\"\", Table14[[#This Row],[Email]]=\"\",Table14[[#This Row],[Amount]]=\"\",Table14[[#This Row],[Sent]]=\"\",Table14[[#This Row],[Vendor '#]]=\"\",Table14[[#This Row],[Completed (Date)]]=\"\",Table14[[#This Row],[Sent2]]=\"\",Table14[[#This Row],[Received]]=\"\",Table14[[#This Row],[On File (Y/leave blank)]]=\"\",Table14[[#This Row],[Requested]]=\"\",Table14[[#This Row],[Received3]]=\"\",Table14[[#This Row],[On File (Y/leave blank)4]]=\"\",Table14[[#This Row],[Requested5]]=\"\",Table14[[#This Row],[Received2]]=\"\", Table14[[#This Row],[On File(Y/leave blank)]]=\"\"), \"STOP\", \"GO\")","v":"GO"},"Andrew T","2015-02-18","FT169553","2015-02-19",null,"2015-02-11","Karren Williamson",13263071,6200,"00000","ICO 8998","Will be adjudicating for the BYU concert band festival per Karren Williamson","2015-03-14","2015-03-14",{"$f":"IF(Table14[[#This Row],[END date]]=Table14[[#This Row],[BEG date]],1,IF(Table14[[#This Row],[END date]]=Table14[[#This Row],[BEG date]]+1,2,IF(Table14[[#This Row],[END date]]=Table14[[#This Row],[BEG date]]+2,3,IF(Table14[[#This Row],[END date]]=Table14[[#This Row],[BEG date]]+3,4,IF(Table14[[#This Row],[END date]]=Table14[[#This Row],[BEG date]]+4,5,\">5\")))))","v":1},"Hand delivered",null,"405-744-6135"]
["Shawn Smith","shawn.smith@uncc.edu",500,"NA",88245,"NA","NA","NA","Y","NA","NA","NA","NA","NA","Y",{"$f":"IF(AND(TODAY()<Table14[[#This Row],[BEG date]]-14, Table14[[#This Row],[Submitted on]]=\"\"), \"\", IF(AND(Table14[[#This Row],[BEG date]]-14<=TODAY(), TODAY()<Table14[[#This Row],[BEG date]], Table14[[#This Row],[Submitted on]]=\"\"), Table14[[#This Row],[BEG date]], IF(Table14[[#This Row],[Submitted on]]=\"\", \"PROCESS ASAP\", IF(Table14[[#This Row],[Payment Made]]=\"\", \"SUBMITTED\", \"DONE\"))))","v":"DONE"},{"$f":"IF(OR(Table14[[#This Row],[Vendor]]=\"\", Table14[[#This Row],[Email]]=\"\",Table14[[#This Row],[Amount]]=\"\",Table14[[#This Row],[Sent]]=\"\",Table14[[#This Row],[Vendor '#]]=\"\",Table14[[#This Row],[Completed (Date)]]=\"\",Table14[[#This Row],[Sent2]]=\"\",Table14[[#This Row],[Received]]=\"\",Table14[[#This Row],[On File (Y/leave blank)]]=\"\",Table14[[#This Row],[Requested]]=\"\",Table14[[#This Row],[Received3]]=\"\",Table14[[#This Row],[On File (Y/leave blank)4]]=\"\",Table14[[#This Row],[Requested5]]=\"\",Table14[[#This Row],[Received2]]=\"\", Table14[[#This Row],[On File(Y/leave blank)]]=\"\"), \"STOP\", \"GO\")","v":"GO"},"Andrew T","2015-02-18","FT169595","2015-02-19",null,"2015-02-12","Karren Williamson",13263071,6200,"00000","ICO 8998","Will be adjudicating for the BYU concert band festival per Karren Williamson","2015-03-14","2015-03-14",{"$f":"IF(Table14[[#This Row],[END date]]=Table14[[#This Row],[BEG date]],1,IF(Table14[[#This Row],[END date]]=Table14[[#This Row],[BEG date]]+1,2,IF(Table14[[#This Row],[END date]]=Table14[[#This Row],[BEG date]]+2,3,IF(Table14[[#This Row],[END date]]=Table14[[#This Row],[BEG date]]+3,4,IF(Table14[[#This Row],[END date]]=Table14[[#This Row],[BEG date]]+4,5,\">5\")))))","v":1},"Hand delivered",null,"704-687-7894"]
["Carey Cheney","carey@cheneycellists.com",500,"2015-02-20",88315,"NA","NA","NA","Y","2015-02-17","NA","NA","NA","NA","Y",{"$f":"IF(AND(TODAY()<Table14[[#This Row],[BEG date]]-14, Table14[[#This Row],[Submitted on]]=\"\"), \"\", IF(AND(Table14[[#This Row],[BEG date]]-14<=TODAY(), TODAY()<Table14[[#This Row],[BEG date]], Table14[[#This Row],[Submitted on]]=\"\"), Table14[[#This Row],[BEG date]], IF(Table14[[#This Row],[Submitted on]]=\"\", \"PROCESS ASAP\", IF(Table14[[#This Row],[Payment Made]]=\"\", \"SUBMITTED\", \"DONE\"))))","v":"DONE"},{"$f":"IF(OR(Table14[[#This Row],[Vendor]]=\"\", Table14[[#This Row],[Email]]=\"\",Table14[[#This Row],[Amount]]=\"\",Table14[[#This Row],[Sent]]=\"\",Table14[[#This Row],[Vendor '#]]=\"\",Table14[[#This Row],[Completed (Date)]]=\"\",Table14[[#This Row],[Sent2]]=\"\",Table14[[#This Row],[Received]]=\"\",Table14[[#This Row],[On File (Y/leave blank)]]=\"\",Table14[[#This Row],[Requested]]=\"\",Table14[[#This Row],[Received3]]=\"\",Table14[[#This Row],[On File (Y/leave blank)4]]=\"\",Table14[[#This Row],[Requested5]]=\"\",Table14[[#This Row],[Received2]]=\"\", Table14[[#This Row],[On File(Y/leave blank)]]=\"\"), \"STOP\", \"GO\")","v":"GO"},"Andrew T","2015-03-04","FT170814","2015-03-05",null,"2015-02-17","Nicole Brady",13263208,6200,35826,"ICO 8000","Payment for Every Child Can course instructor for BYU Harp Majors per Nicole Brady","2015-03-14","2015-03-14",{"$f":"IF(Table14[[#This Row],[END date]]=Table14[[#This Row],[BEG date]],1,IF(Table14[[#This Row],[END date]]=Table14[[#This Row],[BEG date]]+1,2,IF(Table14[[#This Row],[END date]]=Table14[[#This Row],[BEG date]]+2,3,IF(Table14[[#This Row],[END date]]=Table14[[#This Row],[BEG date]]+3,4,IF(Table14[[#This Row],[END date]]=Table14[[#This Row],[BEG date]]+4,5,\">5\")))))","v":1},"Mailed",null,"801-703-4169"]
["Mercedes Smith","mercedesflute@gmail.com",200,"NA",82216,"NA","NA","NA","Y","NA","NA","NA","NA","NA","Y",{"$f":"IF(AND(TODAY()<Table14[[#This Row],[BEG date]]-14, Table14[[#This Row],[Submitted on]]=\"\"), \"\", IF(AND(Table14[[#This Row],[BEG date]]-14<=TODAY(), TODAY()<Table14[[#This Row],[BEG date]], Table14[[#This Row],[Submitted on]]=\"\"), Table14[[#This Row],[BEG date]], IF(Table14[[#This Row],[Submitted on]]=\"\", \"PROCESS ASAP\", IF(Table14[[#This Row],[Payment Made]]=\"\", \"SUBMITTED\", \"DONE\"))))","v":"DONE"},{"$f":"IF(OR(Table14[[#This Row],[Vendor]]=\"\", Table14[[#This Row],[Email]]=\"\",Table14[[#This Row],[Amount]]=\"\",Table14[[#This Row],[Sent]]=\"\",Table14[[#This Row],[Vendor '#]]=\"\",Table14[[#This Row],[Completed (Date)]]=\"\",Table14[[#This Row],[Sent2]]=\"\",Table14[[#This Row],[Received]]=\"\",Table14[[#This Row],[On File (Y/leave blank)]]=\"\",Table14[[#This Row],[Requested]]=\"\",Table14[[#This Row],[Received3]]=\"\",Table14[[#This Row],[On File (Y/leave blank)4]]=\"\",Table14[[#This Row],[Requested5]]=\"\",Table14[[#This Row],[Received2]]=\"\", Table14[[#This Row],[On File(Y/leave blank)]]=\"\"), \"STOP\", \"GO\")","v":"GO"},"Andrew T","2015-02-24","FT171240","2015-02-26",null,"2015-02-17","April Clayton",11263003,6200,35738,"ICO 7929","Payment for masterclass that will be given per April Clayton","2015-03-04","2015-03-04",{"$f":"IF(Table14[[#This Row],[END date]]=Table14[[#This Row],[BEG date]],1,IF(Table14[[#This Row],[END date]]=Table14[[#This Row],[BEG date]]+1,2,IF(Table14[[#This Row],[END date]]=Table14[[#This Row],[BEG date]]+2,3,IF(Table14[[#This Row],[END date]]=Table14[[#This Row],[BEG date]]+3,4,IF(Table14[[#This Row],[END date]]=Table14[[#This Row],[BEG date]]+4,5,\">5\")))))","v":1},"Hand delivered",null,"646-418-6156"]
["Dan Chaston","dchaston@dsdmail.net",275,"2015-02-18",88284,"NA","NA","NA","Y","NA","NA","NA","NA","NA","Y",{"$f":"IF(AND(TODAY()<Table14[[#This Row],[BEG date]]-14, Table14[[#This Row],[Submitted on]]=\"\"), \"\", IF(AND(Table14[[#This Row],[BEG date]]-14<=TODAY(), TODAY()<Table14[[#This Row],[BEG date]], Table14[[#This Row],[Submitted on]]=\"\"), Table14[[#This Row],[BEG date]], IF(Table14[[#This Row],[Submitted on]]=\"\", \"PROCESS ASAP\", IF(Table14[[#This Row],[Payment Made]]=\"\", \"SUBMITTED\", \"DONE\"))))","v":"DONE"},{"$f":"IF(OR(Table14[[#This Row],[Vendor]]=\"\", Table14[[#This Row],[Email]]=\"\",Table14[[#This Row],[Amount]]=\"\",Table14[[#This Row],[Sent]]=\"\",Table14[[#This Row],[Vendor '#]]=\"\",Table14[[#This Row],[Completed (Date)]]=\"\",Table14[[#This Row],[Sent2]]=\"\",Table14[[#This Row],[Received]]=\"\",Table14[[#This Row],[On File (Y/leave blank)]]=\"\",Table14[[#This Row],[Requested]]=\"\",Table14[[#This Row],[Received3]]=\"\",Table14[[#This Row],[On File (Y/leave blank)4]]=\"\",Table14[[#This Row],[Requested5]]=\"\",Table14[[#This Row],[Received2]]=\"\", Table14[[#This Row],[On File(Y/leave blank)]]=\"\"), \"STOP\", \"GO\")","v":"GO"},"Andrew T","2015-02-18","FT170109","2015-02-19",null,"2015-02-17","Karren Williamson",13263071,6200,"00000","ICO 8998","Will be adjudicating for the BYU concert band festival per Karren Williamson","2015-03-14","2015-03-14",{"$f":"IF(Table14[[#This Row],[END date]]=Table14[[#This Row],[BEG date]],1,IF(Table14[[#This Row],[END date]]=Table14[[#This Row],[BEG date]]+1,2,IF(Table14[[#This Row],[END date]]=Table14[[#This Row],[BEG date]]+2,3,IF(Table14[[#This Row],[END date]]=Table14[[#This Row],[BEG date]]+3,4,IF(Table14[[#This Row],[END date]]=Table14[[#This Row],[BEG date]]+4,5,\">5\")))))","v":1},"Hand delivered",null,"801-402-4200"]
["Marcus Printup","printup67@gmail.com",2150,"2015-02-18",88291,"NA","NA","NA","Y","2015-02-18","2015-02-18","2015-02-18","2015-02-18","2015-02-18","Y",{"$f":"IF(AND(TODAY()<Table14[[#This Row],[BEG date]]-14, Table14[[#This Row],[Submitted on]]=\"\"), \"\", IF(AND(Table14[[#This Row],[BEG date]]-14<=TODAY(), TODAY()<Table14[[#This Row],[BEG date]], Table14[[#This Row],[Submitted on]]=\"\"), Table14[[#This Row],[BEG date]], IF(Table14[[#This Row],[Submitted on]]=\"\", \"PROCESS ASAP\", IF(Table14[[#This Row],[Payment Made]]=\"\", \"SUBMITTED\", \"DONE\"))))","v":"DONE"},{"$f":"IF(OR(Table14[[#This Row],[Vendor]]=\"\", Table14[[#This Row],[Email]]=\"\",Table14[[#This Row],[Amount]]=\"\",Table14[[#This Row],[Sent]]=\"\",Table14[[#This Row],[Vendor '#]]=\"\",Table14[[#This Row],[Completed (Date)]]=\"\",Table14[[#This Row],[Sent2]]=\"\",Table14[[#This Row],[Received]]=\"\",Table14[[#This Row],[On File (Y/leave blank)]]=\"\",Table14[[#This Row],[Requested]]=\"\",Table14[[#This Row],[Received3]]=\"\",Table14[[#This Row],[On File (Y/leave blank)4]]=\"\",Table14[[#This Row],[Requested5]]=\"\",Table14[[#This Row],[Received2]]=\"\", Table14[[#This Row],[On File(Y/leave blank)]]=\"\"), \"STOP\", \"GO\")","v":"GO"},"Andrew E","2015-02-18","FT170250","2015-02-20",null,"2015-02-17","Ray Smith",13263073,6200,21617,"ICO 7929","Guest musician/performer for Jazz Festival per Ray Smith","2015-02-20","2015-02-20",{"$f":"IF(Table14[[#This Row],[END date]]=Table14[[#This Row],[BEG date]],1,IF(Table14[[#This Row],[END date]]=Table14[[#This Row],[BEG date]]+1,2,IF(Table14[[#This Row],[END date]]=Table14[[#This Row],[BEG date]]+2,3,IF(Table14[[#This Row],[END date]]=Table14[[#This Row],[BEG date]]+3,4,IF(Table14[[#This Row],[END date]]=Table14[[#This Row],[BEG date]]+4,5,\">5\")))))","v":1},"Hand delivered"]
["Mark Stevens","markstevensjazz@icloud.com",1000,{"$f":"TODAY()","v":"2015-04-13"},88326,"NA","NA","NA","Y","2015-02-20","2015-02-22","NA","NA","NA","Y",{"$f":"IF(AND(TODAY()<Table14[[#This Row],[BEG date]]-14, Table14[[#This Row],[Submitted on]]=\"\"), \"\", IF(AND(Table14[[#This Row],[BEG date]]-14<=TODAY(), TODAY()<Table14[[#This Row],[BEG date]], Table14[[#This Row],[Submitted on]]=\"\"), Table14[[#This Row],[BEG date]], IF(Table14[[#This Row],[Submitted on]]=\"\", \"PROCESS ASAP\", IF(Table14[[#This Row],[Payment Made]]=\"\", \"SUBMITTED\", \"DONE\"))))","v":"DONE"},{"$f":"IF(OR(Table14[[#This Row],[Vendor]]=\"\", Table14[[#This Row],[Email]]=\"\",Table14[[#This Row],[Amount]]=\"\",Table14[[#This Row],[Sent]]=\"\",Table14[[#This Row],[Vendor '#]]=\"\",Table14[[#This Row],[Completed (Date)]]=\"\",Table14[[#This Row],[Sent2]]=\"\",Table14[[#This Row],[Received]]=\"\",Table14[[#This Row],[On File (Y/leave blank)]]=\"\",Table14[[#This Row],[Requested]]=\"\",Table14[[#This Row],[Received3]]=\"\",Table14[[#This Row],[On File (Y/leave blank)4]]=\"\",Table14[[#This Row],[Requested5]]=\"\",Table14[[#This Row],[Received2]]=\"\", Table14[[#This Row],[On File(Y/leave blank)]]=\"\"), \"STOP\", \"GO\")","v":"GO"},"Andrew T","2015-02-23","FT170977","2015-02-25",null,"2015-02-16","Ray Smith",13263073,6200,21617,"ICO 7929","Guest artist coming to perform per Ray Smith","2015-03-09","2015-03-11",{"$f":"IF(Table14[[#This Row],[END date]]=Table14[[#This Row],[BEG date]],1,IF(Table14[[#This Row],[END date]]=Table14[[#This Row],[BEG date]]+1,2,IF(Table14[[#This Row],[END date]]=Table14[[#This Row],[BEG date]]+2,3,IF(Table14[[#This Row],[END date]]=Table14[[#This Row],[BEG date]]+3,4,IF(Table14[[#This Row],[END date]]=Table14[[#This Row],[BEG date]]+4,5,\">5\")))))","v":3},"Hand delivered","Will be sending W9 in a few days (02/20)","415-608-4225"]
["Bryson Alley","bryson.alley13@gmail.com",200,"NA",86653,"Y","NA","NA","Y","NA","NA","Y","2015-02-23","2015-02-24","Y",{"$f":"IF(AND(TODAY()<Table14[[#This Row],[BEG date]]-14, Table14[[#This Row],[Submitted on]]=\"\"), \"\", IF(AND(Table14[[#This Row],[BEG date]]-14<=TODAY(), TODAY()<Table14[[#This Row],[BEG date]], Table14[[#This Row],[Submitted on]]=\"\"), Table14[[#This Row],[BEG date]], IF(Table14[[#This Row],[Submitted on]]=\"\", \"PROCESS ASAP\", IF(Table14[[#This Row],[Payment Made]]=\"\", \"SUBMITTED\", \"DONE\"))))","v":"DONE"},{"$f":"IF(OR(Table14[[#This Row],[Vendor]]=\"\", Table14[[#This Row],[Email]]=\"\",Table14[[#This Row],[Amount]]=\"\",Table14[[#This Row],[Sent]]=\"\",Table14[[#This Row],[Vendor '#]]=\"\",Table14[[#This Row],[Completed (Date)]]=\"\",Table14[[#This Row],[Sent2]]=\"\",Table14[[#This Row],[Received]]=\"\",Table14[[#This Row],[On File (Y/leave blank)]]=\"\",Table14[[#This Row],[Requested]]=\"\",Table14[[#This Row],[Received3]]=\"\",Table14[[#This Row],[On File (Y/leave blank)4]]=\"\",Table14[[#This Row],[Requested5]]=\"\",Table14[[#This Row],[Received2]]=\"\", Table14[[#This Row],[On File(Y/leave blank)]]=\"\"), \"STOP\", \"GO\")","v":"GO"},"Andrew T","2015-02-24","FT171308","2015-02-26",null,"2015-02-23","Mark Ammons",13263073,6200,35919,"ICO 7950","Help with filming video for Jazz Voices per Mark Ammons","2015-02-21","2015-02-21",{"$f":"IF(Table14[[#This Row],[END date]]=Table14[[#This Row],[BEG date]],1,IF(Table14[[#This Row],[END date]]=Table14[[#This Row],[BEG date]]+1,2,IF(Table14[[#This Row],[END date]]=Table14[[#This Row],[BEG date]]+2,3,IF(Table14[[#This Row],[END date]]=Table14[[#This Row],[BEG date]]+3,4,IF(Table14[[#This Row],[END date]]=Table14[[#This Row],[BEG date]]+4,5,\">5\")))))","v":1},"Mailed"]
["Franz Schubert Institut","office@schubert-institut.at","70 euros","2015-02-24",88350,"NA","NA","NA","NA","NA","NA","NA","NA","NA","Y",{"$f":"IF(AND(TODAY()<Table14[[#This Row],[BEG date]]-14, Table14[[#This Row],[Submitted on]]=\"\"), \"\", IF(AND(Table14[[#This Row],[BEG date]]-14<=TODAY(), TODAY()<Table14[[#This Row],[BEG date]], Table14[[#This Row],[Submitted on]]=\"\"), Table14[[#This Row],[BEG date]], IF(Table14[[#This Row],[Submitted on]]=\"\", \"PROCESS ASAP\", IF(Table14[[#This Row],[Payment Made]]=\"\", \"SUBMITTED\", \"DONE\"))))","v":"DONE"},{"$f":"IF(OR(Table14[[#This Row],[Vendor]]=\"\", Table14[[#This Row],[Email]]=\"\",Table14[[#This Row],[Amount]]=\"\",Table14[[#This Row],[Sent]]=\"\",Table14[[#This Row],[Vendor '#]]=\"\",Table14[[#This Row],[Completed (Date)]]=\"\",Table14[[#This Row],[Sent2]]=\"\",Table14[[#This Row],[Received]]=\"\",Table14[[#This Row],[On File (Y/leave blank)]]=\"\",Table14[[#This Row],[Requested]]=\"\",Table14[[#This Row],[Received3]]=\"\",Table14[[#This Row],[On File (Y/leave blank)4]]=\"\",Table14[[#This Row],[Requested5]]=\"\",Table14[[#This Row],[Received2]]=\"\", Table14[[#This Row],[On File(Y/leave blank)]]=\"\"), \"STOP\", \"GO\")","v":"GO"},"Andrew T","2015-02-24","FT171289","2015-03-02",null,"2015-02-18","Rob Brandt",31263381,7070,57043,"CFR 8699","Application fee for the Franz Schubert Institut which Rob Brandt will be visiting later this year.","2015-02-24","2015-02-24",{"$f":"IF(Table14[[#This Row],[END date]]=Table14[[#This Row],[BEG date]],1,IF(Table14[[#This Row],[END date]]=Table14[[#This Row],[BEG date]]+1,2,IF(Table14[[#This Row],[END date]]=Table14[[#This Row],[BEG date]]+2,3,IF(Table14[[#This Row],[END date]]=Table14[[#This Row],[BEG date]]+3,4,IF(Table14[[#This Row],[END date]]=Table14[[#This Row],[BEG date]]+4,5,\">5\")))))","v":1},"Wire Transfer",null,"43-2252-81812"]
["Darren Cueva","darrencueva@yahoo.com",250,"2015-02-26",88373,"NA","NA","NA","Y","NA","NA","NA","NA","NA","Y",{"$f":"IF(AND(TODAY()<Table14[[#This Row],[BEG date]]-14, Table14[[#This Row],[Submitted on]]=\"\"), \"\", IF(AND(Table14[[#This Row],[BEG date]]-14<=TODAY(), TODAY()<Table14[[#This Row],[BEG date]], Table14[[#This Row],[Submitted on]]=\"\"), Table14[[#This Row],[BEG date]], IF(Table14[[#This Row],[Submitted on]]=\"\", \"PROCESS ASAP\", IF(Table14[[#This Row],[Payment Made]]=\"\", \"SUBMITTED\", \"DONE\"))))","v":"DONE"},{"$f":"IF(OR(Table14[[#This Row],[Vendor]]=\"\", Table14[[#This Row],[Email]]=\"\",Table14[[#This Row],[Amount]]=\"\",Table14[[#This Row],[Sent]]=\"\",Table14[[#This Row],[Vendor '#]]=\"\",Table14[[#This Row],[Completed (Date)]]=\"\",Table14[[#This Row],[Sent2]]=\"\",Table14[[#This Row],[Received]]=\"\",Table14[[#This Row],[On File (Y/leave blank)]]=\"\",Table14[[#This Row],[Requested]]=\"\",Table14[[#This Row],[Received3]]=\"\",Table14[[#This Row],[On File (Y/leave blank)4]]=\"\",Table14[[#This Row],[Requested5]]=\"\",Table14[[#This Row],[Received2]]=\"\", Table14[[#This Row],[On File(Y/leave blank)]]=\"\"), \"STOP\", \"GO\")","v":"GO"},"Andrew T","2015-02-26","FT171739","2015-02-27",null,"2015-02-23","Eric Hansen",13263208,6200,35744,"ICO 7929","Guest artist performance for masterclass and recital per Eric Hansen","2015-03-09","2015-03-10",{"$f":"IF(Table14[[#This Row],[END date]]=Table14[[#This Row],[BEG date]],1,IF(Table14[[#This Row],[END date]]=Table14[[#This Row],[BEG date]]+1,2,IF(Table14[[#This Row],[END date]]=Table14[[#This Row],[BEG date]]+2,3,IF(Table14[[#This Row],[END date]]=Table14[[#This Row],[BEG date]]+3,4,IF(Table14[[#This Row],[END date]]=Table14[[#This Row],[BEG date]]+4,5,\">5\")))))","v":2},"Hand delivered",null,"760-458-7513"]
["Marina Roznitovsky Oster","marinaharp@gmail.com",175,"2015-02-26",88378,"NA","NA","NA","Y","2015-02-26","2015-02-26","NA","NA","NA","Y",{"$f":"IF(AND(TODAY()<Table14[[#This Row],[BEG date]]-14, Table14[[#This Row],[Submitted on]]=\"\"), \"\", IF(AND(Table14[[#This Row],[BEG date]]-14<=TODAY(), TODAY()<Table14[[#This Row],[BEG date]], Table14[[#This Row],[Submitted on]]=\"\"), Table14[[#This Row],[BEG date]], IF(Table14[[#This Row],[Submitted on]]=\"\", \"PROCESS ASAP\", IF(Table14[[#This Row],[Payment Made]]=\"\", \"SUBMITTED\", \"DONE\"))))","v":"DONE"},{"$f":"IF(OR(Table14[[#This Row],[Vendor]]=\"\", Table14[[#This Row],[Email]]=\"\",Table14[[#This Row],[Amount]]=\"\",Table14[[#This Row],[Sent]]=\"\",Table14[[#This Row],[Vendor '#]]=\"\",Table14[[#This Row],[Completed (Date)]]=\"\",Table14[[#This Row],[Sent2]]=\"\",Table14[[#This Row],[Received]]=\"\",Table14[[#This Row],[On File (Y/leave blank)]]=\"\",Table14[[#This Row],[Requested]]=\"\",Table14[[#This Row],[Received3]]=\"\",Table14[[#This Row],[On File (Y/leave blank)4]]=\"\",Table14[[#This Row],[Requested5]]=\"\",Table14[[#This Row],[Received2]]=\"\", Table14[[#This Row],[On File(Y/leave blank)]]=\"\"), \"STOP\", \"GO\")","v":"GO"},"Andrew T","2015-02-26","FT171744","2015-02-27",null,"2015-02-26","Don Peterson",13263071,6200,35759,"ICO 8999","Payment to rent a harp for Don Peterson","2015-03-02","2015-03-02",{"$f":"IF(Table14[[#This Row],[END date]]=Table14[[#This Row],[BEG date]],1,IF(Table14[[#This Row],[END date]]=Table14[[#This Row],[BEG date]]+1,2,IF(Table14[[#This Row],[END date]]=Table14[[#This Row],[BEG date]]+2,3,IF(Table14[[#This Row],[END date]]=Table14[[#This Row],[BEG date]]+3,4,IF(Table14[[#This Row],[END date]]=Table14[[#This Row],[BEG date]]+4,5,\">5\")))))","v":1},"Hand delivered",null,"775-772-9832"]
["Jerry Floor","jerryfloor@mac.com",500,"NA",41919,"NA","NA","NA","Y","2015-02-26","2015-03-04","NA","NA","NA","Y",{"$f":"IF(AND(TODAY()<Table14[[#This Row],[BEG date]]-14, Table14[[#This Row],[Submitted on]]=\"\"), \"\", IF(AND(Table14[[#This Row],[BEG date]]-14<=TODAY(), TODAY()<Table14[[#This Row],[BEG date]], Table14[[#This Row],[Submitted on]]=\"\"), Table14[[#This Row],[BEG date]], IF(Table14[[#This Row],[Submitted on]]=\"\", \"PROCESS ASAP\", IF(Table14[[#This Row],[Payment Made]]=\"\", \"SUBMITTED\", \"DONE\"))))","v":"DONE"},{"$f":"IF(OR(Table14[[#This Row],[Vendor]]=\"\", Table14[[#This Row],[Email]]=\"\",Table14[[#This Row],[Amount]]=\"\",Table14[[#This Row],[Sent]]=\"\",Table14[[#This Row],[Vendor '#]]=\"\",Table14[[#This Row],[Completed (Date)]]=\"\",Table14[[#This Row],[Sent2]]=\"\",Table14[[#This Row],[Received]]=\"\",Table14[[#This Row],[On File (Y/leave blank)]]=\"\",Table14[[#This Row],[Requested]]=\"\",Table14[[#This Row],[Received3]]=\"\",Table14[[#This Row],[On File (Y/leave blank)4]]=\"\",Table14[[#This Row],[Requested5]]=\"\",Table14[[#This Row],[Received2]]=\"\", Table14[[#This Row],[On File(Y/leave blank)]]=\"\"), \"STOP\", \"GO\")","v":"GO"},"Andrew T","2015-03-04","FT172708","2015-03-05",null,"2015-02-25","Steve Call",13263073,6200,35736,"ICO 7929","Rehearsal and performance as guest artist with the Jazz Legacy Dixieland Band per Steve Call","2015-03-03","2015-03-03",{"$f":"IF(Table14[[#This Row],[END date]]=Table14[[#This Row],[BEG date]],1,IF(Table14[[#This Row],[END date]]=Table14[[#This Row],[BEG date]]+1,2,IF(Table14[[#This Row],[END date]]=Table14[[#This Row],[BEG date]]+2,3,IF(Table14[[#This Row],[END date]]=Table14[[#This Row],[BEG date]]+3,4,IF(Table14[[#This Row],[END date]]=Table14[[#This Row],[BEG date]]+4,5,\">5\")))))","v":1},"Hand delivered","W9 request resent on 03/03","801-647-3797"]
["Ryan Whiting","ryanericwhiting@gmail.com",150,"2015-03-03","AP00018176","NA","NA","NA","Y","2015-03-03","2015-03-03","NA","NA","NA","Y",{"$f":"IF(AND(TODAY()<Table14[[#This Row],[BEG date]]-14, Table14[[#This Row],[Submitted on]]=\"\"), \"\", IF(AND(Table14[[#This Row],[BEG date]]-14<=TODAY(), TODAY()<Table14[[#This Row],[BEG date]], Table14[[#This Row],[Submitted on]]=\"\"), Table14[[#This Row],[BEG date]], IF(Table14[[#This Row],[Submitted on]]=\"\", \"PROCESS ASAP\", IF(Table14[[#This Row],[Payment Made]]=\"\", \"SUBMITTED\", \"DONE\"))))","v":"DONE"},{"$f":"IF(OR(Table14[[#This Row],[Vendor]]=\"\", Table14[[#This Row],[Email]]=\"\",Table14[[#This Row],[Amount]]=\"\",Table14[[#This Row],[Sent]]=\"\",Table14[[#This Row],[Vendor '#]]=\"\",Table14[[#This Row],[Completed (Date)]]=\"\",Table14[[#This Row],[Sent2]]=\"\",Table14[[#This Row],[Received]]=\"\",Table14[[#This Row],[On File (Y/leave blank)]]=\"\",Table14[[#This Row],[Requested]]=\"\",Table14[[#This Row],[Received3]]=\"\",Table14[[#This Row],[On File (Y/leave blank)4]]=\"\",Table14[[#This Row],[Requested5]]=\"\",Table14[[#This Row],[Received2]]=\"\", Table14[[#This Row],[On File(Y/leave blank)]]=\"\"), \"STOP\", \"GO\")","v":"GO"},"Andrew T","2015-03-03","FT172630","2015-03-05",null,"2015-03-03","Keith Kopp",13263110,6200,"00000","ICO 8999","Payment for database maintenance for the piano shop computer per Keith Kopp","2015-02-24","2015-02-24",{"$f":"IF(Table14[[#This Row],[END date]]=Table14[[#This Row],[BEG date]],1,IF(Table14[[#This Row],[END date]]=Table14[[#This Row],[BEG date]]+1,2,IF(Table14[[#This Row],[END date]]=Table14[[#This Row],[BEG date]]+2,3,IF(Table14[[#This Row],[END date]]=Table14[[#This Row],[BEG date]]+3,4,IF(Table14[[#This Row],[END date]]=Table14[[#This Row],[BEG date]]+4,5,\">5\")))))","v":1},"Mailed",null,"801-472-8977"]
["Mark Davidson","mdd0021@gmail.com",300,"NA",86935,"NA","NA","NA","Y","2015-03-04","2015-03-04","NA","NA","NA","Y",{"$f":"IF(AND(TODAY()<Table14[[#This Row],[BEG date]]-14, Table14[[#This Row],[Submitted on]]=\"\"), \"\", IF(AND(Table14[[#This Row],[BEG date]]-14<=TODAY(), TODAY()<Table14[[#This Row],[BEG date]], Table14[[#This Row],[Submitted on]]=\"\"), Table14[[#This Row],[BEG date]], IF(Table14[[#This Row],[Submitted on]]=\"\", \"PROCESS ASAP\", IF(Table14[[#This Row],[Payment Made]]=\"\", \"SUBMITTED\", \"DONE\"))))","v":"DONE"},{"$f":"IF(OR(Table14[[#This Row],[Vendor]]=\"\", Table14[[#This Row],[Email]]=\"\",Table14[[#This Row],[Amount]]=\"\",Table14[[#This Row],[Sent]]=\"\",Table14[[#This Row],[Vendor '#]]=\"\",Table14[[#This Row],[Completed (Date)]]=\"\",Table14[[#This Row],[Sent2]]=\"\",Table14[[#This Row],[Received]]=\"\",Table14[[#This Row],[On File (Y/leave blank)]]=\"\",Table14[[#This Row],[Requested]]=\"\",Table14[[#This Row],[Received3]]=\"\",Table14[[#This Row],[On File (Y/leave blank)4]]=\"\",Table14[[#This Row],[Requested5]]=\"\",Table14[[#This Row],[Received2]]=\"\", Table14[[#This Row],[On File(Y/leave blank)]]=\"\"), \"STOP\", \"GO\")","v":"GO"},"Andrew T","2015-03-04","FT172716","2015-03-05",null,"2015-03-03","Will Kimball",13263211,6200,35744,"ICO 7929","Payment for masterclass/recital at BYU per Eric Hansen","2015-03-04","2015-03-04",{"$f":"IF(Table14[[#This Row],[END date]]=Table14[[#This Row],[BEG date]],1,IF(Table14[[#This Row],[END date]]=Table14[[#This Row],[BEG date]]+1,2,IF(Table14[[#This Row],[END date]]=Table14[[#This Row],[BEG date]]+2,3,IF(Table14[[#This Row],[END date]]=Table14[[#This Row],[BEG date]]+3,4,IF(Table14[[#This Row],[END date]]=Table14[[#This Row],[BEG date]]+4,5,\">5\")))))","v":1},"Mailed",null,"210-861-4279"]
["Jayne Galloway","jcgalloway88@gmail.com",800,"NA",49334,"NA","NA","NA","Y","NA","NA","Y","2015-03-05","2015-03-12","Y",{"$f":"IF(AND(TODAY()<Table14[[#This Row],[BEG date]]-14, Table14[[#This Row],[Submitted on]]=\"\"), \"\", IF(AND(Table14[[#This Row],[BEG date]]-14<=TODAY(), TODAY()<Table14[[#This Row],[BEG date]], Table14[[#This Row],[Submitted on]]=\"\"), Table14[[#This Row],[BEG date]], IF(Table14[[#This Row],[Submitted on]]=\"\", \"PROCESS ASAP\", IF(Table14[[#This Row],[Payment Made]]=\"\", \"SUBMITTED\", \"DONE\"))))","v":"DONE"},{"$f":"IF(OR(Table14[[#This Row],[Vendor]]=\"\", Table14[[#This Row],[Email]]=\"\",Table14[[#This Row],[Amount]]=\"\",Table14[[#This Row],[Sent]]=\"\",Table14[[#This Row],[Vendor '#]]=\"\",Table14[[#This Row],[Completed (Date)]]=\"\",Table14[[#This Row],[Sent2]]=\"\",Table14[[#This Row],[Received]]=\"\",Table14[[#This Row],[On File (Y/leave blank)]]=\"\",Table14[[#This Row],[Requested]]=\"\",Table14[[#This Row],[Received3]]=\"\",Table14[[#This Row],[On File (Y/leave blank)4]]=\"\",Table14[[#This Row],[Requested5]]=\"\",Table14[[#This Row],[Received2]]=\"\", Table14[[#This Row],[On File(Y/leave blank)]]=\"\"), \"STOP\", \"GO\")","v":"GO"},"Andrew T","2015-03-12","FT174123","2015-03-16",null,"2015-03-05","Eric Hansen",13263208,6200,35744,"ICO 7951","Accompanist payment for bass masterclass/recitals per Eric Hansen","2015-03-17","2015-03-17",{"$f":"IF(Table14[[#This Row],[END date]]=Table14[[#This Row],[BEG date]],1,IF(Table14[[#This Row],[END date]]=Table14[[#This Row],[BEG date]]+1,2,IF(Table14[[#This Row],[END date]]=Table14[[#This Row],[BEG date]]+2,3,IF(Table14[[#This Row],[END date]]=Table14[[#This Row],[BEG date]]+3,4,IF(Table14[[#This Row],[END date]]=Table14[[#This Row],[BEG date]]+4,5,\">5\")))))","v":1},"Mailed"]
["Kurt Hansen","kurtnaphansen@gmail.com",400,"NA",40167,"NA","NA","NA","Y","NA","NA","NA","NA","NA","Y",{"$f":"IF(AND(TODAY()<Table14[[#This Row],[BEG date]]-14, Table14[[#This Row],[Submitted on]]=\"\"), \"\", IF(AND(Table14[[#This Row],[BEG date]]-14<=TODAY(), TODAY()<Table14[[#This Row],[BEG date]], Table14[[#This Row],[Submitted on]]=\"\"), Table14[[#This Row],[BEG date]], IF(Table14[[#This Row],[Submitted on]]=\"\", \"PROCESS ASAP\", IF(Table14[[#This Row],[Payment Made]]=\"\", \"SUBMITTED\", \"DONE\"))))","v":"DONE"},{"$f":"IF(OR(Table14[[#This Row],[Vendor]]=\"\", Table14[[#This Row],[Email]]=\"\",Table14[[#This Row],[Amount]]=\"\",Table14[[#This Row],[Sent]]=\"\",Table14[[#This Row],[Vendor '#]]=\"\",Table14[[#This Row],[Completed (Date)]]=\"\",Table14[[#This Row],[Sent2]]=\"\",Table14[[#This Row],[Received]]=\"\",Table14[[#This Row],[On File (Y/leave blank)]]=\"\",Table14[[#This Row],[Requested]]=\"\",Table14[[#This Row],[Received3]]=\"\",Table14[[#This Row],[On File (Y/leave blank)4]]=\"\",Table14[[#This Row],[Requested5]]=\"\",Table14[[#This Row],[Received2]]=\"\", Table14[[#This Row],[On File(Y/leave blank)]]=\"\"), \"STOP\", \"GO\")","v":"GO"},"Andrew T","2015-03-05","FT173011","2015-03-06",null,"2015-03-05","Eric Hansen",13263208,6200,35744,"ICO 7929","Accompanist payment for bass masterclass/recitals per Eric Hansen","2015-03-10","2015-03-10",{"$f":"IF(Table14[[#This Row],[END date]]=Table14[[#This Row],[BEG date]],1,IF(Table14[[#This Row],[END date]]=Table14[[#This Row],[BEG date]]+1,2,IF(Table14[[#This Row],[END date]]=Table14[[#This Row],[BEG date]]+2,3,IF(Table14[[#This Row],[END date]]=Table14[[#This Row],[BEG date]]+3,4,IF(Table14[[#This Row],[END date]]=Table14[[#This Row],[BEG date]]+4,5,\">5\")))))","v":1},"Mailed"]
["Baroque Keyboards LLC","ebrewer@baroquekeyboards.com",600,"NA",86966,"NA","NA","NA","Y","NA","NA","NA","NA","NA","Y",{"$f":"IF(AND(TODAY()<Table14[[#This Row],[BEG date]]-14, Table14[[#This Row],[Submitted on]]=\"\"), \"\", IF(AND(Table14[[#This Row],[BEG date]]-14<=TODAY(), TODAY()<Table14[[#This Row],[BEG date]], Table14[[#This Row],[Submitted on]]=\"\"), Table14[[#This Row],[BEG date]], IF(Table14[[#This Row],[Submitted on]]=\"\", \"PROCESS ASAP\", IF(Table14[[#This Row],[Payment Made]]=\"\", \"SUBMITTED\", \"DONE\"))))","v":"DONE"},{"$f":"IF(OR(Table14[[#This Row],[Vendor]]=\"\", Table14[[#This Row],[Email]]=\"\",Table14[[#This Row],[Amount]]=\"\",Table14[[#This Row],[Sent]]=\"\",Table14[[#This Row],[Vendor '#]]=\"\",Table14[[#This Row],[Completed (Date)]]=\"\",Table14[[#This Row],[Sent2]]=\"\",Table14[[#This Row],[Received]]=\"\",Table14[[#This Row],[On File (Y/leave blank)]]=\"\",Table14[[#This Row],[Requested]]=\"\",Table14[[#This Row],[Received3]]=\"\",Table14[[#This Row],[On File (Y/leave blank)4]]=\"\",Table14[[#This Row],[Requested5]]=\"\",Table14[[#This Row],[Received2]]=\"\", Table14[[#This Row],[On File(Y/leave blank)]]=\"\"), \"STOP\", \"GO\")","v":"GO"},"Andrew T","2015-03-12","FT174124","2015-03-13",null,"2015-03-11","Alex Woods",13263368,6100,57077,"RNT 7011","Rental of a harpsichord for Alex Woods concert/recording","2015-02-21","2015-02-21",{"$f":"IF(Table14[[#This Row],[END date]]=Table14[[#This Row],[BEG date]],1,IF(Table14[[#This Row],[END date]]=Table14[[#This Row],[BEG date]]+1,2,IF(Table14[[#This Row],[END date]]=Table14[[#This Row],[BEG date]]+2,3,IF(Table14[[#This Row],[END date]]=Table14[[#This Row],[BEG date]]+3,4,IF(Table14[[#This Row],[END date]]=Table14[[#This Row],[BEG date]]+4,5,\">5\")))))","v":1},"Mailed",null,"201-592-1298"]
["Jack Unzicker","unzicker@uta.edu",650,"2015-03-12",88526,"NA","NA","NA","Y","2015-03-12","2015-03-12","NA","NA","NA","Y",{"$f":"IF(AND(TODAY()<Table14[[#This Row],[BEG date]]-14, Table14[[#This Row],[Submitted on]]=\"\"), \"\", IF(AND(Table14[[#This Row],[BEG date]]-14<=TODAY(), TODAY()<Table14[[#This Row],[BEG date]], Table14[[#This Row],[Submitted on]]=\"\"), Table14[[#This Row],[BEG date]], IF(Table14[[#This Row],[Submitted on]]=\"\", \"PROCESS ASAP\", IF(Table14[[#This Row],[Payment Made]]=\"\", \"SUBMITTED\", \"DONE\"))))","v":"DONE"},{"$f":"IF(OR(Table14[[#This Row],[Vendor]]=\"\", Table14[[#This Row],[Email]]=\"\",Table14[[#This Row],[Amount]]=\"\",Table14[[#This Row],[Sent]]=\"\",Table14[[#This Row],[Vendor '#]]=\"\",Table14[[#This Row],[Completed (Date)]]=\"\",Table14[[#This Row],[Sent2]]=\"\",Table14[[#This Row],[Received]]=\"\",Table14[[#This Row],[On File (Y/leave blank)]]=\"\",Table14[[#This Row],[Requested]]=\"\",Table14[[#This Row],[Received3]]=\"\",Table14[[#This Row],[On File (Y/leave blank)4]]=\"\",Table14[[#This Row],[Requested5]]=\"\",Table14[[#This Row],[Received2]]=\"\", Table14[[#This Row],[On File(Y/leave blank)]]=\"\"), \"STOP\", \"GO\")","v":"GO"},"Andrew T","2015-03-13","FT174209","2015-03-16",null,"2015-03-12","Eric Hansen",13263208,6200,35744,"ICO 7929","Recital and masterclass per Eric Hansen","2015-03-23","2015-03-24",{"$f":"IF(Table14[[#This Row],[END date]]=Table14[[#This Row],[BEG date]],1,IF(Table14[[#This Row],[END date]]=Table14[[#This Row],[BEG date]]+1,2,IF(Table14[[#This Row],[END date]]=Table14[[#This Row],[BEG date]]+2,3,IF(Table14[[#This Row],[END date]]=Table14[[#This Row],[BEG date]]+3,4,IF(Table14[[#This Row],[END date]]=Table14[[#This Row],[BEG date]]+4,5,\">5\")))))","v":2},"Hand delivered","Split payment between two accounts, 250 to 13263368-6200-hansen. ","817-272-1103"]
["Heritage Church Organ Co","drnorman19@gmail.com",303.45,"NA",18300,"NA","NA","NA","Y","2015-03-12","2015-03-16","NA","NA","NA","Y",{"$f":"IF(AND(TODAY()<Table14[[#This Row],[BEG date]]-14, Table14[[#This Row],[Submitted on]]=\"\"), \"\", IF(AND(Table14[[#This Row],[BEG date]]-14<=TODAY(), TODAY()<Table14[[#This Row],[BEG date]], Table14[[#This Row],[Submitted on]]=\"\"), Table14[[#This Row],[BEG date]], IF(Table14[[#This Row],[Submitted on]]=\"\", \"PROCESS ASAP\", IF(Table14[[#This Row],[Payment Made]]=\"\", \"SUBMITTED\", \"DONE\"))))","v":"DONE"},{"$f":"IF(OR(Table14[[#This Row],[Vendor]]=\"\", Table14[[#This Row],[Email]]=\"\",Table14[[#This Row],[Amount]]=\"\",Table14[[#This Row],[Sent]]=\"\",Table14[[#This Row],[Vendor '#]]=\"\",Table14[[#This Row],[Completed (Date)]]=\"\",Table14[[#This Row],[Sent2]]=\"\",Table14[[#This Row],[Received]]=\"\",Table14[[#This Row],[On File (Y/leave blank)]]=\"\",Table14[[#This Row],[Requested]]=\"\",Table14[[#This Row],[Received3]]=\"\",Table14[[#This Row],[On File (Y/leave blank)4]]=\"\",Table14[[#This Row],[Requested5]]=\"\",Table14[[#This Row],[Received2]]=\"\", Table14[[#This Row],[On File(Y/leave blank)]]=\"\"), \"STOP\", \"GO\")","v":"GO"},"Andrew T","2015-03-20","FT175068","2015-03-25",null,"2015-03-12","Don Cook",13263221,6100,"00000","ICO 8999","Organ Maintenance per Don Cook","2014-11-26","2014-11-26",{"$f":"IF(Table14[[#This Row],[END date]]=Table14[[#This Row],[BEG date]],1,IF(Table14[[#This Row],[END date]]=Table14[[#This Row],[BEG date]]+1,2,IF(Table14[[#This Row],[END date]]=Table14[[#This Row],[BEG date]]+2,3,IF(Table14[[#This Row],[END date]]=Table14[[#This Row],[BEG date]]+3,4,IF(Table14[[#This Row],[END date]]=Table14[[#This Row],[BEG date]]+4,5,\">5\")))))","v":1},"Mailed",null,"801-762-0999"]
["Doug Humpherys","dhumpherys@esm.rochester.edu",400,"2015-03-17",16083,"NA","NA","NA","Y","NA","NA","NA","NA","NA","Y",{"$f":"IF(AND(TODAY()<Table14[[#This Row],[BEG date]]-14, Table14[[#This Row],[Submitted on]]=\"\"), \"\", IF(AND(Table14[[#This Row],[BEG date]]-14<=TODAY(), TODAY()<Table14[[#This Row],[BEG date]], Table14[[#This Row],[Submitted on]]=\"\"), Table14[[#This Row],[BEG date]], IF(Table14[[#This Row],[Submitted on]]=\"\", \"PROCESS ASAP\", IF(Table14[[#This Row],[Payment Made]]=\"\", \"SUBMITTED\", \"DONE\"))))","v":"DONE"},{"$f":"IF(OR(Table14[[#This Row],[Vendor]]=\"\", Table14[[#This Row],[Email]]=\"\",Table14[[#This Row],[Amount]]=\"\",Table14[[#This Row],[Sent]]=\"\",Table14[[#This Row],[Vendor '#]]=\"\",Table14[[#This Row],[Completed (Date)]]=\"\",Table14[[#This Row],[Sent2]]=\"\",Table14[[#This Row],[Received]]=\"\",Table14[[#This Row],[On File (Y/leave blank)]]=\"\",Table14[[#This Row],[Requested]]=\"\",Table14[[#This Row],[Received3]]=\"\",Table14[[#This Row],[On File (Y/leave blank)4]]=\"\",Table14[[#This Row],[Requested5]]=\"\",Table14[[#This Row],[Received2]]=\"\", Table14[[#This Row],[On File(Y/leave blank)]]=\"\"), \"STOP\", \"GO\")","v":"GO"},"Andrew T","2015-03-18","FT174690","2015-03-20",null,"2015-03-16","Scott Holden",11263011,6200,35798,"ICO 7929","The following is a payment for a masterclass per Scott Holden.","2015-03-13","2015-03-13",{"$f":"IF(Table14[[#This Row],[END date]]=Table14[[#This Row],[BEG date]],1,IF(Table14[[#This Row],[END date]]=Table14[[#This Row],[BEG date]]+1,2,IF(Table14[[#This Row],[END date]]=Table14[[#This Row],[BEG date]]+2,3,IF(Table14[[#This Row],[END date]]=Table14[[#This Row],[BEG date]]+3,4,IF(Table14[[#This Row],[END date]]=Table14[[#This Row],[BEG date]]+4,5,\">5\")))))","v":1},"Mailed","Split with masterclass account","585-274-1521"]
["Christine Wolf","cwolf@dsdmail.net",150,"2015-03-18",88561,"NA","NA","NA","Y","2015-03-17","2015-03-17","NA","NA","NA","Y",{"$f":"IF(AND(TODAY()<Table14[[#This Row],[BEG date]]-14, Table14[[#This Row],[Submitted on]]=\"\"), \"\", IF(AND(Table14[[#This Row],[BEG date]]-14<=TODAY(), TODAY()<Table14[[#This Row],[BEG date]], Table14[[#This Row],[Submitted on]]=\"\"), Table14[[#This Row],[BEG date]], IF(Table14[[#This Row],[Submitted on]]=\"\", \"PROCESS ASAP\", IF(Table14[[#This Row],[Payment Made]]=\"\", \"SUBMITTED\", \"DONE\"))))","v":"DONE"},{"$f":"IF(OR(Table14[[#This Row],[Vendor]]=\"\", Table14[[#This Row],[Email]]=\"\",Table14[[#This Row],[Amount]]=\"\",Table14[[#This Row],[Sent]]=\"\",Table14[[#This Row],[Vendor '#]]=\"\",Table14[[#This Row],[Completed (Date)]]=\"\",Table14[[#This Row],[Sent2]]=\"\",Table14[[#This Row],[Received]]=\"\",Table14[[#This Row],[On File (Y/leave blank)]]=\"\",Table14[[#This Row],[Requested]]=\"\",Table14[[#This Row],[Received3]]=\"\",Table14[[#This Row],[On File (Y/leave blank)4]]=\"\",Table14[[#This Row],[Requested5]]=\"\",Table14[[#This Row],[Received2]]=\"\", Table14[[#This Row],[On File(Y/leave blank)]]=\"\"), \"STOP\", \"GO\")","v":"GO"},"Andrew T","2015-03-19","FT174872","2015-03-23",null,"2015-03-17","Jaren Hinckley",13263210,6200,35747,"ICO 7929","The following is a payment for a masterclass per Jaren Hinckley.","2015-02-12","2015-02-12",{"$f":"IF(Table14[[#This Row],[END date]]=Table14[[#This Row],[BEG date]],1,IF(Table14[[#This Row],[END date]]=Table14[[#This Row],[BEG date]]+1,2,IF(Table14[[#This Row],[END date]]=Table14[[#This Row],[BEG date]]+2,3,IF(Table14[[#This Row],[END date]]=Table14[[#This Row],[BEG date]]+3,4,IF(Table14[[#This Row],[END date]]=Table14[[#This Row],[BEG date]]+4,5,\">5\")))))","v":1},"Mailed"]
["Ryan Murphy","murphyr@ldschurch.org",550,"2015-03-04",80019,"NA","NA","NA","Y","2015-02-26","2015-03-04","NA","NA","NA","Y",{"$f":"IF(AND(TODAY()<Table14[[#This Row],[BEG date]]-14, Table14[[#This Row],[Submitted on]]=\"\"), \"\", IF(AND(Table14[[#This Row],[BEG date]]-14<=TODAY(), TODAY()<Table14[[#This Row],[BEG date]], Table14[[#This Row],[Submitted on]]=\"\"), Table14[[#This Row],[BEG date]], IF(Table14[[#This Row],[Submitted on]]=\"\", \"PROCESS ASAP\", IF(Table14[[#This Row],[Payment Made]]=\"\", \"SUBMITTED\", \"DONE\"))))","v":"SUBMITTED"},{"$f":"IF(OR(Table14[[#This Row],[Vendor]]=\"\", Table14[[#This Row],[Email]]=\"\",Table14[[#This Row],[Amount]]=\"\",Table14[[#This Row],[Sent]]=\"\",Table14[[#This Row],[Vendor '#]]=\"\",Table14[[#This Row],[Completed (Date)]]=\"\",Table14[[#This Row],[Sent2]]=\"\",Table14[[#This Row],[Received]]=\"\",Table14[[#This Row],[On File (Y/leave blank)]]=\"\",Table14[[#This Row],[Requested]]=\"\",Table14[[#This Row],[Received3]]=\"\",Table14[[#This Row],[On File (Y/leave blank)4]]=\"\",Table14[[#This Row],[Requested5]]=\"\",Table14[[#This Row],[Received2]]=\"\", Table14[[#This Row],[On File(Y/leave blank)]]=\"\"), \"STOP\", \"GO\")","v":"GO"},"Andrew T","2015-03-05","FT172715",null,null,"2015-02-26","Luke Howard",13263324,6200,35802,"ICO 8000","Honorarium for Oscarson guest lecture per Luke Howard","2015-03-12","2015-03-12",{"$f":"IF(Table14[[#This Row],[END date]]=Table14[[#This Row],[BEG date]],1,IF(Table14[[#This Row],[END date]]=Table14[[#This Row],[BEG date]]+1,2,IF(Table14[[#This Row],[END date]]=Table14[[#This Row],[BEG date]]+2,3,IF(Table14[[#This Row],[END date]]=Table14[[#This Row],[BEG date]]+3,4,IF(Table14[[#This Row],[END date]]=Table14[[#This Row],[BEG date]]+4,5,\">5\")))))","v":1},"Hand delivered","W9 request resent on 03/03","801-240-4150"]
["Jon Andrus","jonandrus09@gmail.com",1700,"2015-03-06",57035,"2015-03-03","NA","NA","Y","2015-03-03","2015-03-06","Y","2015-03-03","2015-03-06","Y",{"$f":"IF(AND(TODAY()<Table14[[#This Row],[BEG date]]-14, Table14[[#This Row],[Submitted on]]=\"\"), \"\", IF(AND(Table14[[#This Row],[BEG date]]-14<=TODAY(), TODAY()<Table14[[#This Row],[BEG date]], Table14[[#This Row],[Submitted on]]=\"\"), Table14[[#This Row],[BEG date]], IF(Table14[[#This Row],[Submitted on]]=\"\", \"PROCESS ASAP\", IF(Table14[[#This Row],[Payment Made]]=\"\", \"SUBMITTED\", \"DONE\"))))","v":"SUBMITTED"},{"$f":"IF(OR(Table14[[#This Row],[Vendor]]=\"\", Table14[[#This Row],[Email]]=\"\",Table14[[#This Row],[Amount]]=\"\",Table14[[#This Row],[Sent]]=\"\",Table14[[#This Row],[Vendor '#]]=\"\",Table14[[#This Row],[Completed (Date)]]=\"\",Table14[[#This Row],[Sent2]]=\"\",Table14[[#This Row],[Received]]=\"\",Table14[[#This Row],[On File (Y/leave blank)]]=\"\",Table14[[#This Row],[Requested]]=\"\",Table14[[#This Row],[Received3]]=\"\",Table14[[#This Row],[On File (Y/leave blank)4]]=\"\",Table14[[#This Row],[Requested5]]=\"\",Table14[[#This Row],[Received2]]=\"\", Table14[[#This Row],[On File(Y/leave blank)]]=\"\"), \"STOP\", \"GO\")","v":"GO"},"Andrew T","2015-03-06","FT173134",null,null,"2015-03-03","Karren Williamson",19263118,6200,"00000","ICO 7952","Payment for filming and making video for Cougar Marching Band during 2014 season per Karren Williamson","2014-08-25","2014-12-30",{"$f":"IF(Table14[[#This Row],[END date]]=Table14[[#This Row],[BEG date]],1,IF(Table14[[#This Row],[END date]]=Table14[[#This Row],[BEG date]]+1,2,IF(Table14[[#This Row],[END date]]=Table14[[#This Row],[BEG date]]+2,3,IF(Table14[[#This Row],[END date]]=Table14[[#This Row],[BEG date]]+3,4,IF(Table14[[#This Row],[END date]]=Table14[[#This Row],[BEG date]]+4,5,\">5\")))))","v":">5"},"Mailed"]
["Nancy Austen","ndausten@gmail.com",304,"NA",40543,"NA","NA","NA","Y","NA","NA","Y","2015-03-03","2015-03-06","Y",{"$f":"IF(AND(TODAY()<Table14[[#This Row],[BEG date]]-14, Table14[[#This Row],[Submitted on]]=\"\"), \"\", IF(AND(Table14[[#This Row],[BEG date]]-14<=TODAY(), TODAY()<Table14[[#This Row],[BEG date]], Table14[[#This Row],[Submitted on]]=\"\"), Table14[[#This Row],[BEG date]], IF(Table14[[#This Row],[Submitted on]]=\"\", \"PROCESS ASAP\", IF(Table14[[#This Row],[Payment Made]]=\"\", \"SUBMITTED\", \"DONE\"))))","v":"SUBMITTED"},{"$f":"IF(OR(Table14[[#This Row],[Vendor]]=\"\", Table14[[#This Row],[Email]]=\"\",Table14[[#This Row],[Amount]]=\"\",Table14[[#This Row],[Sent]]=\"\",Table14[[#This Row],[Vendor '#]]=\"\",Table14[[#This Row],[Completed (Date)]]=\"\",Table14[[#This Row],[Sent2]]=\"\",Table14[[#This Row],[Received]]=\"\",Table14[[#This Row],[On File (Y/leave blank)]]=\"\",Table14[[#This Row],[Requested]]=\"\",Table14[[#This Row],[Received3]]=\"\",Table14[[#This Row],[On File (Y/leave blank)4]]=\"\",Table14[[#This Row],[Requested5]]=\"\",Table14[[#This Row],[Received2]]=\"\", Table14[[#This Row],[On File(Y/leave blank)]]=\"\"), \"STOP\", \"GO\")","v":"GO"},"Andrew T","2015-03-06","FT173138",null,null,"2015-03-03","Jean Applonie",13263294,6200,35782,"ICO 8993","Hemmed Women's Chorus skirts per Jean Applonie","2015-02-09","2015-02-09",{"$f":"IF(Table14[[#This Row],[END date]]=Table14[[#This Row],[BEG date]],1,IF(Table14[[#This Row],[END date]]=Table14[[#This Row],[BEG date]]+1,2,IF(Table14[[#This Row],[END date]]=Table14[[#This Row],[BEG date]]+2,3,IF(Table14[[#This Row],[END date]]=Table14[[#This Row],[BEG date]]+3,4,IF(Table14[[#This Row],[END date]]=Table14[[#This Row],[BEG date]]+4,5,\">5\")))))","v":1},"Mailed",null,"801-226-6686"]
["Colla Voce Music LLC","cmatthews@collavoce.com",13.04,"2015-03-25",51610,"NA","NA","NA","Y","2015-03-25","2015-03-25","NA","NA","NA","Y",{"$f":"IF(AND(TODAY()<Table14[[#This Row],[BEG date]]-14, Table14[[#This Row],[Submitted on]]=\"\"), \"\", IF(AND(Table14[[#This Row],[BEG date]]-14<=TODAY(), TODAY()<Table14[[#This Row],[BEG date]], Table14[[#This Row],[Submitted on]]=\"\"), Table14[[#This Row],[BEG date]], IF(Table14[[#This Row],[Submitted on]]=\"\", \"PROCESS ASAP\", IF(Table14[[#This Row],[Payment Made]]=\"\", \"SUBMITTED\", \"DONE\"))))","v":"SUBMITTED"},{"$f":"IF(OR(Table14[[#This Row],[Vendor]]=\"\", Table14[[#This Row],[Email]]=\"\",Table14[[#This Row],[Amount]]=\"\",Table14[[#This Row],[Sent]]=\"\",Table14[[#This Row],[Vendor '#]]=\"\",Table14[[#This Row],[Completed (Date)]]=\"\",Table14[[#This Row],[Sent2]]=\"\",Table14[[#This Row],[Received]]=\"\",Table14[[#This Row],[On File (Y/leave blank)]]=\"\",Table14[[#This Row],[Requested]]=\"\",Table14[[#This Row],[Received3]]=\"\",Table14[[#This Row],[On File (Y/leave blank)4]]=\"\",Table14[[#This Row],[Requested5]]=\"\",Table14[[#This Row],[Received2]]=\"\", Table14[[#This Row],[On File(Y/leave blank)]]=\"\"), \"STOP\", \"GO\")","v":"GO"},"Andrew T","2015-03-25","FT176069",null,null,"2015-03-25","Andrew Dabczynski",13263085,6100,35740,"GDS 8999","Sheet music purchase per Andy Dabczynski","2015-03-03","2015-03-03",{"$f":"IF(Table14[[#This Row],[END date]]=Table14[[#This Row],[BEG date]],1,IF(Table14[[#This Row],[END date]]=Table14[[#This Row],[BEG date]]+1,2,IF(Table14[[#This Row],[END date]]=Table14[[#This Row],[BEG date]]+2,3,IF(Table14[[#This Row],[END date]]=Table14[[#This Row],[BEG date]]+3,4,IF(Table14[[#This Row],[END date]]=Table14[[#This Row],[BEG date]]+4,5,\">5\")))))","v":1},"Mailed",null,"317-466-0624"]
["Andrew Taylor","ajtaylor280@gmail.com",200,"NA",55555,"NA","NA","NA","Y","NA","NA","NA","NA","NA","Y",{"$f":"IF(AND(TODAY()<Table14[[#This Row],[BEG date]]-14, Table14[[#This Row],[Submitted on]]=\"\"), \"\", IF(AND(Table14[[#This Row],[BEG date]]-14<=TODAY(), TODAY()<Table14[[#This Row],[BEG date]], Table14[[#This Row],[Submitted on]]=\"\"), Table14[[#This Row],[BEG date]], IF(Table14[[#This Row],[Submitted on]]=\"\", \"PROCESS ASAP\", IF(Table14[[#This Row],[Payment Made]]=\"\", \"SUBMITTED\", \"DONE\"))))","v":"SUBMITTED"},{"$f":"IF(OR(Table14[[#This Row],[Vendor]]=\"\", Table14[[#This Row],[Email]]=\"\",Table14[[#This Row],[Amount]]=\"\",Table14[[#This Row],[Sent]]=\"\",Table14[[#This Row],[Vendor '#]]=\"\",Table14[[#This Row],[Completed (Date)]]=\"\",Table14[[#This Row],[Sent2]]=\"\",Table14[[#This Row],[Received]]=\"\",Table14[[#This Row],[On File (Y/leave blank)]]=\"\",Table14[[#This Row],[Requested]]=\"\",Table14[[#This Row],[Received3]]=\"\",Table14[[#This Row],[On File (Y/leave blank)4]]=\"\",Table14[[#This Row],[Requested5]]=\"\",Table14[[#This Row],[Received2]]=\"\", Table14[[#This Row],[On File(Y/leave blank)]]=\"\"), \"STOP\", \"GO\")","v":"GO"},"Andrew Taylor","2015-03-31","FTxxxxxx",null,null,"2015-03-31","Jane Doe",11263000,6200,"00000","ICO 7929","Masterclass performance per Jane Doe","2015-03-03","2015-03-03",{"$f":"IF(Table14[[#This Row],[END date]]=Table14[[#This Row],[BEG date]],1,IF(Table14[[#This Row],[END date]]=Table14[[#This Row],[BEG date]]+1,2,IF(Table14[[#This Row],[END date]]=Table14[[#This Row],[BEG date]]+2,3,IF(Table14[[#This Row],[END date]]=Table14[[#This Row],[BEG date]]+3,4,IF(Table14[[#This Row],[END date]]=Table14[[#This Row],[BEG date]]+4,5,\">5\")))))","v":1},"Hand Delivered"]
["Lydian String Quartet","eissenbe@brandeis.edu",4000,null,null,"NA","2015-03-12","2015-03-12",null,null,null,"NA","NA","NA","Y",{"$f":"IF(AND(TODAY()<Table14[[#This Row],[BEG date]]-14, Table14[[#This Row],[Submitted on]]=\"\"), \"\", IF(AND(Table14[[#This Row],[BEG date]]-14<=TODAY(), TODAY()<Table14[[#This Row],[BEG date]], Table14[[#This Row],[Submitted on]]=\"\"), Table14[[#This Row],[BEG date]], IF(Table14[[#This Row],[Submitted on]]=\"\", \"PROCESS ASAP\", IF(Table14[[#This Row],[Payment Made]]=\"\", \"SUBMITTED\", \"DONE\"))))","v":""},{"$f":"IF(OR(Table14[[#This Row],[Vendor]]=\"\", Table14[[#This Row],[Email]]=\"\",Table14[[#This Row],[Amount]]=\"\",Table14[[#This Row],[Sent]]=\"\",Table14[[#This Row],[Vendor '#]]=\"\",Table14[[#This Row],[Completed (Date)]]=\"\",Table14[[#This Row],[Sent2]]=\"\",Table14[[#This Row],[Received]]=\"\",Table14[[#This Row],[On File (Y/leave blank)]]=\"\",Table14[[#This Row],[Requested]]=\"\",Table14[[#This Row],[Received3]]=\"\",Table14[[#This Row],[On File (Y/leave blank)4]]=\"\",Table14[[#This Row],[Requested5]]=\"\",Table14[[#This Row],[Received2]]=\"\", Table14[[#This Row],[On File(Y/leave blank)]]=\"\"), \"STOP\", \"GO\")","v":"STOP"},"Andrew T",null,null,null,null,"2015-03-12","Steven Ricks",23263132,6200,35761,"ICO 7929","Honorarium for evening concert performance and workshop with composition students","2015-11-17","2015-11-17",{"$f":"IF(Table14[[#This Row],[END date]]=Table14[[#This Row],[BEG date]],1,IF(Table14[[#This Row],[END date]]=Table14[[#This Row],[BEG date]]+1,2,IF(Table14[[#This Row],[END date]]=Table14[[#This Row],[BEG date]]+2,3,IF(Table14[[#This Row],[END date]]=Table14[[#This Row],[BEG date]]+3,4,IF(Table14[[#This Row],[END date]]=Table14[[#This Row],[BEG date]]+4,5,\">5\")))))","v":1},"Hand delivered"]
["Don Black","db@gmail.com",1050,null,null,"NA","NA","NA",null,null,null,"NA","NA","NA",null,{"$f":"IF(AND(TODAY()<Table14[[#This Row],[BEG date]]-14, Table14[[#This Row],[Submitted on]]=\"\"), \"\", IF(AND(Table14[[#This Row],[BEG date]]-14<=TODAY(), TODAY()<Table14[[#This Row],[BEG date]], Table14[[#This Row],[Submitted on]]=\"\"), Table14[[#This Row],[BEG date]], IF(Table14[[#This Row],[Submitted on]]=\"\", \"PROCESS ASAP\", IF(Table14[[#This Row],[Payment Made]]=\"\", \"SUBMITTED\", \"DONE\"))))","v":""},{"$f":"IF(OR(Table14[[#This Row],[Vendor]]=\"\", Table14[[#This Row],[Email]]=\"\",Table14[[#This Row],[Amount]]=\"\",Table14[[#This Row],[Sent]]=\"\",Table14[[#This Row],[Vendor '#]]=\"\",Table14[[#This Row],[Completed (Date)]]=\"\",Table14[[#This Row],[Sent2]]=\"\",Table14[[#This Row],[Received]]=\"\",Table14[[#This Row],[On File (Y/leave blank)]]=\"\",Table14[[#This Row],[Requested]]=\"\",Table14[[#This Row],[Received3]]=\"\",Table14[[#This Row],[On File (Y/leave blank)4]]=\"\",Table14[[#This Row],[Requested5]]=\"\",Table14[[#This Row],[Received2]]=\"\", Table14[[#This Row],[On File(Y/leave blank)]]=\"\"), \"STOP\", \"GO\")","v":"STOP"},"Andrew Taylor",null,null,null,null,"2015-03-31","Jane Doe",13263368,6200,21631,"ICO 7929","Guest performer","2015-08-02","2015-08-02",{"$f":"IF(Table14[[#This Row],[END date]]=Table14[[#This Row],[BEG date]],1,IF(Table14[[#This Row],[END date]]=Table14[[#This Row],[BEG date]]+1,2,IF(Table14[[#This Row],[END date]]=Table14[[#This Row],[BEG date]]+2,3,IF(Table14[[#This Row],[END date]]=Table14[[#This Row],[BEG date]]+3,4,IF(Table14[[#This Row],[END date]]=Table14[[#This Row],[BEG date]]+4,5,\">5\")))))","v":1},"Hand Delivered",null,""]
["Brian Smith","briansmith@yahoo.com",375,"NA",55555,null,"NA","NA",null,null,null,null,null,null,null,{"$f":"IF(AND(TODAY()<Table14[[#This Row],[BEG date]]-14, Table14[[#This Row],[Submitted on]]=\"\"), \"\", IF(AND(Table14[[#This Row],[BEG date]]-14<=TODAY(), TODAY()<Table14[[#This Row],[BEG date]], Table14[[#This Row],[Submitted on]]=\"\"), Table14[[#This Row],[BEG date]], IF(Table14[[#This Row],[Submitted on]]=\"\", \"PROCESS ASAP\", IF(Table14[[#This Row],[Payment Made]]=\"\", \"SUBMITTED\", \"DONE\"))))","v":"PROCESS ASAP"},{"$f":"IF(OR(Table14[[#This Row],[Vendor]]=\"\", Table14[[#This Row],[Email]]=\"\",Table14[[#This Row],[Amount]]=\"\",Table14[[#This Row],[Sent]]=\"\",Table14[[#This Row],[Vendor '#]]=\"\",Table14[[#This Row],[Completed (Date)]]=\"\",Table14[[#This Row],[Sent2]]=\"\",Table14[[#This Row],[Received]]=\"\",Table14[[#This Row],[On File (Y/leave blank)]]=\"\",Table14[[#This Row],[Requested]]=\"\",Table14[[#This Row],[Received3]]=\"\",Table14[[#This Row],[On File (Y/leave blank)4]]=\"\",Table14[[#This Row],[Requested5]]=\"\",Table14[[#This Row],[Received2]]=\"\", Table14[[#This Row],[On File(Y/leave blank)]]=\"\"), \"STOP\", \"GO\")","v":"STOP"},"Andrew Taylor",null,null,null,null,"2015-03-31","Jane Doe",20263329,6200,21639,"ICO 7951","Guest performer, masterclass, per Jane doe","2015-04-10","2015-04-18",{"$f":"IF(Table14[[#This Row],[END date]]=Table14[[#This Row],[BEG date]],1,IF(Table14[[#This Row],[END date]]=Table14[[#This Row],[BEG date]]+1,2,IF(Table14[[#This Row],[END date]]=Table14[[#This Row],[BEG date]]+2,3,IF(Table14[[#This Row],[END date]]=Table14[[#This Row],[BEG date]]+3,4,IF(Table14[[#This Row],[END date]]=Table14[[#This Row],[BEG date]]+4,5,\">5\")))))","v":">5"},"Hand Delivered",null,""]
["Shirley Davis","sdavis@gmail.com",500,null,null,null,"NA","NA",null,null,null,null,null,null,null,{"$f":"IF(AND(TODAY()<Table14[[#This Row],[BEG date]]-14, Table14[[#This Row],[Submitted on]]=\"\"), \"\", IF(AND(Table14[[#This Row],[BEG date]]-14<=TODAY(), TODAY()<Table14[[#This Row],[BEG date]], Table14[[#This Row],[Submitted on]]=\"\"), Table14[[#This Row],[BEG date]], IF(Table14[[#This Row],[Submitted on]]=\"\", \"PROCESS ASAP\", IF(Table14[[#This Row],[Payment Made]]=\"\", \"SUBMITTED\", \"DONE\"))))","v":"PROCESS ASAP"},{"$f":"IF(OR(Table14[[#This Row],[Vendor]]=\"\", Table14[[#This Row],[Email]]=\"\",Table14[[#This Row],[Amount]]=\"\",Table14[[#This Row],[Sent]]=\"\",Table14[[#This Row],[Vendor '#]]=\"\",Table14[[#This Row],[Completed (Date)]]=\"\",Table14[[#This Row],[Sent2]]=\"\",Table14[[#This Row],[Received]]=\"\",Table14[[#This Row],[On File (Y/leave blank)]]=\"\",Table14[[#This Row],[Requested]]=\"\",Table14[[#This Row],[Received3]]=\"\",Table14[[#This Row],[On File (Y/leave blank)4]]=\"\",Table14[[#This Row],[Requested5]]=\"\",Table14[[#This Row],[Received2]]=\"\", Table14[[#This Row],[On File(Y/leave blank)]]=\"\"), \"STOP\", \"GO\")","v":"STOP"},"Andrew Taylor",null,null,null,null,"2015-03-31","Jane Doe",20263329,6200,21639,"ICO 8997","Guest lecturer","2015-04-12","2015-04-20",{"$f":"IF(Table14[[#This Row],[END date]]=Table14[[#This Row],[BEG date]],1,IF(Table14[[#This Row],[END date]]=Table14[[#This Row],[BEG date]]+1,2,IF(Table14[[#This Row],[END date]]=Table14[[#This Row],[BEG date]]+2,3,IF(Table14[[#This Row],[END date]]=Table14[[#This Row],[BEG date]]+3,4,IF(Table14[[#This Row],[END date]]=Table14[[#This Row],[BEG date]]+4,5,\">5\")))))","v":">5"},"Mailed",null,""]
["Andrew","musicemployment@byu.edu",200,"NA",55555,null,"NA","NA",null,null,null,null,null,null,null,{"$f":"IF(AND(TODAY()<Table14[[#This Row],[BEG date]]-14, Table14[[#This Row],[Submitted on]]=\"\"), \"\", IF(AND(Table14[[#This Row],[BEG date]]-14<=TODAY(), TODAY()<Table14[[#This Row],[BEG date]], Table14[[#This Row],[Submitted on]]=\"\"), Table14[[#This Row],[BEG date]], IF(Table14[[#This Row],[Submitted on]]=\"\", \"PROCESS ASAP\", IF(Table14[[#This Row],[Payment Made]]=\"\", \"SUBMITTED\", \"DONE\"))))","v":"PROCESS ASAP"},{"$f":"IF(OR(Table14[[#This Row],[Vendor]]=\"\", Table14[[#This Row],[Email]]=\"\",Table14[[#This Row],[Amount]]=\"\",Table14[[#This Row],[Sent]]=\"\",Table14[[#This Row],[Vendor '#]]=\"\",Table14[[#This Row],[Completed (Date)]]=\"\",Table14[[#This Row],[Sent2]]=\"\",Table14[[#This Row],[Received]]=\"\",Table14[[#This Row],[On File (Y/leave blank)]]=\"\",Table14[[#This Row],[Requested]]=\"\",Table14[[#This Row],[Received3]]=\"\",Table14[[#This Row],[On File (Y/leave blank)4]]=\"\",Table14[[#This Row],[Requested5]]=\"\",Table14[[#This Row],[Received2]]=\"\", Table14[[#This Row],[On File(Y/leave blank)]]=\"\"), \"STOP\", \"GO\")","v":"STOP"},"Andrew Taylor",null,null,null,null,"2015-04-03","Jane Doe",13263079,6200,21613,"ICO 7951","lkidflsdkfjsldfkjsdlfkjsdlfksdjd","2015-04-04","2015-04-04",{"$f":"IF(Table14[[#This Row],[END date]]=Table14[[#This Row],[BEG date]],1,IF(Table14[[#This Row],[END date]]=Table14[[#This Row],[BEG date]]+1,2,IF(Table14[[#This Row],[END date]]=Table14[[#This Row],[BEG date]]+2,3,IF(Table14[[#This Row],[END date]]=Table14[[#This Row],[BEG date]]+3,4,IF(Table14[[#This Row],[END date]]=Table14[[#This Row],[BEG date]]+4,5,\">5\")))))","v":1},"Mailed",null,""]
["Coup de Cone Music Inc","wycliffe@wycliffegordon.com",500,"NA",82464,"NA","NA","NA",null,"2015-03-26",null,null,"2015-03-26",null,"Y",{"$f":"IF(AND(TODAY()<Table14[[#This Row],[BEG date]]-14, Table14[[#This Row],[Submitted on]]=\"\"), \"\", IF(AND(Table14[[#This Row],[BEG date]]-14<=TODAY(), TODAY()<Table14[[#This Row],[BEG date]], Table14[[#This Row],[Submitted on]]=\"\"), Table14[[#This Row],[BEG date]], IF(Table14[[#This Row],[Submitted on]]=\"\", \"PROCESS ASAP\", IF(Table14[[#This Row],[Payment Made]]=\"\", \"SUBMITTED\", \"DONE\"))))","v":"PROCESS ASAP"},{"$f":"IF(OR(Table14[[#This Row],[Vendor]]=\"\", Table14[[#This Row],[Email]]=\"\",Table14[[#This Row],[Amount]]=\"\",Table14[[#This Row],[Sent]]=\"\",Table14[[#This Row],[Vendor '#]]=\"\",Table14[[#This Row],[Completed (Date)]]=\"\",Table14[[#This Row],[Sent2]]=\"\",Table14[[#This Row],[Received]]=\"\",Table14[[#This Row],[On File (Y/leave blank)]]=\"\",Table14[[#This Row],[Requested]]=\"\",Table14[[#This Row],[Received3]]=\"\",Table14[[#This Row],[On File (Y/leave blank)4]]=\"\",Table14[[#This Row],[Requested5]]=\"\",Table14[[#This Row],[Received2]]=\"\", Table14[[#This Row],[On File(Y/leave blank)]]=\"\"), \"STOP\", \"GO\")","v":"STOP"},"Andrew T",null,null,null,null,"2015-03-09","Steve Lindeman",13263073,6200,35754,"ICO 7653","Studio work on new Q'd up recording per Steve Lindeman","2015-03-09","2015-03-09",{"$f":"IF(Table14[[#This Row],[END date]]=Table14[[#This Row],[BEG date]],1,IF(Table14[[#This Row],[END date]]=Table14[[#This Row],[BEG date]]+1,2,IF(Table14[[#This Row],[END date]]=Table14[[#This Row],[BEG date]]+2,3,IF(Table14[[#This Row],[END date]]=Table14[[#This Row],[BEG date]]+3,4,IF(Table14[[#This Row],[END date]]=Table14[[#This Row],[BEG date]]+4,5,\">5\")))))","v":1},"Mailed","Resent on 3/24/2015","646-662-7337"]
["Jenny Babidge","babidge@aol.com",1000,"NA",54400,"NA","NA","NA",null,"2015-03-24",null,"NA","NA","NA","Y",{"$f":"IF(AND(TODAY()<Table14[[#This Row],[BEG date]]-14, Table14[[#This Row],[Submitted on]]=\"\"), \"\", IF(AND(Table14[[#This Row],[BEG date]]-14<=TODAY(), TODAY()<Table14[[#This Row],[BEG date]], Table14[[#This Row],[Submitted on]]=\"\"), Table14[[#This Row],[BEG date]], IF(Table14[[#This Row],[Submitted on]]=\"\", \"PROCESS ASAP\", IF(Table14[[#This Row],[Payment Made]]=\"\", \"SUBMITTED\", \"DONE\"))))","v":"PROCESS ASAP"},{"$f":"IF(OR(Table14[[#This Row],[Vendor]]=\"\", Table14[[#This Row],[Email]]=\"\",Table14[[#This Row],[Amount]]=\"\",Table14[[#This Row],[Sent]]=\"\",Table14[[#This Row],[Vendor '#]]=\"\",Table14[[#This Row],[Completed (Date)]]=\"\",Table14[[#This Row],[Sent2]]=\"\",Table14[[#This Row],[Received]]=\"\",Table14[[#This Row],[On File (Y/leave blank)]]=\"\",Table14[[#This Row],[Requested]]=\"\",Table14[[#This Row],[Received3]]=\"\",Table14[[#This Row],[On File (Y/leave blank)4]]=\"\",Table14[[#This Row],[Requested5]]=\"\",Table14[[#This Row],[Received2]]=\"\", Table14[[#This Row],[On File(Y/leave blank)]]=\"\"), \"STOP\", \"GO\")","v":"STOP"},"Andrew T",null,null,null,null,"2015-03-23","Christian Asplund",23263132,6200,35795,"ICO 7929","Honorarium payment for performance of Christian Asplund's piece with Chamber Orchestra.","2015-03-19","2015-03-19",{"$f":"IF(Table14[[#This Row],[END date]]=Table14[[#This Row],[BEG date]],1,IF(Table14[[#This Row],[END date]]=Table14[[#This Row],[BEG date]]+1,2,IF(Table14[[#This Row],[END date]]=Table14[[#This Row],[BEG date]]+2,3,IF(Table14[[#This Row],[END date]]=Table14[[#This Row],[BEG date]]+3,4,IF(Table14[[#This Row],[END date]]=Table14[[#This Row],[BEG date]]+4,5,\">5\")))))","v":1},"Mailed"]
["Ben Walley","bcwalley@gmail.com",null,"NA",87891,null,null,null,"Y","NA","NA",null,null,null,null,{"$f":"IF(AND(TODAY()<Table14[[#This Row],[BEG date]]-14, Table14[[#This Row],[Submitted on]]=\"\"), \"\", IF(AND(Table14[[#This Row],[BEG date]]-14<=TODAY(), TODAY()<Table14[[#This Row],[BEG date]], Table14[[#This Row],[Submitted on]]=\"\"), Table14[[#This Row],[BEG date]], IF(Table14[[#This Row],[Submitted on]]=\"\", \"PROCESS ASAP\", IF(Table14[[#This Row],[Payment Made]]=\"\", \"SUBMITTED\", \"DONE\"))))","v":"PROCESS ASAP"},{"$f":"IF(OR(Table14[[#This Row],[Vendor]]=\"\", Table14[[#This Row],[Email]]=\"\",Table14[[#This Row],[Amount]]=\"\",Table14[[#This Row],[Sent]]=\"\",Table14[[#This Row],[Vendor '#]]=\"\",Table14[[#This Row],[Completed (Date)]]=\"\",Table14[[#This Row],[Sent2]]=\"\",Table14[[#This Row],[Received]]=\"\",Table14[[#This Row],[On File (Y/leave blank)]]=\"\",Table14[[#This Row],[Requested]]=\"\",Table14[[#This Row],[Received3]]=\"\",Table14[[#This Row],[On File (Y/leave blank)4]]=\"\",Table14[[#This Row],[Requested5]]=\"\",Table14[[#This Row],[Received2]]=\"\", Table14[[#This Row],[On File(Y/leave blank)]]=\"\"), \"STOP\", \"GO\")","v":"STOP"},"Andrew T",null,null,null,null,null,null,null,null,null,null,null,null,null,{"$f":"IF(Table14[[#This Row],[END date]]=Table14[[#This Row],[BEG date]],1,IF(Table14[[#This Row],[END date]]=Table14[[#This Row],[BEG date]]+1,2,IF(Table14[[#This Row],[END date]]=Table14[[#This Row],[BEG date]]+2,3,IF(Table14[[#This Row],[END date]]=Table14[[#This Row],[BEG date]]+3,4,IF(Table14[[#This Row],[END date]]=Table14[[#This Row],[BEG date]]+4,5,\">5\")))))","v":1}]
["Jayne Galloway","@gmail.com",200,"NA",49334,"NA","NA","NA","Y","NA","NA","NA","NA","NA",null,{"$f":"IF(AND(TODAY()<Table14[[#This Row],[BEG date]]-14, Table14[[#This Row],[Submitted on]]=\"\"), \"\", IF(AND(Table14[[#This Row],[BEG date]]-14<=TODAY(), TODAY()<Table14[[#This Row],[BEG date]], Table14[[#This Row],[Submitted on]]=\"\"), Table14[[#This Row],[BEG date]], IF(Table14[[#This Row],[Submitted on]]=\"\", \"PROCESS ASAP\", IF(Table14[[#This Row],[Payment Made]]=\"\", \"SUBMITTED\", \"DONE\"))))","v":"PROCESS ASAP"},{"$f":"IF(OR(Table14[[#This Row],[Vendor]]=\"\", Table14[[#This Row],[Email]]=\"\",Table14[[#This Row],[Amount]]=\"\",Table14[[#This Row],[Sent]]=\"\",Table14[[#This Row],[Vendor '#]]=\"\",Table14[[#This Row],[Completed (Date)]]=\"\",Table14[[#This Row],[Sent2]]=\"\",Table14[[#This Row],[Received]]=\"\",Table14[[#This Row],[On File (Y/leave blank)]]=\"\",Table14[[#This Row],[Requested]]=\"\",Table14[[#This Row],[Received3]]=\"\",Table14[[#This Row],[On File (Y/leave blank)4]]=\"\",Table14[[#This Row],[Requested5]]=\"\",Table14[[#This Row],[Received2]]=\"\", Table14[[#This Row],[On File(Y/leave blank)]]=\"\"), \"STOP\", \"GO\")","v":"STOP"},"Andrew T",null,null,null,null,"2015-03-27","Mark Ammons",23263132,7070,35726,"ICO 7929","olkdajhflsdfkj","2015-03-03","2015-03-03",{"$f":"IF(Table14[[#This Row],[END date]]=Table14[[#This Row],[BEG date]],1,IF(Table14[[#This Row],[END date]]=Table14[[#This Row],[BEG date]]+1,2,IF(Table14[[#This Row],[END date]]=Table14[[#This Row],[BEG date]]+2,3,IF(Table14[[#This Row],[END date]]=Table14[[#This Row],[BEG date]]+3,4,IF(Table14[[#This Row],[END date]]=Table14[[#This Row],[BEG date]]+4,5,\">5\")))))","v":1},"Mailed",null,""]
["Jayne Galloway","@gmail.com",200,"NA",49334,"NA","NA","NA","Y","NA","NA","NA","NA","NA",null,{"$f":"IF(AND(TODAY()<Table14[[#This Row],[BEG date]]-14, Table14[[#This Row],[Submitted on]]=\"\"), \"\", IF(AND(Table14[[#This Row],[BEG date]]-14<=TODAY(), TODAY()<Table14[[#This Row],[BEG date]], Table14[[#This Row],[Submitted on]]=\"\"), Table14[[#This Row],[BEG date]], IF(Table14[[#This Row],[Submitted on]]=\"\", \"PROCESS ASAP\", IF(Table14[[#This Row],[Payment Made]]=\"\", \"SUBMITTED\", \"DONE\"))))","v":"PROCESS ASAP"},{"$f":"IF(OR(Table14[[#This Row],[Vendor]]=\"\", Table14[[#This Row],[Email]]=\"\",Table14[[#This Row],[Amount]]=\"\",Table14[[#This Row],[Sent]]=\"\",Table14[[#This Row],[Vendor '#]]=\"\",Table14[[#This Row],[Completed (Date)]]=\"\",Table14[[#This Row],[Sent2]]=\"\",Table14[[#This Row],[Received]]=\"\",Table14[[#This Row],[On File (Y/leave blank)]]=\"\",Table14[[#This Row],[Requested]]=\"\",Table14[[#This Row],[Received3]]=\"\",Table14[[#This Row],[On File (Y/leave blank)4]]=\"\",Table14[[#This Row],[Requested5]]=\"\",Table14[[#This Row],[Received2]]=\"\", Table14[[#This Row],[On File(Y/leave blank)]]=\"\"), \"STOP\", \"GO\")","v":"STOP"},"lskdfj",null,null,null,null,"2015-03-27","lkjdf",13263113,7070,35863,"ICO 7929","lkjdflkjsdflksdf","2015-03-03","2015-03-03",{"$f":"IF(Table14[[#This Row],[END date]]=Table14[[#This Row],[BEG date]],1,IF(Table14[[#This Row],[END date]]=Table14[[#This Row],[BEG date]]+1,2,IF(Table14[[#This Row],[END date]]=Table14[[#This Row],[BEG date]]+2,3,IF(Table14[[#This Row],[END date]]=Table14[[#This Row],[BEG date]]+3,4,IF(Table14[[#This Row],[END date]]=Table14[[#This Row],[BEG date]]+4,5,\">5\")))))","v":1},"Hand Delivered",null,""]
["New person","@gmail.com",200,"NA",12345,"NA","NA","NA","Y","NA","NA","NA","NA","NA",null,{"$f":"IF(AND(TODAY()<Table14[[#This Row],[BEG date]]-14, Table14[[#This Row],[Submitted on]]=\"\"), \"\", IF(AND(Table14[[#This Row],[BEG date]]-14<=TODAY(), TODAY()<Table14[[#This Row],[BEG date]], Table14[[#This Row],[Submitted on]]=\"\"), Table14[[#This Row],[BEG date]], IF(Table14[[#This Row],[Submitted on]]=\"\", \"PROCESS ASAP\", IF(Table14[[#This Row],[Payment Made]]=\"\", \"SUBMITTED\", \"DONE\"))))","v":"PROCESS ASAP"},{"$f":"IF(OR(Table14[[#This Row],[Vendor]]=\"\", Table14[[#This Row],[Email]]=\"\",Table14[[#This Row],[Amount]]=\"\",Table14[[#This Row],[Sent]]=\"\",Table14[[#This Row],[Vendor '#]]=\"\",Table14[[#This Row],[Completed (Date)]]=\"\",Table14[[#This Row],[Sent2]]=\"\",Table14[[#This Row],[Received]]=\"\",Table14[[#This Row],[On File (Y/leave blank)]]=\"\",Table14[[#This Row],[Requested]]=\"\",Table14[[#This Row],[Received3]]=\"\",Table14[[#This Row],[On File (Y/leave blank)4]]=\"\",Table14[[#This Row],[Requested5]]=\"\",Table14[[#This Row],[Received2]]=\"\", Table14[[#This Row],[On File(Y/leave blank)]]=\"\"), \"STOP\", \"GO\")","v":"STOP"},"Andrew",null,null,null,null,"2015-03-27","someone",123456,12345,12345,"ICO 7929","lsdkfgsldfkjhsd;lo","2015-02-02","2015-02-03",{"$f":"IF(Table14[[#This Row],[END date]]=Table14[[#This Row],[BEG date]],1,IF(Table14[[#This Row],[END date]]=Table14[[#This Row],[BEG date]]+1,2,IF(Table14[[#This Row],[END date]]=Table14[[#This Row],[BEG date]]+2,3,IF(Table14[[#This Row],[END date]]=Table14[[#This Row],[BEG date]]+3,4,IF(Table14[[#This Row],[END date]]=Table14[[#This Row],[BEG date]]+4,5,\">5\")))))","v":2},"Hand Delivered"]
["t-squared design","tom@tsquaredgraphicdesign.com",1000,null,null,null,"NA","NA","Y","NA","NA",null,null,null,"Y",{"$f":"IF(AND(TODAY()<Table14[[#This Row],[BEG date]]-14, Table14[[#This Row],[Submitted on]]=\"\"), \"\", IF(AND(Table14[[#This Row],[BEG date]]-14<=TODAY(), TODAY()<Table14[[#This Row],[BEG date]], Table14[[#This Row],[Submitted on]]=\"\"), Table14[[#This Row],[BEG date]], IF(Table14[[#This Row],[Submitted on]]=\"\", \"PROCESS ASAP\", IF(Table14[[#This Row],[Payment Made]]=\"\", \"SUBMITTED\", \"DONE\"))))","v":"PROCESS ASAP"},{"$f":"IF(OR(Table14[[#This Row],[Vendor]]=\"\", Table14[[#This Row],[Email]]=\"\",Table14[[#This Row],[Amount]]=\"\",Table14[[#This Row],[Sent]]=\"\",Table14[[#This Row],[Vendor '#]]=\"\",Table14[[#This Row],[Completed (Date)]]=\"\",Table14[[#This Row],[Sent2]]=\"\",Table14[[#This Row],[Received]]=\"\",Table14[[#This Row],[On File (Y/leave blank)]]=\"\",Table14[[#This Row],[Requested]]=\"\",Table14[[#This Row],[Received3]]=\"\",Table14[[#This Row],[On File (Y/leave blank)4]]=\"\",Table14[[#This Row],[Requested5]]=\"\",Table14[[#This Row],[Received2]]=\"\", Table14[[#This Row],[On File(Y/leave blank)]]=\"\"), \"STOP\", \"GO\")","v":"STOP"},"Andrew Taylor",null,null,null,null,"2015-04-01","Steve Ricks",23263132,6200,35761,"ICO 7950","Young American Inventions CD packaging and design per Steve Ricks.","2015-03-30","2015-03-30",{"$f":"IF(Table14[[#This Row],[END date]]=Table14[[#This Row],[BEG date]],1,IF(Table14[[#This Row],[END date]]=Table14[[#This Row],[BEG date]]+1,2,IF(Table14[[#This Row],[END date]]=Table14[[#This Row],[BEG date]]+2,3,IF(Table14[[#This Row],[END date]]=Table14[[#This Row],[BEG date]]+3,4,IF(Table14[[#This Row],[END date]]=Table14[[#This Row],[BEG date]]+4,5,\">5\")))))","v":1},"Mailed",null,"425-822-7524"]
["Benjamin Taylor","ajtaylor280@gmail.com",100,null,null,"NA","NA","NA","NA","NA","NA","NA","NA","NA","Y",{"$f":"IF(AND(TODAY()<Table14[[#This Row],[BEG date]]-14, Table14[[#This Row],[Submitted on]]=\"\"), \"\", IF(AND(Table14[[#This Row],[BEG date]]-14<=TODAY(), TODAY()<Table14[[#This Row],[BEG date]], Table14[[#This Row],[Submitted on]]=\"\"), Table14[[#This Row],[BEG date]], IF(Table14[[#This Row],[Submitted on]]=\"\", \"PROCESS ASAP\", IF(Table14[[#This Row],[Payment Made]]=\"\", \"SUBMITTED\", \"DONE\"))))","v":"PROCESS ASAP"},{"$f":"IF(OR(Table14[[#This Row],[Vendor]]=\"\", Table14[[#This Row],[Email]]=\"\",Table14[[#This Row],[Amount]]=\"\",Table14[[#This Row],[Sent]]=\"\",Table14[[#This Row],[Vendor '#]]=\"\",Table14[[#This Row],[Completed (Date)]]=\"\",Table14[[#This Row],[Sent2]]=\"\",Table14[[#This Row],[Received]]=\"\",Table14[[#This Row],[On File (Y/leave blank)]]=\"\",Table14[[#This Row],[Requested]]=\"\",Table14[[#This Row],[Received3]]=\"\",Table14[[#This Row],[On File (Y/leave blank)4]]=\"\",Table14[[#This Row],[Requested5]]=\"\",Table14[[#This Row],[Received2]]=\"\", Table14[[#This Row],[On File(Y/leave blank)]]=\"\"), \"STOP\", \"GO\")","v":"STOP"},"Catherine Cranney",null,null,null,null,"2015-04-02","Will Kimball",11263014,6100,35864,"DUE 8699","Payment for consortium // score and parts for Benjamin Taylor's trombone choir work, \"Funky Bone\" per Will Kimball","2015-02-20","2015-02-20",{"$f":"IF(Table14[[#This Row],[END date]]=Table14[[#This Row],[BEG date]],1,IF(Table14[[#This Row],[END date]]=Table14[[#This Row],[BEG date]]+1,2,IF(Table14[[#This Row],[END date]]=Table14[[#This Row],[BEG date]]+2,3,IF(Table14[[#This Row],[END date]]=Table14[[#This Row],[BEG date]]+3,4,IF(Table14[[#This Row],[END date]]=Table14[[#This Row],[BEG date]]+4,5,\">5\")))))","v":1},"Mailed",null,""]
["Steve Ostler","musicemployment@byu.edu",200,"NA",55555,null,"NA","NA","Y","NA","NA",null,null,null,"Y",{"$f":"IF(AND(TODAY()<Table14[[#This Row],[BEG date]]-14, Table14[[#This Row],[Submitted on]]=\"\"), \"\", IF(AND(Table14[[#This Row],[BEG date]]-14<=TODAY(), TODAY()<Table14[[#This Row],[BEG date]], Table14[[#This Row],[Submitted on]]=\"\"), Table14[[#This Row],[BEG date]], IF(Table14[[#This Row],[Submitted on]]=\"\", \"PROCESS ASAP\", IF(Table14[[#This Row],[Payment Made]]=\"\", \"SUBMITTED\", \"DONE\"))))","v":"PROCESS ASAP"},{"$f":"IF(OR(Table14[[#This Row],[Vendor]]=\"\", Table14[[#This Row],[Email]]=\"\",Table14[[#This Row],[Amount]]=\"\",Table14[[#This Row],[Sent]]=\"\",Table14[[#This Row],[Vendor '#]]=\"\",Table14[[#This Row],[Completed (Date)]]=\"\",Table14[[#This Row],[Sent2]]=\"\",Table14[[#This Row],[Received]]=\"\",Table14[[#This Row],[On File (Y/leave blank)]]=\"\",Table14[[#This Row],[Requested]]=\"\",Table14[[#This Row],[Received3]]=\"\",Table14[[#This Row],[On File (Y/leave blank)4]]=\"\",Table14[[#This Row],[Requested5]]=\"\",Table14[[#This Row],[Received2]]=\"\", Table14[[#This Row],[On File(Y/leave blank)]]=\"\"), \"STOP\", \"GO\")","v":"STOP"},"Andrew T",null,null,null,null,"2015-04-03","Neil Thornock",20263371,6200,35702,"ICO 7951","Masterclass per neil","2015-04-04","2015-04-04",{"$f":"IF(Table14[[#This Row],[END date]]=Table14[[#This Row],[BEG date]],1,IF(Table14[[#This Row],[END date]]=Table14[[#This Row],[BEG date]]+1,2,IF(Table14[[#This Row],[END date]]=Table14[[#This Row],[BEG date]]+2,3,IF(Table14[[#This Row],[END date]]=Table14[[#This Row],[BEG date]]+3,4,IF(Table14[[#This Row],[END date]]=Table14[[#This Row],[BEG date]]+4,5,\">5\")))))","v":1},"Mailed",null,"123-123-1231"]
[null,null,null,null,null,null,null,null,null,null,null,null,null,null,null,{"$f":"IF(AND(TODAY()<Table14[[#This Row],[BEG date]]-14, Table14[[#This Row],[Submitted on]]=\"\"), \"\", IF(AND(Table14[[#This Row],[BEG date]]-14<=TODAY(), TODAY()<Table14[[#This Row],[BEG date]], Table14[[#This Row],[Submitted on]]=\"\"), Table14[[#This Row],[BEG date]], IF(Table14[[#This Row],[Submitted on]]=\"\", \"PROCESS ASAP\", IF(Table14[[#This Row],[Payment Made]]=\"\", \"SUBMITTED\", \"DONE\"))))","v":"PROCESS ASAP"},{"$f":"IF(OR(Table14[[#This Row],[Vendor]]=\"\", Table14[[#This Row],[Email]]=\"\",Table14[[#This Row],[Amount]]=\"\",Table14[[#This Row],[Sent]]=\"\",Table14[[#This Row],[Vendor '#]]=\"\",Table14[[#This Row],[Completed (Date)]]=\"\",Table14[[#This Row],[Sent2]]=\"\",Table14[[#This Row],[Received]]=\"\",Table14[[#This Row],[On File (Y/leave blank)]]=\"\",Table14[[#This Row],[Requested]]=\"\",Table14[[#This Row],[Received3]]=\"\",Table14[[#This Row],[On File (Y/leave blank)4]]=\"\",Table14[[#This Row],[Requested5]]=\"\",Table14[[#This Row],[Received2]]=\"\", Table14[[#This Row],[On File(Y/leave blank)]]=\"\"), \"STOP\", \"GO\")","v":"STOP"},null,null,null,null,null,null,null,null,null,null,null,null,null,null,{"$f":"IF(Table14[[#This Row],[END date]]=Table14[[#This Row],[BEG date]],1,IF(Table14[[#This Row],[END date]]=Table14[[#This Row],[BEG date]]+1,2,IF(Table14[[#This Row],[END date]]=Table14[[#This Row],[BEG date]]+2,3,IF(Table14[[#This Row],[END date]]=Table14[[#This Row],[BEG date]]+3,4,IF(Table14[[#This Row],[END date]]=Table14[[#This Row],[BEG date]]+4,5,\">5\")))))","v":1}]
[null,null,null,null,null,null,null,null,null,null,null,null,null,null,null,{"$f":"IF(AND(TODAY()<Table14[[#This Row],[BEG date]]-14, Table14[[#This Row],[Submitted on]]=\"\"), \"\", IF(AND(Table14[[#This Row],[BEG date]]-14<=TODAY(), TODAY()<Table14[[#This Row],[BEG date]], Table14[[#This Row],[Submitted on]]=\"\"), Table14[[#This Row],[BEG date]], IF(Table14[[#This Row],[Submitted on]]=\"\", \"PROCESS ASAP\", IF(Table14[[#This Row],[Payment Made]]=\"\", \"SUBMITTED\", \"DONE\"))))","v":"PROCESS ASAP"},{"$f":"IF(OR(Table14[[#This Row],[Vendor]]=\"\", Table14[[#This Row],[Email]]=\"\",Table14[[#This Row],[Amount]]=\"\",Table14[[#This Row],[Sent]]=\"\",Table14[[#This Row],[Vendor '#]]=\"\",Table14[[#This Row],[Completed (Date)]]=\"\",Table14[[#This Row],[Sent2]]=\"\",Table14[[#This Row],[Received]]=\"\",Table14[[#This Row],[On File (Y/leave blank)]]=\"\",Table14[[#This Row],[Requested]]=\"\",Table14[[#This Row],[Received3]]=\"\",Table14[[#This Row],[On File (Y/leave blank)4]]=\"\",Table14[[#This Row],[Requested5]]=\"\",Table14[[#This Row],[Received2]]=\"\", Table14[[#This Row],[On File(Y/leave blank)]]=\"\"), \"STOP\", \"GO\")","v":"STOP"},null,null,null,null,null,null,null,null,null,null,null,null,null,null,{"$f":"IF(Table14[[#This Row],[END date]]=Table14[[#This Row],[BEG date]],1,IF(Table14[[#This Row],[END date]]=Table14[[#This Row],[BEG date]]+1,2,IF(Table14[[#This Row],[END date]]=Table14[[#This Row],[BEG date]]+2,3,IF(Table14[[#This Row],[END date]]=Table14[[#This Row],[BEG date]]+3,4,IF(Table14[[#This Row],[END date]]=Table14[[#This Row],[BEG date]]+4,5,\">5\")))))","v":1}]
[null,null,null,null,null,null,null,null,null,null,null,null,null,null,null,{"$f":"IF(AND(TODAY()<Table14[[#This Row],[BEG date]]-14, Table14[[#This Row],[Submitted on]]=\"\"), \"\", IF(AND(Table14[[#This Row],[BEG date]]-14<=TODAY(), TODAY()<Table14[[#This Row],[BEG date]], Table14[[#This Row],[Submitted on]]=\"\"), Table14[[#This Row],[BEG date]], IF(Table14[[#This Row],[Submitted on]]=\"\", \"PROCESS ASAP\", IF(Table14[[#This Row],[Payment Made]]=\"\", \"SUBMITTED\", \"DONE\"))))","v":"PROCESS ASAP"},{"$f":"IF(OR(Table14[[#This Row],[Vendor]]=\"\", Table14[[#This Row],[Email]]=\"\",Table14[[#This Row],[Amount]]=\"\",Table14[[#This Row],[Sent]]=\"\",Table14[[#This Row],[Vendor '#]]=\"\",Table14[[#This Row],[Completed (Date)]]=\"\",Table14[[#This Row],[Sent2]]=\"\",Table14[[#This Row],[Received]]=\"\",Table14[[#This Row],[On File (Y/leave blank)]]=\"\",Table14[[#This Row],[Requested]]=\"\",Table14[[#This Row],[Received3]]=\"\",Table14[[#This Row],[On File (Y/leave blank)4]]=\"\",Table14[[#This Row],[Requested5]]=\"\",Table14[[#This Row],[Received2]]=\"\", Table14[[#This Row],[On File(Y/leave blank)]]=\"\"), \"STOP\", \"GO\")","v":"STOP"},null,null,null,null,null,null,null,null,null,null,null,null,null,null,{"$f":"IF(Table14[[#This Row],[END date]]=Table14[[#This Row],[BEG date]],1,IF(Table14[[#This Row],[END date]]=Table14[[#This Row],[BEG date]]+1,2,IF(Table14[[#This Row],[END date]]=Table14[[#This Row],[BEG date]]+2,3,IF(Table14[[#This Row],[END date]]=Table14[[#This Row],[BEG date]]+3,4,IF(Table14[[#This Row],[END date]]=Table14[[#This Row],[BEG date]]+4,5,\">5\")))))","v":1}]
[null,null,null,null,null,null,null,null,null,null,null,null,null,null,null,{"$f":"IF(AND(TODAY()<Table14[[#This Row],[BEG date]]-14, Table14[[#This Row],[Submitted on]]=\"\"), \"\", IF(AND(Table14[[#This Row],[BEG date]]-14<=TODAY(), TODAY()<Table14[[#This Row],[BEG date]], Table14[[#This Row],[Submitted on]]=\"\"), Table14[[#This Row],[BEG date]], IF(Table14[[#This Row],[Submitted on]]=\"\", \"PROCESS ASAP\", IF(Table14[[#This Row],[Payment Made]]=\"\", \"SUBMITTED\", \"DONE\"))))","v":"PROCESS ASAP"},{"$f":"IF(OR(Table14[[#This Row],[Vendor]]=\"\", Table14[[#This Row],[Email]]=\"\",Table14[[#This Row],[Amount]]=\"\",Table14[[#This Row],[Sent]]=\"\",Table14[[#This Row],[Vendor '#]]=\"\",Table14[[#This Row],[Completed (Date)]]=\"\",Table14[[#This Row],[Sent2]]=\"\",Table14[[#This Row],[Received]]=\"\",Table14[[#This Row],[On File (Y/leave blank)]]=\"\",Table14[[#This Row],[Requested]]=\"\",Table14[[#This Row],[Received3]]=\"\",Table14[[#This Row],[On File (Y/leave blank)4]]=\"\",Table14[[#This Row],[Requested5]]=\"\",Table14[[#This Row],[Received2]]=\"\", Table14[[#This Row],[On File(Y/leave blank)]]=\"\"), \"STOP\", \"GO\")","v":"STOP"},null,null,null,null,null,null,null,null,null,null,null,null,null,null,{"$f":"IF(Table14[[#This Row],[END date]]=Table14[[#This Row],[BEG date]],1,IF(Table14[[#This Row],[END date]]=Table14[[#This Row],[BEG date]]+1,2,IF(Table14[[#This Row],[END date]]=Table14[[#This Row],[BEG date]]+2,3,IF(Table14[[#This Row],[END date]]=Table14[[#This Row],[BEG date]]+3,4,IF(Table14[[#This Row],[END date]]=Table14[[#This Row],[BEG date]]+4,5,\">5\")))))","v":1}]
[null,null,null,null,null,null,null,null,null,null,null,null,null,null,null,{"$f":"IF(AND(TODAY()<Table14[[#This Row],[BEG date]]-14, Table14[[#This Row],[Submitted on]]=\"\"), \"\", IF(AND(Table14[[#This Row],[BEG date]]-14<=TODAY(), TODAY()<Table14[[#This Row],[BEG date]], Table14[[#This Row],[Submitted on]]=\"\"), Table14[[#This Row],[BEG date]], IF(Table14[[#This Row],[Submitted on]]=\"\", \"PROCESS ASAP\", IF(Table14[[#This Row],[Payment Made]]=\"\", \"SUBMITTED\", \"DONE\"))))","v":"PROCESS ASAP"},{"$f":"IF(OR(Table14[[#This Row],[Vendor]]=\"\", Table14[[#This Row],[Email]]=\"\",Table14[[#This Row],[Amount]]=\"\",Table14[[#This Row],[Sent]]=\"\",Table14[[#This Row],[Vendor '#]]=\"\",Table14[[#This Row],[Completed (Date)]]=\"\",Table14[[#This Row],[Sent2]]=\"\",Table14[[#This Row],[Received]]=\"\",Table14[[#This Row],[On File (Y/leave blank)]]=\"\",Table14[[#This Row],[Requested]]=\"\",Table14[[#This Row],[Received3]]=\"\",Table14[[#This Row],[On File (Y/leave blank)4]]=\"\",Table14[[#This Row],[Requested5]]=\"\",Table14[[#This Row],[Received2]]=\"\", Table14[[#This Row],[On File(Y/leave blank)]]=\"\"), \"STOP\", \"GO\")","v":"STOP"},null,null,null,null,null,null,null,null,null,null,null,null,null,null,{"$f":"IF(Table14[[#This Row],[END date]]=Table14[[#This Row],[BEG date]],1,IF(Table14[[#This Row],[END date]]=Table14[[#This Row],[BEG date]]+1,2,IF(Table14[[#This Row],[END date]]=Table14[[#This Row],[BEG date]]+2,3,IF(Table14[[#This Row],[END date]]=Table14[[#This Row],[BEG date]]+3,4,IF(Table14[[#This Row],[END date]]=Table14[[#This Row],[BEG date]]+4,5,\">5\")))))","v":1}]
[null,null,null,null,null,null,null,null,null,null,null,null,null,null,null,{"$f":"IF(AND(TODAY()<Table14[[#This Row],[BEG date]]-14, Table14[[#This Row],[Submitted on]]=\"\"), \"\", IF(AND(Table14[[#This Row],[BEG date]]-14<=TODAY(), TODAY()<Table14[[#This Row],[BEG date]], Table14[[#This Row],[Submitted on]]=\"\"), Table14[[#This Row],[BEG date]], IF(Table14[[#This Row],[Submitted on]]=\"\", \"PROCESS ASAP\", IF(Table14[[#This Row],[Payment Made]]=\"\", \"SUBMITTED\", \"DONE\"))))","v":"PROCESS ASAP"},{"$f":"IF(OR(Table14[[#This Row],[Vendor]]=\"\", Table14[[#This Row],[Email]]=\"\",Table14[[#This Row],[Amount]]=\"\",Table14[[#This Row],[Sent]]=\"\",Table14[[#This Row],[Vendor '#]]=\"\",Table14[[#This Row],[Completed (Date)]]=\"\",Table14[[#This Row],[Sent2]]=\"\",Table14[[#This Row],[Received]]=\"\",Table14[[#This Row],[On File (Y/leave blank)]]=\"\",Table14[[#This Row],[Requested]]=\"\",Table14[[#This Row],[Received3]]=\"\",Table14[[#This Row],[On File (Y/leave blank)4]]=\"\",Table14[[#This Row],[Requested5]]=\"\",Table14[[#This Row],[Received2]]=\"\", Table14[[#This Row],[On File(Y/leave blank)]]=\"\"), \"STOP\", \"GO\")","v":"STOP"},null,null,null,null,null,null,null,null,null,null,null,null,null,null,{"$f":"IF(Table14[[#This Row],[END date]]=Table14[[#This Row],[BEG date]],1,IF(Table14[[#This Row],[END date]]=Table14[[#This Row],[BEG date]]+1,2,IF(Table14[[#This Row],[END date]]=Table14[[#This Row],[BEG date]]+2,3,IF(Table14[[#This Row],[END date]]=Table14[[#This Row],[BEG date]]+3,4,IF(Table14[[#This Row],[END date]]=Table14[[#This Row],[BEG date]]+4,5,\">5\")))))","v":1}]
[null,null,null,null,null,null,null,null,null,null,null,null,null,null,null,{"$f":"IF(AND(TODAY()<Table14[[#This Row],[BEG date]]-14, Table14[[#This Row],[Submitted on]]=\"\"), \"\", IF(AND(Table14[[#This Row],[BEG date]]-14<=TODAY(), TODAY()<Table14[[#This Row],[BEG date]], Table14[[#This Row],[Submitted on]]=\"\"), Table14[[#This Row],[BEG date]], IF(Table14[[#This Row],[Submitted on]]=\"\", \"PROCESS ASAP\", IF(Table14[[#This Row],[Payment Made]]=\"\", \"SUBMITTED\", \"DONE\"))))","v":"PROCESS ASAP"},{"$f":"IF(OR(Table14[[#This Row],[Vendor]]=\"\", Table14[[#This Row],[Email]]=\"\",Table14[[#This Row],[Amount]]=\"\",Table14[[#This Row],[Sent]]=\"\",Table14[[#This Row],[Vendor '#]]=\"\",Table14[[#This Row],[Completed (Date)]]=\"\",Table14[[#This Row],[Sent2]]=\"\",Table14[[#This Row],[Received]]=\"\",Table14[[#This Row],[On File (Y/leave blank)]]=\"\",Table14[[#This Row],[Requested]]=\"\",Table14[[#This Row],[Received3]]=\"\",Table14[[#This Row],[On File (Y/leave blank)4]]=\"\",Table14[[#This Row],[Requested5]]=\"\",Table14[[#This Row],[Received2]]=\"\", Table14[[#This Row],[On File(Y/leave blank)]]=\"\"), \"STOP\", \"GO\")","v":"STOP"},null,null,null,null,null,null,null,null,null,null,null,null,null,null,{"$f":"IF(Table14[[#This Row],[END date]]=Table14[[#This Row],[BEG date]],1,IF(Table14[[#This Row],[END date]]=Table14[[#This Row],[BEG date]]+1,2,IF(Table14[[#This Row],[END date]]=Table14[[#This Row],[BEG date]]+2,3,IF(Table14[[#This Row],[END date]]=Table14[[#This Row],[BEG date]]+3,4,IF(Table14[[#This Row],[END date]]=Table14[[#This Row],[BEG date]]+4,5,\">5\")))))","v":1}]
[null,null,null,null,null,null,null,null,null,null,null,null,null,null,null,{"$f":"IF(AND(TODAY()<Table14[[#This Row],[BEG date]]-14, Table14[[#This Row],[Submitted on]]=\"\"), \"\", IF(AND(Table14[[#This Row],[BEG date]]-14<=TODAY(), TODAY()<Table14[[#This Row],[BEG date]], Table14[[#This Row],[Submitted on]]=\"\"), Table14[[#This Row],[BEG date]], IF(Table14[[#This Row],[Submitted on]]=\"\", \"PROCESS ASAP\", IF(Table14[[#This Row],[Payment Made]]=\"\", \"SUBMITTED\", \"DONE\"))))","v":"PROCESS ASAP"},{"$f":"IF(OR(Table14[[#This Row],[Vendor]]=\"\", Table14[[#This Row],[Email]]=\"\",Table14[[#This Row],[Amount]]=\"\",Table14[[#This Row],[Sent]]=\"\",Table14[[#This Row],[Vendor '#]]=\"\",Table14[[#This Row],[Completed (Date)]]=\"\",Table14[[#This Row],[Sent2]]=\"\",Table14[[#This Row],[Received]]=\"\",Table14[[#This Row],[On File (Y/leave blank)]]=\"\",Table14[[#This Row],[Requested]]=\"\",Table14[[#This Row],[Received3]]=\"\",Table14[[#This Row],[On File (Y/leave blank)4]]=\"\",Table14[[#This Row],[Requested5]]=\"\",Table14[[#This Row],[Received2]]=\"\", Table14[[#This Row],[On File(Y/leave blank)]]=\"\"), \"STOP\", \"GO\")","v":"STOP"},null,null,null,null,null,null,null,null,null,null,null,null,null,null,{"$f":"IF(Table14[[#This Row],[END date]]=Table14[[#This Row],[BEG date]],1,IF(Table14[[#This Row],[END date]]=Table14[[#This Row],[BEG date]]+1,2,IF(Table14[[#This Row],[END date]]=Table14[[#This Row],[BEG date]]+2,3,IF(Table14[[#This Row],[END date]]=Table14[[#This Row],[BEG date]]+3,4,IF(Table14[[#This Row],[END date]]=Table14[[#This Row],[BEG date]]+4,5,\">5\")))))","v":1}]
[null,null,null,null,null,null,null,null,null,null,null,null,null,null,null,{"$f":"IF(AND(TODAY()<Table14[[#This Row],[BEG date]]-14, Table14[[#This Row],[Submitted on]]=\"\"), \"\", IF(AND(Table14[[#This Row],[BEG date]]-14<=TODAY(), TODAY()<Table14[[#This Row],[BEG date]], Table14[[#This Row],[Submitted on]]=\"\"), Table14[[#This Row],[BEG date]], IF(Table14[[#This Row],[Submitted on]]=\"\", \"PROCESS ASAP\", IF(Table14[[#This Row],[Payment Made]]=\"\", \"SUBMITTED\", \"DONE\"))))","v":"PROCESS ASAP"},{"$f":"IF(OR(Table14[[#This Row],[Vendor]]=\"\", Table14[[#This Row],[Email]]=\"\",Table14[[#This Row],[Amount]]=\"\",Table14[[#This Row],[Sent]]=\"\",Table14[[#This Row],[Vendor '#]]=\"\",Table14[[#This Row],[Completed (Date)]]=\"\",Table14[[#This Row],[Sent2]]=\"\",Table14[[#This Row],[Received]]=\"\",Table14[[#This Row],[On File (Y/leave blank)]]=\"\",Table14[[#This Row],[Requested]]=\"\",Table14[[#This Row],[Received3]]=\"\",Table14[[#This Row],[On File (Y/leave blank)4]]=\"\",Table14[[#This Row],[Requested5]]=\"\",Table14[[#This Row],[Received2]]=\"\", Table14[[#This Row],[On File(Y/leave blank)]]=\"\"), \"STOP\", \"GO\")","v":"STOP"},null,null,null,null,null,null,null,null,null,null,null,null,null,null,{"$f":"IF(Table14[[#This Row],[END date]]=Table14[[#This Row],[BEG date]],1,IF(Table14[[#This Row],[END date]]=Table14[[#This Row],[BEG date]]+1,2,IF(Table14[[#This Row],[END date]]=Table14[[#This Row],[BEG date]]+2,3,IF(Table14[[#This Row],[END date]]=Table14[[#This Row],[BEG date]]+3,4,IF(Table14[[#This Row],[END date]]=Table14[[#This Row],[BEG date]]+4,5,\">5\")))))","v":1}]
[null,null,null,null,null,null,null,null,null,null,null,null,null,null,null,{"$f":"IF(AND(TODAY()<Table14[[#This Row],[BEG date]]-14, Table14[[#This Row],[Submitted on]]=\"\"), \"\", IF(AND(Table14[[#This Row],[BEG date]]-14<=TODAY(), TODAY()<Table14[[#This Row],[BEG date]], Table14[[#This Row],[Submitted on]]=\"\"), Table14[[#This Row],[BEG date]], IF(Table14[[#This Row],[Submitted on]]=\"\", \"PROCESS ASAP\", IF(Table14[[#This Row],[Payment Made]]=\"\", \"SUBMITTED\", \"DONE\"))))","v":"PROCESS ASAP"},{"$f":"IF(OR(Table14[[#This Row],[Vendor]]=\"\", Table14[[#This Row],[Email]]=\"\",Table14[[#This Row],[Amount]]=\"\",Table14[[#This Row],[Sent]]=\"\",Table14[[#This Row],[Vendor '#]]=\"\",Table14[[#This Row],[Completed (Date)]]=\"\",Table14[[#This Row],[Sent2]]=\"\",Table14[[#This Row],[Received]]=\"\",Table14[[#This Row],[On File (Y/leave blank)]]=\"\",Table14[[#This Row],[Requested]]=\"\",Table14[[#This Row],[Received3]]=\"\",Table14[[#This Row],[On File (Y/leave blank)4]]=\"\",Table14[[#This Row],[Requested5]]=\"\",Table14[[#This Row],[Received2]]=\"\", Table14[[#This Row],[On File(Y/leave blank)]]=\"\"), \"STOP\", \"GO\")","v":"STOP"},null,null,null,null,null,null,null,null,null,null,null,null,null,null,{"$f":"IF(Table14[[#This Row],[END date]]=Table14[[#This Row],[BEG date]],1,IF(Table14[[#This Row],[END date]]=Table14[[#This Row],[BEG date]]+1,2,IF(Table14[[#This Row],[END date]]=Table14[[#This Row],[BEG date]]+2,3,IF(Table14[[#This Row],[END date]]=Table14[[#This Row],[BEG date]]+3,4,IF(Table14[[#This Row],[END date]]=Table14[[#This Row],[BEG date]]+4,5,\">5\")))))","v":1}]
[null,null,null,null,null,null,null,null,null,null,null,null,null,null,null,{"$f":"IF(AND(TODAY()<Table14[[#This Row],[BEG date]]-14, Table14[[#This Row],[Submitted on]]=\"\"), \"\", IF(AND(Table14[[#This Row],[BEG date]]-14<=TODAY(), TODAY()<Table14[[#This Row],[BEG date]], Table14[[#This Row],[Submitted on]]=\"\"), Table14[[#This Row],[BEG date]], IF(Table14[[#This Row],[Submitted on]]=\"\", \"PROCESS ASAP\", IF(Table14[[#This Row],[Payment Made]]=\"\", \"SUBMITTED\", \"DONE\"))))","v":"PROCESS ASAP"},{"$f":"IF(OR(Table14[[#This Row],[Vendor]]=\"\", Table14[[#This Row],[Email]]=\"\",Table14[[#This Row],[Amount]]=\"\",Table14[[#This Row],[Sent]]=\"\",Table14[[#This Row],[Vendor '#]]=\"\",Table14[[#This Row],[Completed (Date)]]=\"\",Table14[[#This Row],[Sent2]]=\"\",Table14[[#This Row],[Received]]=\"\",Table14[[#This Row],[On File (Y/leave blank)]]=\"\",Table14[[#This Row],[Requested]]=\"\",Table14[[#This Row],[Received3]]=\"\",Table14[[#This Row],[On File (Y/leave blank)4]]=\"\",Table14[[#This Row],[Requested5]]=\"\",Table14[[#This Row],[Received2]]=\"\", Table14[[#This Row],[On File(Y/leave blank)]]=\"\"), \"STOP\", \"GO\")","v":"STOP"},null,null,null,null,null,null,null,null,null,null,null,null,null,null,{"$f":"IF(Table14[[#This Row],[END date]]=Table14[[#This Row],[BEG date]],1,IF(Table14[[#This Row],[END date]]=Table14[[#This Row],[BEG date]]+1,2,IF(Table14[[#This Row],[END date]]=Table14[[#This Row],[BEG date]]+2,3,IF(Table14[[#This Row],[END date]]=Table14[[#This Row],[BEG date]]+3,4,IF(Table14[[#This Row],[END date]]=Table14[[#This Row],[BEG date]]+4,5,\">5\")))))","v":1}]
[null,null,null,null,null,null,null,null,null,null,null,null,null,null,null,{"$f":"IF(AND(TODAY()<Table14[[#This Row],[BEG date]]-14, Table14[[#This Row],[Submitted on]]=\"\"), \"\", IF(AND(Table14[[#This Row],[BEG date]]-14<=TODAY(), TODAY()<Table14[[#This Row],[BEG date]], Table14[[#This Row],[Submitted on]]=\"\"), Table14[[#This Row],[BEG date]], IF(Table14[[#This Row],[Submitted on]]=\"\", \"PROCESS ASAP\", IF(Table14[[#This Row],[Payment Made]]=\"\", \"SUBMITTED\", \"DONE\"))))","v":"PROCESS ASAP"},{"$f":"IF(OR(Table14[[#This Row],[Vendor]]=\"\", Table14[[#This Row],[Email]]=\"\",Table14[[#This Row],[Amount]]=\"\",Table14[[#This Row],[Sent]]=\"\",Table14[[#This Row],[Vendor '#]]=\"\",Table14[[#This Row],[Completed (Date)]]=\"\",Table14[[#This Row],[Sent2]]=\"\",Table14[[#This Row],[Received]]=\"\",Table14[[#This Row],[On File (Y/leave blank)]]=\"\",Table14[[#This Row],[Requested]]=\"\",Table14[[#This Row],[Received3]]=\"\",Table14[[#This Row],[On File (Y/leave blank)4]]=\"\",Table14[[#This Row],[Requested5]]=\"\",Table14[[#This Row],[Received2]]=\"\", Table14[[#This Row],[On File(Y/leave blank)]]=\"\"), \"STOP\", \"GO\")","v":"STOP"},null,null,null,null,null,null,null,null,null,null,null,null,null,null,{"$f":"IF(Table14[[#This Row],[END date]]=Table14[[#This Row],[BEG date]],1,IF(Table14[[#This Row],[END date]]=Table14[[#This Row],[BEG date]]+1,2,IF(Table14[[#This Row],[END date]]=Table14[[#This Row],[BEG date]]+2,3,IF(Table14[[#This Row],[END date]]=Table14[[#This Row],[BEG date]]+3,4,IF(Table14[[#This Row],[END date]]=Table14[[#This Row],[BEG date]]+4,5,\">5\")))))","v":1}]
[null,null,null,null,null,null,null,null,null,null,null,null,null,null,null,{"$f":"IF(AND(TODAY()<Table14[[#This Row],[BEG date]]-14, Table14[[#This Row],[Submitted on]]=\"\"), \"\", IF(AND(Table14[[#This Row],[BEG date]]-14<=TODAY(), TODAY()<Table14[[#This Row],[BEG date]], Table14[[#This Row],[Submitted on]]=\"\"), Table14[[#This Row],[BEG date]], IF(Table14[[#This Row],[Submitted on]]=\"\", \"PROCESS ASAP\", IF(Table14[[#This Row],[Payment Made]]=\"\", \"SUBMITTED\", \"DONE\"))))","v":"PROCESS ASAP"},{"$f":"IF(OR(Table14[[#This Row],[Vendor]]=\"\", Table14[[#This Row],[Email]]=\"\",Table14[[#This Row],[Amount]]=\"\",Table14[[#This Row],[Sent]]=\"\",Table14[[#This Row],[Vendor '#]]=\"\",Table14[[#This Row],[Completed (Date)]]=\"\",Table14[[#This Row],[Sent2]]=\"\",Table14[[#This Row],[Received]]=\"\",Table14[[#This Row],[On File (Y/leave blank)]]=\"\",Table14[[#This Row],[Requested]]=\"\",Table14[[#This Row],[Received3]]=\"\",Table14[[#This Row],[On File (Y/leave blank)4]]=\"\",Table14[[#This Row],[Requested5]]=\"\",Table14[[#This Row],[Received2]]=\"\", Table14[[#This Row],[On File(Y/leave blank)]]=\"\"), \"STOP\", \"GO\")","v":"STOP"},null,null,null,null,null,null,null,null,null,null,null,null,null,null,{"$f":"IF(Table14[[#This Row],[END date]]=Table14[[#This Row],[BEG date]],1,IF(Table14[[#This Row],[END date]]=Table14[[#This Row],[BEG date]]+1,2,IF(Table14[[#This Row],[END date]]=Table14[[#This Row],[BEG date]]+2,3,IF(Table14[[#This Row],[END date]]=Table14[[#This Row],[BEG date]]+3,4,IF(Table14[[#This Row],[END date]]=Table14[[#This Row],[BEG date]]+4,5,\">5\")))))","v":1}]
[null,null,null,null,null,null,null,null,null,null,null,null,null,null,null,{"$f":"IF(AND(TODAY()<Table14[[#This Row],[BEG date]]-14, Table14[[#This Row],[Submitted on]]=\"\"), \"\", IF(AND(Table14[[#This Row],[BEG date]]-14<=TODAY(), TODAY()<Table14[[#This Row],[BEG date]], Table14[[#This Row],[Submitted on]]=\"\"), Table14[[#This Row],[BEG date]], IF(Table14[[#This Row],[Submitted on]]=\"\", \"PROCESS ASAP\", IF(Table14[[#This Row],[Payment Made]]=\"\", \"SUBMITTED\", \"DONE\"))))","v":"PROCESS ASAP"},{"$f":"IF(OR(Table14[[#This Row],[Vendor]]=\"\", Table14[[#This Row],[Email]]=\"\",Table14[[#This Row],[Amount]]=\"\",Table14[[#This Row],[Sent]]=\"\",Table14[[#This Row],[Vendor '#]]=\"\",Table14[[#This Row],[Completed (Date)]]=\"\",Table14[[#This Row],[Sent2]]=\"\",Table14[[#This Row],[Received]]=\"\",Table14[[#This Row],[On File (Y/leave blank)]]=\"\",Table14[[#This Row],[Requested]]=\"\",Table14[[#This Row],[Received3]]=\"\",Table14[[#This Row],[On File (Y/leave blank)4]]=\"\",Table14[[#This Row],[Requested5]]=\"\",Table14[[#This Row],[Received2]]=\"\", Table14[[#This Row],[On File(Y/leave blank)]]=\"\"), \"STOP\", \"GO\")","v":"STOP"},null,null,null,null,null,null,null,null,null,null,null,null,null,null,{"$f":"IF(Table14[[#This Row],[END date]]=Table14[[#This Row],[BEG date]],1,IF(Table14[[#This Row],[END date]]=Table14[[#This Row],[BEG date]]+1,2,IF(Table14[[#This Row],[END date]]=Table14[[#This Row],[BEG date]]+2,3,IF(Table14[[#This Row],[END date]]=Table14[[#This Row],[BEG date]]+3,4,IF(Table14[[#This Row],[END date]]=Table14[[#This Row],[BEG date]]+4,5,\">5\")))))","v":1}]
[null,null,null,null,null,null,null,null,null,null,null,null,null,null,null,{"$f":"IF(AND(TODAY()<Table14[[#This Row],[BEG date]]-14, Table14[[#This Row],[Submitted on]]=\"\"), \"\", IF(AND(Table14[[#This Row],[BEG date]]-14<=TODAY(), TODAY()<Table14[[#This Row],[BEG date]], Table14[[#This Row],[Submitted on]]=\"\"), Table14[[#This Row],[BEG date]], IF(Table14[[#This Row],[Submitted on]]=\"\", \"PROCESS ASAP\", IF(Table14[[#This Row],[Payment Made]]=\"\", \"SUBMITTED\", \"DONE\"))))","v":"PROCESS ASAP"},{"$f":"IF(OR(Table14[[#This Row],[Vendor]]=\"\", Table14[[#This Row],[Email]]=\"\",Table14[[#This Row],[Amount]]=\"\",Table14[[#This Row],[Sent]]=\"\",Table14[[#This Row],[Vendor '#]]=\"\",Table14[[#This Row],[Completed (Date)]]=\"\",Table14[[#This Row],[Sent2]]=\"\",Table14[[#This Row],[Received]]=\"\",Table14[[#This Row],[On File (Y/leave blank)]]=\"\",Table14[[#This Row],[Requested]]=\"\",Table14[[#This Row],[Received3]]=\"\",Table14[[#This Row],[On File (Y/leave blank)4]]=\"\",Table14[[#This Row],[Requested5]]=\"\",Table14[[#This Row],[Received2]]=\"\", Table14[[#This Row],[On File(Y/leave blank)]]=\"\"), \"STOP\", \"GO\")","v":"STOP"},null,null,null,null,null,null,null,null,null,null,null,null,null,null,{"$f":"IF(Table14[[#This Row],[END date]]=Table14[[#This Row],[BEG date]],1,IF(Table14[[#This Row],[END date]]=Table14[[#This Row],[BEG date]]+1,2,IF(Table14[[#This Row],[END date]]=Table14[[#This Row],[BEG date]]+2,3,IF(Table14[[#This Row],[END date]]=Table14[[#This Row],[BEG date]]+3,4,IF(Table14[[#This Row],[END date]]=Table14[[#This Row],[BEG date]]+4,5,\">5\")))))","v":1}]
[null,null,null,null,null,null,null,null,null,null,null,null,null,null,null,{"$f":"IF(AND(TODAY()<Table14[[#This Row],[BEG date]]-14, Table14[[#This Row],[Submitted on]]=\"\"), \"\", IF(AND(Table14[[#This Row],[BEG date]]-14<=TODAY(), TODAY()<Table14[[#This Row],[BEG date]], Table14[[#This Row],[Submitted on]]=\"\"), Table14[[#This Row],[BEG date]], IF(Table14[[#This Row],[Submitted on]]=\"\", \"PROCESS ASAP\", IF(Table14[[#This Row],[Payment Made]]=\"\", \"SUBMITTED\", \"DONE\"))))","v":"PROCESS ASAP"},{"$f":"IF(OR(Table14[[#This Row],[Vendor]]=\"\", Table14[[#This Row],[Email]]=\"\",Table14[[#This Row],[Amount]]=\"\",Table14[[#This Row],[Sent]]=\"\",Table14[[#This Row],[Vendor '#]]=\"\",Table14[[#This Row],[Completed (Date)]]=\"\",Table14[[#This Row],[Sent2]]=\"\",Table14[[#This Row],[Received]]=\"\",Table14[[#This Row],[On File (Y/leave blank)]]=\"\",Table14[[#This Row],[Requested]]=\"\",Table14[[#This Row],[Received3]]=\"\",Table14[[#This Row],[On File (Y/leave blank)4]]=\"\",Table14[[#This Row],[Requested5]]=\"\",Table14[[#This Row],[Received2]]=\"\", Table14[[#This Row],[On File(Y/leave blank)]]=\"\"), \"STOP\", \"GO\")","v":"STOP"},null,null,null,null,null,null,null,null,null,null,null,null,null,null,{"$f":"IF(Table14[[#This Row],[END date]]=Table14[[#This Row],[BEG date]],1,IF(Table14[[#This Row],[END date]]=Table14[[#This Row],[BEG date]]+1,2,IF(Table14[[#This Row],[END date]]=Table14[[#This Row],[BEG date]]+2,3,IF(Table14[[#This Row],[END date]]=Table14[[#This Row],[BEG date]]+3,4,IF(Table14[[#This Row],[END date]]=Table14[[#This Row],[BEG date]]+4,5,\">5\")))))","v":1}]
[null,null,null,null,null,null,null,null,null,null,null,null,null,null,null,{"$f":"IF(AND(TODAY()<Table14[[#This Row],[BEG date]]-14, Table14[[#This Row],[Submitted on]]=\"\"), \"\", IF(AND(Table14[[#This Row],[BEG date]]-14<=TODAY(), TODAY()<Table14[[#This Row],[BEG date]], Table14[[#This Row],[Submitted on]]=\"\"), Table14[[#This Row],[BEG date]], IF(Table14[[#This Row],[Submitted on]]=\"\", \"PROCESS ASAP\", IF(Table14[[#This Row],[Payment Made]]=\"\", \"SUBMITTED\", \"DONE\"))))","v":"PROCESS ASAP"},{"$f":"IF(OR(Table14[[#This Row],[Vendor]]=\"\", Table14[[#This Row],[Email]]=\"\",Table14[[#This Row],[Amount]]=\"\",Table14[[#This Row],[Sent]]=\"\",Table14[[#This Row],[Vendor '#]]=\"\",Table14[[#This Row],[Completed (Date)]]=\"\",Table14[[#This Row],[Sent2]]=\"\",Table14[[#This Row],[Received]]=\"\",Table14[[#This Row],[On File (Y/leave blank)]]=\"\",Table14[[#This Row],[Requested]]=\"\",Table14[[#This Row],[Received3]]=\"\",Table14[[#This Row],[On File (Y/leave blank)4]]=\"\",Table14[[#This Row],[Requested5]]=\"\",Table14[[#This Row],[Received2]]=\"\", Table14[[#This Row],[On File(Y/leave blank)]]=\"\"), \"STOP\", \"GO\")","v":"STOP"},null,null,null,null,null,null,null,null,null,null,null,null,null,null,{"$f":"IF(Table14[[#This Row],[END date]]=Table14[[#This Row],[BEG date]],1,IF(Table14[[#This Row],[END date]]=Table14[[#This Row],[BEG date]]+1,2,IF(Table14[[#This Row],[END date]]=Table14[[#This Row],[BEG date]]+2,3,IF(Table14[[#This Row],[END date]]=Table14[[#This Row],[BEG date]]+3,4,IF(Table14[[#This Row],[END date]]=Table14[[#This Row],[BEG date]]+4,5,\">5\")))))","v":1}]
[null,null,null,null,null,null,null,null,null,null,null,null,null,null,null,{"$f":"IF(AND(TODAY()<Table14[[#This Row],[BEG date]]-14, Table14[[#This Row],[Submitted on]]=\"\"), \"\", IF(AND(Table14[[#This Row],[BEG date]]-14<=TODAY(), TODAY()<Table14[[#This Row],[BEG date]], Table14[[#This Row],[Submitted on]]=\"\"), Table14[[#This Row],[BEG date]], IF(Table14[[#This Row],[Submitted on]]=\"\", \"PROCESS ASAP\", IF(Table14[[#This Row],[Payment Made]]=\"\", \"SUBMITTED\", \"DONE\"))))","v":"PROCESS ASAP"},{"$f":"IF(OR(Table14[[#This Row],[Vendor]]=\"\", Table14[[#This Row],[Email]]=\"\",Table14[[#This Row],[Amount]]=\"\",Table14[[#This Row],[Sent]]=\"\",Table14[[#This Row],[Vendor '#]]=\"\",Table14[[#This Row],[Completed (Date)]]=\"\",Table14[[#This Row],[Sent2]]=\"\",Table14[[#This Row],[Received]]=\"\",Table14[[#This Row],[On File (Y/leave blank)]]=\"\",Table14[[#This Row],[Requested]]=\"\",Table14[[#This Row],[Received3]]=\"\",Table14[[#This Row],[On File (Y/leave blank)4]]=\"\",Table14[[#This Row],[Requested5]]=\"\",Table14[[#This Row],[Received2]]=\"\", Table14[[#This Row],[On File(Y/leave blank)]]=\"\"), \"STOP\", \"GO\")","v":"STOP"},null,null,null,null,null,null,null,null,null,null,null,null,null,null,{"$f":"IF(Table14[[#This Row],[END date]]=Table14[[#This Row],[BEG date]],1,IF(Table14[[#This Row],[END date]]=Table14[[#This Row],[BEG date]]+1,2,IF(Table14[[#This Row],[END date]]=Table14[[#This Row],[BEG date]]+2,3,IF(Table14[[#This Row],[END date]]=Table14[[#This Row],[BEG date]]+3,4,IF(Table14[[#This Row],[END date]]=Table14[[#This Row],[BEG date]]+4,5,\">5\")))))","v":1}]
[null,null,null,null,null,null,null,null,null,null,null,null,null,null,null,{"$f":"IF(AND(TODAY()<Table14[[#This Row],[BEG date]]-14, Table14[[#This Row],[Submitted on]]=\"\"), \"\", IF(AND(Table14[[#This Row],[BEG date]]-14<=TODAY(), TODAY()<Table14[[#This Row],[BEG date]], Table14[[#This Row],[Submitted on]]=\"\"), Table14[[#This Row],[BEG date]], IF(Table14[[#This Row],[Submitted on]]=\"\", \"PROCESS ASAP\", IF(Table14[[#This Row],[Payment Made]]=\"\", \"SUBMITTED\", \"DONE\"))))","v":"PROCESS ASAP"},{"$f":"IF(OR(Table14[[#This Row],[Vendor]]=\"\", Table14[[#This Row],[Email]]=\"\",Table14[[#This Row],[Amount]]=\"\",Table14[[#This Row],[Sent]]=\"\",Table14[[#This Row],[Vendor '#]]=\"\",Table14[[#This Row],[Completed (Date)]]=\"\",Table14[[#This Row],[Sent2]]=\"\",Table14[[#This Row],[Received]]=\"\",Table14[[#This Row],[On File (Y/leave blank)]]=\"\",Table14[[#This Row],[Requested]]=\"\",Table14[[#This Row],[Received3]]=\"\",Table14[[#This Row],[On File (Y/leave blank)4]]=\"\",Table14[[#This Row],[Requested5]]=\"\",Table14[[#This Row],[Received2]]=\"\", Table14[[#This Row],[On File(Y/leave blank)]]=\"\"), \"STOP\", \"GO\")","v":"STOP"},null,null,null,null,null,null,null,null,null,null,null,null,null,null,{"$f":"IF(Table14[[#This Row],[END date]]=Table14[[#This Row],[BEG date]],1,IF(Table14[[#This Row],[END date]]=Table14[[#This Row],[BEG date]]+1,2,IF(Table14[[#This Row],[END date]]=Table14[[#This Row],[BEG date]]+2,3,IF(Table14[[#This Row],[END date]]=Table14[[#This Row],[BEG date]]+3,4,IF(Table14[[#This Row],[END date]]=Table14[[#This Row],[BEG date]]+4,5,\">5\")))))","v":1}]
[null,null,null,null,null,null,null,null,null,null,null,null,null,null,null,{"$f":"IF(AND(TODAY()<Table14[[#This Row],[BEG date]]-14, Table14[[#This Row],[Submitted on]]=\"\"), \"\", IF(AND(Table14[[#This Row],[BEG date]]-14<=TODAY(), TODAY()<Table14[[#This Row],[BEG date]], Table14[[#This Row],[Submitted on]]=\"\"), Table14[[#This Row],[BEG date]], IF(Table14[[#This Row],[Submitted on]]=\"\", \"PROCESS ASAP\", IF(Table14[[#This Row],[Payment Made]]=\"\", \"SUBMITTED\", \"DONE\"))))","v":"PROCESS ASAP"},{"$f":"IF(OR(Table14[[#This Row],[Vendor]]=\"\", Table14[[#This Row],[Email]]=\"\",Table14[[#This Row],[Amount]]=\"\",Table14[[#This Row],[Sent]]=\"\",Table14[[#This Row],[Vendor '#]]=\"\",Table14[[#This Row],[Completed (Date)]]=\"\",Table14[[#This Row],[Sent2]]=\"\",Table14[[#This Row],[Received]]=\"\",Table14[[#This Row],[On File (Y/leave blank)]]=\"\",Table14[[#This Row],[Requested]]=\"\",Table14[[#This Row],[Received3]]=\"\",Table14[[#This Row],[On File (Y/leave blank)4]]=\"\",Table14[[#This Row],[Requested5]]=\"\",Table14[[#This Row],[Received2]]=\"\", Table14[[#This Row],[On File(Y/leave blank)]]=\"\"), \"STOP\", \"GO\")","v":"STOP"},null,null,null,null,null,null,null,null,null,null,null,null,null,null,{"$f":"IF(Table14[[#This Row],[END date]]=Table14[[#This Row],[BEG date]],1,IF(Table14[[#This Row],[END date]]=Table14[[#This Row],[BEG date]]+1,2,IF(Table14[[#This Row],[END date]]=Table14[[#This Row],[BEG date]]+2,3,IF(Table14[[#This Row],[END date]]=Table14[[#This Row],[BEG date]]+3,4,IF(Table14[[#This Row],[END date]]=Table14[[#This Row],[BEG date]]+4,5,\">5\")))))","v":1}]
[null,null,null,null,null,null,null,null,null,null,null,null,null,null,null,{"$f":"IF(AND(TODAY()<Table14[[#This Row],[BEG date]]-14, Table14[[#This Row],[Submitted on]]=\"\"), \"\", IF(AND(Table14[[#This Row],[BEG date]]-14<=TODAY(), TODAY()<Table14[[#This Row],[BEG date]], Table14[[#This Row],[Submitted on]]=\"\"), Table14[[#This Row],[BEG date]], IF(Table14[[#This Row],[Submitted on]]=\"\", \"PROCESS ASAP\", IF(Table14[[#This Row],[Payment Made]]=\"\", \"SUBMITTED\", \"DONE\"))))","v":"PROCESS ASAP"},{"$f":"IF(OR(Table14[[#This Row],[Vendor]]=\"\", Table14[[#This Row],[Email]]=\"\",Table14[[#This Row],[Amount]]=\"\",Table14[[#This Row],[Sent]]=\"\",Table14[[#This Row],[Vendor '#]]=\"\",Table14[[#This Row],[Completed (Date)]]=\"\",Table14[[#This Row],[Sent2]]=\"\",Table14[[#This Row],[Received]]=\"\",Table14[[#This Row],[On File (Y/leave blank)]]=\"\",Table14[[#This Row],[Requested]]=\"\",Table14[[#This Row],[Received3]]=\"\",Table14[[#This Row],[On File (Y/leave blank)4]]=\"\",Table14[[#This Row],[Requested5]]=\"\",Table14[[#This Row],[Received2]]=\"\", Table14[[#This Row],[On File(Y/leave blank)]]=\"\"), \"STOP\", \"GO\")","v":"STOP"},null,null,null,null,null,null,null,null,null,null,null,null,null,null,{"$f":"IF(Table14[[#This Row],[END date]]=Table14[[#This Row],[BEG date]],1,IF(Table14[[#This Row],[END date]]=Table14[[#This Row],[BEG date]]+1,2,IF(Table14[[#This Row],[END date]]=Table14[[#This Row],[BEG date]]+2,3,IF(Table14[[#This Row],[END date]]=Table14[[#This Row],[BEG date]]+3,4,IF(Table14[[#This Row],[END date]]=Table14[[#This Row],[BEG date]]+4,5,\">5\")))))","v":1}]
[null,null,null,null,null,null,null,null,null,null,null,null,null,null,null,{"$f":"IF(AND(TODAY()<Table14[[#This Row],[BEG date]]-14, Table14[[#This Row],[Submitted on]]=\"\"), \"\", IF(AND(Table14[[#This Row],[BEG date]]-14<=TODAY(), TODAY()<Table14[[#This Row],[BEG date]], Table14[[#This Row],[Submitted on]]=\"\"), Table14[[#This Row],[BEG date]], IF(Table14[[#This Row],[Submitted on]]=\"\", \"PROCESS ASAP\", IF(Table14[[#This Row],[Payment Made]]=\"\", \"SUBMITTED\", \"DONE\"))))","v":"PROCESS ASAP"},{"$f":"IF(OR(Table14[[#This Row],[Vendor]]=\"\", Table14[[#This Row],[Email]]=\"\",Table14[[#This Row],[Amount]]=\"\",Table14[[#This Row],[Sent]]=\"\",Table14[[#This Row],[Vendor '#]]=\"\",Table14[[#This Row],[Completed (Date)]]=\"\",Table14[[#This Row],[Sent2]]=\"\",Table14[[#This Row],[Received]]=\"\",Table14[[#This Row],[On File (Y/leave blank)]]=\"\",Table14[[#This Row],[Requested]]=\"\",Table14[[#This Row],[Received3]]=\"\",Table14[[#This Row],[On File (Y/leave blank)4]]=\"\",Table14[[#This Row],[Requested5]]=\"\",Table14[[#This Row],[Received2]]=\"\", Table14[[#This Row],[On File(Y/leave blank)]]=\"\"), \"STOP\", \"GO\")","v":"STOP"},null,null,null,null,null,null,null,null,null,null,null,null,null,null,{"$f":"IF(Table14[[#This Row],[END date]]=Table14[[#This Row],[BEG date]],1,IF(Table14[[#This Row],[END date]]=Table14[[#This Row],[BEG date]]+1,2,IF(Table14[[#This Row],[END date]]=Table14[[#This Row],[BEG date]]+2,3,IF(Table14[[#This Row],[END date]]=Table14[[#This Row],[BEG date]]+3,4,IF(Table14[[#This Row],[END date]]=Table14[[#This Row],[BEG date]]+4,5,\">5\")))))","v":1}]
[null,null,null,null,null,null,null,null,null,null,null,null,null,null,null,{"$f":"IF(AND(TODAY()<Table14[[#This Row],[BEG date]]-14, Table14[[#This Row],[Submitted on]]=\"\"), \"\", IF(AND(Table14[[#This Row],[BEG date]]-14<=TODAY(), TODAY()<Table14[[#This Row],[BEG date]], Table14[[#This Row],[Submitted on]]=\"\"), Table14[[#This Row],[BEG date]], IF(Table14[[#This Row],[Submitted on]]=\"\", \"PROCESS ASAP\", IF(Table14[[#This Row],[Payment Made]]=\"\", \"SUBMITTED\", \"DONE\"))))","v":"PROCESS ASAP"},{"$f":"IF(OR(Table14[[#This Row],[Vendor]]=\"\", Table14[[#This Row],[Email]]=\"\",Table14[[#This Row],[Amount]]=\"\",Table14[[#This Row],[Sent]]=\"\",Table14[[#This Row],[Vendor '#]]=\"\",Table14[[#This Row],[Completed (Date)]]=\"\",Table14[[#This Row],[Sent2]]=\"\",Table14[[#This Row],[Received]]=\"\",Table14[[#This Row],[On File (Y/leave blank)]]=\"\",Table14[[#This Row],[Requested]]=\"\",Table14[[#This Row],[Received3]]=\"\",Table14[[#This Row],[On File (Y/leave blank)4]]=\"\",Table14[[#This Row],[Requested5]]=\"\",Table14[[#This Row],[Received2]]=\"\", Table14[[#This Row],[On File(Y/leave blank)]]=\"\"), \"STOP\", \"GO\")","v":"STOP"},null,null,null,null,null,null,null,null,null,null,null,null,null,null,{"$f":"IF(Table14[[#This Row],[END date]]=Table14[[#This Row],[BEG date]],1,IF(Table14[[#This Row],[END date]]=Table14[[#This Row],[BEG date]]+1,2,IF(Table14[[#This Row],[END date]]=Table14[[#This Row],[BEG date]]+2,3,IF(Table14[[#This Row],[END date]]=Table14[[#This Row],[BEG date]]+3,4,IF(Table14[[#This Row],[END date]]=Table14[[#This Row],[BEG date]]+4,5,\">5\")))))","v":1}]
[null,null,null,null,null,null,null,null,null,null,null,null,null,null,null,{"$f":"IF(AND(TODAY()<Table14[[#This Row],[BEG date]]-14, Table14[[#This Row],[Submitted on]]=\"\"), \"\", IF(AND(Table14[[#This Row],[BEG date]]-14<=TODAY(), TODAY()<Table14[[#This Row],[BEG date]], Table14[[#This Row],[Submitted on]]=\"\"), Table14[[#This Row],[BEG date]], IF(Table14[[#This Row],[Submitted on]]=\"\", \"PROCESS ASAP\", IF(Table14[[#This Row],[Payment Made]]=\"\", \"SUBMITTED\", \"DONE\"))))","v":"PROCESS ASAP"},{"$f":"IF(OR(Table14[[#This Row],[Vendor]]=\"\", Table14[[#This Row],[Email]]=\"\",Table14[[#This Row],[Amount]]=\"\",Table14[[#This Row],[Sent]]=\"\",Table14[[#This Row],[Vendor '#]]=\"\",Table14[[#This Row],[Completed (Date)]]=\"\",Table14[[#This Row],[Sent2]]=\"\",Table14[[#This Row],[Received]]=\"\",Table14[[#This Row],[On File (Y/leave blank)]]=\"\",Table14[[#This Row],[Requested]]=\"\",Table14[[#This Row],[Received3]]=\"\",Table14[[#This Row],[On File (Y/leave blank)4]]=\"\",Table14[[#This Row],[Requested5]]=\"\",Table14[[#This Row],[Received2]]=\"\", Table14[[#This Row],[On File(Y/leave blank)]]=\"\"), \"STOP\", \"GO\")","v":"STOP"},null,null,null,null,null,null,null,null,null,null,null,null,null,null,{"$f":"IF(Table14[[#This Row],[END date]]=Table14[[#This Row],[BEG date]],1,IF(Table14[[#This Row],[END date]]=Table14[[#This Row],[BEG date]]+1,2,IF(Table14[[#This Row],[END date]]=Table14[[#This Row],[BEG date]]+2,3,IF(Table14[[#This Row],[END date]]=Table14[[#This Row],[BEG date]]+3,4,IF(Table14[[#This Row],[END date]]=Table14[[#This Row],[BEG date]]+4,5,\">5\")))))","v":1}]
[null,null,null,null,null,null,null,null,null,null,null,null,null,null,null,{"$f":"IF(AND(TODAY()<Table14[[#This Row],[BEG date]]-14, Table14[[#This Row],[Submitted on]]=\"\"), \"\", IF(AND(Table14[[#This Row],[BEG date]]-14<=TODAY(), TODAY()<Table14[[#This Row],[BEG date]], Table14[[#This Row],[Submitted on]]=\"\"), Table14[[#This Row],[BEG date]], IF(Table14[[#This Row],[Submitted on]]=\"\", \"PROCESS ASAP\", IF(Table14[[#This Row],[Payment Made]]=\"\", \"SUBMITTED\", \"DONE\"))))","v":"PROCESS ASAP"},{"$f":"IF(OR(Table14[[#This Row],[Vendor]]=\"\", Table14[[#This Row],[Email]]=\"\",Table14[[#This Row],[Amount]]=\"\",Table14[[#This Row],[Sent]]=\"\",Table14[[#This Row],[Vendor '#]]=\"\",Table14[[#This Row],[Completed (Date)]]=\"\",Table14[[#This Row],[Sent2]]=\"\",Table14[[#This Row],[Received]]=\"\",Table14[[#This Row],[On File (Y/leave blank)]]=\"\",Table14[[#This Row],[Requested]]=\"\",Table14[[#This Row],[Received3]]=\"\",Table14[[#This Row],[On File (Y/leave blank)4]]=\"\",Table14[[#This Row],[Requested5]]=\"\",Table14[[#This Row],[Received2]]=\"\", Table14[[#This Row],[On File(Y/leave blank)]]=\"\"), \"STOP\", \"GO\")","v":"STOP"},null,null,null,null,null,null,null,null,null,null,null,null,null,null,{"$f":"IF(Table14[[#This Row],[END date]]=Table14[[#This Row],[BEG date]],1,IF(Table14[[#This Row],[END date]]=Table14[[#This Row],[BEG date]]+1,2,IF(Table14[[#This Row],[END date]]=Table14[[#This Row],[BEG date]]+2,3,IF(Table14[[#This Row],[END date]]=Table14[[#This Row],[BEG date]]+3,4,IF(Table14[[#This Row],[END date]]=Table14[[#This Row],[BEG date]]+4,5,\">5\")))))","v":1}]
[null,null,null,null,null,null,null,null,null,null,null,null,null,null,null,{"$f":"IF(AND(TODAY()<Table14[[#This Row],[BEG date]]-14, Table14[[#This Row],[Submitted on]]=\"\"), \"\", IF(AND(Table14[[#This Row],[BEG date]]-14<=TODAY(), TODAY()<Table14[[#This Row],[BEG date]], Table14[[#This Row],[Submitted on]]=\"\"), Table14[[#This Row],[BEG date]], IF(Table14[[#This Row],[Submitted on]]=\"\", \"PROCESS ASAP\", IF(Table14[[#This Row],[Payment Made]]=\"\", \"SUBMITTED\", \"DONE\"))))","v":"PROCESS ASAP"},{"$f":"IF(OR(Table14[[#This Row],[Vendor]]=\"\", Table14[[#This Row],[Email]]=\"\",Table14[[#This Row],[Amount]]=\"\",Table14[[#This Row],[Sent]]=\"\",Table14[[#This Row],[Vendor '#]]=\"\",Table14[[#This Row],[Completed (Date)]]=\"\",Table14[[#This Row],[Sent2]]=\"\",Table14[[#This Row],[Received]]=\"\",Table14[[#This Row],[On File (Y/leave blank)]]=\"\",Table14[[#This Row],[Requested]]=\"\",Table14[[#This Row],[Received3]]=\"\",Table14[[#This Row],[On File (Y/leave blank)4]]=\"\",Table14[[#This Row],[Requested5]]=\"\",Table14[[#This Row],[Received2]]=\"\", Table14[[#This Row],[On File(Y/leave blank)]]=\"\"), \"STOP\", \"GO\")","v":"STOP"},null,null,null,null,null,null,null,null,null,null,null,null,null,null,{"$f":"IF(Table14[[#This Row],[END date]]=Table14[[#This Row],[BEG date]],1,IF(Table14[[#This Row],[END date]]=Table14[[#This Row],[BEG date]]+1,2,IF(Table14[[#This Row],[END date]]=Table14[[#This Row],[BEG date]]+2,3,IF(Table14[[#This Row],[END date]]=Table14[[#This Row],[BEG date]]+3,4,IF(Table14[[#This Row],[END date]]=Table14[[#This Row],[BEG date]]+4,5,\">5\")))))","v":1}]
[null,null,null,null,null,null,null,null,null,null,null,null,null,null,null,{"$f":"IF(AND(TODAY()<Table14[[#This Row],[BEG date]]-14, Table14[[#This Row],[Submitted on]]=\"\"), \"\", IF(AND(Table14[[#This Row],[BEG date]]-14<=TODAY(), TODAY()<Table14[[#This Row],[BEG date]], Table14[[#This Row],[Submitted on]]=\"\"), Table14[[#This Row],[BEG date]], IF(Table14[[#This Row],[Submitted on]]=\"\", \"PROCESS ASAP\", IF(Table14[[#This Row],[Payment Made]]=\"\", \"SUBMITTED\", \"DONE\"))))","v":"PROCESS ASAP"},{"$f":"IF(OR(Table14[[#This Row],[Vendor]]=\"\", Table14[[#This Row],[Email]]=\"\",Table14[[#This Row],[Amount]]=\"\",Table14[[#This Row],[Sent]]=\"\",Table14[[#This Row],[Vendor '#]]=\"\",Table14[[#This Row],[Completed (Date)]]=\"\",Table14[[#This Row],[Sent2]]=\"\",Table14[[#This Row],[Received]]=\"\",Table14[[#This Row],[On File (Y/leave blank)]]=\"\",Table14[[#This Row],[Requested]]=\"\",Table14[[#This Row],[Received3]]=\"\",Table14[[#This Row],[On File (Y/leave blank)4]]=\"\",Table14[[#This Row],[Requested5]]=\"\",Table14[[#This Row],[Received2]]=\"\", Table14[[#This Row],[On File(Y/leave blank)]]=\"\"), \"STOP\", \"GO\")","v":"STOP"},null,null,null,null,null,null,null,null,null,null,null,null,null,null,{"$f":"IF(Table14[[#This Row],[END date]]=Table14[[#This Row],[BEG date]],1,IF(Table14[[#This Row],[END date]]=Table14[[#This Row],[BEG date]]+1,2,IF(Table14[[#This Row],[END date]]=Table14[[#This Row],[BEG date]]+2,3,IF(Table14[[#This Row],[END date]]=Table14[[#This Row],[BEG date]]+3,4,IF(Table14[[#This Row],[END date]]=Table14[[#This Row],[BEG date]]+4,5,\">5\")))))","v":1}]
[null,null,null,null,null,null,null,null,null,null,null,null,null,null,null,{"$f":"IF(AND(TODAY()<Table14[[#This Row],[BEG date]]-14, Table14[[#This Row],[Submitted on]]=\"\"), \"\", IF(AND(Table14[[#This Row],[BEG date]]-14<=TODAY(), TODAY()<Table14[[#This Row],[BEG date]], Table14[[#This Row],[Submitted on]]=\"\"), Table14[[#This Row],[BEG date]], IF(Table14[[#This Row],[Submitted on]]=\"\", \"PROCESS ASAP\", IF(Table14[[#This Row],[Payment Made]]=\"\", \"SUBMITTED\", \"DONE\"))))","v":"PROCESS ASAP"},{"$f":"IF(OR(Table14[[#This Row],[Vendor]]=\"\", Table14[[#This Row],[Email]]=\"\",Table14[[#This Row],[Amount]]=\"\",Table14[[#This Row],[Sent]]=\"\",Table14[[#This Row],[Vendor '#]]=\"\",Table14[[#This Row],[Completed (Date)]]=\"\",Table14[[#This Row],[Sent2]]=\"\",Table14[[#This Row],[Received]]=\"\",Table14[[#This Row],[On File (Y/leave blank)]]=\"\",Table14[[#This Row],[Requested]]=\"\",Table14[[#This Row],[Received3]]=\"\",Table14[[#This Row],[On File (Y/leave blank)4]]=\"\",Table14[[#This Row],[Requested5]]=\"\",Table14[[#This Row],[Received2]]=\"\", Table14[[#This Row],[On File(Y/leave blank)]]=\"\"), \"STOP\", \"GO\")","v":"STOP"},null,null,null,null,null,null,null,null,null,null,null,null,null,null,{"$f":"IF(Table14[[#This Row],[END date]]=Table14[[#This Row],[BEG date]],1,IF(Table14[[#This Row],[END date]]=Table14[[#This Row],[BEG date]]+1,2,IF(Table14[[#This Row],[END date]]=Table14[[#This Row],[BEG date]]+2,3,IF(Table14[[#This Row],[END date]]=Table14[[#This Row],[BEG date]]+3,4,IF(Table14[[#This Row],[END date]]=Table14[[#This Row],[BEG date]]+4,5,\">5\")))))","v":1}]
[null,null,null,null,null,null,null,null,null,null,null,null,null,null,null,{"$f":"IF(AND(TODAY()<Table14[[#This Row],[BEG date]]-14, Table14[[#This Row],[Submitted on]]=\"\"), \"\", IF(AND(Table14[[#This Row],[BEG date]]-14<=TODAY(), TODAY()<Table14[[#This Row],[BEG date]], Table14[[#This Row],[Submitted on]]=\"\"), Table14[[#This Row],[BEG date]], IF(Table14[[#This Row],[Submitted on]]=\"\", \"PROCESS ASAP\", IF(Table14[[#This Row],[Payment Made]]=\"\", \"SUBMITTED\", \"DONE\"))))","v":"PROCESS ASAP"},{"$f":"IF(OR(Table14[[#This Row],[Vendor]]=\"\", Table14[[#This Row],[Email]]=\"\",Table14[[#This Row],[Amount]]=\"\",Table14[[#This Row],[Sent]]=\"\",Table14[[#This Row],[Vendor '#]]=\"\",Table14[[#This Row],[Completed (Date)]]=\"\",Table14[[#This Row],[Sent2]]=\"\",Table14[[#This Row],[Received]]=\"\",Table14[[#This Row],[On File (Y/leave blank)]]=\"\",Table14[[#This Row],[Requested]]=\"\",Table14[[#This Row],[Received3]]=\"\",Table14[[#This Row],[On File (Y/leave blank)4]]=\"\",Table14[[#This Row],[Requested5]]=\"\",Table14[[#This Row],[Received2]]=\"\", Table14[[#This Row],[On File(Y/leave blank)]]=\"\"), \"STOP\", \"GO\")","v":"STOP"},null,null,null,null,null,null,null,null,null,null,null,null,null,null,{"$f":"IF(Table14[[#This Row],[END date]]=Table14[[#This Row],[BEG date]],1,IF(Table14[[#This Row],[END date]]=Table14[[#This Row],[BEG date]]+1,2,IF(Table14[[#This Row],[END date]]=Table14[[#This Row],[BEG date]]+2,3,IF(Table14[[#This Row],[END date]]=Table14[[#This Row],[BEG date]]+3,4,IF(Table14[[#This Row],[END date]]=Table14[[#This Row],[BEG date]]+4,5,\">5\")))))","v":1}]
[null,null,null,null,null,null,null,null,null,null,null,null,null,null,null,{"$f":"IF(AND(TODAY()<Table14[[#This Row],[BEG date]]-14, Table14[[#This Row],[Submitted on]]=\"\"), \"\", IF(AND(Table14[[#This Row],[BEG date]]-14<=TODAY(), TODAY()<Table14[[#This Row],[BEG date]], Table14[[#This Row],[Submitted on]]=\"\"), Table14[[#This Row],[BEG date]], IF(Table14[[#This Row],[Submitted on]]=\"\", \"PROCESS ASAP\", IF(Table14[[#This Row],[Payment Made]]=\"\", \"SUBMITTED\", \"DONE\"))))","v":"PROCESS ASAP"},{"$f":"IF(OR(Table14[[#This Row],[Vendor]]=\"\", Table14[[#This Row],[Email]]=\"\",Table14[[#This Row],[Amount]]=\"\",Table14[[#This Row],[Sent]]=\"\",Table14[[#This Row],[Vendor '#]]=\"\",Table14[[#This Row],[Completed (Date)]]=\"\",Table14[[#This Row],[Sent2]]=\"\",Table14[[#This Row],[Received]]=\"\",Table14[[#This Row],[On File (Y/leave blank)]]=\"\",Table14[[#This Row],[Requested]]=\"\",Table14[[#This Row],[Received3]]=\"\",Table14[[#This Row],[On File (Y/leave blank)4]]=\"\",Table14[[#This Row],[Requested5]]=\"\",Table14[[#This Row],[Received2]]=\"\", Table14[[#This Row],[On File(Y/leave blank)]]=\"\"), \"STOP\", \"GO\")","v":"STOP"},null,null,null,null,null,null,null,null,null,null,null,null,null,null,{"$f":"IF(Table14[[#This Row],[END date]]=Table14[[#This Row],[BEG date]],1,IF(Table14[[#This Row],[END date]]=Table14[[#This Row],[BEG date]]+1,2,IF(Table14[[#This Row],[END date]]=Table14[[#This Row],[BEG date]]+2,3,IF(Table14[[#This Row],[END date]]=Table14[[#This Row],[BEG date]]+3,4,IF(Table14[[#This Row],[END date]]=Table14[[#This Row],[BEG date]]+4,5,\">5\")))))","v":1}]
[null,null,null,null,null,null,null,null,null,null,null,null,null,null,null,{"$f":"IF(AND(TODAY()<Table14[[#This Row],[BEG date]]-14, Table14[[#This Row],[Submitted on]]=\"\"), \"\", IF(AND(Table14[[#This Row],[BEG date]]-14<=TODAY(), TODAY()<Table14[[#This Row],[BEG date]], Table14[[#This Row],[Submitted on]]=\"\"), Table14[[#This Row],[BEG date]], IF(Table14[[#This Row],[Submitted on]]=\"\", \"PROCESS ASAP\", IF(Table14[[#This Row],[Payment Made]]=\"\", \"SUBMITTED\", \"DONE\"))))","v":"PROCESS ASAP"},{"$f":"IF(OR(Table14[[#This Row],[Vendor]]=\"\", Table14[[#This Row],[Email]]=\"\",Table14[[#This Row],[Amount]]=\"\",Table14[[#This Row],[Sent]]=\"\",Table14[[#This Row],[Vendor '#]]=\"\",Table14[[#This Row],[Completed (Date)]]=\"\",Table14[[#This Row],[Sent2]]=\"\",Table14[[#This Row],[Received]]=\"\",Table14[[#This Row],[On File (Y/leave blank)]]=\"\",Table14[[#This Row],[Requested]]=\"\",Table14[[#This Row],[Received3]]=\"\",Table14[[#This Row],[On File (Y/leave blank)4]]=\"\",Table14[[#This Row],[Requested5]]=\"\",Table14[[#This Row],[Received2]]=\"\", Table14[[#This Row],[On File(Y/leave blank)]]=\"\"), \"STOP\", \"GO\")","v":"STOP"},null,null,null,null,null,null,null,null,null,null,null,null,null,null,{"$f":"IF(Table14[[#This Row],[END date]]=Table14[[#This Row],[BEG date]],1,IF(Table14[[#This Row],[END date]]=Table14[[#This Row],[BEG date]]+1,2,IF(Table14[[#This Row],[END date]]=Table14[[#This Row],[BEG date]]+2,3,IF(Table14[[#This Row],[END date]]=Table14[[#This Row],[BEG date]]+3,4,IF(Table14[[#This Row],[END date]]=Table14[[#This Row],[BEG date]]+4,5,\">5\")))))","v":1}]
[null,null,null,null,null,null,null,null,null,null,null,null,null,null,null,{"$f":"IF(AND(TODAY()<Table14[[#This Row],[BEG date]]-14, Table14[[#This Row],[Submitted on]]=\"\"), \"\", IF(AND(Table14[[#This Row],[BEG date]]-14<=TODAY(), TODAY()<Table14[[#This Row],[BEG date]], Table14[[#This Row],[Submitted on]]=\"\"), Table14[[#This Row],[BEG date]], IF(Table14[[#This Row],[Submitted on]]=\"\", \"PROCESS ASAP\", IF(Table14[[#This Row],[Payment Made]]=\"\", \"SUBMITTED\", \"DONE\"))))","v":"PROCESS ASAP"},{"$f":"IF(OR(Table14[[#This Row],[Vendor]]=\"\", Table14[[#This Row],[Email]]=\"\",Table14[[#This Row],[Amount]]=\"\",Table14[[#This Row],[Sent]]=\"\",Table14[[#This Row],[Vendor '#]]=\"\",Table14[[#This Row],[Completed (Date)]]=\"\",Table14[[#This Row],[Sent2]]=\"\",Table14[[#This Row],[Received]]=\"\",Table14[[#This Row],[On File (Y/leave blank)]]=\"\",Table14[[#This Row],[Requested]]=\"\",Table14[[#This Row],[Received3]]=\"\",Table14[[#This Row],[On File (Y/leave blank)4]]=\"\",Table14[[#This Row],[Requested5]]=\"\",Table14[[#This Row],[Received2]]=\"\", Table14[[#This Row],[On File(Y/leave blank)]]=\"\"), \"STOP\", \"GO\")","v":"STOP"},null,null,null,null,null,null,null,null,null,null,null,null,null,null,{"$f":"IF(Table14[[#This Row],[END date]]=Table14[[#This Row],[BEG date]],1,IF(Table14[[#This Row],[END date]]=Table14[[#This Row],[BEG date]]+1,2,IF(Table14[[#This Row],[END date]]=Table14[[#This Row],[BEG date]]+2,3,IF(Table14[[#This Row],[END date]]=Table14[[#This Row],[BEG date]]+3,4,IF(Table14[[#This Row],[END date]]=Table14[[#This Row],[BEG date]]+4,5,\">5\")))))","v":1}]
[null,null,null,null,null,null,null,null,null,null,null,null,null,null,null,{"$f":"IF(AND(TODAY()<Table14[[#This Row],[BEG date]]-14, Table14[[#This Row],[Submitted on]]=\"\"), \"\", IF(AND(Table14[[#This Row],[BEG date]]-14<=TODAY(), TODAY()<Table14[[#This Row],[BEG date]], Table14[[#This Row],[Submitted on]]=\"\"), Table14[[#This Row],[BEG date]], IF(Table14[[#This Row],[Submitted on]]=\"\", \"PROCESS ASAP\", IF(Table14[[#This Row],[Payment Made]]=\"\", \"SUBMITTED\", \"DONE\"))))","v":"PROCESS ASAP"},{"$f":"IF(OR(Table14[[#This Row],[Vendor]]=\"\", Table14[[#This Row],[Email]]=\"\",Table14[[#This Row],[Amount]]=\"\",Table14[[#This Row],[Sent]]=\"\",Table14[[#This Row],[Vendor '#]]=\"\",Table14[[#This Row],[Completed (Date)]]=\"\",Table14[[#This Row],[Sent2]]=\"\",Table14[[#This Row],[Received]]=\"\",Table14[[#This Row],[On File (Y/leave blank)]]=\"\",Table14[[#This Row],[Requested]]=\"\",Table14[[#This Row],[Received3]]=\"\",Table14[[#This Row],[On File (Y/leave blank)4]]=\"\",Table14[[#This Row],[Requested5]]=\"\",Table14[[#This Row],[Received2]]=\"\", Table14[[#This Row],[On File(Y/leave blank)]]=\"\"), \"STOP\", \"GO\")","v":"STOP"},null,null,null,null,null,null,null,null,null,null,null,null,null,null,{"$f":"IF(Table14[[#This Row],[END date]]=Table14[[#This Row],[BEG date]],1,IF(Table14[[#This Row],[END date]]=Table14[[#This Row],[BEG date]]+1,2,IF(Table14[[#This Row],[END date]]=Table14[[#This Row],[BEG date]]+2,3,IF(Table14[[#This Row],[END date]]=Table14[[#This Row],[BEG date]]+3,4,IF(Table14[[#This Row],[END date]]=Table14[[#This Row],[BEG date]]+4,5,\">5\")))))","v":1}]
[null,null,null,null,null,null,null,null,null,null,null,null,null,null,null,{"$f":"IF(AND(TODAY()<Table14[[#This Row],[BEG date]]-14, Table14[[#This Row],[Submitted on]]=\"\"), \"\", IF(AND(Table14[[#This Row],[BEG date]]-14<=TODAY(), TODAY()<Table14[[#This Row],[BEG date]], Table14[[#This Row],[Submitted on]]=\"\"), Table14[[#This Row],[BEG date]], IF(Table14[[#This Row],[Submitted on]]=\"\", \"PROCESS ASAP\", IF(Table14[[#This Row],[Payment Made]]=\"\", \"SUBMITTED\", \"DONE\"))))","v":"PROCESS ASAP"},{"$f":"IF(OR(Table14[[#This Row],[Vendor]]=\"\", Table14[[#This Row],[Email]]=\"\",Table14[[#This Row],[Amount]]=\"\",Table14[[#This Row],[Sent]]=\"\",Table14[[#This Row],[Vendor '#]]=\"\",Table14[[#This Row],[Completed (Date)]]=\"\",Table14[[#This Row],[Sent2]]=\"\",Table14[[#This Row],[Received]]=\"\",Table14[[#This Row],[On File (Y/leave blank)]]=\"\",Table14[[#This Row],[Requested]]=\"\",Table14[[#This Row],[Received3]]=\"\",Table14[[#This Row],[On File (Y/leave blank)4]]=\"\",Table14[[#This Row],[Requested5]]=\"\",Table14[[#This Row],[Received2]]=\"\", Table14[[#This Row],[On File(Y/leave blank)]]=\"\"), \"STOP\", \"GO\")","v":"STOP"},null,null,null,null,null,null,null,null,null,null,null,null,null,null,{"$f":"IF(Table14[[#This Row],[END date]]=Table14[[#This Row],[BEG date]],1,IF(Table14[[#This Row],[END date]]=Table14[[#This Row],[BEG date]]+1,2,IF(Table14[[#This Row],[END date]]=Table14[[#This Row],[BEG date]]+2,3,IF(Table14[[#This Row],[END date]]=Table14[[#This Row],[BEG date]]+3,4,IF(Table14[[#This Row],[END date]]=Table14[[#This Row],[BEG date]]+4,5,\">5\")))))","v":1}]
[null,null,null,null,null,null,null,null,null,null,null,null,null,null,null,{"$f":"IF(AND(TODAY()<Table14[[#This Row],[BEG date]]-14, Table14[[#This Row],[Submitted on]]=\"\"), \"\", IF(AND(Table14[[#This Row],[BEG date]]-14<=TODAY(), TODAY()<Table14[[#This Row],[BEG date]], Table14[[#This Row],[Submitted on]]=\"\"), Table14[[#This Row],[BEG date]], IF(Table14[[#This Row],[Submitted on]]=\"\", \"PROCESS ASAP\", IF(Table14[[#This Row],[Payment Made]]=\"\", \"SUBMITTED\", \"DONE\"))))","v":"PROCESS ASAP"},{"$f":"IF(OR(Table14[[#This Row],[Vendor]]=\"\", Table14[[#This Row],[Email]]=\"\",Table14[[#This Row],[Amount]]=\"\",Table14[[#This Row],[Sent]]=\"\",Table14[[#This Row],[Vendor '#]]=\"\",Table14[[#This Row],[Completed (Date)]]=\"\",Table14[[#This Row],[Sent2]]=\"\",Table14[[#This Row],[Received]]=\"\",Table14[[#This Row],[On File (Y/leave blank)]]=\"\",Table14[[#This Row],[Requested]]=\"\",Table14[[#This Row],[Received3]]=\"\",Table14[[#This Row],[On File (Y/leave blank)4]]=\"\",Table14[[#This Row],[Requested5]]=\"\",Table14[[#This Row],[Received2]]=\"\", Table14[[#This Row],[On File(Y/leave blank)]]=\"\"), \"STOP\", \"GO\")","v":"STOP"},null,null,null,null,null,null,null,null,null,null,null,null,null,null,{"$f":"IF(Table14[[#This Row],[END date]]=Table14[[#This Row],[BEG date]],1,IF(Table14[[#This Row],[END date]]=Table14[[#This Row],[BEG date]]+1,2,IF(Table14[[#This Row],[END date]]=Table14[[#This Row],[BEG date]]+2,3,IF(Table14[[#This Row],[END date]]=Table14[[#This Row],[BEG date]]+3,4,IF(Table14[[#This Row],[END date]]=Table14[[#This Row],[BEG date]]+4,5,\">5\")))))","v":1}]
[null,null,null,null,null,null,null,null,null,null,null,null,null,null,null,{"$f":"IF(AND(TODAY()<Table14[[#This Row],[BEG date]]-14, Table14[[#This Row],[Submitted on]]=\"\"), \"\", IF(AND(Table14[[#This Row],[BEG date]]-14<=TODAY(), TODAY()<Table14[[#This Row],[BEG date]], Table14[[#This Row],[Submitted on]]=\"\"), Table14[[#This Row],[BEG date]], IF(Table14[[#This Row],[Submitted on]]=\"\", \"PROCESS ASAP\", IF(Table14[[#This Row],[Payment Made]]=\"\", \"SUBMITTED\", \"DONE\"))))","v":"PROCESS ASAP"},{"$f":"IF(OR(Table14[[#This Row],[Vendor]]=\"\", Table14[[#This Row],[Email]]=\"\",Table14[[#This Row],[Amount]]=\"\",Table14[[#This Row],[Sent]]=\"\",Table14[[#This Row],[Vendor '#]]=\"\",Table14[[#This Row],[Completed (Date)]]=\"\",Table14[[#This Row],[Sent2]]=\"\",Table14[[#This Row],[Received]]=\"\",Table14[[#This Row],[On File (Y/leave blank)]]=\"\",Table14[[#This Row],[Requested]]=\"\",Table14[[#This Row],[Received3]]=\"\",Table14[[#This Row],[On File (Y/leave blank)4]]=\"\",Table14[[#This Row],[Requested5]]=\"\",Table14[[#This Row],[Received2]]=\"\", Table14[[#This Row],[On File(Y/leave blank)]]=\"\"), \"STOP\", \"GO\")","v":"STOP"},null,null,null,null,null,null,null,null,null,null,null,null,null,null,{"$f":"IF(Table14[[#This Row],[END date]]=Table14[[#This Row],[BEG date]],1,IF(Table14[[#This Row],[END date]]=Table14[[#This Row],[BEG date]]+1,2,IF(Table14[[#This Row],[END date]]=Table14[[#This Row],[BEG date]]+2,3,IF(Table14[[#This Row],[END date]]=Table14[[#This Row],[BEG date]]+3,4,IF(Table14[[#This Row],[END date]]=Table14[[#This Row],[BEG date]]+4,5,\">5\")))))","v":1}]
[null,null,null,null,null,null,null,null,null,null,null,null,null,null,null,{"$f":"IF(AND(TODAY()<Table14[[#This Row],[BEG date]]-14, Table14[[#This Row],[Submitted on]]=\"\"), \"\", IF(AND(Table14[[#This Row],[BEG date]]-14<=TODAY(), TODAY()<Table14[[#This Row],[BEG date]], Table14[[#This Row],[Submitted on]]=\"\"), Table14[[#This Row],[BEG date]], IF(Table14[[#This Row],[Submitted on]]=\"\", \"PROCESS ASAP\", IF(Table14[[#This Row],[Payment Made]]=\"\", \"SUBMITTED\", \"DONE\"))))","v":"PROCESS ASAP"},{"$f":"IF(OR(Table14[[#This Row],[Vendor]]=\"\", Table14[[#This Row],[Email]]=\"\",Table14[[#This Row],[Amount]]=\"\",Table14[[#This Row],[Sent]]=\"\",Table14[[#This Row],[Vendor '#]]=\"\",Table14[[#This Row],[Completed (Date)]]=\"\",Table14[[#This Row],[Sent2]]=\"\",Table14[[#This Row],[Received]]=\"\",Table14[[#This Row],[On File (Y/leave blank)]]=\"\",Table14[[#This Row],[Requested]]=\"\",Table14[[#This Row],[Received3]]=\"\",Table14[[#This Row],[On File (Y/leave blank)4]]=\"\",Table14[[#This Row],[Requested5]]=\"\",Table14[[#This Row],[Received2]]=\"\", Table14[[#This Row],[On File(Y/leave blank)]]=\"\"), \"STOP\", \"GO\")","v":"STOP"},null,null,null,null,null,null,null,null,null,null,null,null,null,null,{"$f":"IF(Table14[[#This Row],[END date]]=Table14[[#This Row],[BEG date]],1,IF(Table14[[#This Row],[END date]]=Table14[[#This Row],[BEG date]]+1,2,IF(Table14[[#This Row],[END date]]=Table14[[#This Row],[BEG date]]+2,3,IF(Table14[[#This Row],[END date]]=Table14[[#This Row],[BEG date]]+3,4,IF(Table14[[#This Row],[END date]]=Table14[[#This Row],[BEG date]]+4,5,\">5\")))))","v":1}]
[null,null,null,null,null,null,null,null,null,null,null,null,null,null,null,{"$f":"IF(AND(TODAY()<Table14[[#This Row],[BEG date]]-14, Table14[[#This Row],[Submitted on]]=\"\"), \"\", IF(AND(Table14[[#This Row],[BEG date]]-14<=TODAY(), TODAY()<Table14[[#This Row],[BEG date]], Table14[[#This Row],[Submitted on]]=\"\"), Table14[[#This Row],[BEG date]], IF(Table14[[#This Row],[Submitted on]]=\"\", \"PROCESS ASAP\", IF(Table14[[#This Row],[Payment Made]]=\"\", \"SUBMITTED\", \"DONE\"))))","v":"PROCESS ASAP"},{"$f":"IF(OR(Table14[[#This Row],[Vendor]]=\"\", Table14[[#This Row],[Email]]=\"\",Table14[[#This Row],[Amount]]=\"\",Table14[[#This Row],[Sent]]=\"\",Table14[[#This Row],[Vendor '#]]=\"\",Table14[[#This Row],[Completed (Date)]]=\"\",Table14[[#This Row],[Sent2]]=\"\",Table14[[#This Row],[Received]]=\"\",Table14[[#This Row],[On File (Y/leave blank)]]=\"\",Table14[[#This Row],[Requested]]=\"\",Table14[[#This Row],[Received3]]=\"\",Table14[[#This Row],[On File (Y/leave blank)4]]=\"\",Table14[[#This Row],[Requested5]]=\"\",Table14[[#This Row],[Received2]]=\"\", Table14[[#This Row],[On File(Y/leave blank)]]=\"\"), \"STOP\", \"GO\")","v":"STOP"},null,null,null,null,null,null,null,null,null,null,null,null,null,null,{"$f":"IF(Table14[[#This Row],[END date]]=Table14[[#This Row],[BEG date]],1,IF(Table14[[#This Row],[END date]]=Table14[[#This Row],[BEG date]]+1,2,IF(Table14[[#This Row],[END date]]=Table14[[#This Row],[BEG date]]+2,3,IF(Table14[[#This Row],[END date]]=Table14[[#This Row],[BEG date]]+3,4,IF(Table14[[#This Row],[END date]]=Table14[[#This Row],[BEG date]]+4,5,\">5\")))))","v":1}]
[null,null,null,null,null,null,null,null,null,null,null,null,null,null,null,{"$f":"IF(AND(TODAY()<Table14[[#This Row],[BEG date]]-14, Table14[[#This Row],[Submitted on]]=\"\"), \"\", IF(AND(Table14[[#This Row],[BEG date]]-14<=TODAY(), TODAY()<Table14[[#This Row],[BEG date]], Table14[[#This Row],[Submitted on]]=\"\"), Table14[[#This Row],[BEG date]], IF(Table14[[#This Row],[Submitted on]]=\"\", \"PROCESS ASAP\", IF(Table14[[#This Row],[Payment Made]]=\"\", \"SUBMITTED\", \"DONE\"))))","v":"PROCESS ASAP"},{"$f":"IF(OR(Table14[[#This Row],[Vendor]]=\"\", Table14[[#This Row],[Email]]=\"\",Table14[[#This Row],[Amount]]=\"\",Table14[[#This Row],[Sent]]=\"\",Table14[[#This Row],[Vendor '#]]=\"\",Table14[[#This Row],[Completed (Date)]]=\"\",Table14[[#This Row],[Sent2]]=\"\",Table14[[#This Row],[Received]]=\"\",Table14[[#This Row],[On File (Y/leave blank)]]=\"\",Table14[[#This Row],[Requested]]=\"\",Table14[[#This Row],[Received3]]=\"\",Table14[[#This Row],[On File (Y/leave blank)4]]=\"\",Table14[[#This Row],[Requested5]]=\"\",Table14[[#This Row],[Received2]]=\"\", Table14[[#This Row],[On File(Y/leave blank)]]=\"\"), \"STOP\", \"GO\")","v":"STOP"},null,null,null,null,null,null,null,null,null,null,null,null,null,null,{"$f":"IF(Table14[[#This Row],[END date]]=Table14[[#This Row],[BEG date]],1,IF(Table14[[#This Row],[END date]]=Table14[[#This Row],[BEG date]]+1,2,IF(Table14[[#This Row],[END date]]=Table14[[#This Row],[BEG date]]+2,3,IF(Table14[[#This Row],[END date]]=Table14[[#This Row],[BEG date]]+3,4,IF(Table14[[#This Row],[END date]]=Table14[[#This Row],[BEG date]]+4,5,\">5\")))))","v":1}]
[null,null,null,null,null,null,null,null,null,null,null,null,null,null,null,{"$f":"IF(AND(TODAY()<Table14[[#This Row],[BEG date]]-14, Table14[[#This Row],[Submitted on]]=\"\"), \"\", IF(AND(Table14[[#This Row],[BEG date]]-14<=TODAY(), TODAY()<Table14[[#This Row],[BEG date]], Table14[[#This Row],[Submitted on]]=\"\"), Table14[[#This Row],[BEG date]], IF(Table14[[#This Row],[Submitted on]]=\"\", \"PROCESS ASAP\", IF(Table14[[#This Row],[Payment Made]]=\"\", \"SUBMITTED\", \"DONE\"))))","v":"PROCESS ASAP"},{"$f":"IF(OR(Table14[[#This Row],[Vendor]]=\"\", Table14[[#This Row],[Email]]=\"\",Table14[[#This Row],[Amount]]=\"\",Table14[[#This Row],[Sent]]=\"\",Table14[[#This Row],[Vendor '#]]=\"\",Table14[[#This Row],[Completed (Date)]]=\"\",Table14[[#This Row],[Sent2]]=\"\",Table14[[#This Row],[Received]]=\"\",Table14[[#This Row],[On File (Y/leave blank)]]=\"\",Table14[[#This Row],[Requested]]=\"\",Table14[[#This Row],[Received3]]=\"\",Table14[[#This Row],[On File (Y/leave blank)4]]=\"\",Table14[[#This Row],[Requested5]]=\"\",Table14[[#This Row],[Received2]]=\"\", Table14[[#This Row],[On File(Y/leave blank)]]=\"\"), \"STOP\", \"GO\")","v":"STOP"},null,null,null,null,null,null,null,null,null,null,null,null,null,null,{"$f":"IF(Table14[[#This Row],[END date]]=Table14[[#This Row],[BEG date]],1,IF(Table14[[#This Row],[END date]]=Table14[[#This Row],[BEG date]]+1,2,IF(Table14[[#This Row],[END date]]=Table14[[#This Row],[BEG date]]+2,3,IF(Table14[[#This Row],[END date]]=Table14[[#This Row],[BEG date]]+3,4,IF(Table14[[#This Row],[END date]]=Table14[[#This Row],[BEG date]]+4,5,\">5\")))))","v":1}]
[null,null,null,null,null,null,null,null,null,null,null,null,null,null,null,{"$f":"IF(AND(TODAY()<Table14[[#This Row],[BEG date]]-14, Table14[[#This Row],[Submitted on]]=\"\"), \"\", IF(AND(Table14[[#This Row],[BEG date]]-14<=TODAY(), TODAY()<Table14[[#This Row],[BEG date]], Table14[[#This Row],[Submitted on]]=\"\"), Table14[[#This Row],[BEG date]], IF(Table14[[#This Row],[Submitted on]]=\"\", \"PROCESS ASAP\", IF(Table14[[#This Row],[Payment Made]]=\"\", \"SUBMITTED\", \"DONE\"))))","v":"PROCESS ASAP"},{"$f":"IF(OR(Table14[[#This Row],[Vendor]]=\"\", Table14[[#This Row],[Email]]=\"\",Table14[[#This Row],[Amount]]=\"\",Table14[[#This Row],[Sent]]=\"\",Table14[[#This Row],[Vendor '#]]=\"\",Table14[[#This Row],[Completed (Date)]]=\"\",Table14[[#This Row],[Sent2]]=\"\",Table14[[#This Row],[Received]]=\"\",Table14[[#This Row],[On File (Y/leave blank)]]=\"\",Table14[[#This Row],[Requested]]=\"\",Table14[[#This Row],[Received3]]=\"\",Table14[[#This Row],[On File (Y/leave blank)4]]=\"\",Table14[[#This Row],[Requested5]]=\"\",Table14[[#This Row],[Received2]]=\"\", Table14[[#This Row],[On File(Y/leave blank)]]=\"\"), \"STOP\", \"GO\")","v":"STOP"},null,null,null,null,null,null,null,null,null,null,null,null,null,null,{"$f":"IF(Table14[[#This Row],[END date]]=Table14[[#This Row],[BEG date]],1,IF(Table14[[#This Row],[END date]]=Table14[[#This Row],[BEG date]]+1,2,IF(Table14[[#This Row],[END date]]=Table14[[#This Row],[BEG date]]+2,3,IF(Table14[[#This Row],[END date]]=Table14[[#This Row],[BEG date]]+3,4,IF(Table14[[#This Row],[END date]]=Table14[[#This Row],[BEG date]]+4,5,\">5\")))))","v":1}]
[null,null,null,null,null,null,null,null,null,null,null,null,null,null,null,{"$f":"IF(AND(TODAY()<Table14[[#This Row],[BEG date]]-14, Table14[[#This Row],[Submitted on]]=\"\"), \"\", IF(AND(Table14[[#This Row],[BEG date]]-14<=TODAY(), TODAY()<Table14[[#This Row],[BEG date]], Table14[[#This Row],[Submitted on]]=\"\"), Table14[[#This Row],[BEG date]], IF(Table14[[#This Row],[Submitted on]]=\"\", \"PROCESS ASAP\", IF(Table14[[#This Row],[Payment Made]]=\"\", \"SUBMITTED\", \"DONE\"))))","v":"PROCESS ASAP"},{"$f":"IF(OR(Table14[[#This Row],[Vendor]]=\"\", Table14[[#This Row],[Email]]=\"\",Table14[[#This Row],[Amount]]=\"\",Table14[[#This Row],[Sent]]=\"\",Table14[[#This Row],[Vendor '#]]=\"\",Table14[[#This Row],[Completed (Date)]]=\"\",Table14[[#This Row],[Sent2]]=\"\",Table14[[#This Row],[Received]]=\"\",Table14[[#This Row],[On File (Y/leave blank)]]=\"\",Table14[[#This Row],[Requested]]=\"\",Table14[[#This Row],[Received3]]=\"\",Table14[[#This Row],[On File (Y/leave blank)4]]=\"\",Table14[[#This Row],[Requested5]]=\"\",Table14[[#This Row],[Received2]]=\"\", Table14[[#This Row],[On File(Y/leave blank)]]=\"\"), \"STOP\", \"GO\")","v":"STOP"},null,null,null,null,null,null,null,null,null,null,null,null,null,null,{"$f":"IF(Table14[[#This Row],[END date]]=Table14[[#This Row],[BEG date]],1,IF(Table14[[#This Row],[END date]]=Table14[[#This Row],[BEG date]]+1,2,IF(Table14[[#This Row],[END date]]=Table14[[#This Row],[BEG date]]+2,3,IF(Table14[[#This Row],[END date]]=Table14[[#This Row],[BEG date]]+3,4,IF(Table14[[#This Row],[END date]]=Table14[[#This Row],[BEG date]]+4,5,\">5\")))))","v":1}]
[null,null,null,null,null,null,null,null,null,null,null,null,null,null,null,{"$f":"IF(AND(TODAY()<Table14[[#This Row],[BEG date]]-14, Table14[[#This Row],[Submitted on]]=\"\"), \"\", IF(AND(Table14[[#This Row],[BEG date]]-14<=TODAY(), TODAY()<Table14[[#This Row],[BEG date]], Table14[[#This Row],[Submitted on]]=\"\"), Table14[[#This Row],[BEG date]], IF(Table14[[#This Row],[Submitted on]]=\"\", \"PROCESS ASAP\", IF(Table14[[#This Row],[Payment Made]]=\"\", \"SUBMITTED\", \"DONE\"))))","v":"PROCESS ASAP"},{"$f":"IF(OR(Table14[[#This Row],[Vendor]]=\"\", Table14[[#This Row],[Email]]=\"\",Table14[[#This Row],[Amount]]=\"\",Table14[[#This Row],[Sent]]=\"\",Table14[[#This Row],[Vendor '#]]=\"\",Table14[[#This Row],[Completed (Date)]]=\"\",Table14[[#This Row],[Sent2]]=\"\",Table14[[#This Row],[Received]]=\"\",Table14[[#This Row],[On File (Y/leave blank)]]=\"\",Table14[[#This Row],[Requested]]=\"\",Table14[[#This Row],[Received3]]=\"\",Table14[[#This Row],[On File (Y/leave blank)4]]=\"\",Table14[[#This Row],[Requested5]]=\"\",Table14[[#This Row],[Received2]]=\"\", Table14[[#This Row],[On File(Y/leave blank)]]=\"\"), \"STOP\", \"GO\")","v":"STOP"},null,null,null,null,null,null,null,null,null,null,null,null,null,null,{"$f":"IF(Table14[[#This Row],[END date]]=Table14[[#This Row],[BEG date]],1,IF(Table14[[#This Row],[END date]]=Table14[[#This Row],[BEG date]]+1,2,IF(Table14[[#This Row],[END date]]=Table14[[#This Row],[BEG date]]+2,3,IF(Table14[[#This Row],[END date]]=Table14[[#This Row],[BEG date]]+3,4,IF(Table14[[#This Row],[END date]]=Table14[[#This Row],[BEG date]]+4,5,\">5\")))))","v":1}]
[null,null,null,null,null,null,null,null,null,null,null,null,null,null,null,{"$f":"IF(AND(TODAY()<Table14[[#This Row],[BEG date]]-14, Table14[[#This Row],[Submitted on]]=\"\"), \"\", IF(AND(Table14[[#This Row],[BEG date]]-14<=TODAY(), TODAY()<Table14[[#This Row],[BEG date]], Table14[[#This Row],[Submitted on]]=\"\"), Table14[[#This Row],[BEG date]], IF(Table14[[#This Row],[Submitted on]]=\"\", \"PROCESS ASAP\", IF(Table14[[#This Row],[Payment Made]]=\"\", \"SUBMITTED\", \"DONE\"))))","v":"PROCESS ASAP"},{"$f":"IF(OR(Table14[[#This Row],[Vendor]]=\"\", Table14[[#This Row],[Email]]=\"\",Table14[[#This Row],[Amount]]=\"\",Table14[[#This Row],[Sent]]=\"\",Table14[[#This Row],[Vendor '#]]=\"\",Table14[[#This Row],[Completed (Date)]]=\"\",Table14[[#This Row],[Sent2]]=\"\",Table14[[#This Row],[Received]]=\"\",Table14[[#This Row],[On File (Y/leave blank)]]=\"\",Table14[[#This Row],[Requested]]=\"\",Table14[[#This Row],[Received3]]=\"\",Table14[[#This Row],[On File (Y/leave blank)4]]=\"\",Table14[[#This Row],[Requested5]]=\"\",Table14[[#This Row],[Received2]]=\"\", Table14[[#This Row],[On File(Y/leave blank)]]=\"\"), \"STOP\", \"GO\")","v":"STOP"},null,null,null,null,null,null,null,null,null,null,null,null,null,null,{"$f":"IF(Table14[[#This Row],[END date]]=Table14[[#This Row],[BEG date]],1,IF(Table14[[#This Row],[END date]]=Table14[[#This Row],[BEG date]]+1,2,IF(Table14[[#This Row],[END date]]=Table14[[#This Row],[BEG date]]+2,3,IF(Table14[[#This Row],[END date]]=Table14[[#This Row],[BEG date]]+3,4,IF(Table14[[#This Row],[END date]]=Table14[[#This Row],[BEG date]]+4,5,\">5\")))))","v":1}]
[null,null,null,null,null,null,null,null,null,null,null,null,null,null,null,{"$f":"IF(AND(TODAY()<Table14[[#This Row],[BEG date]]-14, Table14[[#This Row],[Submitted on]]=\"\"), \"\", IF(AND(Table14[[#This Row],[BEG date]]-14<=TODAY(), TODAY()<Table14[[#This Row],[BEG date]], Table14[[#This Row],[Submitted on]]=\"\"), Table14[[#This Row],[BEG date]], IF(Table14[[#This Row],[Submitted on]]=\"\", \"PROCESS ASAP\", IF(Table14[[#This Row],[Payment Made]]=\"\", \"SUBMITTED\", \"DONE\"))))","v":"PROCESS ASAP"},{"$f":"IF(OR(Table14[[#This Row],[Vendor]]=\"\", Table14[[#This Row],[Email]]=\"\",Table14[[#This Row],[Amount]]=\"\",Table14[[#This Row],[Sent]]=\"\",Table14[[#This Row],[Vendor '#]]=\"\",Table14[[#This Row],[Completed (Date)]]=\"\",Table14[[#This Row],[Sent2]]=\"\",Table14[[#This Row],[Received]]=\"\",Table14[[#This Row],[On File (Y/leave blank)]]=\"\",Table14[[#This Row],[Requested]]=\"\",Table14[[#This Row],[Received3]]=\"\",Table14[[#This Row],[On File (Y/leave blank)4]]=\"\",Table14[[#This Row],[Requested5]]=\"\",Table14[[#This Row],[Received2]]=\"\", Table14[[#This Row],[On File(Y/leave blank)]]=\"\"), \"STOP\", \"GO\")","v":"STOP"},null,null,null,null,null,null,null,null,null,null,null,null,null,null,{"$f":"IF(Table14[[#This Row],[END date]]=Table14[[#This Row],[BEG date]],1,IF(Table14[[#This Row],[END date]]=Table14[[#This Row],[BEG date]]+1,2,IF(Table14[[#This Row],[END date]]=Table14[[#This Row],[BEG date]]+2,3,IF(Table14[[#This Row],[END date]]=Table14[[#This Row],[BEG date]]+3,4,IF(Table14[[#This Row],[END date]]=Table14[[#This Row],[BEG date]]+4,5,\">5\")))))","v":1}]
[null,null,null,null,null,null,null,null,null,null,null,null,null,null,null,{"$f":"IF(AND(TODAY()<Table14[[#This Row],[BEG date]]-14, Table14[[#This Row],[Submitted on]]=\"\"), \"\", IF(AND(Table14[[#This Row],[BEG date]]-14<=TODAY(), TODAY()<Table14[[#This Row],[BEG date]], Table14[[#This Row],[Submitted on]]=\"\"), Table14[[#This Row],[BEG date]], IF(Table14[[#This Row],[Submitted on]]=\"\", \"PROCESS ASAP\", IF(Table14[[#This Row],[Payment Made]]=\"\", \"SUBMITTED\", \"DONE\"))))","v":"PROCESS ASAP"},{"$f":"IF(OR(Table14[[#This Row],[Vendor]]=\"\", Table14[[#This Row],[Email]]=\"\",Table14[[#This Row],[Amount]]=\"\",Table14[[#This Row],[Sent]]=\"\",Table14[[#This Row],[Vendor '#]]=\"\",Table14[[#This Row],[Completed (Date)]]=\"\",Table14[[#This Row],[Sent2]]=\"\",Table14[[#This Row],[Received]]=\"\",Table14[[#This Row],[On File (Y/leave blank)]]=\"\",Table14[[#This Row],[Requested]]=\"\",Table14[[#This Row],[Received3]]=\"\",Table14[[#This Row],[On File (Y/leave blank)4]]=\"\",Table14[[#This Row],[Requested5]]=\"\",Table14[[#This Row],[Received2]]=\"\", Table14[[#This Row],[On File(Y/leave blank)]]=\"\"), \"STOP\", \"GO\")","v":"STOP"},null,null,null,null,null,null,null,null,null,null,null,null,null,null,{"$f":"IF(Table14[[#This Row],[END date]]=Table14[[#This Row],[BEG date]],1,IF(Table14[[#This Row],[END date]]=Table14[[#This Row],[BEG date]]+1,2,IF(Table14[[#This Row],[END date]]=Table14[[#This Row],[BEG date]]+2,3,IF(Table14[[#This Row],[END date]]=Table14[[#This Row],[BEG date]]+3,4,IF(Table14[[#This Row],[END date]]=Table14[[#This Row],[BEG date]]+4,5,\">5\")))))","v":1}]
[null,null,null,null,null,null,null,null,null,null,null,null,null,null,null,{"$f":"IF(AND(TODAY()<Table14[[#This Row],[BEG date]]-14, Table14[[#This Row],[Submitted on]]=\"\"), \"\", IF(AND(Table14[[#This Row],[BEG date]]-14<=TODAY(), TODAY()<Table14[[#This Row],[BEG date]], Table14[[#This Row],[Submitted on]]=\"\"), Table14[[#This Row],[BEG date]], IF(Table14[[#This Row],[Submitted on]]=\"\", \"PROCESS ASAP\", IF(Table14[[#This Row],[Payment Made]]=\"\", \"SUBMITTED\", \"DONE\"))))","v":"PROCESS ASAP"},{"$f":"IF(OR(Table14[[#This Row],[Vendor]]=\"\", Table14[[#This Row],[Email]]=\"\",Table14[[#This Row],[Amount]]=\"\",Table14[[#This Row],[Sent]]=\"\",Table14[[#This Row],[Vendor '#]]=\"\",Table14[[#This Row],[Completed (Date)]]=\"\",Table14[[#This Row],[Sent2]]=\"\",Table14[[#This Row],[Received]]=\"\",Table14[[#This Row],[On File (Y/leave blank)]]=\"\",Table14[[#This Row],[Requested]]=\"\",Table14[[#This Row],[Received3]]=\"\",Table14[[#This Row],[On File (Y/leave blank)4]]=\"\",Table14[[#This Row],[Requested5]]=\"\",Table14[[#This Row],[Received2]]=\"\", Table14[[#This Row],[On File(Y/leave blank)]]=\"\"), \"STOP\", \"GO\")","v":"STOP"},null,null,null,null,null,null,null,null,null,null,null,null,null,null,{"$f":"IF(Table14[[#This Row],[END date]]=Table14[[#This Row],[BEG date]],1,IF(Table14[[#This Row],[END date]]=Table14[[#This Row],[BEG date]]+1,2,IF(Table14[[#This Row],[END date]]=Table14[[#This Row],[BEG date]]+2,3,IF(Table14[[#This Row],[END date]]=Table14[[#This Row],[BEG date]]+3,4,IF(Table14[[#This Row],[END date]]=Table14[[#This Row],[BEG date]]+4,5,\">5\")))))","v":1}]
[null,null,null,null,null,null,null,null,null,null,null,null,null,null,null,{"$f":"IF(AND(TODAY()<Table14[[#This Row],[BEG date]]-14, Table14[[#This Row],[Submitted on]]=\"\"), \"\", IF(AND(Table14[[#This Row],[BEG date]]-14<=TODAY(), TODAY()<Table14[[#This Row],[BEG date]], Table14[[#This Row],[Submitted on]]=\"\"), Table14[[#This Row],[BEG date]], IF(Table14[[#This Row],[Submitted on]]=\"\", \"PROCESS ASAP\", IF(Table14[[#This Row],[Payment Made]]=\"\", \"SUBMITTED\", \"DONE\"))))","v":"PROCESS ASAP"},{"$f":"IF(OR(Table14[[#This Row],[Vendor]]=\"\", Table14[[#This Row],[Email]]=\"\",Table14[[#This Row],[Amount]]=\"\",Table14[[#This Row],[Sent]]=\"\",Table14[[#This Row],[Vendor '#]]=\"\",Table14[[#This Row],[Completed (Date)]]=\"\",Table14[[#This Row],[Sent2]]=\"\",Table14[[#This Row],[Received]]=\"\",Table14[[#This Row],[On File (Y/leave blank)]]=\"\",Table14[[#This Row],[Requested]]=\"\",Table14[[#This Row],[Received3]]=\"\",Table14[[#This Row],[On File (Y/leave blank)4]]=\"\",Table14[[#This Row],[Requested5]]=\"\",Table14[[#This Row],[Received2]]=\"\", Table14[[#This Row],[On File(Y/leave blank)]]=\"\"), \"STOP\", \"GO\")","v":"STOP"},null,null,null,null,null,null,null,null,null,null,null,null,null,null,{"$f":"IF(Table14[[#This Row],[END date]]=Table14[[#This Row],[BEG date]],1,IF(Table14[[#This Row],[END date]]=Table14[[#This Row],[BEG date]]+1,2,IF(Table14[[#This Row],[END date]]=Table14[[#This Row],[BEG date]]+2,3,IF(Table14[[#This Row],[END date]]=Table14[[#This Row],[BEG date]]+3,4,IF(Table14[[#This Row],[END date]]=Table14[[#This Row],[BEG date]]+4,5,\">5\")))))","v":1}]

{"sheet":"2014","index":1,"n_rows":119,"n_cols":35,"rows_kept":119,"cut":false,"hidden":false,"merged":[[0,22,0,33],[0,0,0,2],[0,17,0,20],[0,3,0,4],[0,6,0,7],[0,8,0,10],[0,11,0,13]]}
["Transaction Info",null,null,"Vendor Approval",null,"I.C. Questionnaire (if applicable)","Authorization (Denise or Kelly)",null,"W-9",null,null,"I.C. Contract",null,null,"Invoice","Date = 1\n\"Process ASAP\" = 2\n(Blank) = 3","All prior fields must be filled before processing FAST TRACK","PAYMENT PROCESS",null,null,null,null,"Additional Information"]
["Recipient","Email","Amount","Sent","Vendor #","Completed (Date)","Sent2","Received","On File (Y/leave blank)","Requested","Received3","On File (Y/leave blank)4","Requested5","Received2","On File(Y/leave blank)","Status (Priority list↑)","REVISE","Started By","Submitted on","FTNumber","Payment Made","Column7","Date of Request","Name of Requester","Operating","Account","Class","ICO #","Description","BEG date","END date","Days worked","Mailed/Hand Delivered","Notes","Phone Number"]
["Ryan Turner* (See row 104 for other half)","ryanhturner@att.net",3000,"2014-06-13","0000086412","2014-06-13","2014-06-13","2014-06-13","Y","NA","NA","Y","NA","NA","Y",{"$f":"IF(AND(TODAY()<Table1[[#This Row],[BEG date]]-14, Table1[[#This Row],[Submitted on]]=\"\"), \"\", IF(AND(Table1[[#This Row],[BEG date]]-14<=TODAY(), TODAY()<Table1[[#This Row],[BEG date]], Table1[[#This Row],[Submitted on]]=\"\"), Table1[[#This Row],[BEG date]], IF(Table1[[#This Row],[Submitted on]]=\"\", \"PROCESS ASAP\", IF(Table1[[#This Row],[Payment Made]]=\"\", \"SUBMITTED\", \"DONE\"))))","v":"DONE"},{"$f":"IF(OR(Table1[[#This Row],[Recipient]]=\"\", Table1[[#This Row],[Email]]=\"\",Table1[[#This Row],[Amount]]=\"\",Table1[[#This Row],[Sent]]=\"\",Table1[[#This Row],[Vendor '#]]=\"\",Table1[[#This Row],[Completed (Date)]]=\"\",Table1[[#This Row],[Sent2]]=\"\",Table1[[#This Row],[Received]]=\"\",Table1[[#This Row],[On File (Y/leave blank)]]=\"\",Table1[[#This Row],[Requested]]=\"\",Table1[[#This Row],[Received3]]=\"\",Table1[[#This Row],[On File (Y/leave blank)4]]=\"\",Table1[[#This Row],[Requested5]]=\"\",Table1[[#This Row],[Received2]]=\"\", Table1[[#This Row],[On File(Y/leave blank)]]=\"\"), \"STOP\", \"GO\")","v":"GO"},"Andrew T","2014-06-16",null,"2014-07-14",null,"2014-06-04","Karren Williamson",19263118,null,null,"ICO 7950","Writing/designing drills for marching band","2014-06-03","2014-11-12",{"$f":"IF(Table1[[#This Row],[END date]]=Table1[[#This Row],[BEG date]],1,IF(Table1[[#This Row],[END date]]=Table1[[#This Row],[BEG date]]+1,2,IF(Table1[[#This Row],[END date]]=Table1[[#This Row],[BEG date]]+2,3,IF(Table1[[#This Row],[END date]]=Table1[[#This Row],[BEG date]]+3,4,IF(Table1[[#This Row],[END date]]=Table1[[#This Row],[BEG date]]+4,5,\">5\")))))","v":">5"},"Mailed","Half of the amount paid now ($6,000/2 = $3,000) and the other half ($3,000) to be paid later"]
["Michael Holober","cdot@cyburban.com",500,"NA","0000085344","2014-06-13","2014-06-13","2014-06-17","Y","NA","NA","Y","NA","NA","Y",{"$f":"IF(AND(TODAY()<Table1[[#This Row],[BEG date]]-14, Table1[[#This Row],[Submitted on]]=\"\"), \"\", IF(AND(Table1[[#This Row],[BEG date]]-14<=TODAY(), TODAY()<Table1[[#This Row],[BEG date]], Table1[[#This Row],[Submitted on]]=\"\"), Table1[[#This Row],[BEG date]], IF(Table1[[#This Row],[Submitted on]]=\"\", \"PROCESS ASAP\", IF(Table1[[#This Row],[Payment Made]]=\"\", \"SUBMITTED\", \"DONE\"))))","v":"DONE"},{"$f":"IF(OR(Table1[[#This Row],[Recipient]]=\"\", Table1[[#This Row],[Email]]=\"\",Table1[[#This Row],[Amount]]=\"\",Table1[[#This Row],[Sent]]=\"\",Table1[[#This Row],[Vendor '#]]=\"\",Table1[[#This Row],[Completed (Date)]]=\"\",Table1[[#This Row],[Sent2]]=\"\",Table1[[#This Row],[Received]]=\"\",Table1[[#This Row],[On File (Y/leave blank)]]=\"\",Table1[[#This Row],[Requested]]=\"\",Table1[[#This Row],[Received3]]=\"\",Table1[[#This Row],[On File (Y/leave blank)4]]=\"\",Table1[[#This Row],[Requested5]]=\"\",Table1[[#This Row],[Received2]]=\"\", Table1[[#This Row],[On File(Y/leave blank)]]=\"\"), \"STOP\", \"GO\")","v":"GO"},"Andrew T","2014-06-17",null,"2014-06-27",null,"2014-04-25","Steve Lindeman",20263353,null,null,"ICO 8993","Teaching jazz composition lessons",null,null,{"$f":"IF(Table1[[#This Row],[END date]]=Table1[[#This Row],[BEG date]],1,IF(Table1[[#This Row],[END date]]=Table1[[#This Row],[BEG date]]+1,2,IF(Table1[[#This Row],[END date]]=Table1[[#This Row],[BEG date]]+2,3,IF(Table1[[#This Row],[END date]]=Table1[[#This Row],[BEG date]]+3,4,IF(Table1[[#This Row],[END date]]=Table1[[#This Row],[BEG date]]+4,5,\">5\")))))","v":1},"Mailed","Make sure Mike sends in new W9 with new EIN and submit to Denise!"]
["Luke Howard","lbhoward@byu.edu ",150,"2014-06-17","0000086455","NA","NA","NA","Y","2014-06-16","2014-06-18","NA","NA","NA","Y",{"$f":"IF(AND(TODAY()<Table1[[#This Row],[BEG date]]-14, Table1[[#This Row],[Submitted on]]=\"\"), \"\", IF(AND(Table1[[#This Row],[BEG date]]-14<=TODAY(), TODAY()<Table1[[#This Row],[BEG date]], Table1[[#This Row],[Submitted on]]=\"\"), Table1[[#This Row],[BEG date]], IF(Table1[[#This Row],[Submitted on]]=\"\", \"PROCESS ASAP\", IF(Table1[[#This Row],[Payment Made]]=\"\", \"SUBMITTED\", \"DONE\"))))","v":"DONE"},{"$f":"IF(OR(Table1[[#This Row],[Recipient]]=\"\", Table1[[#This Row],[Email]]=\"\",Table1[[#This Row],[Amount]]=\"\",Table1[[#This Row],[Sent]]=\"\",Table1[[#This Row],[Vendor '#]]=\"\",Table1[[#This Row],[Completed (Date)]]=\"\",Table1[[#This Row],[Sent2]]=\"\",Table1[[#This Row],[Received]]=\"\",Table1[[#This Row],[On File (Y/leave blank)]]=\"\",Table1[[#This Row],[Requested]]=\"\",Table1[[#This Row],[Received3]]=\"\",Table1[[#This Row],[On File (Y/leave blank)4]]=\"\",Table1[[#This Row],[Requested5]]=\"\",Table1[[#This Row],[Received2]]=\"\", Table1[[#This Row],[On File(Y/leave blank)]]=\"\"), \"STOP\", \"GO\")","v":"GO"},"Andrew T","2014-06-18",null,"2014-06-26",null,"2014-06-02","Mike Hicks",11263009,6410,35746,"ROY 8999","Took photos of Mormon Tab. Choir",null,null,{"$f":"IF(Table1[[#This Row],[END date]]=Table1[[#This Row],[BEG date]],1,IF(Table1[[#This Row],[END date]]=Table1[[#This Row],[BEG date]]+1,2,IF(Table1[[#This Row],[END date]]=Table1[[#This Row],[BEG date]]+2,3,IF(Table1[[#This Row],[END date]]=Table1[[#This Row],[BEG date]]+3,4,IF(Table1[[#This Row],[END date]]=Table1[[#This Row],[BEG date]]+4,5,\">5\")))))","v":1},null,"Mike Hicks wants to pay $150 royalty to Luke for taking pictures"]
["Matt Ward","ward@talujon.org",100,"2014-06-26",86542,"NA","2014-06-26","2014-06-26","Y","NA","NA","NA","NA","NA","Y",{"$f":"IF(AND(TODAY()<Table1[[#This Row],[BEG date]]-14, Table1[[#This Row],[Submitted on]]=\"\"), \"\", IF(AND(Table1[[#This Row],[BEG date]]-14<=TODAY(), TODAY()<Table1[[#This Row],[BEG date]], Table1[[#This Row],[Submitted on]]=\"\"), Table1[[#This Row],[BEG date]], IF(Table1[[#This Row],[Submitted on]]=\"\", \"PROCESS ASAP\", IF(Table1[[#This Row],[Payment Made]]=\"\", \"SUBMITTED\", \"DONE\"))))","v":"SUBMITTED"},{"$f":"IF(OR(Table1[[#This Row],[Recipient]]=\"\", Table1[[#This Row],[Email]]=\"\",Table1[[#This Row],[Amount]]=\"\",Table1[[#This Row],[Sent]]=\"\",Table1[[#This Row],[Vendor '#]]=\"\",Table1[[#This Row],[Completed (Date)]]=\"\",Table1[[#This Row],[Sent2]]=\"\",Table1[[#This Row],[Received]]=\"\",Table1[[#This Row],[On File (Y/leave blank)]]=\"\",Table1[[#This Row],[Requested]]=\"\",Table1[[#This Row],[Received3]]=\"\",Table1[[#This Row],[On File (Y/leave blank)4]]=\"\",Table1[[#This Row],[Requested5]]=\"\",Table1[[#This Row],[Received2]]=\"\", Table1[[#This Row],[On File(Y/leave blank)]]=\"\"), \"STOP\", \"GO\")","v":"GO"},"Lindsey","2014-06-27",null,null,null,"2014-06-09","Steve Ricks",20263360,6200,0,"ICO 7929","Performed a piece of Steve Ricks in NYC","2014-06-07","2014-06-07",{"$f":"IF(Table1[[#This Row],[END date]]=Table1[[#This Row],[BEG date]],1,IF(Table1[[#This Row],[END date]]=Table1[[#This Row],[BEG date]]+1,2,IF(Table1[[#This Row],[END date]]=Table1[[#This Row],[BEG date]]+2,3,IF(Table1[[#This Row],[END date]]=Table1[[#This Row],[BEG date]]+3,4,IF(Table1[[#This Row],[END date]]=Table1[[#This Row],[BEG date]]+4,5,\">5\")))))","v":1},"Mailed"]
["Kimberly Cole Luevano","kimberly.luevano@unt.edu",900,"2014-06-18","0000086482","2014-06-19","2014-06-19","2014-06-20","Y","2014-06-18","2014-06-19","NA","NA","NA","Y",{"$f":"IF(AND(TODAY()<Table1[[#This Row],[BEG date]]-14, Table1[[#This Row],[Submitted on]]=\"\"), \"\", IF(AND(Table1[[#This Row],[BEG date]]-14<=TODAY(), TODAY()<Table1[[#This Row],[BEG date]], Table1[[#This Row],[Submitted on]]=\"\"), Table1[[#This Row],[BEG date]], IF(Table1[[#This Row],[Submitted on]]=\"\", \"PROCESS ASAP\", IF(Table1[[#This Row],[Payment Made]]=\"\", \"SUBMITTED\", \"DONE\"))))","v":"DONE"},{"$f":"IF(OR(Table1[[#This Row],[Recipient]]=\"\", Table1[[#This Row],[Email]]=\"\",Table1[[#This Row],[Amount]]=\"\",Table1[[#This Row],[Sent]]=\"\",Table1[[#This Row],[Vendor '#]]=\"\",Table1[[#This Row],[Completed (Date)]]=\"\",Table1[[#This Row],[Sent2]]=\"\",Table1[[#This Row],[Received]]=\"\",Table1[[#This Row],[On File (Y/leave blank)]]=\"\",Table1[[#This Row],[Requested]]=\"\",Table1[[#This Row],[Received3]]=\"\",Table1[[#This Row],[On File (Y/leave blank)4]]=\"\",Table1[[#This Row],[Requested5]]=\"\",Table1[[#This Row],[Received2]]=\"\", Table1[[#This Row],[On File(Y/leave blank)]]=\"\"), \"STOP\", \"GO\")","v":"GO"},"Andrew T","2014-06-20",null,"2014-06-27",null,"2014-06-18","Jaren Hinckley",13263368,6200,35747,"ICO 8000","Taught class, private lessons, and gave recital at Utah Clarinet Festival","2014-02-28","2014-03-01",{"$f":"IF(Table1[[#This Row],[END date]]=Table1[[#This Row],[BEG date]],1,IF(Table1[[#This Row],[END date]]=Table1[[#This Row],[BEG date]]+1,2,IF(Table1[[#This Row],[END date]]=Table1[[#This Row],[BEG date]]+2,3,IF(Table1[[#This Row],[END date]]=Table1[[#This Row],[BEG date]]+3,4,IF(Table1[[#This Row],[END date]]=Table1[[#This Row],[BEG date]]+4,5,\">5\")))))","v":2},"Mailed"]
["Jeremy Reynolds","jeremy.w.reynolds@du.edu",1082.8,"2014-06-18","0000086480","2014-06-19","2014-06-19","2014-06-20","Y","2014-06-18","2014-06-19","NA","NA","NA","Y",{"$f":"IF(AND(TODAY()<Table1[[#This Row],[BEG date]]-14, Table1[[#This Row],[Submitted on]]=\"\"), \"\", IF(AND(Table1[[#This Row],[BEG date]]-14<=TODAY(), TODAY()<Table1[[#This Row],[BEG date]], Table1[[#This Row],[Submitted on]]=\"\"), Table1[[#This Row],[BEG date]], IF(Table1[[#This Row],[Submitted on]]=\"\", \"PROCESS ASAP\", IF(Table1[[#This Row],[Payment Made]]=\"\", \"SUBMITTED\", \"DONE\"))))","v":"DONE"},{"$f":"IF(OR(Table1[[#This Row],[Recipient]]=\"\", Table1[[#This Row],[Email]]=\"\",Table1[[#This Row],[Amount]]=\"\",Table1[[#This Row],[Sent]]=\"\",Table1[[#This Row],[Vendor '#]]=\"\",Table1[[#This Row],[Completed (Date)]]=\"\",Table1[[#This Row],[Sent2]]=\"\",Table1[[#This Row],[Received]]=\"\",Table1[[#This Row],[On File (Y/leave blank)]]=\"\",Table1[[#This Row],[Requested]]=\"\",Table1[[#This Row],[Received3]]=\"\",Table1[[#This Row],[On File (Y/leave blank)4]]=\"\",Table1[[#This Row],[Requested5]]=\"\",Table1[[#This Row],[Received2]]=\"\", Table1[[#This Row],[On File(Y/leave blank)]]=\"\"), \"STOP\", \"GO\")","v":"GO"},"Andrew T","2014-06-20",null,"2014-06-27",null,"2014-06-18","Jaren Hinckley",13263368,6200,35747,"ICO 8000","Taught class, private lessons, and gave recital at Utah Clarinet Festival","2014-02-28","2014-03-01",{"$f":"IF(Table1[[#This Row],[END date]]=Table1[[#This Row],[BEG date]],1,IF(Table1[[#This Row],[END date]]=Table1[[#This Row],[BEG date]]+1,2,IF(Table1[[#This Row],[END date]]=Table1[[#This Row],[BEG date]]+2,3,IF(Table1[[#This Row],[END date]]=Table1[[#This Row],[BEG date]]+3,4,IF(Table1[[#This Row],[END date]]=Table1[[#This Row],[BEG date]]+4,5,\">5\")))))","v":2},"Mailed"]
["Susan Paik","sspaik@gmail.com",200,"2014-06-27",86547,"NA","2014-06-20","2014-06-20","Y","2014-06-20","2014-06-20","NA","NA","NA","Y",{"$f":"IF(AND(TODAY()<Table1[[#This Row],[BEG date]]-14, Table1[[#This Row],[Submitted on]]=\"\"), \"\", IF(AND(Table1[[#This Row],[BEG date]]-14<=TODAY(), TODAY()<Table1[[#This Row],[BEG date]], Table1[[#This Row],[Submitted on]]=\"\"), Table1[[#This Row],[BEG date]], IF(Table1[[#This Row],[Submitted on]]=\"\", \"PROCESS ASAP\", IF(Table1[[#This Row],[Payment Made]]=\"\", \"SUBMITTED\", \"DONE\"))))","v":"DONE"},{"$f":"IF(OR(Table1[[#This Row],[Recipient]]=\"\", Table1[[#This Row],[Email]]=\"\",Table1[[#This Row],[Amount]]=\"\",Table1[[#This Row],[Sent]]=\"\",Table1[[#This Row],[Vendor '#]]=\"\",Table1[[#This Row],[Completed (Date)]]=\"\",Table1[[#This Row],[Sent2]]=\"\",Table1[[#This Row],[Received]]=\"\",Table1[[#This Row],[On File (Y/leave blank)]]=\"\",Table1[[#This Row],[Requested]]=\"\",Table1[[#This Row],[Received3]]=\"\",Table1[[#This Row],[On File (Y/leave blank)4]]=\"\",Table1[[#This Row],[Requested5]]=\"\",Table1[[#This Row],[Received2]]=\"\", Table1[[#This Row],[On File(Y/leave blank)]]=\"\"), \"STOP\", \"GO\")","v":"GO"},"Lindsey","2014-06-27",null,"2014-07-20",null,"2014-06-20","April Clayton",20263316,6200,35738,"ICO 7929","Musician accompanist fee for recitals in Europe","2014-07-20","2014-07-20",{"$f":"IF(Table1[[#This Row],[END date]]=Table1[[#This Row],[BEG date]],1,IF(Table1[[#This Row],[END date]]=Table1[[#This Row],[BEG date]]+1,2,IF(Table1[[#This Row],[END date]]=Table1[[#This Row],[BEG date]]+2,3,IF(Table1[[#This Row],[END date]]=Table1[[#This Row],[BEG date]]+3,4,IF(Table1[[#This Row],[END date]]=Table1[[#This Row],[BEG date]]+4,5,\">5\")))))","v":1},"Hand Delivered (to April)"]
["Edward Niedermaier","teddy.composer@gmail.com",200,"2014-06-27",86546,"NA","2014-06-20","2014-06-20","Y","2014-06-20","2014-06-20","NA","NA","NA","Y",{"$f":"IF(AND(TODAY()<Table1[[#This Row],[BEG date]]-14, Table1[[#This Row],[Submitted on]]=\"\"), \"\", IF(AND(Table1[[#This Row],[BEG date]]-14<=TODAY(), TODAY()<Table1[[#This Row],[BEG date]], Table1[[#This Row],[Submitted on]]=\"\"), Table1[[#This Row],[BEG date]], IF(Table1[[#This Row],[Submitted on]]=\"\", \"PROCESS ASAP\", IF(Table1[[#This Row],[Payment Made]]=\"\", \"SUBMITTED\", \"DONE\"))))","v":"DONE"},{"$f":"IF(OR(Table1[[#This Row],[Recipient]]=\"\", Table1[[#This Row],[Email]]=\"\",Table1[[#This Row],[Amount]]=\"\",Table1[[#This Row],[Sent]]=\"\",Table1[[#This Row],[Vendor '#]]=\"\",Table1[[#This Row],[Completed (Date)]]=\"\",Table1[[#This Row],[Sent2]]=\"\",Table1[[#This Row],[Received]]=\"\",Table1[[#This Row],[On File (Y/leave blank)]]=\"\",Table1[[#This Row],[Requested]]=\"\",Table1[[#This Row],[Received3]]=\"\",Table1[[#This Row],[On File (Y/leave blank)4]]=\"\",Table1[[#This Row],[Requested5]]=\"\",Table1[[#This Row],[Received2]]=\"\", Table1[[#This Row],[On File(Y/leave blank)]]=\"\"), \"STOP\", \"GO\")","v":"GO"},"Lindsey","2014-06-27",null,"2014-07-20",null,"2014-06-20","April Clayton",20263316,6200,35738,"ICO 7929","Musician accompanist fee for recitals in Europe","2014-07-20","2014-07-20",{"$f":"IF(Table1[[#This Row],[END date]]=Table1[[#This Row],[BEG date]],1,IF(Table1[[#This Row],[END date]]=Table1[[#This Row],[BEG date]]+1,2,IF(Table1[[#This Row],[END date]]=Table1[[#This Row],[BEG date]]+2,3,IF(Table1[[#This Row],[END date]]=Table1[[#This Row],[BEG date]]+3,4,IF(Table1[[#This Row],[END date]]=Table1[[#This Row],[BEG date]]+4,5,\">5\")))))","v":1},"Hand Delivered (to April)"]
["Kevin Gary Smith","skeving@gmail.com",250,"NA",65928,"NA","NA","NA","Y","NA","NA","NA","NA","NA","Y",{"$f":"IF(AND(TODAY()<Table1[[#This Row],[BEG date]]-14, Table1[[#This Row],[Submitted on]]=\"\"), \"\", IF(AND(Table1[[#This Row],[BEG date]]-14<=TODAY(), TODAY()<Table1[[#This Row],[BEG date]], Table1[[#This Row],[Submitted on]]=\"\"), Table1[[#This Row],[BEG date]], IF(Table1[[#This Row],[Submitted on]]=\"\", \"PROCESS ASAP\", IF(Table1[[#This Row],[Payment Made]]=\"\", \"SUBMITTED\", \"DONE\"))))","v":"DONE"},{"$f":"IF(OR(Table1[[#This Row],[Recipient]]=\"\", Table1[[#This Row],[Email]]=\"\",Table1[[#This Row],[Amount]]=\"\",Table1[[#This Row],[Sent]]=\"\",Table1[[#This Row],[Vendor '#]]=\"\",Table1[[#This Row],[Completed (Date)]]=\"\",Table1[[#This Row],[Sent2]]=\"\",Table1[[#This Row],[Received]]=\"\",Table1[[#This Row],[On File (Y/leave blank)]]=\"\",Table1[[#This Row],[Requested]]=\"\",Table1[[#This Row],[Received3]]=\"\",Table1[[#This Row],[On File (Y/leave blank)4]]=\"\",Table1[[#This Row],[Requested5]]=\"\",Table1[[#This Row],[Received2]]=\"\", Table1[[#This Row],[On File(Y/leave blank)]]=\"\"), \"STOP\", \"GO\")","v":"GO"},"Lindsey","2014-06-25",null,"2014-07-01",null,null,"Mark Ammons",23263288,6405,0,"AWD 6012","Watkins award: funding for NATS vocal competition",null,null,{"$f":"IF(Table1[[#This Row],[END date]]=Table1[[#This Row],[BEG date]],1,IF(Table1[[#This Row],[END date]]=Table1[[#This Row],[BEG date]]+1,2,IF(Table1[[#This Row],[END date]]=Table1[[#This Row],[BEG date]]+2,3,IF(Table1[[#This Row],[END date]]=Table1[[#This Row],[BEG date]]+3,4,IF(Table1[[#This Row],[END date]]=Table1[[#This Row],[BEG date]]+4,5,\">5\")))))","v":1},"Hand Delivered"]
["Kristen Maurine Blackham","kristenblackham@hotmail.com",750,"2014-06-25",86521,"NA","NA","NA","Y","2014-06-09","2014-06-24","NA","NA","NA","Y",{"$f":"IF(AND(TODAY()<Table1[[#This Row],[BEG date]]-14, Table1[[#This Row],[Submitted on]]=\"\"), \"\", IF(AND(Table1[[#This Row],[BEG date]]-14<=TODAY(), TODAY()<Table1[[#This Row],[BEG date]], Table1[[#This Row],[Submitted on]]=\"\"), Table1[[#This Row],[BEG date]], IF(Table1[[#This Row],[Submitted on]]=\"\", \"PROCESS ASAP\", IF(Table1[[#This Row],[Payment Made]]=\"\", \"SUBMITTED\", \"DONE\"))))","v":"DONE"},{"$f":"IF(OR(Table1[[#This Row],[Recipient]]=\"\", Table1[[#This Row],[Email]]=\"\",Table1[[#This Row],[Amount]]=\"\",Table1[[#This Row],[Sent]]=\"\",Table1[[#This Row],[Vendor '#]]=\"\",Table1[[#This Row],[Completed (Date)]]=\"\",Table1[[#This Row],[Sent2]]=\"\",Table1[[#This Row],[Received]]=\"\",Table1[[#This Row],[On File (Y/leave blank)]]=\"\",Table1[[#This Row],[Requested]]=\"\",Table1[[#This Row],[Received3]]=\"\",Table1[[#This Row],[On File (Y/leave blank)4]]=\"\",Table1[[#This Row],[Requested5]]=\"\",Table1[[#This Row],[Received2]]=\"\", Table1[[#This Row],[On File(Y/leave blank)]]=\"\"), \"STOP\", \"GO\")","v":"GO"},"Lindsey","2014-06-25",null,"2014-07-14",null,null,"Mark Ammons",23263288,6405,0,"AWD 6012","Watkins award: funding for internship in Bolivia",null,null,{"$f":"IF(Table1[[#This Row],[END date]]=Table1[[#This Row],[BEG date]],1,IF(Table1[[#This Row],[END date]]=Table1[[#This Row],[BEG date]]+1,2,IF(Table1[[#This Row],[END date]]=Table1[[#This Row],[BEG date]]+2,3,IF(Table1[[#This Row],[END date]]=Table1[[#This Row],[BEG date]]+3,4,IF(Table1[[#This Row],[END date]]=Table1[[#This Row],[BEG date]]+4,5,\">5\")))))","v":1},"Mailed"]
["Kassia Roberts","kassianicole@gmail.com",500,"2014-06-25","AP00023441","NA","NA","NA","Y","2014-06-09","2014-06-24","NA","NA","NA","Y",{"$f":"IF(AND(TODAY()<Table1[[#This Row],[BEG date]]-14, Table1[[#This Row],[Submitted on]]=\"\"), \"\", IF(AND(Table1[[#This Row],[BEG date]]-14<=TODAY(), TODAY()<Table1[[#This Row],[BEG date]], Table1[[#This Row],[Submitted on]]=\"\"), Table1[[#This Row],[BEG date]], IF(Table1[[#This Row],[Submitted on]]=\"\", \"PROCESS ASAP\", IF(Table1[[#This Row],[Payment Made]]=\"\", \"SUBMITTED\", \"DONE\"))))","v":"DONE"},{"$f":"IF(OR(Table1[[#This Row],[Recipient]]=\"\", Table1[[#This Row],[Email]]=\"\",Table1[[#This Row],[Amount]]=\"\",Table1[[#This Row],[Sent]]=\"\",Table1[[#This Row],[Vendor '#]]=\"\",Table1[[#This Row],[Completed (Date)]]=\"\",Table1[[#This Row],[Sent2]]=\"\",Table1[[#This Row],[Received]]=\"\",Table1[[#This Row],[On File (Y/leave blank)]]=\"\",Table1[[#This Row],[Requested]]=\"\",Table1[[#This Row],[Received3]]=\"\",Table1[[#This Row],[On File (Y/leave blank)4]]=\"\",Table1[[#This Row],[Requested5]]=\"\",Table1[[#This Row],[Received2]]=\"\", Table1[[#This Row],[On File(Y/leave blank)]]=\"\"), \"STOP\", \"GO\")","v":"GO"},"Lindsey","2014-06-25",null,"2014-07-14",null,null,"Mark Ammons",23263288,6405,0,"AWD 6012","Watkins award: funding for Oberlin Early Music Festival",null,null,{"$f":"IF(Table1[[#This Row],[END date]]=Table1[[#This Row],[BEG date]],1,IF(Table1[[#This Row],[END date]]=Table1[[#This Row],[BEG date]]+1,2,IF(Table1[[#This Row],[END date]]=Table1[[#This Row],[BEG date]]+2,3,IF(Table1[[#This Row],[END date]]=Table1[[#This Row],[BEG date]]+3,4,IF(Table1[[#This Row],[END date]]=Table1[[#This Row],[BEG date]]+4,5,\">5\")))))","v":1},"Mailed"]
["Maren Eliza Hansen","reallytallflutist17@gmail.com",500,"NA",86478,"NA","NA","NA","Y","NA","NA","NA","NA","NA","Y",{"$f":"IF(AND(TODAY()<Table1[[#This Row],[BEG date]]-14, Table1[[#This Row],[Submitted on]]=\"\"), \"\", IF(AND(Table1[[#This Row],[BEG date]]-14<=TODAY(), TODAY()<Table1[[#This Row],[BEG date]], Table1[[#This Row],[Submitted on]]=\"\"), Table1[[#This Row],[BEG date]], IF(Table1[[#This Row],[Submitted on]]=\"\", \"PROCESS ASAP\", IF(Table1[[#This Row],[Payment Made]]=\"\", \"SUBMITTED\", \"DONE\"))))","v":"DONE"},{"$f":"IF(OR(Table1[[#This Row],[Recipient]]=\"\", Table1[[#This Row],[Email]]=\"\",Table1[[#This Row],[Amount]]=\"\",Table1[[#This Row],[Sent]]=\"\",Table1[[#This Row],[Vendor '#]]=\"\",Table1[[#This Row],[Completed (Date)]]=\"\",Table1[[#This Row],[Sent2]]=\"\",Table1[[#This Row],[Received]]=\"\",Table1[[#This Row],[On File (Y/leave blank)]]=\"\",Table1[[#This Row],[Requested]]=\"\",Table1[[#This Row],[Received3]]=\"\",Table1[[#This Row],[On File (Y/leave blank)4]]=\"\",Table1[[#This Row],[Requested5]]=\"\",Table1[[#This Row],[Received2]]=\"\", Table1[[#This Row],[On File(Y/leave blank)]]=\"\"), \"STOP\", \"GO\")","v":"GO"},"Andrew T","2014-06-23",null,"2014-06-26",null,null,"Mark Ammons",23263288,6405,0,"AWD 6012","Watkins award: attend Da Capo Alliance flute class in Paris, France",null,null,{"$f":"IF(Table1[[#This Row],[END date]]=Table1[[#This Row],[BEG date]],1,IF(Table1[[#This Row],[END date]]=Table1[[#This Row],[BEG date]]+1,2,IF(Table1[[#This Row],[END date]]=Table1[[#This Row],[BEG date]]+2,3,IF(Table1[[#This Row],[END date]]=Table1[[#This Row],[BEG date]]+3,4,IF(Table1[[#This Row],[END date]]=Table1[[#This Row],[BEG date]]+4,5,\">5\")))))","v":1},"Mailed"]
["Jennifer Jones","jen5jones@gmail.com",750,"2014-06-26",86544,"NA","NA","NA","Y","NA","2014-06-26","NA","NA","NA","Y",{"$f":"IF(AND(TODAY()<Table1[[#This Row],[BEG date]]-14, Table1[[#This Row],[Submitted on]]=\"\"), \"\", IF(AND(Table1[[#This Row],[BEG date]]-14<=TODAY(), TODAY()<Table1[[#This Row],[BEG date]], Table1[[#This Row],[Submitted on]]=\"\"), Table1[[#This Row],[BEG date]], IF(Table1[[#This Row],[Submitted on]]=\"\", \"PROCESS ASAP\", IF(Table1[[#This Row],[Payment Made]]=\"\", \"SUBMITTED\", \"DONE\"))))","v":"DONE"},{"$f":"IF(OR(Table1[[#This Row],[Recipient]]=\"\", Table1[[#This Row],[Email]]=\"\",Table1[[#This Row],[Amount]]=\"\",Table1[[#This Row],[Sent]]=\"\",Table1[[#This Row],[Vendor '#]]=\"\",Table1[[#This Row],[Completed (Date)]]=\"\",Table1[[#This Row],[Sent2]]=\"\",Table1[[#This Row],[Received]]=\"\",Table1[[#This Row],[On File (Y/leave blank)]]=\"\",Table1[[#This Row],[Requested]]=\"\",Table1[[#This Row],[Received3]]=\"\",Table1[[#This Row],[On File (Y/leave blank)4]]=\"\",Table1[[#This Row],[Requested5]]=\"\",Table1[[#This Row],[Received2]]=\"\", Table1[[#This Row],[On File(Y/leave blank)]]=\"\"), \"STOP\", \"GO\")","v":"GO"},"Lindsey","2014-06-30",null,"2014-08-08",null,null,"Mark Ammons",23263288,6405,0,"AWD 6012","Watkins award: funding for internship in Bolivia",null,null,{"$f":"IF(Table1[[#This Row],[END date]]=Table1[[#This Row],[BEG date]],1,IF(Table1[[#This Row],[END date]]=Table1[[#This Row],[BEG date]]+1,2,IF(Table1[[#This Row],[END date]]=Table1[[#This Row],[BEG date]]+2,3,IF(Table1[[#This Row],[END date]]=Table1[[#This Row],[BEG date]]+3,4,IF(Table1[[#This Row],[END date]]=Table1[[#This Row],[BEG date]]+4,5,\">5\")))))","v":1},"Hand delivered","In Bolivia until August 2"]
["Bryson Scott Alley","bryson.alley13@gmail.com",150,"2014-07-17",86653,"2014-07-09","2014-06-30","2014-07-08","Y","2014-07-08","2014-08-03","Y","2014-07-08","2014-07-09","Y",{"$f":"IF(AND(TODAY()<Table1[[#This Row],[BEG date]]-14, Table1[[#This Row],[Submitted on]]=\"\"), \"\", IF(AND(Table1[[#This Row],[BEG date]]-14<=TODAY(), TODAY()<Table1[[#This Row],[BEG date]], Table1[[#This Row],[Submitted on]]=\"\"), Table1[[#This Row],[BEG date]], IF(Table1[[#This Row],[Submitted on]]=\"\", \"PROCESS ASAP\", IF(Table1[[#This Row],[Payment Made]]=\"\", \"SUBMITTED\", \"DONE\"))))","v":"DONE"},{"$f":"IF(OR(Table1[[#This Row],[Recipient]]=\"\", Table1[[#This Row],[Email]]=\"\",Table1[[#This Row],[Amount]]=\"\",Table1[[#This Row],[Sent]]=\"\",Table1[[#This Row],[Vendor '#]]=\"\",Table1[[#This Row],[Completed (Date)]]=\"\",Table1[[#This Row],[Sent2]]=\"\",Table1[[#This Row],[Received]]=\"\",Table1[[#This Row],[On File (Y/leave blank)]]=\"\",Table1[[#This Row],[Requested]]=\"\",Table1[[#This Row],[Received3]]=\"\",Table1[[#This Row],[On File (Y/leave blank)4]]=\"\",Table1[[#This Row],[Requested5]]=\"\",Table1[[#This Row],[Received2]]=\"\", Table1[[#This Row],[On File(Y/leave blank)]]=\"\"), \"STOP\", \"GO\")","v":"GO"},"Lindsey","2014-07-17",null,"2014-08-21",null,"6/26/0214","Jean Applonie",13263294,6200,0,"ICO 7950","Produced video that was played during Women's Chorus Sparkle concert",null,null,{"$f":"IF(Table1[[#This Row],[END date]]=Table1[[#This Row],[BEG date]],1,IF(Table1[[#This Row],[END date]]=Table1[[#This Row],[BEG date]]+1,2,IF(Table1[[#This Row],[END date]]=Table1[[#This Row],[BEG date]]+2,3,IF(Table1[[#This Row],[END date]]=Table1[[#This Row],[BEG date]]+3,4,IF(Table1[[#This Row],[END date]]=Table1[[#This Row],[BEG date]]+4,5,\">5\")))))","v":1},"Mailed"]
["Tyrell Wilde","tyrellwilde145@gmail.com",250,"NA",75337,"NA","NA","NA","Y","NA","NA","NA","NA","NA","Y",{"$f":"IF(AND(TODAY()<Table1[[#This Row],[BEG date]]-14, Table1[[#This Row],[Submitted on]]=\"\"), \"\", IF(AND(Table1[[#This Row],[BEG date]]-14<=TODAY(), TODAY()<Table1[[#This Row],[BEG date]], Table1[[#This Row],[Submitted on]]=\"\"), Table1[[#This Row],[BEG date]], IF(Table1[[#This Row],[Submitted on]]=\"\", \"PROCESS ASAP\", IF(Table1[[#This Row],[Payment Made]]=\"\", \"SUBMITTED\", \"DONE\"))))","v":"DONE"},{"$f":"IF(OR(Table1[[#This Row],[Recipient]]=\"\", Table1[[#This Row],[Email]]=\"\",Table1[[#This Row],[Amount]]=\"\",Table1[[#This Row],[Sent]]=\"\",Table1[[#This Row],[Vendor '#]]=\"\",Table1[[#This Row],[Completed (Date)]]=\"\",Table1[[#This Row],[Sent2]]=\"\",Table1[[#This Row],[Received]]=\"\",Table1[[#This Row],[On File (Y/leave blank)]]=\"\",Table1[[#This Row],[Requested]]=\"\",Table1[[#This Row],[Received3]]=\"\",Table1[[#This Row],[On File (Y/leave blank)4]]=\"\",Table1[[#This Row],[Requested5]]=\"\",Table1[[#This Row],[Received2]]=\"\", Table1[[#This Row],[On File(Y/leave blank)]]=\"\"), \"STOP\", \"GO\")","v":"GO"},"Lindsey","2014-06-27",null,"2014-07-01",null,null,"Mark Ammons",23263288,6405,0,"AWD 6012","Watkins award: NATS vocal competition",null,null,{"$f":"IF(Table1[[#This Row],[END date]]=Table1[[#This Row],[BEG date]],1,IF(Table1[[#This Row],[END date]]=Table1[[#This Row],[BEG date]]+1,2,IF(Table1[[#This Row],[END date]]=Table1[[#This Row],[BEG date]]+2,3,IF(Table1[[#This Row],[END date]]=Table1[[#This Row],[BEG date]]+3,4,IF(Table1[[#This Row],[END date]]=Table1[[#This Row],[BEG date]]+4,5,\">5\")))))","v":1},"Hand delivered"]
["Devan Freebairn","DevanFreebairn@yahoo.com",500,"NA","TR00181660","NA","NA","NA","Y","NA","NA","NA","NA","NA","Y",{"$f":"IF(AND(TODAY()<Table1[[#This Row],[BEG date]]-14, Table1[[#This Row],[Submitted on]]=\"\"), \"\", IF(AND(Table1[[#This Row],[BEG date]]-14<=TODAY(), TODAY()<Table1[[#This Row],[BEG date]], Table1[[#This Row],[Submitted on]]=\"\"), Table1[[#This Row],[BEG date]], IF(Table1[[#This Row],[Submitted on]]=\"\", \"PROCESS ASAP\", IF(Table1[[#This Row],[Payment Made]]=\"\", \"SUBMITTED\", \"DONE\"))))","v":"DONE"},{"$f":"IF(OR(Table1[[#This Row],[Recipient]]=\"\", Table1[[#This Row],[Email]]=\"\",Table1[[#This Row],[Amount]]=\"\",Table1[[#This Row],[Sent]]=\"\",Table1[[#This Row],[Vendor '#]]=\"\",Table1[[#This Row],[Completed (Date)]]=\"\",Table1[[#This Row],[Sent2]]=\"\",Table1[[#This Row],[Received]]=\"\",Table1[[#This Row],[On File (Y/leave blank)]]=\"\",Table1[[#This Row],[Requested]]=\"\",Table1[[#This Row],[Received3]]=\"\",Table1[[#This Row],[On File (Y/leave blank)4]]=\"\",Table1[[#This Row],[Requested5]]=\"\",Table1[[#This Row],[Received2]]=\"\", Table1[[#This Row],[On File(Y/leave blank)]]=\"\"), \"STOP\", \"GO\")","v":"GO"},"Lindsey","2014-06-27",null,"2014-07-02",null,null,"Mark Ammons",23263288,6405,0,"AWD 6012","Watkins award: summer studies",null,null,{"$f":"IF(Table1[[#This Row],[END date]]=Table1[[#This Row],[BEG date]],1,IF(Table1[[#This Row],[END date]]=Table1[[#This Row],[BEG date]]+1,2,IF(Table1[[#This Row],[END date]]=Table1[[#This Row],[BEG date]]+2,3,IF(Table1[[#This Row],[END date]]=Table1[[#This Row],[BEG date]]+3,4,IF(Table1[[#This Row],[END date]]=Table1[[#This Row],[BEG date]]+4,5,\">5\")))))","v":1},"Mailed"]
["Logan Anderson","andelogan@gmail.com",600,"2014-06-30",86556,"NA","NA","NA","Y","NA","2014-06-27","NA","NA","NA","Y",{"$f":"IF(AND(TODAY()<Table1[[#This Row],[BEG date]]-14, Table1[[#This Row],[Submitted on]]=\"\"), \"\", IF(AND(Table1[[#This Row],[BEG date]]-14<=TODAY(), TODAY()<Table1[[#This Row],[BEG date]], Table1[[#This Row],[Submitted on]]=\"\"), Table1[[#This Row],[BEG date]], IF(Table1[[#This Row],[Submitted on]]=\"\", \"PROCESS ASAP\", IF(Table1[[#This Row],[Payment Made]]=\"\", \"SUBMITTED\", \"DONE\"))))","v":"DONE"},{"$f":"IF(OR(Table1[[#This Row],[Recipient]]=\"\", Table1[[#This Row],[Email]]=\"\",Table1[[#This Row],[Amount]]=\"\",Table1[[#This Row],[Sent]]=\"\",Table1[[#This Row],[Vendor '#]]=\"\",Table1[[#This Row],[Completed (Date)]]=\"\",Table1[[#This Row],[Sent2]]=\"\",Table1[[#This Row],[Received]]=\"\",Table1[[#This Row],[On File (Y/leave blank)]]=\"\",Table1[[#This Row],[Requested]]=\"\",Table1[[#This Row],[Received3]]=\"\",Table1[[#This Row],[On File (Y/leave blank)4]]=\"\",Table1[[#This Row],[Requested5]]=\"\",Table1[[#This Row],[Received2]]=\"\", Table1[[#This Row],[On File(Y/leave blank)]]=\"\"), \"STOP\", \"GO\")","v":"GO"},"Lindsey","2014-07-09",null,"2014-07-15",null,null,"Mark Ammons",23263288,6405,0,"AWD 6012","Watkins award: David Brown trumpet student",null,null,{"$f":"IF(Table1[[#This Row],[END date]]=Table1[[#This Row],[BEG date]],1,IF(Table1[[#This Row],[END date]]=Table1[[#This Row],[BEG date]]+1,2,IF(Table1[[#This Row],[END date]]=Table1[[#This Row],[BEG date]]+2,3,IF(Table1[[#This Row],[END date]]=Table1[[#This Row],[BEG date]]+3,4,IF(Table1[[#This Row],[END date]]=Table1[[#This Row],[BEG date]]+4,5,\">5\")))))","v":1},"Hand delivered"]
["Day Murray Music","info@daymurraymusic.com",87.83,"NA","LE00012661","NA","NA","NA","Y","NA","NA","NA","NA","NA","Y",{"$f":"IF(AND(TODAY()<Table1[[#This Row],[BEG date]]-14, Table1[[#This Row],[Submitted on]]=\"\"), \"\", IF(AND(Table1[[#This Row],[BEG date]]-14<=TODAY(), TODAY()<Table1[[#This Row],[BEG date]], Table1[[#This Row],[Submitted on]]=\"\"), Table1[[#This Row],[BEG date]], IF(Table1[[#This Row],[Submitted on]]=\"\", \"PROCESS ASAP\", IF(Table1[[#This Row],[Payment Made]]=\"\", \"SUBMITTED\", \"DONE\"))))","v":"DONE"},{"$f":"IF(OR(Table1[[#This Row],[Recipient]]=\"\", Table1[[#This Row],[Email]]=\"\",Table1[[#This Row],[Amount]]=\"\",Table1[[#This Row],[Sent]]=\"\",Table1[[#This Row],[Vendor '#]]=\"\",Table1[[#This Row],[Completed (Date)]]=\"\",Table1[[#This Row],[Sent2]]=\"\",Table1[[#This Row],[Received]]=\"\",Table1[[#This Row],[On File (Y/leave blank)]]=\"\",Table1[[#This Row],[Requested]]=\"\",Table1[[#This Row],[Received3]]=\"\",Table1[[#This Row],[On File (Y/leave blank)4]]=\"\",Table1[[#This Row],[Requested5]]=\"\",Table1[[#This Row],[Received2]]=\"\", Table1[[#This Row],[On File(Y/leave blank)]]=\"\"), \"STOP\", \"GO\")","v":"GO"},"Lindsey","2014-06-30",null,"2014-07-02",null,"2014-06-17","Don Peterson",13263071,6200,35759,"GDS 8999","Three Celtic Dances CD and postage for band",null,null,{"$f":"IF(Table1[[#This Row],[END date]]=Table1[[#This Row],[BEG date]],1,IF(Table1[[#This Row],[END date]]=Table1[[#This Row],[BEG date]]+1,2,IF(Table1[[#This Row],[END date]]=Table1[[#This Row],[BEG date]]+2,3,IF(Table1[[#This Row],[END date]]=Table1[[#This Row],[BEG date]]+3,4,IF(Table1[[#This Row],[END date]]=Table1[[#This Row],[BEG date]]+4,5,\">5\")))))","v":1},"Mailed"]
["Stuart Wheeler","wheeler.stuart.e@gmail.com",70,"2014-07-07",86600,"NA","2014-06-30","2014-07-07","Y","NA","NA","NA","NA","NA","Y",{"$f":"IF(AND(TODAY()<Table1[[#This Row],[BEG date]]-14, Table1[[#This Row],[Submitted on]]=\"\"), \"\", IF(AND(Table1[[#This Row],[BEG date]]-14<=TODAY(), TODAY()<Table1[[#This Row],[BEG date]], Table1[[#This Row],[Submitted on]]=\"\"), Table1[[#This Row],[BEG date]], IF(Table1[[#This Row],[Submitted on]]=\"\", \"PROCESS ASAP\", IF(Table1[[#This Row],[Payment Made]]=\"\", \"SUBMITTED\", \"DONE\"))))","v":"DONE"},{"$f":"IF(OR(Table1[[#This Row],[Recipient]]=\"\", Table1[[#This Row],[Email]]=\"\",Table1[[#This Row],[Amount]]=\"\",Table1[[#This Row],[Sent]]=\"\",Table1[[#This Row],[Vendor '#]]=\"\",Table1[[#This Row],[Completed (Date)]]=\"\",Table1[[#This Row],[Sent2]]=\"\",Table1[[#This Row],[Received]]=\"\",Table1[[#This Row],[On File (Y/leave blank)]]=\"\",Table1[[#This Row],[Requested]]=\"\",Table1[[#This Row],[Received3]]=\"\",Table1[[#This Row],[On File (Y/leave blank)4]]=\"\",Table1[[#This Row],[Requested5]]=\"\",Table1[[#This Row],[Received2]]=\"\", Table1[[#This Row],[On File(Y/leave blank)]]=\"\"), \"STOP\", \"GO\")","v":"GO"},"Lindsey","2014-07-07",null,"2014-07-14",null,"2014-05-23","Christian Asplund",23263132,6200,35795,"ICO 8999","Music notation","2014-04-29","2014-04-29",{"$f":"IF(Table1[[#This Row],[END date]]=Table1[[#This Row],[BEG date]],1,IF(Table1[[#This Row],[END date]]=Table1[[#This Row],[BEG date]]+1,2,IF(Table1[[#This Row],[END date]]=Table1[[#This Row],[BEG date]]+2,3,IF(Table1[[#This Row],[END date]]=Table1[[#This Row],[BEG date]]+3,4,IF(Table1[[#This Row],[END date]]=Table1[[#This Row],[BEG date]]+4,5,\">5\")))))","v":1},"Mailed"]
["Creative Consultation Service","craig@bandfo.com",3400,"2014-07-17",66148,"2014-07-02","2014-07-02","2014-07-08","Y","2014-05-30","2014-07-02","Y","2014-05-30","2014-07-02","Y",{"$f":"IF(AND(TODAY()<Table1[[#This Row],[BEG date]]-14, Table1[[#This Row],[Submitted on]]=\"\"), \"\", IF(AND(Table1[[#This Row],[BEG date]]-14<=TODAY(), TODAY()<Table1[[#This Row],[BEG date]], Table1[[#This Row],[Submitted on]]=\"\"), Table1[[#This Row],[BEG date]], IF(Table1[[#This Row],[Submitted on]]=\"\", \"PROCESS ASAP\", IF(Table1[[#This Row],[Payment Made]]=\"\", \"SUBMITTED\", \"DONE\"))))","v":"DONE"},{"$f":"IF(OR(Table1[[#This Row],[Recipient]]=\"\", Table1[[#This Row],[Email]]=\"\",Table1[[#This Row],[Amount]]=\"\",Table1[[#This Row],[Sent]]=\"\",Table1[[#This Row],[Vendor '#]]=\"\",Table1[[#This Row],[Completed (Date)]]=\"\",Table1[[#This Row],[Sent2]]=\"\",Table1[[#This Row],[Received]]=\"\",Table1[[#This Row],[On File (Y/leave blank)]]=\"\",Table1[[#This Row],[Requested]]=\"\",Table1[[#This Row],[Received3]]=\"\",Table1[[#This Row],[On File (Y/leave blank)4]]=\"\",Table1[[#This Row],[Requested5]]=\"\",Table1[[#This Row],[Received2]]=\"\", Table1[[#This Row],[On File(Y/leave blank)]]=\"\"), \"STOP\", \"GO\")","v":"GO"},"Lindsey","2014-07-17",null,"2014-07-22",null,"2014-05-22","Fred McInnis",19263118,6200,0,"ICO 8993","Show design for Cougar Marching Band","2014-05-22","2014-08-01",{"$f":"IF(Table1[[#This Row],[END date]]=Table1[[#This Row],[BEG date]],1,IF(Table1[[#This Row],[END date]]=Table1[[#This Row],[BEG date]]+1,2,IF(Table1[[#This Row],[END date]]=Table1[[#This Row],[BEG date]]+2,3,IF(Table1[[#This Row],[END date]]=Table1[[#This Row],[BEG date]]+3,4,IF(Table1[[#This Row],[END date]]=Table1[[#This Row],[BEG date]]+4,5,\">5\")))))","v":">5"},"Mailed","First $1700 due at beginning of project. Second $1700 due after work is completed."]
["Heritage Church Organ Co. Inc.","none provided",330,"NA",18300,"NA","2014-07-08","2014-07-08","Y","NA","NA","NA","NA","NA","Y",{"$f":"IF(AND(TODAY()<Table1[[#This Row],[BEG date]]-14, Table1[[#This Row],[Submitted on]]=\"\"), \"\", IF(AND(Table1[[#This Row],[BEG date]]-14<=TODAY(), TODAY()<Table1[[#This Row],[BEG date]], Table1[[#This Row],[Submitted on]]=\"\"), Table1[[#This Row],[BEG date]], IF(Table1[[#This Row],[Submitted on]]=\"\", \"PROCESS ASAP\", IF(Table1[[#This Row],[Payment Made]]=\"\", \"SUBMITTED\", \"DONE\"))))","v":"DONE"},{"$f":"IF(OR(Table1[[#This Row],[Recipient]]=\"\", Table1[[#This Row],[Email]]=\"\",Table1[[#This Row],[Amount]]=\"\",Table1[[#This Row],[Sent]]=\"\",Table1[[#This Row],[Vendor '#]]=\"\",Table1[[#This Row],[Completed (Date)]]=\"\",Table1[[#This Row],[Sent2]]=\"\",Table1[[#This Row],[Received]]=\"\",Table1[[#This Row],[On File (Y/leave blank)]]=\"\",Table1[[#This Row],[Requested]]=\"\",Table1[[#This Row],[Received3]]=\"\",Table1[[#This Row],[On File (Y/leave blank)4]]=\"\",Table1[[#This Row],[Requested5]]=\"\",Table1[[#This Row],[Received2]]=\"\", Table1[[#This Row],[On File(Y/leave blank)]]=\"\"), \"STOP\", \"GO\")","v":"GO"},"Lindsey","2014-07-08",null,"2014-07-14",null,"2014-07-01","Don Cook",13263221,6200,0,"ICO 8993","Repair on De Yong organ to fix audio output","2014-03-20","2014-03-20",{"$f":"IF(Table1[[#This Row],[END date]]=Table1[[#This Row],[BEG date]],1,IF(Table1[[#This Row],[END date]]=Table1[[#This Row],[BEG date]]+1,2,IF(Table1[[#This Row],[END date]]=Table1[[#This Row],[BEG date]]+2,3,IF(Table1[[#This Row],[END date]]=Table1[[#This Row],[BEG date]]+3,4,IF(Table1[[#This Row],[END date]]=Table1[[#This Row],[BEG date]]+4,5,\">5\")))))","v":1},"Mailed","It's a corporation, so we don't need the contract and questionnaire.","208-357-0807"]
["Carol Winenc","cwincenc@juilliard.edu",3880,"NA",34287,"NA","2014-07-08","2014-07-08","Y","NA","NA","NA","NA","NA","Y",{"$f":"IF(AND(TODAY()<Table1[[#This Row],[BEG date]]-14, Table1[[#This Row],[Submitted on]]=\"\"), \"\", IF(AND(Table1[[#This Row],[BEG date]]-14<=TODAY(), TODAY()<Table1[[#This Row],[BEG date]], Table1[[#This Row],[Submitted on]]=\"\"), Table1[[#This Row],[BEG date]], IF(Table1[[#This Row],[Submitted on]]=\"\", \"PROCESS ASAP\", IF(Table1[[#This Row],[Payment Made]]=\"\", \"SUBMITTED\", \"DONE\"))))","v":"DONE"},{"$f":"IF(OR(Table1[[#This Row],[Recipient]]=\"\", Table1[[#This Row],[Email]]=\"\",Table1[[#This Row],[Amount]]=\"\",Table1[[#This Row],[Sent]]=\"\",Table1[[#This Row],[Vendor '#]]=\"\",Table1[[#This Row],[Completed (Date)]]=\"\",Table1[[#This Row],[Sent2]]=\"\",Table1[[#This Row],[Received]]=\"\",Table1[[#This Row],[On File (Y/leave blank)]]=\"\",Table1[[#This Row],[Requested]]=\"\",Table1[[#This Row],[Received3]]=\"\",Table1[[#This Row],[On File (Y/leave blank)4]]=\"\",Table1[[#This Row],[Requested5]]=\"\",Table1[[#This Row],[Received2]]=\"\", Table1[[#This Row],[On File(Y/leave blank)]]=\"\"), \"STOP\", \"GO\")","v":"GO"},"Lindsey","2014-07-29",null,"2014-08-07",null,"2014-07-08","April Clayton",13263388,6200,35738,"ICO 7929","Teaching April's flute students","2014-10-23","2014-10-28",{"$f":"IF(Table1[[#This Row],[END date]]=Table1[[#This Row],[BEG date]],1,IF(Table1[[#This Row],[END date]]=Table1[[#This Row],[BEG date]]+1,2,IF(Table1[[#This Row],[END date]]=Table1[[#This Row],[BEG date]]+2,3,IF(Table1[[#This Row],[END date]]=Table1[[#This Row],[BEG date]]+3,4,IF(Table1[[#This Row],[END date]]=Table1[[#This Row],[BEG date]]+4,5,\">5\")))))","v":">5"},"Mailed","Will not be working October 25 and 26","212-749-0527"]
["Conlan Miller","conlankm@gmail.com",750,"NA",67402,"NA","NA","NA","Y","NA","NA","NA","NA","NA","Y",{"$f":"IF(AND(TODAY()<Table1[[#This Row],[BEG date]]-14, Table1[[#This Row],[Submitted on]]=\"\"), \"\", IF(AND(Table1[[#This Row],[BEG date]]-14<=TODAY(), TODAY()<Table1[[#This Row],[BEG date]], Table1[[#This Row],[Submitted on]]=\"\"), Table1[[#This Row],[BEG date]], IF(Table1[[#This Row],[Submitted on]]=\"\", \"PROCESS ASAP\", IF(Table1[[#This Row],[Payment Made]]=\"\", \"SUBMITTED\", \"DONE\"))))","v":"DONE"},{"$f":"IF(OR(Table1[[#This Row],[Recipient]]=\"\", Table1[[#This Row],[Email]]=\"\",Table1[[#This Row],[Amount]]=\"\",Table1[[#This Row],[Sent]]=\"\",Table1[[#This Row],[Vendor '#]]=\"\",Table1[[#This Row],[Completed (Date)]]=\"\",Table1[[#This Row],[Sent2]]=\"\",Table1[[#This Row],[Received]]=\"\",Table1[[#This Row],[On File (Y/leave blank)]]=\"\",Table1[[#This Row],[Requested]]=\"\",Table1[[#This Row],[Received3]]=\"\",Table1[[#This Row],[On File (Y/leave blank)4]]=\"\",Table1[[#This Row],[Requested5]]=\"\",Table1[[#This Row],[Received2]]=\"\", Table1[[#This Row],[On File(Y/leave blank)]]=\"\"), \"STOP\", \"GO\")","v":"GO"},"Lindsey","2014-07-09",null,"2014-07-15",null,null,"Mark Ammons",23263288,6405,0,"AWD 6012","Watkins award: Holland Music Festival",null,null,{"$f":"IF(Table1[[#This Row],[END date]]=Table1[[#This Row],[BEG date]],1,IF(Table1[[#This Row],[END date]]=Table1[[#This Row],[BEG date]]+1,2,IF(Table1[[#This Row],[END date]]=Table1[[#This Row],[BEG date]]+2,3,IF(Table1[[#This Row],[END date]]=Table1[[#This Row],[BEG date]]+3,4,IF(Table1[[#This Row],[END date]]=Table1[[#This Row],[BEG date]]+4,5,\">5\")))))","v":1},"Mailed"]
["Day Murray Music","info@daymurraymusic.com",1279.1099999999999,"NA","LE00012661","NA","NA","NA","Y","NA","NA","NA","NA","NA","Y",{"$f":"IF(AND(TODAY()<Table1[[#This Row],[BEG date]]-14, Table1[[#This Row],[Submitted on]]=\"\"), \"\", IF(AND(Table1[[#This Row],[BEG date]]-14<=TODAY(), TODAY()<Table1[[#This Row],[BEG date]], Table1[[#This Row],[Submitted on]]=\"\"), Table1[[#This Row],[BEG date]], IF(Table1[[#This Row],[Submitted on]]=\"\", \"PROCESS ASAP\", IF(Table1[[#This Row],[Payment Made]]=\"\", \"SUBMITTED\", \"DONE\"))))","v":"DONE"},{"$f":"IF(OR(Table1[[#This Row],[Recipient]]=\"\", Table1[[#This Row],[Email]]=\"\",Table1[[#This Row],[Amount]]=\"\",Table1[[#This Row],[Sent]]=\"\",Table1[[#This Row],[Vendor '#]]=\"\",Table1[[#This Row],[Completed (Date)]]=\"\",Table1[[#This Row],[Sent2]]=\"\",Table1[[#This Row],[Received]]=\"\",Table1[[#This Row],[On File (Y/leave blank)]]=\"\",Table1[[#This Row],[Requested]]=\"\",Table1[[#This Row],[Received3]]=\"\",Table1[[#This Row],[On File (Y/leave blank)4]]=\"\",Table1[[#This Row],[Requested5]]=\"\",Table1[[#This Row],[Received2]]=\"\", Table1[[#This Row],[On File(Y/leave blank)]]=\"\"), \"STOP\", \"GO\")","v":"GO"},"Lindsey","2014-07-17",null,"2014-07-21",null,"2014-07-16","Don Peterson",13263071,6200,35759,"GDS 8999","Music for Symphonic Band & Wind Ensemble performances 2014-2015",null,null,{"$f":"IF(Table1[[#This Row],[END date]]=Table1[[#This Row],[BEG date]],1,IF(Table1[[#This Row],[END date]]=Table1[[#This Row],[BEG date]]+1,2,IF(Table1[[#This Row],[END date]]=Table1[[#This Row],[BEG date]]+2,3,IF(Table1[[#This Row],[END date]]=Table1[[#This Row],[BEG date]]+3,4,IF(Table1[[#This Row],[END date]]=Table1[[#This Row],[BEG date]]+4,5,\">5\")))))","v":1},"Mailed"]
["Black Bear Development","Fax: 801-373-7760",1500,"2014-07-18",86655,"NA","NA","NA","Y","2014-07-18","2014-07-18","NA","NA","NA","Y",{"$f":"IF(AND(TODAY()<Table1[[#This Row],[BEG date]]-14, Table1[[#This Row],[Submitted on]]=\"\"), \"\", IF(AND(Table1[[#This Row],[BEG date]]-14<=TODAY(), TODAY()<Table1[[#This Row],[BEG date]], Table1[[#This Row],[Submitted on]]=\"\"), Table1[[#This Row],[BEG date]], IF(Table1[[#This Row],[Submitted on]]=\"\", \"PROCESS ASAP\", IF(Table1[[#This Row],[Payment Made]]=\"\", \"SUBMITTED\", \"DONE\"))))","v":"DONE"},{"$f":"IF(OR(Table1[[#This Row],[Recipient]]=\"\", Table1[[#This Row],[Email]]=\"\",Table1[[#This Row],[Amount]]=\"\",Table1[[#This Row],[Sent]]=\"\",Table1[[#This Row],[Vendor '#]]=\"\",Table1[[#This Row],[Completed (Date)]]=\"\",Table1[[#This Row],[Sent2]]=\"\",Table1[[#This Row],[Received]]=\"\",Table1[[#This Row],[On File (Y/leave blank)]]=\"\",Table1[[#This Row],[Requested]]=\"\",Table1[[#This Row],[Received3]]=\"\",Table1[[#This Row],[On File (Y/leave blank)4]]=\"\",Table1[[#This Row],[Requested5]]=\"\",Table1[[#This Row],[Received2]]=\"\", Table1[[#This Row],[On File(Y/leave blank)]]=\"\"), \"STOP\", \"GO\")","v":"GO"},"Lindsey","2014-07-18",null,"2014-07-21",null,"2014-07-14","Mark Geslison",23263123,6220,0,"RNT 7011","Rental of recording studio for Folk Ensemble",null,null,{"$f":"IF(Table1[[#This Row],[END date]]=Table1[[#This Row],[BEG date]],1,IF(Table1[[#This Row],[END date]]=Table1[[#This Row],[BEG date]]+1,2,IF(Table1[[#This Row],[END date]]=Table1[[#This Row],[BEG date]]+2,3,IF(Table1[[#This Row],[END date]]=Table1[[#This Row],[BEG date]]+3,4,IF(Table1[[#This Row],[END date]]=Table1[[#This Row],[BEG date]]+4,5,\">5\")))))","v":1},"Mailed",null,"801-362-2884"]
["Moss Harp Service","steve@mossharpservice.com",720,"NA",62140,"Y","2014-07-21","2014-07-22","Y","NA","NA","Y","2014-07-21","2014-07-22","Y",{"$f":"IF(AND(TODAY()<Table1[[#This Row],[BEG date]]-14, Table1[[#This Row],[Submitted on]]=\"\"), \"\", IF(AND(Table1[[#This Row],[BEG date]]-14<=TODAY(), TODAY()<Table1[[#This Row],[BEG date]], Table1[[#This Row],[Submitted on]]=\"\"), Table1[[#This Row],[BEG date]], IF(Table1[[#This Row],[Submitted on]]=\"\", \"PROCESS ASAP\", IF(Table1[[#This Row],[Payment Made]]=\"\", \"SUBMITTED\", \"DONE\"))))","v":"DONE"},{"$f":"IF(OR(Table1[[#This Row],[Recipient]]=\"\", Table1[[#This Row],[Email]]=\"\",Table1[[#This Row],[Amount]]=\"\",Table1[[#This Row],[Sent]]=\"\",Table1[[#This Row],[Vendor '#]]=\"\",Table1[[#This Row],[Completed (Date)]]=\"\",Table1[[#This Row],[Sent2]]=\"\",Table1[[#This Row],[Received]]=\"\",Table1[[#This Row],[On File (Y/leave blank)]]=\"\",Table1[[#This Row],[Requested]]=\"\",Table1[[#This Row],[Received3]]=\"\",Table1[[#This Row],[On File (Y/leave blank)4]]=\"\",Table1[[#This Row],[Requested5]]=\"\",Table1[[#This Row],[Received2]]=\"\", Table1[[#This Row],[On File(Y/leave blank)]]=\"\"), \"STOP\", \"GO\")","v":"GO"},"Lindsey","2014-07-23",null,"2014-07-29",null,"2014-07-21","Judi Hoffman",13263109,6200,0,"ICO 8993","Harp repair, style 85 CG (invoice #3106)","2014-04-15","2014-07-15",{"$f":"IF(Table1[[#This Row],[END date]]=Table1[[#This Row],[BEG date]],1,IF(Table1[[#This Row],[END date]]=Table1[[#This Row],[BEG date]]+1,2,IF(Table1[[#This Row],[END date]]=Table1[[#This Row],[BEG date]]+2,3,IF(Table1[[#This Row],[END date]]=Table1[[#This Row],[BEG date]]+3,4,IF(Table1[[#This Row],[END date]]=Table1[[#This Row],[BEG date]]+4,5,\">5\")))))","v":">5"},"Mailed","Mechanism was removed from the harp and sent to Chicago for repairs."]
["Eric Thayne","ethayne@gmail.com",800,"2014-08-22","0000077396","Y","2014-07-29","2014-07-29","Y","2014-08-22","2014-09-22","Y","2014-08-22","2014-09-19","Y",{"$f":"IF(AND(TODAY()<Table1[[#This Row],[BEG date]]-14, Table1[[#This Row],[Submitted on]]=\"\"), \"\", IF(AND(Table1[[#This Row],[BEG date]]-14<=TODAY(), TODAY()<Table1[[#This Row],[BEG date]], Table1[[#This Row],[Submitted on]]=\"\"), Table1[[#This Row],[BEG date]], IF(Table1[[#This Row],[Submitted on]]=\"\", \"PROCESS ASAP\", IF(Table1[[#This Row],[Payment Made]]=\"\", \"SUBMITTED\", \"DONE\"))))","v":"DONE"},{"$f":"IF(OR(Table1[[#This Row],[Recipient]]=\"\", Table1[[#This Row],[Email]]=\"\",Table1[[#This Row],[Amount]]=\"\",Table1[[#This Row],[Sent]]=\"\",Table1[[#This Row],[Vendor '#]]=\"\",Table1[[#This Row],[Completed (Date)]]=\"\",Table1[[#This Row],[Sent2]]=\"\",Table1[[#This Row],[Received]]=\"\",Table1[[#This Row],[On File (Y/leave blank)]]=\"\",Table1[[#This Row],[Requested]]=\"\",Table1[[#This Row],[Received3]]=\"\",Table1[[#This Row],[On File (Y/leave blank)4]]=\"\",Table1[[#This Row],[Requested5]]=\"\",Table1[[#This Row],[Received2]]=\"\", Table1[[#This Row],[On File(Y/leave blank)]]=\"\"), \"STOP\", \"GO\")","v":"GO"},"Andrew T","2014-10-02","FT143692","2014-11-12",null,"2014-07-29","Mike Hicks",23263132,6200,35746,"ICO 8993","Album artwork for Mike Hicks' Felt Hammers CD",null,null,{"$f":"IF(Table1[[#This Row],[END date]]=Table1[[#This Row],[BEG date]],1,IF(Table1[[#This Row],[END date]]=Table1[[#This Row],[BEG date]]+1,2,IF(Table1[[#This Row],[END date]]=Table1[[#This Row],[BEG date]]+2,3,IF(Table1[[#This Row],[END date]]=Table1[[#This Row],[BEG date]]+3,4,IF(Table1[[#This Row],[END date]]=Table1[[#This Row],[BEG date]]+4,5,\">5\")))))","v":1},"Mailed","Check was sent to wrong address and was reissued.","801-888-2275"]
["Cynthia Vaughn (Magnolia Music Studio)","CynthiaVaughn@mac.com",400,"NA",69562,"NA","2014-07-31","2014-07-31","Y","2014-07-31","2014-08-21","NA","NA","NA","Y",{"$f":"IF(AND(TODAY()<Table1[[#This Row],[BEG date]]-14, Table1[[#This Row],[Submitted on]]=\"\"), \"\", IF(AND(Table1[[#This Row],[BEG date]]-14<=TODAY(), TODAY()<Table1[[#This Row],[BEG date]], Table1[[#This Row],[Submitted on]]=\"\"), Table1[[#This Row],[BEG date]], IF(Table1[[#This Row],[Submitted on]]=\"\", \"PROCESS ASAP\", IF(Table1[[#This Row],[Payment Made]]=\"\", \"SUBMITTED\", \"DONE\"))))","v":"DONE"},{"$f":"IF(OR(Table1[[#This Row],[Recipient]]=\"\", Table1[[#This Row],[Email]]=\"\",Table1[[#This Row],[Amount]]=\"\",Table1[[#This Row],[Sent]]=\"\",Table1[[#This Row],[Vendor '#]]=\"\",Table1[[#This Row],[Completed (Date)]]=\"\",Table1[[#This Row],[Sent2]]=\"\",Table1[[#This Row],[Received]]=\"\",Table1[[#This Row],[On File (Y/leave blank)]]=\"\",Table1[[#This Row],[Requested]]=\"\",Table1[[#This Row],[Received3]]=\"\",Table1[[#This Row],[On File (Y/leave blank)4]]=\"\",Table1[[#This Row],[Requested5]]=\"\",Table1[[#This Row],[Received2]]=\"\", Table1[[#This Row],[On File(Y/leave blank)]]=\"\"), \"STOP\", \"GO\")","v":"GO"},"Andrew T","2014-08-22","FT143680","2014-08-26",null,"2014-07-31","Diane Reich",13263207,6200,35770,"ICO 8000","Graduate instructor training and inservice","2014-08-29","2014-08-30",{"$f":"IF(Table1[[#This Row],[END date]]=Table1[[#This Row],[BEG date]],1,IF(Table1[[#This Row],[END date]]=Table1[[#This Row],[BEG date]]+1,2,IF(Table1[[#This Row],[END date]]=Table1[[#This Row],[BEG date]]+2,3,IF(Table1[[#This Row],[END date]]=Table1[[#This Row],[BEG date]]+3,4,IF(Table1[[#This Row],[END date]]=Table1[[#This Row],[BEG date]]+4,5,\">5\")))))","v":2},"Hand delivered",null,"970-481-8661"]
["Brennan Tolman","bjttolman@gmail.com",80,"2014-08-22","0000086850","NA","2014-08-07","2014-08-20","Y","2014-08-22","2014-08-22","NA","NA","NA","Y",{"$f":"IF(AND(TODAY()<Table1[[#This Row],[BEG date]]-14, Table1[[#This Row],[Submitted on]]=\"\"), \"\", IF(AND(Table1[[#This Row],[BEG date]]-14<=TODAY(), TODAY()<Table1[[#This Row],[BEG date]], Table1[[#This Row],[Submitted on]]=\"\"), Table1[[#This Row],[BEG date]], IF(Table1[[#This Row],[Submitted on]]=\"\", \"PROCESS ASAP\", IF(Table1[[#This Row],[Payment Made]]=\"\", \"SUBMITTED\", \"DONE\"))))","v":"DONE"},{"$f":"IF(OR(Table1[[#This Row],[Recipient]]=\"\", Table1[[#This Row],[Email]]=\"\",Table1[[#This Row],[Amount]]=\"\",Table1[[#This Row],[Sent]]=\"\",Table1[[#This Row],[Vendor '#]]=\"\",Table1[[#This Row],[Completed (Date)]]=\"\",Table1[[#This Row],[Sent2]]=\"\",Table1[[#This Row],[Received]]=\"\",Table1[[#This Row],[On File (Y/leave blank)]]=\"\",Table1[[#This Row],[Requested]]=\"\",Table1[[#This Row],[Received3]]=\"\",Table1[[#This Row],[On File (Y/leave blank)4]]=\"\",Table1[[#This Row],[Requested5]]=\"\",Table1[[#This Row],[Received2]]=\"\", Table1[[#This Row],[On File(Y/leave blank)]]=\"\"), \"STOP\", \"GO\")","v":"GO"},"Andrew T","2014-08-22","FT143752","2014-08-28",null,"2014-08-06","Jean Applonie",13263315,6200,35782,"ICO 7929","Timpany accompaniment to University Chorale concert","2014-06-04","2014-06-04",{"$f":"IF(Table1[[#This Row],[END date]]=Table1[[#This Row],[BEG date]],1,IF(Table1[[#This Row],[END date]]=Table1[[#This Row],[BEG date]]+1,2,IF(Table1[[#This Row],[END date]]=Table1[[#This Row],[BEG date]]+2,3,IF(Table1[[#This Row],[END date]]=Table1[[#This Row],[BEG date]]+3,4,IF(Table1[[#This Row],[END date]]=Table1[[#This Row],[BEG date]]+4,5,\">5\")))))","v":1}]
["NOVA Chamber Music Series","jasonhardink@yahoo.com",590,"NA",55279,"NA","2014-08-12","2014-08-12","2014-08-13","NA","2014-08-12","NA","NA","NA","Y",{"$f":"IF(AND(TODAY()<Table1[[#This Row],[BEG date]]-14, Table1[[#This Row],[Submitted on]]=\"\"), \"\", IF(AND(Table1[[#This Row],[BEG date]]-14<=TODAY(), TODAY()<Table1[[#This Row],[BEG date]], Table1[[#This Row],[Submitted on]]=\"\"), Table1[[#This Row],[BEG date]], IF(Table1[[#This Row],[Submitted on]]=\"\", \"PROCESS ASAP\", IF(Table1[[#This Row],[Payment Made]]=\"\", \"SUBMITTED\", \"DONE\"))))","v":"DONE"},{"$f":"IF(OR(Table1[[#This Row],[Recipient]]=\"\", Table1[[#This Row],[Email]]=\"\",Table1[[#This Row],[Amount]]=\"\",Table1[[#This Row],[Sent]]=\"\",Table1[[#This Row],[Vendor '#]]=\"\",Table1[[#This Row],[Completed (Date)]]=\"\",Table1[[#This Row],[Sent2]]=\"\",Table1[[#This Row],[Received]]=\"\",Table1[[#This Row],[On File (Y/leave blank)]]=\"\",Table1[[#This Row],[Requested]]=\"\",Table1[[#This Row],[Received3]]=\"\",Table1[[#This Row],[On File (Y/leave blank)4]]=\"\",Table1[[#This Row],[Requested5]]=\"\",Table1[[#This Row],[Received2]]=\"\", Table1[[#This Row],[On File(Y/leave blank)]]=\"\"), \"STOP\", \"GO\")","v":"GO"},"Lindsey","2014-08-13",null,"2014-08-18",null,"2014-08-07","Mike Hicks",23263132,6200,0,"ICO 8999","Honorarium for NOVA visit and performance (Jason is the manager)","2014-02-13","2014-02-13",{"$f":"IF(Table1[[#This Row],[END date]]=Table1[[#This Row],[BEG date]],1,IF(Table1[[#This Row],[END date]]=Table1[[#This Row],[BEG date]]+1,2,IF(Table1[[#This Row],[END date]]=Table1[[#This Row],[BEG date]]+2,3,IF(Table1[[#This Row],[END date]]=Table1[[#This Row],[BEG date]]+3,4,IF(Table1[[#This Row],[END date]]=Table1[[#This Row],[BEG date]]+4,5,\">5\")))))","v":1},"Mailed","Jason Hardink is the manager; he is receiving an honorarium; Denise gave OK for W-9"]
["Day Murray Music","info@daymurraymusic.com",64.7,"NA","LE00012661","NA","NA","NA","Y","NA","NA","NA","NA","NA","Y",{"$f":"IF(AND(TODAY()<Table1[[#This Row],[BEG date]]-14, Table1[[#This Row],[Submitted on]]=\"\"), \"\", IF(AND(Table1[[#This Row],[BEG date]]-14<=TODAY(), TODAY()<Table1[[#This Row],[BEG date]], Table1[[#This Row],[Submitted on]]=\"\"), Table1[[#This Row],[BEG date]], IF(Table1[[#This Row],[Submitted on]]=\"\", \"PROCESS ASAP\", IF(Table1[[#This Row],[Payment Made]]=\"\", \"SUBMITTED\", \"DONE\"))))","v":"DONE"},{"$f":"IF(OR(Table1[[#This Row],[Recipient]]=\"\", Table1[[#This Row],[Email]]=\"\",Table1[[#This Row],[Amount]]=\"\",Table1[[#This Row],[Sent]]=\"\",Table1[[#This Row],[Vendor '#]]=\"\",Table1[[#This Row],[Completed (Date)]]=\"\",Table1[[#This Row],[Sent2]]=\"\",Table1[[#This Row],[Received]]=\"\",Table1[[#This Row],[On File (Y/leave blank)]]=\"\",Table1[[#This Row],[Requested]]=\"\",Table1[[#This Row],[Received3]]=\"\",Table1[[#This Row],[On File (Y/leave blank)4]]=\"\",Table1[[#This Row],[Requested5]]=\"\",Table1[[#This Row],[Received2]]=\"\", Table1[[#This Row],[On File(Y/leave blank)]]=\"\"), \"STOP\", \"GO\")","v":"GO"},"Andrew E","2014-08-14",null,"2014-08-19",null,"2014-08-14","Don Peterson",13263071,6200,35739,"GDS 8999","Concert Band Music- \"Fanfare For a New Era\"",null,null,{"$f":"IF(Table1[[#This Row],[END date]]=Table1[[#This Row],[BEG date]],1,IF(Table1[[#This Row],[END date]]=Table1[[#This Row],[BEG date]]+1,2,IF(Table1[[#This Row],[END date]]=Table1[[#This Row],[BEG date]]+2,3,IF(Table1[[#This Row],[END date]]=Table1[[#This Row],[BEG date]]+3,4,IF(Table1[[#This Row],[END date]]=Table1[[#This Row],[BEG date]]+4,5,\">5\")))))","v":1},"Mailed"]
["Keveli Music","kevin@kevelimusic.com",70,"2014-08-22","0000086849","NA","NA","NA","Y","2014-08-15","2014-08-15","NA","NA","NA","Y",{"$f":"IF(AND(TODAY()<Table1[[#This Row],[BEG date]]-14, Table1[[#This Row],[Submitted on]]=\"\"), \"\", IF(AND(Table1[[#This Row],[BEG date]]-14<=TODAY(), TODAY()<Table1[[#This Row],[BEG date]], Table1[[#This Row],[Submitted on]]=\"\"), Table1[[#This Row],[BEG date]], IF(Table1[[#This Row],[Submitted on]]=\"\", \"PROCESS ASAP\", IF(Table1[[#This Row],[Payment Made]]=\"\", \"SUBMITTED\", \"DONE\"))))","v":"DONE"},{"$f":"IF(OR(Table1[[#This Row],[Recipient]]=\"\", Table1[[#This Row],[Email]]=\"\",Table1[[#This Row],[Amount]]=\"\",Table1[[#This Row],[Sent]]=\"\",Table1[[#This Row],[Vendor '#]]=\"\",Table1[[#This Row],[Completed (Date)]]=\"\",Table1[[#This Row],[Sent2]]=\"\",Table1[[#This Row],[Received]]=\"\",Table1[[#This Row],[On File (Y/leave blank)]]=\"\",Table1[[#This Row],[Requested]]=\"\",Table1[[#This Row],[Received3]]=\"\",Table1[[#This Row],[On File (Y/leave blank)4]]=\"\",Table1[[#This Row],[Requested5]]=\"\",Table1[[#This Row],[Received2]]=\"\", Table1[[#This Row],[On File(Y/leave blank)]]=\"\"), \"STOP\", \"GO\")","v":"GO"},"Andrew T","2014-08-22","FT143574","2014-08-26",null,"2014-08-15","Karren Williamson",13263071,6200,0,"ROY 8999","mechanical license for score \"from glory to glory\" for 2013-14 bands in review CD",null,null,{"$f":"IF(Table1[[#This Row],[END date]]=Table1[[#This Row],[BEG date]],1,IF(Table1[[#This Row],[END date]]=Table1[[#This Row],[BEG date]]+1,2,IF(Table1[[#This Row],[END date]]=Table1[[#This Row],[BEG date]]+2,3,IF(Table1[[#This Row],[END date]]=Table1[[#This Row],[BEG date]]+3,4,IF(Table1[[#This Row],[END date]]=Table1[[#This Row],[BEG date]]+4,5,\">5\")))))","v":1},"Mailed"]
["Boosey & Hawkes, Inc.","elias.blumm@imagem.com",180,"NA","0000003593","NA","2014-08-20","2014-08-20","Y","2014-08-21","2014-08-22","NA","NA","NA","Y",{"$f":"IF(AND(TODAY()<Table1[[#This Row],[BEG date]]-14, Table1[[#This Row],[Submitted on]]=\"\"), \"\", IF(AND(Table1[[#This Row],[BEG date]]-14<=TODAY(), TODAY()<Table1[[#This Row],[BEG date]], Table1[[#This Row],[Submitted on]]=\"\"), Table1[[#This Row],[BEG date]], IF(Table1[[#This Row],[Submitted on]]=\"\", \"PROCESS ASAP\", IF(Table1[[#This Row],[Payment Made]]=\"\", \"SUBMITTED\", \"DONE\"))))","v":"DONE"},{"$f":"IF(OR(Table1[[#This Row],[Recipient]]=\"\", Table1[[#This Row],[Email]]=\"\",Table1[[#This Row],[Amount]]=\"\",Table1[[#This Row],[Sent]]=\"\",Table1[[#This Row],[Vendor '#]]=\"\",Table1[[#This Row],[Completed (Date)]]=\"\",Table1[[#This Row],[Sent2]]=\"\",Table1[[#This Row],[Received]]=\"\",Table1[[#This Row],[On File (Y/leave blank)]]=\"\",Table1[[#This Row],[Requested]]=\"\",Table1[[#This Row],[Received3]]=\"\",Table1[[#This Row],[On File (Y/leave blank)4]]=\"\",Table1[[#This Row],[Requested5]]=\"\",Table1[[#This Row],[Received2]]=\"\", Table1[[#This Row],[On File(Y/leave blank)]]=\"\"), \"STOP\", \"GO\")","v":"GO"},"Andrew T","2014-08-22","FT143532","2014-08-27",null,"2014-08-15","Rosalind Hall",13263083,6200,35743,"ROY 8999","Rights to duplicate music",null,null,{"$f":"IF(Table1[[#This Row],[END date]]=Table1[[#This Row],[BEG date]],1,IF(Table1[[#This Row],[END date]]=Table1[[#This Row],[BEG date]]+1,2,IF(Table1[[#This Row],[END date]]=Table1[[#This Row],[BEG date]]+2,3,IF(Table1[[#This Row],[END date]]=Table1[[#This Row],[BEG date]]+3,4,IF(Table1[[#This Row],[END date]]=Table1[[#This Row],[BEG date]]+4,5,\">5\")))))","v":1},"Mailed","Call in and see if we can pay with P-card, if not then ask for W9","212-358-5300"]
["Dr. David Liptak","dliptak@esm.rochester.edu",100,"NA","0000034972","NA","2014-08-21","2014-08-22","Y","NA","NA","NA","NA","NA","Y",{"$f":"IF(AND(TODAY()<Table1[[#This Row],[BEG date]]-14, Table1[[#This Row],[Submitted on]]=\"\"), \"\", IF(AND(Table1[[#This Row],[BEG date]]-14<=TODAY(), TODAY()<Table1[[#This Row],[BEG date]], Table1[[#This Row],[Submitted on]]=\"\"), Table1[[#This Row],[BEG date]], IF(Table1[[#This Row],[Submitted on]]=\"\", \"PROCESS ASAP\", IF(Table1[[#This Row],[Payment Made]]=\"\", \"SUBMITTED\", \"DONE\"))))","v":"DONE"},{"$f":"IF(OR(Table1[[#This Row],[Recipient]]=\"\", Table1[[#This Row],[Email]]=\"\",Table1[[#This Row],[Amount]]=\"\",Table1[[#This Row],[Sent]]=\"\",Table1[[#This Row],[Vendor '#]]=\"\",Table1[[#This Row],[Completed (Date)]]=\"\",Table1[[#This Row],[Sent2]]=\"\",Table1[[#This Row],[Received]]=\"\",Table1[[#This Row],[On File (Y/leave blank)]]=\"\",Table1[[#This Row],[Requested]]=\"\",Table1[[#This Row],[Received3]]=\"\",Table1[[#This Row],[On File (Y/leave blank)4]]=\"\",Table1[[#This Row],[Requested5]]=\"\",Table1[[#This Row],[Received2]]=\"\", Table1[[#This Row],[On File(Y/leave blank)]]=\"\"), \"STOP\", \"GO\")","v":"GO"},"Andrew T","2014-08-22","FT143554","2014-08-26",null,"2014-08-18","Marilyn Parks",11263000,6100,21619,"ICO 8992","Honorarium for reviewing the scholarship of Steve Ricks for rank & status advancement.","2014-08-15","2014-08-15",{"$f":"IF(Table1[[#This Row],[END date]]=Table1[[#This Row],[BEG date]],1,IF(Table1[[#This Row],[END date]]=Table1[[#This Row],[BEG date]]+1,2,IF(Table1[[#This Row],[END date]]=Table1[[#This Row],[BEG date]]+2,3,IF(Table1[[#This Row],[END date]]=Table1[[#This Row],[BEG date]]+3,4,IF(Table1[[#This Row],[END date]]=Table1[[#This Row],[BEG date]]+4,5,\">5\")))))","v":1},"Mailed"]
["Baroque Keyboards LLC","baroquekeyboards@earthlink.net",1100,"2014-09-11","2014-09-11","NA","2014-08-20","2014-08-29","Y","2014-08-27","2014-09-11","NA","NA","NA","Y",{"$f":"IF(AND(TODAY()<Table1[[#This Row],[BEG date]]-14, Table1[[#This Row],[Submitted on]]=\"\"), \"\", IF(AND(Table1[[#This Row],[BEG date]]-14<=TODAY(), TODAY()<Table1[[#This Row],[BEG date]], Table1[[#This Row],[Submitted on]]=\"\"), Table1[[#This Row],[BEG date]], IF(Table1[[#This Row],[Submitted on]]=\"\", \"PROCESS ASAP\", IF(Table1[[#This Row],[Payment Made]]=\"\", \"SUBMITTED\", \"DONE\"))))","v":"DONE"},{"$f":"IF(OR(Table1[[#This Row],[Recipient]]=\"\", Table1[[#This Row],[Email]]=\"\",Table1[[#This Row],[Amount]]=\"\",Table1[[#This Row],[Sent]]=\"\",Table1[[#This Row],[Vendor '#]]=\"\",Table1[[#This Row],[Completed (Date)]]=\"\",Table1[[#This Row],[Sent2]]=\"\",Table1[[#This Row],[Received]]=\"\",Table1[[#This Row],[On File (Y/leave blank)]]=\"\",Table1[[#This Row],[Requested]]=\"\",Table1[[#This Row],[Received3]]=\"\",Table1[[#This Row],[On File (Y/leave blank)4]]=\"\",Table1[[#This Row],[Requested5]]=\"\",Table1[[#This Row],[Received2]]=\"\", Table1[[#This Row],[On File(Y/leave blank)]]=\"\"), \"STOP\", \"GO\")","v":"GO"},"Lindsey","2014-09-12","FT147292","2014-09-17",null,"2014-08-15","Alex Woods",20263380,6200,0,"RNT 7011","Harpsichord rental for CD recording session",null,null,{"$f":"IF(Table1[[#This Row],[END date]]=Table1[[#This Row],[BEG date]],1,IF(Table1[[#This Row],[END date]]=Table1[[#This Row],[BEG date]]+1,2,IF(Table1[[#This Row],[END date]]=Table1[[#This Row],[BEG date]]+2,3,IF(Table1[[#This Row],[END date]]=Table1[[#This Row],[BEG date]]+3,4,IF(Table1[[#This Row],[END date]]=Table1[[#This Row],[BEG date]]+4,5,\">5\")))))","v":1},"Mailed"]
["Customer Direct Marketing, LLC","rbeach63@gmail.com",2000,"NA","0000069339","2014-08-22","2014-08-20","2014-08-21","Y","2014-08-21","2014-08-22","Y","2014-08-21","2014-08-22","Y",{"$f":"IF(AND(TODAY()<Table1[[#This Row],[BEG date]]-14, Table1[[#This Row],[Submitted on]]=\"\"), \"\", IF(AND(Table1[[#This Row],[BEG date]]-14<=TODAY(), TODAY()<Table1[[#This Row],[BEG date]], Table1[[#This Row],[Submitted on]]=\"\"), Table1[[#This Row],[BEG date]], IF(Table1[[#This Row],[Submitted on]]=\"\", \"PROCESS ASAP\", IF(Table1[[#This Row],[Payment Made]]=\"\", \"SUBMITTED\", \"DONE\"))))","v":"DONE"},{"$f":"IF(OR(Table1[[#This Row],[Recipient]]=\"\", Table1[[#This Row],[Email]]=\"\",Table1[[#This Row],[Amount]]=\"\",Table1[[#This Row],[Sent]]=\"\",Table1[[#This Row],[Vendor '#]]=\"\",Table1[[#This Row],[Completed (Date)]]=\"\",Table1[[#This Row],[Sent2]]=\"\",Table1[[#This Row],[Received]]=\"\",Table1[[#This Row],[On File (Y/leave blank)]]=\"\",Table1[[#This Row],[Requested]]=\"\",Table1[[#This Row],[Received3]]=\"\",Table1[[#This Row],[On File (Y/leave blank)4]]=\"\",Table1[[#This Row],[Requested5]]=\"\",Table1[[#This Row],[Received2]]=\"\", Table1[[#This Row],[On File(Y/leave blank)]]=\"\"), \"STOP\", \"GO\")","v":"GO"},"Andrew T","2014-08-22","FT143552","2014-08-27",null,"2014-08-19","Karren Williamson",13263369,6200,35933,"ICO 8993","Compose percussion music for marching band","2014-06-09","2014-08-16",{"$f":"IF(Table1[[#This Row],[END date]]=Table1[[#This Row],[BEG date]],1,IF(Table1[[#This Row],[END date]]=Table1[[#This Row],[BEG date]]+1,2,IF(Table1[[#This Row],[END date]]=Table1[[#This Row],[BEG date]]+2,3,IF(Table1[[#This Row],[END date]]=Table1[[#This Row],[BEG date]]+3,4,IF(Table1[[#This Row],[END date]]=Table1[[#This Row],[BEG date]]+4,5,\">5\")))))","v":">5"},"Mailed",null,"435-213-7013"]
["David Korevaar","david.korevaar@colorado.edu",600,"2014-09-17",87000,"NA","2014-08-29","2014-08-29","Y","2014-09-03","2014-09-17","NA","NA","NA","Y",{"$f":"IF(AND(TODAY()<Table1[[#This Row],[BEG date]]-14, Table1[[#This Row],[Submitted on]]=\"\"), \"\", IF(AND(Table1[[#This Row],[BEG date]]-14<=TODAY(), TODAY()<Table1[[#This Row],[BEG date]], Table1[[#This Row],[Submitted on]]=\"\"), Table1[[#This Row],[BEG date]], IF(Table1[[#This Row],[Submitted on]]=\"\", \"PROCESS ASAP\", IF(Table1[[#This Row],[Payment Made]]=\"\", \"SUBMITTED\", \"DONE\"))))","v":"DONE"},{"$f":"IF(OR(Table1[[#This Row],[Recipient]]=\"\", Table1[[#This Row],[Email]]=\"\",Table1[[#This Row],[Amount]]=\"\",Table1[[#This Row],[Sent]]=\"\",Table1[[#This Row],[Vendor '#]]=\"\",Table1[[#This Row],[Completed (Date)]]=\"\",Table1[[#This Row],[Sent2]]=\"\",Table1[[#This Row],[Received]]=\"\",Table1[[#This Row],[On File (Y/leave blank)]]=\"\",Table1[[#This Row],[Requested]]=\"\",Table1[[#This Row],[Received3]]=\"\",Table1[[#This Row],[On File (Y/leave blank)4]]=\"\",Table1[[#This Row],[Requested5]]=\"\",Table1[[#This Row],[Received2]]=\"\", Table1[[#This Row],[On File(Y/leave blank)]]=\"\"), \"STOP\", \"GO\")","v":"GO"},"Andrew T","2014-09-22","FT147994","2014-09-23",null,"2014-05-05","Richard Anderson",11263011,6200,21681,"ICO 7929","fee for guest artist","2014-09-26","2014-09-26",{"$f":"IF(Table1[[#This Row],[END date]]=Table1[[#This Row],[BEG date]],1,IF(Table1[[#This Row],[END date]]=Table1[[#This Row],[BEG date]]+1,2,IF(Table1[[#This Row],[END date]]=Table1[[#This Row],[BEG date]]+2,3,IF(Table1[[#This Row],[END date]]=Table1[[#This Row],[BEG date]]+3,4,IF(Table1[[#This Row],[END date]]=Table1[[#This Row],[BEG date]]+4,5,\">5\")))))","v":1},"Hand Delivered",null,"303-492-6256"]
["Stanton Consulting & Management","tdstanton@stantonmgt.com",1650,"NA",66271,"NA","2014-09-03","2014-09-02","Y","2014-09-04","2014-09-04","NA","NA","NA","Y",{"$f":"IF(AND(TODAY()<Table1[[#This Row],[BEG date]]-14, Table1[[#This Row],[Submitted on]]=\"\"), \"\", IF(AND(Table1[[#This Row],[BEG date]]-14<=TODAY(), TODAY()<Table1[[#This Row],[BEG date]], Table1[[#This Row],[Submitted on]]=\"\"), Table1[[#This Row],[BEG date]], IF(Table1[[#This Row],[Submitted on]]=\"\", \"PROCESS ASAP\", IF(Table1[[#This Row],[Payment Made]]=\"\", \"SUBMITTED\", \"DONE\"))))","v":"DONE"},{"$f":"IF(OR(Table1[[#This Row],[Recipient]]=\"\", Table1[[#This Row],[Email]]=\"\",Table1[[#This Row],[Amount]]=\"\",Table1[[#This Row],[Sent]]=\"\",Table1[[#This Row],[Vendor '#]]=\"\",Table1[[#This Row],[Completed (Date)]]=\"\",Table1[[#This Row],[Sent2]]=\"\",Table1[[#This Row],[Received]]=\"\",Table1[[#This Row],[On File (Y/leave blank)]]=\"\",Table1[[#This Row],[Requested]]=\"\",Table1[[#This Row],[Received3]]=\"\",Table1[[#This Row],[On File (Y/leave blank)4]]=\"\",Table1[[#This Row],[Requested5]]=\"\",Table1[[#This Row],[Received2]]=\"\", Table1[[#This Row],[On File(Y/leave blank)]]=\"\"), \"STOP\", \"GO\")","v":"GO"},"Andrew T","2014-10-07","FT151214","2014-10-14",null,"2014-09-02","Will Kimball",11263014,6200,35864,"ICO 7929","For american brass quintet master class","2014-11-05","2014-11-05",{"$f":"IF(Table1[[#This Row],[END date]]=Table1[[#This Row],[BEG date]],1,IF(Table1[[#This Row],[END date]]=Table1[[#This Row],[BEG date]]+1,2,IF(Table1[[#This Row],[END date]]=Table1[[#This Row],[BEG date]]+2,3,IF(Table1[[#This Row],[END date]]=Table1[[#This Row],[BEG date]]+3,4,IF(Table1[[#This Row],[END date]]=Table1[[#This Row],[BEG date]]+4,5,\">5\")))))","v":1},"Hand Delivered",null,"620-563-7312"]
["Mark Davidson","mdd0021@gmail.com",400,"2014-09-08",86935,"NA","2014-09-03","2014-09-02","Y","2014-09-04","2014-09-05","NA","NA","NA","Y",{"$f":"IF(AND(TODAY()<Table1[[#This Row],[BEG date]]-14, Table1[[#This Row],[Submitted on]]=\"\"), \"\", IF(AND(Table1[[#This Row],[BEG date]]-14<=TODAY(), TODAY()<Table1[[#This Row],[BEG date]], Table1[[#This Row],[Submitted on]]=\"\"), Table1[[#This Row],[BEG date]], IF(Table1[[#This Row],[Submitted on]]=\"\", \"PROCESS ASAP\", IF(Table1[[#This Row],[Payment Made]]=\"\", \"SUBMITTED\", \"DONE\"))))","v":"DONE"},{"$f":"IF(OR(Table1[[#This Row],[Recipient]]=\"\", Table1[[#This Row],[Email]]=\"\",Table1[[#This Row],[Amount]]=\"\",Table1[[#This Row],[Sent]]=\"\",Table1[[#This Row],[Vendor '#]]=\"\",Table1[[#This Row],[Completed (Date)]]=\"\",Table1[[#This Row],[Sent2]]=\"\",Table1[[#This Row],[Received]]=\"\",Table1[[#This Row],[On File (Y/leave blank)]]=\"\",Table1[[#This Row],[Requested]]=\"\",Table1[[#This Row],[Received3]]=\"\",Table1[[#This Row],[On File (Y/leave blank)4]]=\"\",Table1[[#This Row],[Requested5]]=\"\",Table1[[#This Row],[Received2]]=\"\", Table1[[#This Row],[On File(Y/leave blank)]]=\"\"), \"STOP\", \"GO\")","v":"GO"},"Andrew T","2014-09-08","FT146313","2014-09-10",null,"2014-09-02","Will Kimball",13263211,6200,35864,"ICO 7929","Performing for the brass master class per Will Kimball","2014-09-15","2014-09-15",{"$f":"IF(Table1[[#This Row],[END date]]=Table1[[#This Row],[BEG date]],1,IF(Table1[[#This Row],[END date]]=Table1[[#This Row],[BEG date]]+1,2,IF(Table1[[#This Row],[END date]]=Table1[[#This Row],[BEG date]]+2,3,IF(Table1[[#This Row],[END date]]=Table1[[#This Row],[BEG date]]+3,4,IF(Table1[[#This Row],[END date]]=Table1[[#This Row],[BEG date]]+4,5,\">5\")))))","v":1},"Hand Delivered"]
["Zach Guiles","zachguiles@gmail.com",400,"2014-09-10",86963,"NA","2014-09-03","2014-09-02","Y","2014-09-04","2014-09-10","NA","NA","NA","Y",{"$f":"IF(AND(TODAY()<Table1[[#This Row],[BEG date]]-14, Table1[[#This Row],[Submitted on]]=\"\"), \"\", IF(AND(Table1[[#This Row],[BEG date]]-14<=TODAY(), TODAY()<Table1[[#This Row],[BEG date]], Table1[[#This Row],[Submitted on]]=\"\"), Table1[[#This Row],[BEG date]], IF(Table1[[#This Row],[Submitted on]]=\"\", \"PROCESS ASAP\", IF(Table1[[#This Row],[Payment Made]]=\"\", \"SUBMITTED\", \"DONE\"))))","v":"DONE"},{"$f":"IF(OR(Table1[[#This Row],[Recipient]]=\"\", Table1[[#This Row],[Email]]=\"\",Table1[[#This Row],[Amount]]=\"\",Table1[[#This Row],[Sent]]=\"\",Table1[[#This Row],[Vendor '#]]=\"\",Table1[[#This Row],[Completed (Date)]]=\"\",Table1[[#This Row],[Sent2]]=\"\",Table1[[#This Row],[Received]]=\"\",Table1[[#This Row],[On File (Y/leave blank)]]=\"\",Table1[[#This Row],[Requested]]=\"\",Table1[[#This Row],[Received3]]=\"\",Table1[[#This Row],[On File (Y/leave blank)4]]=\"\",Table1[[#This Row],[Requested5]]=\"\",Table1[[#This Row],[Received2]]=\"\", Table1[[#This Row],[On File(Y/leave blank)]]=\"\"), \"STOP\", \"GO\")","v":"GO"},"Andrew T","2014-09-11","FT146896","2014-09-12",null,"2014-09-02","Will Kimball",13263211,6200,35864,"ICO 7929","Performing for the brass master class per Will Kimball","2014-09-15","2014-09-15",{"$f":"IF(Table1[[#This Row],[END date]]=Table1[[#This Row],[BEG date]],1,IF(Table1[[#This Row],[END date]]=Table1[[#This Row],[BEG date]]+1,2,IF(Table1[[#This Row],[END date]]=Table1[[#This Row],[BEG date]]+2,3,IF(Table1[[#This Row],[END date]]=Table1[[#This Row],[BEG date]]+3,4,IF(Table1[[#This Row],[END date]]=Table1[[#This Row],[BEG date]]+4,5,\">5\")))))","v":1},"Hand Delivered"]
["Gary Ofenloch","bydloman@comcast.net",400,"NA",36104,"NA","2014-09-03","2014-09-02","Y","NA","NA","NA","NA","NA","Y",{"$f":"IF(AND(TODAY()<Table1[[#This Row],[BEG date]]-14, Table1[[#This Row],[Submitted on]]=\"\"), \"\", IF(AND(Table1[[#This Row],[BEG date]]-14<=TODAY(), TODAY()<Table1[[#This Row],[BEG date]], Table1[[#This Row],[Submitted on]]=\"\"), Table1[[#This Row],[BEG date]], IF(Table1[[#This Row],[Submitted on]]=\"\", \"PROCESS ASAP\", IF(Table1[[#This Row],[Payment Made]]=\"\", \"SUBMITTED\", \"DONE\"))))","v":"DONE"},{"$f":"IF(OR(Table1[[#This Row],[Recipient]]=\"\", Table1[[#This Row],[Email]]=\"\",Table1[[#This Row],[Amount]]=\"\",Table1[[#This Row],[Sent]]=\"\",Table1[[#This Row],[Vendor '#]]=\"\",Table1[[#This Row],[Completed (Date)]]=\"\",Table1[[#This Row],[Sent2]]=\"\",Table1[[#This Row],[Received]]=\"\",Table1[[#This Row],[On File (Y/leave blank)]]=\"\",Table1[[#This Row],[Requested]]=\"\",Table1[[#This Row],[Received3]]=\"\",Table1[[#This Row],[On File (Y/leave blank)4]]=\"\",Table1[[#This Row],[Requested5]]=\"\",Table1[[#This Row],[Received2]]=\"\", Table1[[#This Row],[On File(Y/leave blank)]]=\"\"), \"STOP\", \"GO\")","v":"GO"},"Andrew T","2014-09-04","FT145936","2014-09-10",null,"2014-09-02","Will Kimball",13263211,6200,35864,"ICO 7929","Performing for the brass master class per Will Kimball","2014-09-15","2014-09-15",{"$f":"IF(Table1[[#This Row],[END date]]=Table1[[#This Row],[BEG date]],1,IF(Table1[[#This Row],[END date]]=Table1[[#This Row],[BEG date]]+1,2,IF(Table1[[#This Row],[END date]]=Table1[[#This Row],[BEG date]]+2,3,IF(Table1[[#This Row],[END date]]=Table1[[#This Row],[BEG date]]+3,4,IF(Table1[[#This Row],[END date]]=Table1[[#This Row],[BEG date]]+4,5,\">5\")))))","v":1},"Hand Delivered"]
["David Felder","felder@buffalo.edu",100,"2014-09-29",87092,"NA","NA","NA","Y","2014-09-03","2014-09-18","NA","NA","NA","Y",{"$f":"IF(AND(TODAY()<Table1[[#This Row],[BEG date]]-14, Table1[[#This Row],[Submitted on]]=\"\"), \"\", IF(AND(Table1[[#This Row],[BEG date]]-14<=TODAY(), TODAY()<Table1[[#This Row],[BEG date]], Table1[[#This Row],[Submitted on]]=\"\"), Table1[[#This Row],[BEG date]], IF(Table1[[#This Row],[Submitted on]]=\"\", \"PROCESS ASAP\", IF(Table1[[#This Row],[Payment Made]]=\"\", \"SUBMITTED\", \"DONE\"))))","v":"DONE"},{"$f":"IF(OR(Table1[[#This Row],[Recipient]]=\"\", Table1[[#This Row],[Email]]=\"\",Table1[[#This Row],[Amount]]=\"\",Table1[[#This Row],[Sent]]=\"\",Table1[[#This Row],[Vendor '#]]=\"\",Table1[[#This Row],[Completed (Date)]]=\"\",Table1[[#This Row],[Sent2]]=\"\",Table1[[#This Row],[Received]]=\"\",Table1[[#This Row],[On File (Y/leave blank)]]=\"\",Table1[[#This Row],[Requested]]=\"\",Table1[[#This Row],[Received3]]=\"\",Table1[[#This Row],[On File (Y/leave blank)4]]=\"\",Table1[[#This Row],[Requested5]]=\"\",Table1[[#This Row],[Received2]]=\"\", Table1[[#This Row],[On File(Y/leave blank)]]=\"\"), \"STOP\", \"GO\")","v":"GO"},"Andrew T","2014-09-29","FT149754","2014-10-01",null,"2014-09-03","Marilyn Parks",11263000,6100,21619,"ICO 8992","Honorarium for reviewing the scholarship of Steve Ricks for rank & status advancement.","2014-09-03","2014-09-03",{"$f":"IF(Table1[[#This Row],[END date]]=Table1[[#This Row],[BEG date]],1,IF(Table1[[#This Row],[END date]]=Table1[[#This Row],[BEG date]]+1,2,IF(Table1[[#This Row],[END date]]=Table1[[#This Row],[BEG date]]+2,3,IF(Table1[[#This Row],[END date]]=Table1[[#This Row],[BEG date]]+3,4,IF(Table1[[#This Row],[END date]]=Table1[[#This Row],[BEG date]]+4,5,\">5\")))))","v":1},"Mailed","Mailed his w9, be expecting it","716-645-0658"]
["Erik Lund","eriklund@illinois.edu",100,"2014-09-11",86967,"NA","NA","NA","Y","2014-09-03","2014-09-11","NA","NA","NA","Y",{"$f":"IF(AND(TODAY()<Table1[[#This Row],[BEG date]]-14, Table1[[#This Row],[Submitted on]]=\"\"), \"\", IF(AND(Table1[[#This Row],[BEG date]]-14<=TODAY(), TODAY()<Table1[[#This Row],[BEG date]], Table1[[#This Row],[Submitted on]]=\"\"), Table1[[#This Row],[BEG date]], IF(Table1[[#This Row],[Submitted on]]=\"\", \"PROCESS ASAP\", IF(Table1[[#This Row],[Payment Made]]=\"\", \"SUBMITTED\", \"DONE\"))))","v":"DONE"},{"$f":"IF(OR(Table1[[#This Row],[Recipient]]=\"\", Table1[[#This Row],[Email]]=\"\",Table1[[#This Row],[Amount]]=\"\",Table1[[#This Row],[Sent]]=\"\",Table1[[#This Row],[Vendor '#]]=\"\",Table1[[#This Row],[Completed (Date)]]=\"\",Table1[[#This Row],[Sent2]]=\"\",Table1[[#This Row],[Received]]=\"\",Table1[[#This Row],[On File (Y/leave blank)]]=\"\",Table1[[#This Row],[Requested]]=\"\",Table1[[#This Row],[Received3]]=\"\",Table1[[#This Row],[On File (Y/leave blank)4]]=\"\",Table1[[#This Row],[Requested5]]=\"\",Table1[[#This Row],[Received2]]=\"\", Table1[[#This Row],[On File(Y/leave blank)]]=\"\"), \"STOP\", \"GO\")","v":"GO"},"Andrew T","2014-09-11","FT147032","2014-09-16",null,"2014-09-02","Marilyn Parks",11263000,6100,21619,"ICO 8992","Honorarium for reviewing the scholarship of Steve Ricks for rank & status advancement.","2014-09-01","2014-09-01",{"$f":"IF(Table1[[#This Row],[END date]]=Table1[[#This Row],[BEG date]],1,IF(Table1[[#This Row],[END date]]=Table1[[#This Row],[BEG date]]+1,2,IF(Table1[[#This Row],[END date]]=Table1[[#This Row],[BEG date]]+2,3,IF(Table1[[#This Row],[END date]]=Table1[[#This Row],[BEG date]]+3,4,IF(Table1[[#This Row],[END date]]=Table1[[#This Row],[BEG date]]+4,5,\">5\")))))","v":1},"Mailed",null,"217-333-2620"]
["Ann Ellsworth","ellsworthann@gmail.com",400,"2014-09-22",87047,"NA","NA","NA","Y","2014-09-19","2014-09-19","NA","NA","NA","Y",{"$f":"IF(AND(TODAY()<Table1[[#This Row],[BEG date]]-14, Table1[[#This Row],[Submitted on]]=\"\"), \"\", IF(AND(Table1[[#This Row],[BEG date]]-14<=TODAY(), TODAY()<Table1[[#This Row],[BEG date]], Table1[[#This Row],[Submitted on]]=\"\"), Table1[[#This Row],[BEG date]], IF(Table1[[#This Row],[Submitted on]]=\"\", \"PROCESS ASAP\", IF(Table1[[#This Row],[Payment Made]]=\"\", \"SUBMITTED\", \"DONE\"))))","v":"DONE"},{"$f":"IF(OR(Table1[[#This Row],[Recipient]]=\"\", Table1[[#This Row],[Email]]=\"\",Table1[[#This Row],[Amount]]=\"\",Table1[[#This Row],[Sent]]=\"\",Table1[[#This Row],[Vendor '#]]=\"\",Table1[[#This Row],[Completed (Date)]]=\"\",Table1[[#This Row],[Sent2]]=\"\",Table1[[#This Row],[Received]]=\"\",Table1[[#This Row],[On File (Y/leave blank)]]=\"\",Table1[[#This Row],[Requested]]=\"\",Table1[[#This Row],[Received3]]=\"\",Table1[[#This Row],[On File (Y/leave blank)4]]=\"\",Table1[[#This Row],[Requested5]]=\"\",Table1[[#This Row],[Received2]]=\"\", Table1[[#This Row],[On File(Y/leave blank)]]=\"\"), \"STOP\", \"GO\")","v":"GO"},"Andrew T","2014-09-23","FT148832","2014-09-24",null,"2014-09-03","Laurence Lowe",13263211,6200,35756,"ICO 7929","Masterclass and lessons","2014-09-11","2014-09-11",{"$f":"IF(Table1[[#This Row],[END date]]=Table1[[#This Row],[BEG date]],1,IF(Table1[[#This Row],[END date]]=Table1[[#This Row],[BEG date]]+1,2,IF(Table1[[#This Row],[END date]]=Table1[[#This Row],[BEG date]]+2,3,IF(Table1[[#This Row],[END date]]=Table1[[#This Row],[BEG date]]+3,4,IF(Table1[[#This Row],[END date]]=Table1[[#This Row],[BEG date]]+4,5,\">5\")))))","v":1},"Mailed",null,"917-501-7208"]
["Reed LeCheminant","trombaguy@comcast.net",825,"NA",40608,"2014-10-02","2014-09-10","2014-09-10","Y","NA","NA","Y","2014-09-10","2014-10-02","Y",{"$f":"IF(AND(TODAY()<Table1[[#This Row],[BEG date]]-14, Table1[[#This Row],[Submitted on]]=\"\"), \"\", IF(AND(Table1[[#This Row],[BEG date]]-14<=TODAY(), TODAY()<Table1[[#This Row],[BEG date]], Table1[[#This Row],[Submitted on]]=\"\"), Table1[[#This Row],[BEG date]], IF(Table1[[#This Row],[Submitted on]]=\"\", \"PROCESS ASAP\", IF(Table1[[#This Row],[Payment Made]]=\"\", \"SUBMITTED\", \"DONE\"))))","v":"DONE"},{"$f":"IF(OR(Table1[[#This Row],[Recipient]]=\"\", Table1[[#This Row],[Email]]=\"\",Table1[[#This Row],[Amount]]=\"\",Table1[[#This Row],[Sent]]=\"\",Table1[[#This Row],[Vendor '#]]=\"\",Table1[[#This Row],[Completed (Date)]]=\"\",Table1[[#This Row],[Sent2]]=\"\",Table1[[#This Row],[Received]]=\"\",Table1[[#This Row],[On File (Y/leave blank)]]=\"\",Table1[[#This Row],[Requested]]=\"\",Table1[[#This Row],[Received3]]=\"\",Table1[[#This Row],[On File (Y/leave blank)4]]=\"\",Table1[[#This Row],[Requested5]]=\"\",Table1[[#This Row],[Received2]]=\"\", Table1[[#This Row],[On File(Y/leave blank)]]=\"\"), \"STOP\", \"GO\")","v":"GO"},"Andrew T","2014-10-08","FT150532","2014-10-10",null,"2014-08-25","Ray Smith",13263367,6200,35765,"ICO 7950","Payment for lead trumpet work with synthesis","2014-02-13","2014-03-01",{"$f":"IF(Table1[[#This Row],[END date]]=Table1[[#This Row],[BEG date]],1,IF(Table1[[#This Row],[END date]]=Table1[[#This Row],[BEG date]]+1,2,IF(Table1[[#This Row],[END date]]=Table1[[#This Row],[BEG date]]+2,3,IF(Table1[[#This Row],[END date]]=Table1[[#This Row],[BEG date]]+3,4,IF(Table1[[#This Row],[END date]]=Table1[[#This Row],[BEG date]]+4,5,\">5\")))))","v":">5"},"Mailed","NEED EIN! - requested 10/07","801-209-2336"]
["Joshua Larsen","larsen.bass@gmail.com",500,"2014-09-23",87055,"2014-09-23","2014-09-10","2014-09-10","Y","2014-09-11","2014-09-22","Y","2014-09-11","2014-09-18","Y",{"$f":"IF(AND(TODAY()<Table1[[#This Row],[BEG date]]-14, Table1[[#This Row],[Submitted on]]=\"\"), \"\", IF(AND(Table1[[#This Row],[BEG date]]-14<=TODAY(), TODAY()<Table1[[#This Row],[BEG date]], Table1[[#This Row],[Submitted on]]=\"\"), Table1[[#This Row],[BEG date]], IF(Table1[[#This Row],[Submitted on]]=\"\", \"PROCESS ASAP\", IF(Table1[[#This Row],[Payment Made]]=\"\", \"SUBMITTED\", \"DONE\"))))","v":"DONE"},{"$f":"IF(OR(Table1[[#This Row],[Recipient]]=\"\", Table1[[#This Row],[Email]]=\"\",Table1[[#This Row],[Amount]]=\"\",Table1[[#This Row],[Sent]]=\"\",Table1[[#This Row],[Vendor '#]]=\"\",Table1[[#This Row],[Completed (Date)]]=\"\",Table1[[#This Row],[Sent2]]=\"\",Table1[[#This Row],[Received]]=\"\",Table1[[#This Row],[On File (Y/leave blank)]]=\"\",Table1[[#This Row],[Requested]]=\"\",Table1[[#This Row],[Received3]]=\"\",Table1[[#This Row],[On File (Y/leave blank)4]]=\"\",Table1[[#This Row],[Requested5]]=\"\",Table1[[#This Row],[Received2]]=\"\", Table1[[#This Row],[On File(Y/leave blank)]]=\"\"), \"STOP\", \"GO\")","v":"GO"},"Andrew T","2014-09-23",null,"2014-09-25",null,"2014-08-25","Ray Smith",13263367,6200,35765,"ICO 7950","Transcription, arranging, copy work for synthesis tour to Nauvoo","2014-05-01","2014-06-01",{"$f":"IF(Table1[[#This Row],[END date]]=Table1[[#This Row],[BEG date]],1,IF(Table1[[#This Row],[END date]]=Table1[[#This Row],[BEG date]]+1,2,IF(Table1[[#This Row],[END date]]=Table1[[#This Row],[BEG date]]+2,3,IF(Table1[[#This Row],[END date]]=Table1[[#This Row],[BEG date]]+3,4,IF(Table1[[#This Row],[END date]]=Table1[[#This Row],[BEG date]]+4,5,\">5\")))))","v":">5"},"Mailed","IC information: recient clients- nathan hofheins, todd sorensen, brady bills","801-616-1766"]
["Emily Merrell","emily.merrell17@gmail.com",150,"2014-09-12",85245,"NA","NA","NA","Y","NA","NA","NA","NA","NA","Y",{"$f":"IF(AND(TODAY()<Table1[[#This Row],[BEG date]]-14, Table1[[#This Row],[Submitted on]]=\"\"), \"\", IF(AND(Table1[[#This Row],[BEG date]]-14<=TODAY(), TODAY()<Table1[[#This Row],[BEG date]], Table1[[#This Row],[Submitted on]]=\"\"), Table1[[#This Row],[BEG date]], IF(Table1[[#This Row],[Submitted on]]=\"\", \"PROCESS ASAP\", IF(Table1[[#This Row],[Payment Made]]=\"\", \"SUBMITTED\", \"DONE\"))))","v":"DONE"},{"$f":"IF(OR(Table1[[#This Row],[Recipient]]=\"\", Table1[[#This Row],[Email]]=\"\",Table1[[#This Row],[Amount]]=\"\",Table1[[#This Row],[Sent]]=\"\",Table1[[#This Row],[Vendor '#]]=\"\",Table1[[#This Row],[Completed (Date)]]=\"\",Table1[[#This Row],[Sent2]]=\"\",Table1[[#This Row],[Received]]=\"\",Table1[[#This Row],[On File (Y/leave blank)]]=\"\",Table1[[#This Row],[Requested]]=\"\",Table1[[#This Row],[Received3]]=\"\",Table1[[#This Row],[On File (Y/leave blank)4]]=\"\",Table1[[#This Row],[Requested5]]=\"\",Table1[[#This Row],[Received2]]=\"\", Table1[[#This Row],[On File(Y/leave blank)]]=\"\"), \"STOP\", \"GO\")","v":"GO"},"Andrew T","2014-09-15","FT147512","2014-09-17",null,"2014-08-25","Ray Smith",13263073,6200,35765,"ICO 7929","Recording vocals for Q'd Up CD5","2014-06-07","2014-06-07",{"$f":"IF(Table1[[#This Row],[END date]]=Table1[[#This Row],[BEG date]],1,IF(Table1[[#This Row],[END date]]=Table1[[#This Row],[BEG date]]+1,2,IF(Table1[[#This Row],[END date]]=Table1[[#This Row],[BEG date]]+2,3,IF(Table1[[#This Row],[END date]]=Table1[[#This Row],[BEG date]]+3,4,IF(Table1[[#This Row],[END date]]=Table1[[#This Row],[BEG date]]+4,5,\">5\")))))","v":1},"Mailed",null,"801-649-9550"]
["Patricia Kopec","pattykopec7@gmail.com",1000,"2014-10-30",87409,"NA","NA","NA","Y","2014-09-11","2014-10-30","NA","NA","NA","Y",{"$f":"IF(AND(TODAY()<Table1[[#This Row],[BEG date]]-14, Table1[[#This Row],[Submitted on]]=\"\"), \"\", IF(AND(Table1[[#This Row],[BEG date]]-14<=TODAY(), TODAY()<Table1[[#This Row],[BEG date]], Table1[[#This Row],[Submitted on]]=\"\"), Table1[[#This Row],[BEG date]], IF(Table1[[#This Row],[Submitted on]]=\"\", \"PROCESS ASAP\", IF(Table1[[#This Row],[Payment Made]]=\"\", \"SUBMITTED\", \"DONE\"))))","v":"DONE"},{"$f":"IF(OR(Table1[[#This Row],[Recipient]]=\"\", Table1[[#This Row],[Email]]=\"\",Table1[[#This Row],[Amount]]=\"\",Table1[[#This Row],[Sent]]=\"\",Table1[[#This Row],[Vendor '#]]=\"\",Table1[[#This Row],[Completed (Date)]]=\"\",Table1[[#This Row],[Sent2]]=\"\",Table1[[#This Row],[Received]]=\"\",Table1[[#This Row],[On File (Y/leave blank)]]=\"\",Table1[[#This Row],[Requested]]=\"\",Table1[[#This Row],[Received3]]=\"\",Table1[[#This Row],[On File (Y/leave blank)4]]=\"\",Table1[[#This Row],[Requested5]]=\"\",Table1[[#This Row],[Received2]]=\"\", Table1[[#This Row],[On File(Y/leave blank)]]=\"\"), \"STOP\", \"GO\")","v":"GO"},"Andrew T","2014-10-30","FT155037","2014-11-03",null,"2014-09-04","Alex Woods",13263208,6200,21629,"ICO 7929","Honorarium for master class and lesson","2014-11-03","2014-11-03",{"$f":"IF(Table1[[#This Row],[END date]]=Table1[[#This Row],[BEG date]],1,IF(Table1[[#This Row],[END date]]=Table1[[#This Row],[BEG date]]+1,2,IF(Table1[[#This Row],[END date]]=Table1[[#This Row],[BEG date]]+2,3,IF(Table1[[#This Row],[END date]]=Table1[[#This Row],[BEG date]]+3,4,IF(Table1[[#This Row],[END date]]=Table1[[#This Row],[BEG date]]+4,5,\">5\")))))","v":1},"Hand Delivered","Called on 09/19/2014 and should be sending in the W9 soon","914-646-7576"]
["TAMS (Texas Association of Music Schools)","jleeTAMS@gmail.com",200,"NA",77022,"NA","NA","NA","Y","2014-09-11","2014-09-11","NA","NA","NA","Y",{"$f":"IF(AND(TODAY()<Table1[[#This Row],[BEG date]]-14, Table1[[#This Row],[Submitted on]]=\"\"), \"\", IF(AND(Table1[[#This Row],[BEG date]]-14<=TODAY(), TODAY()<Table1[[#This Row],[BEG date]], Table1[[#This Row],[Submitted on]]=\"\"), Table1[[#This Row],[BEG date]], IF(Table1[[#This Row],[Submitted on]]=\"\", \"PROCESS ASAP\", IF(Table1[[#This Row],[Payment Made]]=\"\", \"SUBMITTED\", \"DONE\"))))","v":"DONE"},{"$f":"IF(OR(Table1[[#This Row],[Recipient]]=\"\", Table1[[#This Row],[Email]]=\"\",Table1[[#This Row],[Amount]]=\"\",Table1[[#This Row],[Sent]]=\"\",Table1[[#This Row],[Vendor '#]]=\"\",Table1[[#This Row],[Completed (Date)]]=\"\",Table1[[#This Row],[Sent2]]=\"\",Table1[[#This Row],[Received]]=\"\",Table1[[#This Row],[On File (Y/leave blank)]]=\"\",Table1[[#This Row],[Requested]]=\"\",Table1[[#This Row],[Received3]]=\"\",Table1[[#This Row],[On File (Y/leave blank)4]]=\"\",Table1[[#This Row],[Requested5]]=\"\",Table1[[#This Row],[Received2]]=\"\", Table1[[#This Row],[On File(Y/leave blank)]]=\"\"), \"STOP\", \"GO\")","v":"GO"},"Andrew T","2014-09-11","FT147073","2014-09-17",null,"2014-09-10","Kathy Colton",13263296,6100,0,"DUE 8699","membership fees",null,null,{"$f":"IF(Table1[[#This Row],[END date]]=Table1[[#This Row],[BEG date]],1,IF(Table1[[#This Row],[END date]]=Table1[[#This Row],[BEG date]]+1,2,IF(Table1[[#This Row],[END date]]=Table1[[#This Row],[BEG date]]+2,3,IF(Table1[[#This Row],[END date]]=Table1[[#This Row],[BEG date]]+3,4,IF(Table1[[#This Row],[END date]]=Table1[[#This Row],[BEG date]]+4,5,\">5\")))))","v":1},"Mailed",null,"361-358-6339"]
["American Academy of Arts and Letters","aholmgrain@artsandletters.org",1560,"NA",53554,"NA","NA","NA","Y","2014-09-22","2014-10-01","NA","NA","NA","Y",{"$f":"IF(AND(TODAY()<Table1[[#This Row],[BEG date]]-14, Table1[[#This Row],[Submitted on]]=\"\"), \"\", IF(AND(Table1[[#This Row],[BEG date]]-14<=TODAY(), TODAY()<Table1[[#This Row],[BEG date]], Table1[[#This Row],[Submitted on]]=\"\"), Table1[[#This Row],[BEG date]], IF(Table1[[#This Row],[Submitted on]]=\"\", \"PROCESS ASAP\", IF(Table1[[#This Row],[Payment Made]]=\"\", \"SUBMITTED\", \"DONE\"))))","v":"DONE"},{"$f":"IF(OR(Table1[[#This Row],[Recipient]]=\"\", Table1[[#This Row],[Email]]=\"\",Table1[[#This Row],[Amount]]=\"\",Table1[[#This Row],[Sent]]=\"\",Table1[[#This Row],[Vendor '#]]=\"\",Table1[[#This Row],[Completed (Date)]]=\"\",Table1[[#This Row],[Sent2]]=\"\",Table1[[#This Row],[Received]]=\"\",Table1[[#This Row],[On File (Y/leave blank)]]=\"\",Table1[[#This Row],[Requested]]=\"\",Table1[[#This Row],[Received3]]=\"\",Table1[[#This Row],[On File (Y/leave blank)4]]=\"\",Table1[[#This Row],[Requested5]]=\"\",Table1[[#This Row],[Received2]]=\"\", Table1[[#This Row],[On File(Y/leave blank)]]=\"\"), \"STOP\", \"GO\")","v":"GO"},"Lindsey","2014-10-01",null,"2014-10-03",null,"2014-09-15","April Clayton",20263316,6200,0,"RNT 7011","Deposit for recording dates for flute, viola, harp trio",null,null,{"$f":"IF(Table1[[#This Row],[END date]]=Table1[[#This Row],[BEG date]],1,IF(Table1[[#This Row],[END date]]=Table1[[#This Row],[BEG date]]+1,2,IF(Table1[[#This Row],[END date]]=Table1[[#This Row],[BEG date]]+2,3,IF(Table1[[#This Row],[END date]]=Table1[[#This Row],[BEG date]]+3,4,IF(Table1[[#This Row],[END date]]=Table1[[#This Row],[BEG date]]+4,5,\">5\")))))","v":1},"Mailed"]
["Utah Lyric Opera","chris.holmes@utahlyricopera.org",2500,"2014-09-25",87069,"2014-09-25","2014-09-24","2014-09-24","Y","2014-09-18","2014-09-23","Y","2014-09-18","2014-09-23","Y",{"$f":"IF(AND(TODAY()<Table1[[#This Row],[BEG date]]-14, Table1[[#This Row],[Submitted on]]=\"\"), \"\", IF(AND(Table1[[#This Row],[BEG date]]-14<=TODAY(), TODAY()<Table1[[#This Row],[BEG date]], Table1[[#This Row],[Submitted on]]=\"\"), Table1[[#This Row],[BEG date]], IF(Table1[[#This Row],[Submitted on]]=\"\", \"PROCESS ASAP\", IF(Table1[[#This Row],[Payment Made]]=\"\", \"SUBMITTED\", \"DONE\"))))","v":"DONE"},{"$f":"IF(OR(Table1[[#This Row],[Recipient]]=\"\", Table1[[#This Row],[Email]]=\"\",Table1[[#This Row],[Amount]]=\"\",Table1[[#This Row],[Sent]]=\"\",Table1[[#This Row],[Vendor '#]]=\"\",Table1[[#This Row],[Completed (Date)]]=\"\",Table1[[#This Row],[Sent2]]=\"\",Table1[[#This Row],[Received]]=\"\",Table1[[#This Row],[On File (Y/leave blank)]]=\"\",Table1[[#This Row],[Requested]]=\"\",Table1[[#This Row],[Received3]]=\"\",Table1[[#This Row],[On File (Y/leave blank)4]]=\"\",Table1[[#This Row],[Requested5]]=\"\",Table1[[#This Row],[Received2]]=\"\", Table1[[#This Row],[On File(Y/leave blank)]]=\"\"), \"STOP\", \"GO\")","v":"GO"},"Andrew T","2014-09-30","FT149352","2014-10-01",null,"2014-09-16","Lawrence Vincent",13263074,6200,35767,"ICO 8993","Vocal coaching for  \"The Marriage of Figaro\" for the fall 2014 opera","2014-09-23","2014-10-23",{"$f":"IF(Table1[[#This Row],[END date]]=Table1[[#This Row],[BEG date]],1,IF(Table1[[#This Row],[END date]]=Table1[[#This Row],[BEG date]]+1,2,IF(Table1[[#This Row],[END date]]=Table1[[#This Row],[BEG date]]+2,3,IF(Table1[[#This Row],[END date]]=Table1[[#This Row],[BEG date]]+3,4,IF(Table1[[#This Row],[END date]]=Table1[[#This Row],[BEG date]]+4,5,\">5\")))))","v":">5"},"Hand Delivered"]
["Clifton Taylor","cliftontaylor@colled.msstate.edu",450,"2014-09-23",87061,"NA","2014-09-19","2014-09-19","Y","NA","NA","NA","NA","NA","Y",{"$f":"IF(AND(TODAY()<Table1[[#This Row],[BEG date]]-14, Table1[[#This Row],[Submitted on]]=\"\"), \"\", IF(AND(Table1[[#This Row],[BEG date]]-14<=TODAY(), TODAY()<Table1[[#This Row],[BEG date]], Table1[[#This Row],[Submitted on]]=\"\"), Table1[[#This Row],[BEG date]], IF(Table1[[#This Row],[Submitted on]]=\"\", \"PROCESS ASAP\", IF(Table1[[#This Row],[Payment Made]]=\"\", \"SUBMITTED\", \"DONE\"))))","v":"DONE"},{"$f":"IF(OR(Table1[[#This Row],[Recipient]]=\"\", Table1[[#This Row],[Email]]=\"\",Table1[[#This Row],[Amount]]=\"\",Table1[[#This Row],[Sent]]=\"\",Table1[[#This Row],[Vendor '#]]=\"\",Table1[[#This Row],[Completed (Date)]]=\"\",Table1[[#This Row],[Sent2]]=\"\",Table1[[#This Row],[Received]]=\"\",Table1[[#This Row],[On File (Y/leave blank)]]=\"\",Table1[[#This Row],[Requested]]=\"\",Table1[[#This Row],[Received3]]=\"\",Table1[[#This Row],[On File (Y/leave blank)4]]=\"\",Table1[[#This Row],[Requested5]]=\"\",Table1[[#This Row],[Received2]]=\"\", Table1[[#This Row],[On File(Y/leave blank)]]=\"\"), \"STOP\", \"GO\")","v":"GO"},"Andrew T","2014-09-24","FT149081","2014-09-25",null,"2014-09-17","Karren Williamson",13263369,6200,57081,"ICO 8998","Adjudicating for Rocky Mountian Invitational on Saturday oct. 11, 2014","2014-10-11","2014-10-11",{"$f":"IF(Table1[[#This Row],[END date]]=Table1[[#This Row],[BEG date]],1,IF(Table1[[#This Row],[END date]]=Table1[[#This Row],[BEG date]]+1,2,IF(Table1[[#This Row],[END date]]=Table1[[#This Row],[BEG date]]+2,3,IF(Table1[[#This Row],[END date]]=Table1[[#This Row],[BEG date]]+3,4,IF(Table1[[#This Row],[END date]]=Table1[[#This Row],[BEG date]]+4,5,\">5\")))))","v":1},"Hand Delivered"]
["Ryan Turner","ryanhturner@att.net",450,"NA",86412,"NA","2014-09-19","2014-09-19","Y","NA","NA","NA","NA","NA","Y",{"$f":"IF(AND(TODAY()<Table1[[#This Row],[BEG date]]-14, Table1[[#This Row],[Submitted on]]=\"\"), \"\", IF(AND(Table1[[#This Row],[BEG date]]-14<=TODAY(), TODAY()<Table1[[#This Row],[BEG date]], Table1[[#This Row],[Submitted on]]=\"\"), Table1[[#This Row],[BEG date]], IF(Table1[[#This Row],[Submitted on]]=\"\", \"PROCESS ASAP\", IF(Table1[[#This Row],[Payment Made]]=\"\", \"SUBMITTED\", \"DONE\"))))","v":"DONE"},{"$f":"IF(OR(Table1[[#This Row],[Recipient]]=\"\", Table1[[#This Row],[Email]]=\"\",Table1[[#This Row],[Amount]]=\"\",Table1[[#This Row],[Sent]]=\"\",Table1[[#This Row],[Vendor '#]]=\"\",Table1[[#This Row],[Completed (Date)]]=\"\",Table1[[#This Row],[Sent2]]=\"\",Table1[[#This Row],[Received]]=\"\",Table1[[#This Row],[On File (Y/leave blank)]]=\"\",Table1[[#This Row],[Requested]]=\"\",Table1[[#This Row],[Received3]]=\"\",Table1[[#This Row],[On File (Y/leave blank)4]]=\"\",Table1[[#This Row],[Requested5]]=\"\",Table1[[#This Row],[Received2]]=\"\", Table1[[#This Row],[On File(Y/leave blank)]]=\"\"), \"STOP\", \"GO\")","v":"GO"},"Andrew T","2014-09-23","FT149080","2014-09-25",null,"2014-09-17","Karren Williamson",13263369,6200,57081,"ICO 8998","Adjudicating for Rocky Mountian Invitational on Saturday oct. 11, 2014","2014-10-11","2014-10-11",{"$f":"IF(Table1[[#This Row],[END date]]=Table1[[#This Row],[BEG date]],1,IF(Table1[[#This Row],[END date]]=Table1[[#This Row],[BEG date]]+1,2,IF(Table1[[#This Row],[END date]]=Table1[[#This Row],[BEG date]]+2,3,IF(Table1[[#This Row],[END date]]=Table1[[#This Row],[BEG date]]+3,4,IF(Table1[[#This Row],[END date]]=Table1[[#This Row],[BEG date]]+4,5,\">5\")))))","v":1},"Hand Delivered"]
["Amy Lueb","alueb32@gmail.com",450,"2014-09-23",87057,"NA","2014-09-19","2014-09-19","Y","NA","NA","NA","NA","NA","Y",{"$f":"IF(AND(TODAY()<Table1[[#This Row],[BEG date]]-14, Table1[[#This Row],[Submitted on]]=\"\"), \"\", IF(AND(Table1[[#This Row],[BEG date]]-14<=TODAY(), TODAY()<Table1[[#This Row],[BEG date]], Table1[[#This Row],[Submitted on]]=\"\"), Table1[[#This Row],[BEG date]], IF(Table1[[#This Row],[Submitted on]]=\"\", \"PROCESS ASAP\", IF(Table1[[#This Row],[Payment Made]]=\"\", \"SUBMITTED\", \"DONE\"))))","v":"DONE"},{"$f":"IF(OR(Table1[[#This Row],[Recipient]]=\"\", Table1[[#This Row],[Email]]=\"\",Table1[[#This Row],[Amount]]=\"\",Table1[[#This Row],[Sent]]=\"\",Table1[[#This Row],[Vendor '#]]=\"\",Table1[[#This Row],[Completed (Date)]]=\"\",Table1[[#This Row],[Sent2]]=\"\",Table1[[#This Row],[Received]]=\"\",Table1[[#This Row],[On File (Y/leave blank)]]=\"\",Table1[[#This Row],[Requested]]=\"\",Table1[[#This Row],[Received3]]=\"\",Table1[[#This Row],[On File (Y/leave blank)4]]=\"\",Table1[[#This Row],[Requested5]]=\"\",Table1[[#This Row],[Received2]]=\"\", Table1[[#This Row],[On File(Y/leave blank)]]=\"\"), \"STOP\", \"GO\")","v":"GO"},"Andrew T","2014-09-23","FT149076","2014-09-25",null,"2014-09-17","Karren Williamson",13263369,6200,57081,"ICO 8998","Adjudicating for Rocky Mountian Invitational on Saturday oct. 11, 2014","2014-10-11","2014-10-11",{"$f":"IF(Table1[[#This Row],[END date]]=Table1[[#This Row],[BEG date]],1,IF(Table1[[#This Row],[END date]]=Table1[[#This Row],[BEG date]]+1,2,IF(Table1[[#This Row],[END date]]=Table1[[#This Row],[BEG date]]+2,3,IF(Table1[[#This Row],[END date]]=Table1[[#This Row],[BEG date]]+3,4,IF(Table1[[#This Row],[END date]]=Table1[[#This Row],[BEG date]]+4,5,\">5\")))))","v":1},"Hand Delivered"]
["Robert Williams","rswbassoon@gmail.com",1000,"2014-09-25",87070,"NA","NA","NA","Y","2014-09-23","2014-09-25","NA","NA","NA","Y",{"$f":"IF(AND(TODAY()<Table1[[#This Row],[BEG date]]-14, Table1[[#This Row],[Submitted on]]=\"\"), \"\", IF(AND(Table1[[#This Row],[BEG date]]-14<=TODAY(), TODAY()<Table1[[#This Row],[BEG date]], Table1[[#This Row],[Submitted on]]=\"\"), Table1[[#This Row],[BEG date]], IF(Table1[[#This Row],[Submitted on]]=\"\", \"PROCESS ASAP\", IF(Table1[[#This Row],[Payment Made]]=\"\", \"SUBMITTED\", \"DONE\"))))","v":"DONE"},{"$f":"IF(OR(Table1[[#This Row],[Recipient]]=\"\", Table1[[#This Row],[Email]]=\"\",Table1[[#This Row],[Amount]]=\"\",Table1[[#This Row],[Sent]]=\"\",Table1[[#This Row],[Vendor '#]]=\"\",Table1[[#This Row],[Completed (Date)]]=\"\",Table1[[#This Row],[Sent2]]=\"\",Table1[[#This Row],[Received]]=\"\",Table1[[#This Row],[On File (Y/leave blank)]]=\"\",Table1[[#This Row],[Requested]]=\"\",Table1[[#This Row],[Received3]]=\"\",Table1[[#This Row],[On File (Y/leave blank)4]]=\"\",Table1[[#This Row],[Requested5]]=\"\",Table1[[#This Row],[Received2]]=\"\", Table1[[#This Row],[On File(Y/leave blank)]]=\"\"), \"STOP\", \"GO\")","v":"GO"},"Andrew T","2014-09-25","FT149355","2014-09-30",null,"2014-09-05","Chris Smith",13263368,6200,35723,"ICO 7929","Honorarium for recital and two master classes","2014-10-16","2014-10-18",{"$f":"IF(Table1[[#This Row],[END date]]=Table1[[#This Row],[BEG date]],1,IF(Table1[[#This Row],[END date]]=Table1[[#This Row],[BEG date]]+1,2,IF(Table1[[#This Row],[END date]]=Table1[[#This Row],[BEG date]]+2,3,IF(Table1[[#This Row],[END date]]=Table1[[#This Row],[BEG date]]+3,4,IF(Table1[[#This Row],[END date]]=Table1[[#This Row],[BEG date]]+4,5,\">5\")))))","v":3},"Hand Delivered",null,"248-821-4399"]
["James Michael Dunn","michael.dunn-1@colorado.edu",800,"2014-09-26",87077,"NA","NA","NA","Y","2014-10-17","2014-10-27","NA","NA","NA","Y",{"$f":"IF(AND(TODAY()<Table1[[#This Row],[BEG date]]-14, Table1[[#This Row],[Submitted on]]=\"\"), \"\", IF(AND(Table1[[#This Row],[BEG date]]-14<=TODAY(), TODAY()<Table1[[#This Row],[BEG date]], Table1[[#This Row],[Submitted on]]=\"\"), Table1[[#This Row],[BEG date]], IF(Table1[[#This Row],[Submitted on]]=\"\", \"PROCESS ASAP\", IF(Table1[[#This Row],[Payment Made]]=\"\", \"SUBMITTED\", \"DONE\"))))","v":"DONE"},{"$f":"IF(OR(Table1[[#This Row],[Recipient]]=\"\", Table1[[#This Row],[Email]]=\"\",Table1[[#This Row],[Amount]]=\"\",Table1[[#This Row],[Sent]]=\"\",Table1[[#This Row],[Vendor '#]]=\"\",Table1[[#This Row],[Completed (Date)]]=\"\",Table1[[#This Row],[Sent2]]=\"\",Table1[[#This Row],[Received]]=\"\",Table1[[#This Row],[On File (Y/leave blank)]]=\"\",Table1[[#This Row],[Requested]]=\"\",Table1[[#This Row],[Received3]]=\"\",Table1[[#This Row],[On File (Y/leave blank)4]]=\"\",Table1[[#This Row],[Requested5]]=\"\",Table1[[#This Row],[Received2]]=\"\", Table1[[#This Row],[On File(Y/leave blank)]]=\"\"), \"STOP\", \"GO\")","v":"GO"},"Andrew T","2014-10-28",null,"2014-10-30",null,"2014-09-15","Steve Call",13263211,6200,21629,"ICO 7929","Performances (oct 24 solo with Utah Premiere Brass October 25 1/2 recital), Master class and clinic per Steve Call","2014-10-24","2014-10-24",{"$f":"IF(Table1[[#This Row],[END date]]=Table1[[#This Row],[BEG date]],1,IF(Table1[[#This Row],[END date]]=Table1[[#This Row],[BEG date]]+1,2,IF(Table1[[#This Row],[END date]]=Table1[[#This Row],[BEG date]]+2,3,IF(Table1[[#This Row],[END date]]=Table1[[#This Row],[BEG date]]+3,4,IF(Table1[[#This Row],[END date]]=Table1[[#This Row],[BEG date]]+4,5,\">5\")))))","v":1},"Mailed",null,"720-207-1546"]
["Craig Harms","craig@bandfo.com",450,"NA",66148,"NA","2014-09-19","2014-09-19","Y","NA","NA","NA","NA","NA","Y",{"$f":"IF(AND(TODAY()<Table1[[#This Row],[BEG date]]-14, Table1[[#This Row],[Submitted on]]=\"\"), \"\", IF(AND(Table1[[#This Row],[BEG date]]-14<=TODAY(), TODAY()<Table1[[#This Row],[BEG date]], Table1[[#This Row],[Submitted on]]=\"\"), Table1[[#This Row],[BEG date]], IF(Table1[[#This Row],[Submitted on]]=\"\", \"PROCESS ASAP\", IF(Table1[[#This Row],[Payment Made]]=\"\", \"SUBMITTED\", \"DONE\"))))","v":"DONE"},{"$f":"IF(OR(Table1[[#This Row],[Recipient]]=\"\", Table1[[#This Row],[Email]]=\"\",Table1[[#This Row],[Amount]]=\"\",Table1[[#This Row],[Sent]]=\"\",Table1[[#This Row],[Vendor '#]]=\"\",Table1[[#This Row],[Completed (Date)]]=\"\",Table1[[#This Row],[Sent2]]=\"\",Table1[[#This Row],[Received]]=\"\",Table1[[#This Row],[On File (Y/leave blank)]]=\"\",Table1[[#This Row],[Requested]]=\"\",Table1[[#This Row],[Received3]]=\"\",Table1[[#This Row],[On File (Y/leave blank)4]]=\"\",Table1[[#This Row],[Requested5]]=\"\",Table1[[#This Row],[Received2]]=\"\", Table1[[#This Row],[On File(Y/leave blank)]]=\"\"), \"STOP\", \"GO\")","v":"GO"},"Andrew T","2014-09-22","FT148853","2014-09-24",null,"2014-09-17","Karren Williamson",13263369,6200,57081,"ICO 8998","Adjudicating for Rocky Mountian Invitational on Saturday oct. 11, 2014","2014-10-11","2014-10-11",{"$f":"IF(Table1[[#This Row],[END date]]=Table1[[#This Row],[BEG date]],1,IF(Table1[[#This Row],[END date]]=Table1[[#This Row],[BEG date]]+1,2,IF(Table1[[#This Row],[END date]]=Table1[[#This Row],[BEG date]]+2,3,IF(Table1[[#This Row],[END date]]=Table1[[#This Row],[BEG date]]+3,4,IF(Table1[[#This Row],[END date]]=Table1[[#This Row],[BEG date]]+4,5,\">5\")))))","v":1},"Hand Delivered",null,"719-687-2210"]
["Tim McCallister","mcallitp@gmail.com",400,"2014-09-25",87072,"NA","NA","NA","Y","2014-09-18","2014-09-22","NA","NA","NA","Y",{"$f":"IF(AND(TODAY()<Table1[[#This Row],[BEG date]]-14, Table1[[#This Row],[Submitted on]]=\"\"), \"\", IF(AND(Table1[[#This Row],[BEG date]]-14<=TODAY(), TODAY()<Table1[[#This Row],[BEG date]], Table1[[#This Row],[Submitted on]]=\"\"), Table1[[#This Row],[BEG date]], IF(Table1[[#This Row],[Submitted on]]=\"\", \"PROCESS ASAP\", IF(Table1[[#This Row],[Payment Made]]=\"\", \"SUBMITTED\", \"DONE\"))))","v":"DONE"},{"$f":"IF(OR(Table1[[#This Row],[Recipient]]=\"\", Table1[[#This Row],[Email]]=\"\",Table1[[#This Row],[Amount]]=\"\",Table1[[#This Row],[Sent]]=\"\",Table1[[#This Row],[Vendor '#]]=\"\",Table1[[#This Row],[Completed (Date)]]=\"\",Table1[[#This Row],[Sent2]]=\"\",Table1[[#This Row],[Received]]=\"\",Table1[[#This Row],[On File (Y/leave blank)]]=\"\",Table1[[#This Row],[Requested]]=\"\",Table1[[#This Row],[Received3]]=\"\",Table1[[#This Row],[On File (Y/leave blank)4]]=\"\",Table1[[#This Row],[Requested5]]=\"\",Table1[[#This Row],[Received2]]=\"\", Table1[[#This Row],[On File(Y/leave blank)]]=\"\"), \"STOP\", \"GO\")","v":"GO"},"Andrew T","2014-09-30","FT149358","2014-10-02",null,"2014-09-17","Ray Smith",11263003,6200,35723,"ICO 7929","Masterclass","2014-09-22","2014-09-22",{"$f":"IF(Table1[[#This Row],[END date]]=Table1[[#This Row],[BEG date]],1,IF(Table1[[#This Row],[END date]]=Table1[[#This Row],[BEG date]]+1,2,IF(Table1[[#This Row],[END date]]=Table1[[#This Row],[BEG date]]+2,3,IF(Table1[[#This Row],[END date]]=Table1[[#This Row],[BEG date]]+3,4,IF(Table1[[#This Row],[END date]]=Table1[[#This Row],[BEG date]]+4,5,\">5\")))))","v":1},"Mailed"]
["David Zabriskie","dave@holysheetmusic.com",100,"NA","NA","NA","NA","NA","Y","NA","NA","NA","NA","NA","Y",{"$f":"IF(AND(TODAY()<Table1[[#This Row],[BEG date]]-14, Table1[[#This Row],[Submitted on]]=\"\"), \"\", IF(AND(Table1[[#This Row],[BEG date]]-14<=TODAY(), TODAY()<Table1[[#This Row],[BEG date]], Table1[[#This Row],[Submitted on]]=\"\"), Table1[[#This Row],[BEG date]], IF(Table1[[#This Row],[Submitted on]]=\"\", \"PROCESS ASAP\", IF(Table1[[#This Row],[Payment Made]]=\"\", \"SUBMITTED\", \"DONE\"))))","v":"DONE"},{"$f":"IF(OR(Table1[[#This Row],[Recipient]]=\"\", Table1[[#This Row],[Email]]=\"\",Table1[[#This Row],[Amount]]=\"\",Table1[[#This Row],[Sent]]=\"\",Table1[[#This Row],[Vendor '#]]=\"\",Table1[[#This Row],[Completed (Date)]]=\"\",Table1[[#This Row],[Sent2]]=\"\",Table1[[#This Row],[Received]]=\"\",Table1[[#This Row],[On File (Y/leave blank)]]=\"\",Table1[[#This Row],[Requested]]=\"\",Table1[[#This Row],[Received3]]=\"\",Table1[[#This Row],[On File (Y/leave blank)4]]=\"\",Table1[[#This Row],[Requested5]]=\"\",Table1[[#This Row],[Received2]]=\"\", Table1[[#This Row],[On File(Y/leave blank)]]=\"\"), \"STOP\", \"GO\")","v":"GO"},"Andrew E.","2014-09-22",null,"2014-09-24",null,"2014-09-17","Ron Staheli",13263078,6200,0,"ICO 8999","Helped with the orchestration of the inauguration of President Worthen","2014-09-09","2014-09-09",{"$f":"IF(Table1[[#This Row],[END date]]=Table1[[#This Row],[BEG date]],1,IF(Table1[[#This Row],[END date]]=Table1[[#This Row],[BEG date]]+1,2,IF(Table1[[#This Row],[END date]]=Table1[[#This Row],[BEG date]]+2,3,IF(Table1[[#This Row],[END date]]=Table1[[#This Row],[BEG date]]+3,4,IF(Table1[[#This Row],[END date]]=Table1[[#This Row],[BEG date]]+4,5,\">5\")))))","v":1},"Mailed"]
["Brinton Smith","batcello@aol.com",1100,"2014-10-13",87219,"NA","NA","NA","Y","2014-09-23","2014-10-10","NA","NA","NA","Y",{"$f":"IF(AND(TODAY()<Table1[[#This Row],[BEG date]]-14, Table1[[#This Row],[Submitted on]]=\"\"), \"\", IF(AND(Table1[[#This Row],[BEG date]]-14<=TODAY(), TODAY()<Table1[[#This Row],[BEG date]], Table1[[#This Row],[Submitted on]]=\"\"), Table1[[#This Row],[BEG date]], IF(Table1[[#This Row],[Submitted on]]=\"\", \"PROCESS ASAP\", IF(Table1[[#This Row],[Payment Made]]=\"\", \"SUBMITTED\", \"DONE\"))))","v":"DONE"},{"$f":"IF(OR(Table1[[#This Row],[Recipient]]=\"\", Table1[[#This Row],[Email]]=\"\",Table1[[#This Row],[Amount]]=\"\",Table1[[#This Row],[Sent]]=\"\",Table1[[#This Row],[Vendor '#]]=\"\",Table1[[#This Row],[Completed (Date)]]=\"\",Table1[[#This Row],[Sent2]]=\"\",Table1[[#This Row],[Received]]=\"\",Table1[[#This Row],[On File (Y/leave blank)]]=\"\",Table1[[#This Row],[Requested]]=\"\",Table1[[#This Row],[Received3]]=\"\",Table1[[#This Row],[On File (Y/leave blank)4]]=\"\",Table1[[#This Row],[Requested5]]=\"\",Table1[[#This Row],[Received2]]=\"\", Table1[[#This Row],[On File(Y/leave blank)]]=\"\"), \"STOP\", \"GO\")","v":"GO"},"Andrew T","2014-10-21","FT151833","2014-10-27",null,"2014-09-19","Michelle Kesler","13263208/11263011",6200,57093,"ICO 7929","Honorarium for recital and two master classes","2014-11-04","2014-11-05",{"$f":"IF(Table1[[#This Row],[END date]]=Table1[[#This Row],[BEG date]],1,IF(Table1[[#This Row],[END date]]=Table1[[#This Row],[BEG date]]+1,2,IF(Table1[[#This Row],[END date]]=Table1[[#This Row],[BEG date]]+2,3,IF(Table1[[#This Row],[END date]]=Table1[[#This Row],[BEG date]]+3,4,IF(Table1[[#This Row],[END date]]=Table1[[#This Row],[BEG date]]+4,5,\">5\")))))","v":2},"Mailed","$1200 from string masterclass account (13263208) and $400 from keyboard studies (11263011)","212-363-0898"]
["Evelyn Chen","chenevelyn@aol.com",500,"2014-10-03",87225,"NA","NA","NA","Y","2014-09-25","2014-10-10","NA","NA","NA","Y",{"$f":"IF(AND(TODAY()<Table1[[#This Row],[BEG date]]-14, Table1[[#This Row],[Submitted on]]=\"\"), \"\", IF(AND(Table1[[#This Row],[BEG date]]-14<=TODAY(), TODAY()<Table1[[#This Row],[BEG date]], Table1[[#This Row],[Submitted on]]=\"\"), Table1[[#This Row],[BEG date]], IF(Table1[[#This Row],[Submitted on]]=\"\", \"PROCESS ASAP\", IF(Table1[[#This Row],[Payment Made]]=\"\", \"SUBMITTED\", \"DONE\"))))","v":"DONE"},{"$f":"IF(OR(Table1[[#This Row],[Recipient]]=\"\", Table1[[#This Row],[Email]]=\"\",Table1[[#This Row],[Amount]]=\"\",Table1[[#This Row],[Sent]]=\"\",Table1[[#This Row],[Vendor '#]]=\"\",Table1[[#This Row],[Completed (Date)]]=\"\",Table1[[#This Row],[Sent2]]=\"\",Table1[[#This Row],[Received]]=\"\",Table1[[#This Row],[On File (Y/leave blank)]]=\"\",Table1[[#This Row],[Requested]]=\"\",Table1[[#This Row],[Received3]]=\"\",Table1[[#This Row],[On File (Y/leave blank)4]]=\"\",Table1[[#This Row],[Requested5]]=\"\",Table1[[#This Row],[Received2]]=\"\", Table1[[#This Row],[On File(Y/leave blank)]]=\"\"), \"STOP\", \"GO\")","v":"GO"},"Andrew T","2014-10-21","FT151913","2014-10-23",null,"2014-09-19","Michelle Kesler",13263208,6200,57093,"ICO 7929","Honorarium for recital and two master classes","2014-11-04","2014-11-05",{"$f":"IF(Table1[[#This Row],[END date]]=Table1[[#This Row],[BEG date]],1,IF(Table1[[#This Row],[END date]]=Table1[[#This Row],[BEG date]]+1,2,IF(Table1[[#This Row],[END date]]=Table1[[#This Row],[BEG date]]+2,3,IF(Table1[[#This Row],[END date]]=Table1[[#This Row],[BEG date]]+3,4,IF(Table1[[#This Row],[END date]]=Table1[[#This Row],[BEG date]]+4,5,\">5\")))))","v":2},"Mailed","left her SSN off the W9, resent request 10/13","212-678-3283"]
["Alan Keown","alankeown@comcast.net",450,"NA",62145,"NA","NA","NA","Y","NA","NA","NA","NA","NA","Y",{"$f":"IF(AND(TODAY()<Table1[[#This Row],[BEG date]]-14, Table1[[#This Row],[Submitted on]]=\"\"), \"\", IF(AND(Table1[[#This Row],[BEG date]]-14<=TODAY(), TODAY()<Table1[[#This Row],[BEG date]], Table1[[#This Row],[Submitted on]]=\"\"), Table1[[#This Row],[BEG date]], IF(Table1[[#This Row],[Submitted on]]=\"\", \"PROCESS ASAP\", IF(Table1[[#This Row],[Payment Made]]=\"\", \"SUBMITTED\", \"DONE\"))))","v":"DONE"},{"$f":"IF(OR(Table1[[#This Row],[Recipient]]=\"\", Table1[[#This Row],[Email]]=\"\",Table1[[#This Row],[Amount]]=\"\",Table1[[#This Row],[Sent]]=\"\",Table1[[#This Row],[Vendor '#]]=\"\",Table1[[#This Row],[Completed (Date)]]=\"\",Table1[[#This Row],[Sent2]]=\"\",Table1[[#This Row],[Received]]=\"\",Table1[[#This Row],[On File (Y/leave blank)]]=\"\",Table1[[#This Row],[Requested]]=\"\",Table1[[#This Row],[Received3]]=\"\",Table1[[#This Row],[On File (Y/leave blank)4]]=\"\",Table1[[#This Row],[Requested5]]=\"\",Table1[[#This Row],[Received2]]=\"\", Table1[[#This Row],[On File(Y/leave blank)]]=\"\"), \"STOP\", \"GO\")","v":"GO"},"Andrew T","2014-09-24",null,"2014-09-26",null,"2014-09-24","Karren Williamson",13263369,6200,57081,"ICO 8998","Adjudicating for Rocky Mountian Invitational on Saturday oct. 11, 2014","2014-10-11","2014-10-11",{"$f":"IF(Table1[[#This Row],[END date]]=Table1[[#This Row],[BEG date]],1,IF(Table1[[#This Row],[END date]]=Table1[[#This Row],[BEG date]]+1,2,IF(Table1[[#This Row],[END date]]=Table1[[#This Row],[BEG date]]+2,3,IF(Table1[[#This Row],[END date]]=Table1[[#This Row],[BEG date]]+3,4,IF(Table1[[#This Row],[END date]]=Table1[[#This Row],[BEG date]]+4,5,\">5\")))))","v":1},"Hand Delivered",null,"541-554-5992"]
["Dr. Dave Gerhart","dave.gerhart@csulb.edu",75,"2014-10-16",87271,"NA","2014-09-30","2014-10-02","Y","2014-10-02","2014-10-16","NA","NA","NA","Y",{"$f":"IF(AND(TODAY()<Table1[[#This Row],[BEG date]]-14, Table1[[#This Row],[Submitted on]]=\"\"), \"\", IF(AND(Table1[[#This Row],[BEG date]]-14<=TODAY(), TODAY()<Table1[[#This Row],[BEG date]], Table1[[#This Row],[Submitted on]]=\"\"), Table1[[#This Row],[BEG date]], IF(Table1[[#This Row],[Submitted on]]=\"\", \"PROCESS ASAP\", IF(Table1[[#This Row],[Payment Made]]=\"\", \"SUBMITTED\", \"DONE\"))))","v":"DONE"},{"$f":"IF(OR(Table1[[#This Row],[Recipient]]=\"\", Table1[[#This Row],[Email]]=\"\",Table1[[#This Row],[Amount]]=\"\",Table1[[#This Row],[Sent]]=\"\",Table1[[#This Row],[Vendor '#]]=\"\",Table1[[#This Row],[Completed (Date)]]=\"\",Table1[[#This Row],[Sent2]]=\"\",Table1[[#This Row],[Received]]=\"\",Table1[[#This Row],[On File (Y/leave blank)]]=\"\",Table1[[#This Row],[Requested]]=\"\",Table1[[#This Row],[Received3]]=\"\",Table1[[#This Row],[On File (Y/leave blank)4]]=\"\",Table1[[#This Row],[Requested5]]=\"\",Table1[[#This Row],[Received2]]=\"\", Table1[[#This Row],[On File(Y/leave blank)]]=\"\"), \"STOP\", \"GO\")","v":"GO"},"Andrew T","2014-10-16","FT152574","2014-10-27",null,"2014-09-25","Ron Brough",20263335,6100,35733,"DUE 8699","Involoved in a consortium to commission a new work for percussion ensemble","2014-10-16","2014-10-16",{"$f":"IF(Table1[[#This Row],[END date]]=Table1[[#This Row],[BEG date]],1,IF(Table1[[#This Row],[END date]]=Table1[[#This Row],[BEG date]]+1,2,IF(Table1[[#This Row],[END date]]=Table1[[#This Row],[BEG date]]+2,3,IF(Table1[[#This Row],[END date]]=Table1[[#This Row],[BEG date]]+3,4,IF(Table1[[#This Row],[END date]]=Table1[[#This Row],[BEG date]]+4,5,\">5\")))))","v":1},"Mailed",null,"562-522-3101"]
["Nancy Austen","ndausten@gmail.com",588,"NA",40543,"NA","2014-09-30","2014-10-01","Y","NA","NA","Y","2014-10-01","2014-10-24","Y",{"$f":"IF(AND(TODAY()<Table1[[#This Row],[BEG date]]-14, Table1[[#This Row],[Submitted on]]=\"\"), \"\", IF(AND(Table1[[#This Row],[BEG date]]-14<=TODAY(), TODAY()<Table1[[#This Row],[BEG date]], Table1[[#This Row],[Submitted on]]=\"\"), Table1[[#This Row],[BEG date]], IF(Table1[[#This Row],[Submitted on]]=\"\", \"PROCESS ASAP\", IF(Table1[[#This Row],[Payment Made]]=\"\", \"SUBMITTED\", \"DONE\"))))","v":"DONE"},{"$f":"IF(OR(Table1[[#This Row],[Recipient]]=\"\", Table1[[#This Row],[Email]]=\"\",Table1[[#This Row],[Amount]]=\"\",Table1[[#This Row],[Sent]]=\"\",Table1[[#This Row],[Vendor '#]]=\"\",Table1[[#This Row],[Completed (Date)]]=\"\",Table1[[#This Row],[Sent2]]=\"\",Table1[[#This Row],[Received]]=\"\",Table1[[#This Row],[On File (Y/leave blank)]]=\"\",Table1[[#This Row],[Requested]]=\"\",Table1[[#This Row],[Received3]]=\"\",Table1[[#This Row],[On File (Y/leave blank)4]]=\"\",Table1[[#This Row],[Requested5]]=\"\",Table1[[#This Row],[Received2]]=\"\", Table1[[#This Row],[On File(Y/leave blank)]]=\"\"), \"STOP\", \"GO\")","v":"GO"},"Andrew T","2014-10-24","FT153827","2014-10-28",null,"2014-09-25","Jean Applonie",13263294,6200,35782,"ICO 8993","Hemmed WC skirts","2014-09-11","2014-09-18",{"$f":"IF(Table1[[#This Row],[END date]]=Table1[[#This Row],[BEG date]],1,IF(Table1[[#This Row],[END date]]=Table1[[#This Row],[BEG date]]+1,2,IF(Table1[[#This Row],[END date]]=Table1[[#This Row],[BEG date]]+2,3,IF(Table1[[#This Row],[END date]]=Table1[[#This Row],[BEG date]]+3,4,IF(Table1[[#This Row],[END date]]=Table1[[#This Row],[BEG date]]+4,5,\">5\")))))","v":">5"},"Mailed","Find out if another contract is necessary (one is already on file)","801-226-6686"]
["Brian Saville","bsaville@adaptivecomputing.com",150,"NA",67525,"NA","NA","NA","Y","NA","NA","NA","NA","NA","Y",{"$f":"IF(AND(TODAY()<Table1[[#This Row],[BEG date]]-14, Table1[[#This Row],[Submitted on]]=\"\"), \"\", IF(AND(Table1[[#This Row],[BEG date]]-14<=TODAY(), TODAY()<Table1[[#This Row],[BEG date]], Table1[[#This Row],[Submitted on]]=\"\"), Table1[[#This Row],[BEG date]], IF(Table1[[#This Row],[Submitted on]]=\"\", \"PROCESS ASAP\", IF(Table1[[#This Row],[Payment Made]]=\"\", \"SUBMITTED\", \"DONE\"))))","v":"DONE"},{"$f":"IF(OR(Table1[[#This Row],[Recipient]]=\"\", Table1[[#This Row],[Email]]=\"\",Table1[[#This Row],[Amount]]=\"\",Table1[[#This Row],[Sent]]=\"\",Table1[[#This Row],[Vendor '#]]=\"\",Table1[[#This Row],[Completed (Date)]]=\"\",Table1[[#This Row],[Sent2]]=\"\",Table1[[#This Row],[Received]]=\"\",Table1[[#This Row],[On File (Y/leave blank)]]=\"\",Table1[[#This Row],[Requested]]=\"\",Table1[[#This Row],[Received3]]=\"\",Table1[[#This Row],[On File (Y/leave blank)4]]=\"\",Table1[[#This Row],[Requested5]]=\"\",Table1[[#This Row],[Received2]]=\"\", Table1[[#This Row],[On File(Y/leave blank)]]=\"\"), \"STOP\", \"GO\")","v":"GO"},"Andrew T","2014-10-01","FT150235","2014-10-03",null,"2014-09-29","Karren Williamson",13263369,6200,57081,"ICO 8999","Tabulating scores for Rocky Mountain Invitational","2014-10-11","2014-10-11",{"$f":"IF(Table1[[#This Row],[END date]]=Table1[[#This Row],[BEG date]],1,IF(Table1[[#This Row],[END date]]=Table1[[#This Row],[BEG date]]+1,2,IF(Table1[[#This Row],[END date]]=Table1[[#This Row],[BEG date]]+2,3,IF(Table1[[#This Row],[END date]]=Table1[[#This Row],[BEG date]]+3,4,IF(Table1[[#This Row],[END date]]=Table1[[#This Row],[BEG date]]+4,5,\">5\")))))","v":1},"Hand Delivered",null,"801-851-0719"]
["Sabina Safsten","ssafsten@gmail.com",250,"NA",75087,"NA","NA","NA","Y","NA","NA","NA","NA","NA","Y",{"$f":"IF(AND(TODAY()<Table1[[#This Row],[BEG date]]-14, Table1[[#This Row],[Submitted on]]=\"\"), \"\", IF(AND(Table1[[#This Row],[BEG date]]-14<=TODAY(), TODAY()<Table1[[#This Row],[BEG date]], Table1[[#This Row],[Submitted on]]=\"\"), Table1[[#This Row],[BEG date]], IF(Table1[[#This Row],[Submitted on]]=\"\", \"PROCESS ASAP\", IF(Table1[[#This Row],[Payment Made]]=\"\", \"SUBMITTED\", \"DONE\"))))","v":"DONE"},{"$f":"IF(OR(Table1[[#This Row],[Recipient]]=\"\", Table1[[#This Row],[Email]]=\"\",Table1[[#This Row],[Amount]]=\"\",Table1[[#This Row],[Sent]]=\"\",Table1[[#This Row],[Vendor '#]]=\"\",Table1[[#This Row],[Completed (Date)]]=\"\",Table1[[#This Row],[Sent2]]=\"\",Table1[[#This Row],[Received]]=\"\",Table1[[#This Row],[On File (Y/leave blank)]]=\"\",Table1[[#This Row],[Requested]]=\"\",Table1[[#This Row],[Received3]]=\"\",Table1[[#This Row],[On File (Y/leave blank)4]]=\"\",Table1[[#This Row],[Requested5]]=\"\",Table1[[#This Row],[Received2]]=\"\", Table1[[#This Row],[On File(Y/leave blank)]]=\"\"), \"STOP\", \"GO\")","v":"GO"},"Andrew T","2014-10-01","FT150237","2014-10-02",null,"2014-09-29","Karren Williamson",13263369,6200,57081,"ICO 8999","Assisting with refreshments for Rocky Mountain invitational","2014-10-11","2014-10-11",{"$f":"IF(Table1[[#This Row],[END date]]=Table1[[#This Row],[BEG date]],1,IF(Table1[[#This Row],[END date]]=Table1[[#This Row],[BEG date]]+1,2,IF(Table1[[#This Row],[END date]]=Table1[[#This Row],[BEG date]]+2,3,IF(Table1[[#This Row],[END date]]=Table1[[#This Row],[BEG date]]+3,4,IF(Table1[[#This Row],[END date]]=Table1[[#This Row],[BEG date]]+4,5,\">5\")))))","v":1},"Hand Delivered",null,"208-553-5181"]
["Kevin Griggs","kevin.griggs@mso.umt.edu",450,"NA",66146,"NA","NA","NA","Y","NA","NA","NA","NA","NA","Y",{"$f":"IF(AND(TODAY()<Table1[[#This Row],[BEG date]]-14, Table1[[#This Row],[Submitted on]]=\"\"), \"\", IF(AND(Table1[[#This Row],[BEG date]]-14<=TODAY(), TODAY()<Table1[[#This Row],[BEG date]], Table1[[#This Row],[Submitted on]]=\"\"), Table1[[#This Row],[BEG date]], IF(Table1[[#This Row],[Submitted on]]=\"\", \"PROCESS ASAP\", IF(Table1[[#This Row],[Payment Made]]=\"\", \"SUBMITTED\", \"DONE\"))))","v":"DONE"},{"$f":"IF(OR(Table1[[#This Row],[Recipient]]=\"\", Table1[[#This Row],[Email]]=\"\",Table1[[#This Row],[Amount]]=\"\",Table1[[#This Row],[Sent]]=\"\",Table1[[#This Row],[Vendor '#]]=\"\",Table1[[#This Row],[Completed (Date)]]=\"\",Table1[[#This Row],[Sent2]]=\"\",Table1[[#This Row],[Received]]=\"\",Table1[[#This Row],[On File (Y/leave blank)]]=\"\",Table1[[#This Row],[Requested]]=\"\",Table1[[#This Row],[Received3]]=\"\",Table1[[#This Row],[On File (Y/leave blank)4]]=\"\",Table1[[#This Row],[Requested5]]=\"\",Table1[[#This Row],[Received2]]=\"\", Table1[[#This Row],[On File(Y/leave blank)]]=\"\"), \"STOP\", \"GO\")","v":"GO"},"Andrew T","2014-10-01","FT150238","2014-10-02",null,"2014-09-29","Karren Williamson",13263369,6200,57081,"ICO 8998","Adjudicating for Rocky Mountian Invitational on Saturday oct. 11, 2014","2014-10-11","2014-10-11",{"$f":"IF(Table1[[#This Row],[END date]]=Table1[[#This Row],[BEG date]],1,IF(Table1[[#This Row],[END date]]=Table1[[#This Row],[BEG date]]+1,2,IF(Table1[[#This Row],[END date]]=Table1[[#This Row],[BEG date]]+2,3,IF(Table1[[#This Row],[END date]]=Table1[[#This Row],[BEG date]]+3,4,IF(Table1[[#This Row],[END date]]=Table1[[#This Row],[BEG date]]+4,5,\">5\")))))","v":1},"Hand Delivered",null,"406-370-8730"]
["Curtis Macomber","cjmacomber@earthlink.net",1500,"NA",54555,"NA","NA","NA","Y","NA","NA","NA","NA","NA","Y",{"$f":"IF(AND(TODAY()<Table1[[#This Row],[BEG date]]-14, Table1[[#This Row],[Submitted on]]=\"\"), \"\", IF(AND(Table1[[#This Row],[BEG date]]-14<=TODAY(), TODAY()<Table1[[#This Row],[BEG date]], Table1[[#This Row],[Submitted on]]=\"\"), Table1[[#This Row],[BEG date]], IF(Table1[[#This Row],[Submitted on]]=\"\", \"PROCESS ASAP\", IF(Table1[[#This Row],[Payment Made]]=\"\", \"SUBMITTED\", \"DONE\"))))","v":"DONE"},{"$f":"IF(OR(Table1[[#This Row],[Recipient]]=\"\", Table1[[#This Row],[Email]]=\"\",Table1[[#This Row],[Amount]]=\"\",Table1[[#This Row],[Sent]]=\"\",Table1[[#This Row],[Vendor '#]]=\"\",Table1[[#This Row],[Completed (Date)]]=\"\",Table1[[#This Row],[Sent2]]=\"\",Table1[[#This Row],[Received]]=\"\",Table1[[#This Row],[On File (Y/leave blank)]]=\"\",Table1[[#This Row],[Requested]]=\"\",Table1[[#This Row],[Received3]]=\"\",Table1[[#This Row],[On File (Y/leave blank)4]]=\"\",Table1[[#This Row],[Requested5]]=\"\",Table1[[#This Row],[Received2]]=\"\", Table1[[#This Row],[On File(Y/leave blank)]]=\"\"), \"STOP\", \"GO\")","v":"GO"},"Andrew T","2014-11-10","FT156524","2014-11-17",null,"2014-09-15","Steven Ricks",23263132,6200,35761,"ICO 7929","Honoraria for performance and workshop with composition students per Steven Ricks","2014-11-22","2014-11-22",{"$f":"IF(Table1[[#This Row],[END date]]=Table1[[#This Row],[BEG date]],1,IF(Table1[[#This Row],[END date]]=Table1[[#This Row],[BEG date]]+1,2,IF(Table1[[#This Row],[END date]]=Table1[[#This Row],[BEG date]]+2,3,IF(Table1[[#This Row],[END date]]=Table1[[#This Row],[BEG date]]+3,4,IF(Table1[[#This Row],[END date]]=Table1[[#This Row],[BEG date]]+4,5,\">5\")))))","v":1},"Hand Delivered",null,"718-543-1099"]
["Chris Finckel","finckelvcl@yahoo.com",1500,"NA",74694,"NA","NA","NA","Y","NA","NA","NA","NA","NA","Y",{"$f":"IF(AND(TODAY()<Table1[[#This Row],[BEG date]]-14, Table1[[#This Row],[Submitted on]]=\"\"), \"\", IF(AND(Table1[[#This Row],[BEG date]]-14<=TODAY(), TODAY()<Table1[[#This Row],[BEG date]], Table1[[#This Row],[Submitted on]]=\"\"), Table1[[#This Row],[BEG date]], IF(Table1[[#This Row],[Submitted on]]=\"\", \"PROCESS ASAP\", IF(Table1[[#This Row],[Payment Made]]=\"\", \"SUBMITTED\", \"DONE\"))))","v":"DONE"},{"$f":"IF(OR(Table1[[#This Row],[Recipient]]=\"\", Table1[[#This Row],[Email]]=\"\",Table1[[#This Row],[Amount]]=\"\",Table1[[#This Row],[Sent]]=\"\",Table1[[#This Row],[Vendor '#]]=\"\",Table1[[#This Row],[Completed (Date)]]=\"\",Table1[[#This Row],[Sent2]]=\"\",Table1[[#This Row],[Received]]=\"\",Table1[[#This Row],[On File (Y/leave blank)]]=\"\",Table1[[#This Row],[Requested]]=\"\",Table1[[#This Row],[Received3]]=\"\",Table1[[#This Row],[On File (Y/leave blank)4]]=\"\",Table1[[#This Row],[Requested5]]=\"\",Table1[[#This Row],[Received2]]=\"\", Table1[[#This Row],[On File(Y/leave blank)]]=\"\"), \"STOP\", \"GO\")","v":"GO"},"Andrew T","2014-11-10","FT156525","2014-11-17",null,"2014-09-15","Steven Ricks",23263132,6200,35761,"ICO 7929","Honoraria for performance and workshop with composition students per Steven Ricks","2014-11-22","2014-11-22",{"$f":"IF(Table1[[#This Row],[END date]]=Table1[[#This Row],[BEG date]],1,IF(Table1[[#This Row],[END date]]=Table1[[#This Row],[BEG date]]+1,2,IF(Table1[[#This Row],[END date]]=Table1[[#This Row],[BEG date]]+2,3,IF(Table1[[#This Row],[END date]]=Table1[[#This Row],[BEG date]]+3,4,IF(Table1[[#This Row],[END date]]=Table1[[#This Row],[BEG date]]+4,5,\">5\")))))","v":1},"Hand Delivered",null,"914-963-5315"]
["Stephen Gosling","sgosling@mac.com",1500,"NA",74701,"NA","NA","NA","Y","NA","NA","NA","NA","NA","Y",{"$f":"IF(AND(TODAY()<Table1[[#This Row],[BEG date]]-14, Table1[[#This Row],[Submitted on]]=\"\"), \"\", IF(AND(Table1[[#This Row],[BEG date]]-14<=TODAY(), TODAY()<Table1[[#This Row],[BEG date]], Table1[[#This Row],[Submitted on]]=\"\"), Table1[[#This Row],[BEG date]], IF(Table1[[#This Row],[Submitted on]]=\"\", \"PROCESS ASAP\", IF(Table1[[#This Row],[Payment Made]]=\"\", \"SUBMITTED\", \"DONE\"))))","v":"DONE"},{"$f":"IF(OR(Table1[[#This Row],[Recipient]]=\"\", Table1[[#This Row],[Email]]=\"\",Table1[[#This Row],[Amount]]=\"\",Table1[[#This Row],[Sent]]=\"\",Table1[[#This Row],[Vendor '#]]=\"\",Table1[[#This Row],[Completed (Date)]]=\"\",Table1[[#This Row],[Sent2]]=\"\",Table1[[#This Row],[Received]]=\"\",Table1[[#This Row],[On File (Y/leave blank)]]=\"\",Table1[[#This Row],[Requested]]=\"\",Table1[[#This Row],[Received3]]=\"\",Table1[[#This Row],[On File (Y/leave blank)4]]=\"\",Table1[[#This Row],[Requested5]]=\"\",Table1[[#This Row],[Received2]]=\"\", Table1[[#This Row],[On File(Y/leave blank)]]=\"\"), \"STOP\", \"GO\")","v":"GO"},"Andrew T","2014-11-10","FT156526","2014-11-17",null,"2014-09-15","Steven Ricks",23263132,6200,35761,"ICO 7929","Honoraria for performance and workshop with composition students per Steven Ricks","2014-11-22","2014-11-22",{"$f":"IF(Table1[[#This Row],[END date]]=Table1[[#This Row],[BEG date]],1,IF(Table1[[#This Row],[END date]]=Table1[[#This Row],[BEG date]]+1,2,IF(Table1[[#This Row],[END date]]=Table1[[#This Row],[BEG date]]+2,3,IF(Table1[[#This Row],[END date]]=Table1[[#This Row],[BEG date]]+3,4,IF(Table1[[#This Row],[END date]]=Table1[[#This Row],[BEG date]]+4,5,\">5\")))))","v":1},"Hand Delivered",null,"212-781-1811"]
["Creative Consultation Service","craig@bandfo.com",1700,"NA",66148,"NA","NA","NA","Y","NA","NA","Y","NA","NA","Y",{"$f":"IF(AND(TODAY()<Table1[[#This Row],[BEG date]]-14, Table1[[#This Row],[Submitted on]]=\"\"), \"\", IF(AND(Table1[[#This Row],[BEG date]]-14<=TODAY(), TODAY()<Table1[[#This Row],[BEG date]], Table1[[#This Row],[Submitted on]]=\"\"), Table1[[#This Row],[BEG date]], IF(Table1[[#This Row],[Submitted on]]=\"\", \"PROCESS ASAP\", IF(Table1[[#This Row],[Payment Made]]=\"\", \"SUBMITTED\", \"DONE\"))))","v":"DONE"},{"$f":"IF(OR(Table1[[#This Row],[Recipient]]=\"\", Table1[[#This Row],[Email]]=\"\",Table1[[#This Row],[Amount]]=\"\",Table1[[#This Row],[Sent]]=\"\",Table1[[#This Row],[Vendor '#]]=\"\",Table1[[#This Row],[Completed (Date)]]=\"\",Table1[[#This Row],[Sent2]]=\"\",Table1[[#This Row],[Received]]=\"\",Table1[[#This Row],[On File (Y/leave blank)]]=\"\",Table1[[#This Row],[Requested]]=\"\",Table1[[#This Row],[Received3]]=\"\",Table1[[#This Row],[On File (Y/leave blank)4]]=\"\",Table1[[#This Row],[Requested5]]=\"\",Table1[[#This Row],[Received2]]=\"\", Table1[[#This Row],[On File(Y/leave blank)]]=\"\"), \"STOP\", \"GO\")","v":"GO"},"Lindsey","2014-10-06","FT150875","2014-10-10",null,"2014-10-06","Fred McInnis",19263118,6200,0,"ICO 8993","Show design for Cougar Marching Band","2014-05-22","2014-08-14",{"$f":"IF(Table1[[#This Row],[END date]]=Table1[[#This Row],[BEG date]],1,IF(Table1[[#This Row],[END date]]=Table1[[#This Row],[BEG date]]+1,2,IF(Table1[[#This Row],[END date]]=Table1[[#This Row],[BEG date]]+2,3,IF(Table1[[#This Row],[END date]]=Table1[[#This Row],[BEG date]]+3,4,IF(Table1[[#This Row],[END date]]=Table1[[#This Row],[BEG date]]+4,5,\">5\")))))","v":">5"},"Mailed","Second installment"]
["J Dawgs","char@jdawgs.com",2000,"NA",58317,"NA","NA","NA","Y","2014-10-08","2014-10-09","NA","NA","NA","Y",{"$f":"IF(AND(TODAY()<Table1[[#This Row],[BEG date]]-14, Table1[[#This Row],[Submitted on]]=\"\"), \"\", IF(AND(Table1[[#This Row],[BEG date]]-14<=TODAY(), TODAY()<Table1[[#This Row],[BEG date]], Table1[[#This Row],[Submitted on]]=\"\"), Table1[[#This Row],[BEG date]], IF(Table1[[#This Row],[Submitted on]]=\"\", \"PROCESS ASAP\", IF(Table1[[#This Row],[Payment Made]]=\"\", \"SUBMITTED\", \"DONE\"))))","v":"DONE"},{"$f":"IF(OR(Table1[[#This Row],[Recipient]]=\"\", Table1[[#This Row],[Email]]=\"\",Table1[[#This Row],[Amount]]=\"\",Table1[[#This Row],[Sent]]=\"\",Table1[[#This Row],[Vendor '#]]=\"\",Table1[[#This Row],[Completed (Date)]]=\"\",Table1[[#This Row],[Sent2]]=\"\",Table1[[#This Row],[Received]]=\"\",Table1[[#This Row],[On File (Y/leave blank)]]=\"\",Table1[[#This Row],[Requested]]=\"\",Table1[[#This Row],[Received3]]=\"\",Table1[[#This Row],[On File (Y/leave blank)4]]=\"\",Table1[[#This Row],[Requested5]]=\"\",Table1[[#This Row],[Received2]]=\"\", Table1[[#This Row],[On File(Y/leave blank)]]=\"\"), \"STOP\", \"GO\")","v":"GO"},"Andrew T","2014-10-09","FT151536","2014-10-15",null,"2014-10-06","Mark Ammons",11263000,6180,0,"ICO 8989","J Dawgs for fall forum","2014-10-02","2014-10-02",{"$f":"IF(Table1[[#This Row],[END date]]=Table1[[#This Row],[BEG date]],1,IF(Table1[[#This Row],[END date]]=Table1[[#This Row],[BEG date]]+1,2,IF(Table1[[#This Row],[END date]]=Table1[[#This Row],[BEG date]]+2,3,IF(Table1[[#This Row],[END date]]=Table1[[#This Row],[BEG date]]+3,4,IF(Table1[[#This Row],[END date]]=Table1[[#This Row],[BEG date]]+4,5,\">5\")))))","v":1},"Mailed",null,"801-373-3294"]
["Charles Amirkhanian","charles@artsplural.com",1000,"2014-10-09",87196,"NA","NA","NA","Y","NA","NA","NA","NA","NA","Y",{"$f":"IF(AND(TODAY()<Table1[[#This Row],[BEG date]]-14, Table1[[#This Row],[Submitted on]]=\"\"), \"\", IF(AND(Table1[[#This Row],[BEG date]]-14<=TODAY(), TODAY()<Table1[[#This Row],[BEG date]], Table1[[#This Row],[Submitted on]]=\"\"), Table1[[#This Row],[BEG date]], IF(Table1[[#This Row],[Submitted on]]=\"\", \"PROCESS ASAP\", IF(Table1[[#This Row],[Payment Made]]=\"\", \"SUBMITTED\", \"DONE\"))))","v":"DONE"},{"$f":"IF(OR(Table1[[#This Row],[Recipient]]=\"\", Table1[[#This Row],[Email]]=\"\",Table1[[#This Row],[Amount]]=\"\",Table1[[#This Row],[Sent]]=\"\",Table1[[#This Row],[Vendor '#]]=\"\",Table1[[#This Row],[Completed (Date)]]=\"\",Table1[[#This Row],[Sent2]]=\"\",Table1[[#This Row],[Received]]=\"\",Table1[[#This Row],[On File (Y/leave blank)]]=\"\",Table1[[#This Row],[Requested]]=\"\",Table1[[#This Row],[Received3]]=\"\",Table1[[#This Row],[On File (Y/leave blank)4]]=\"\",Table1[[#This Row],[Requested5]]=\"\",Table1[[#This Row],[Received2]]=\"\", Table1[[#This Row],[On File(Y/leave blank)]]=\"\"), \"STOP\", \"GO\")","v":"GO"},"Andrew T","2014-10-10","FT151635","2014-10-14",null,"2014-10-09","Mike Hicks",23263132,6200,35746,"ICO 7929","Barlow lecture series - gave presentation - guest lecturer","2014-10-09","2014-10-09",{"$f":"IF(Table1[[#This Row],[END date]]=Table1[[#This Row],[BEG date]],1,IF(Table1[[#This Row],[END date]]=Table1[[#This Row],[BEG date]]+1,2,IF(Table1[[#This Row],[END date]]=Table1[[#This Row],[BEG date]]+2,3,IF(Table1[[#This Row],[END date]]=Table1[[#This Row],[BEG date]]+3,4,IF(Table1[[#This Row],[END date]]=Table1[[#This Row],[BEG date]]+4,5,\">5\")))))","v":1},"Mailed"]
["Jayne Galloway","jcgalloway88@gmail.com",137.5,"NA",49334,"NA","NA","NA","Y","NA","NA","Y","2014-10-15","2014-10-16","Y",{"$f":"IF(AND(TODAY()<Table1[[#This Row],[BEG date]]-14, Table1[[#This Row],[Submitted on]]=\"\"), \"\", IF(AND(Table1[[#This Row],[BEG date]]-14<=TODAY(), TODAY()<Table1[[#This Row],[BEG date]], Table1[[#This Row],[Submitted on]]=\"\"), Table1[[#This Row],[BEG date]], IF(Table1[[#This Row],[Submitted on]]=\"\", \"PROCESS ASAP\", IF(Table1[[#This Row],[Payment Made]]=\"\", \"SUBMITTED\", \"DONE\"))))","v":"DONE"},{"$f":"IF(OR(Table1[[#This Row],[Recipient]]=\"\", Table1[[#This Row],[Email]]=\"\",Table1[[#This Row],[Amount]]=\"\",Table1[[#This Row],[Sent]]=\"\",Table1[[#This Row],[Vendor '#]]=\"\",Table1[[#This Row],[Completed (Date)]]=\"\",Table1[[#This Row],[Sent2]]=\"\",Table1[[#This Row],[Received]]=\"\",Table1[[#This Row],[On File (Y/leave blank)]]=\"\",Table1[[#This Row],[Requested]]=\"\",Table1[[#This Row],[Received3]]=\"\",Table1[[#This Row],[On File (Y/leave blank)4]]=\"\",Table1[[#This Row],[Requested5]]=\"\",Table1[[#This Row],[Received2]]=\"\", Table1[[#This Row],[On File(Y/leave blank)]]=\"\"), \"STOP\", \"GO\")","v":"GO"},"Andrew T","2014-10-16","FT152173","2014-10-21",null,"2014-10-14","Darrell Babidge",11263000,6200,0,"ICO 7951","Accompanist for english diction class","2014-09-28","2014-09-30",{"$f":"IF(Table1[[#This Row],[END date]]=Table1[[#This Row],[BEG date]],1,IF(Table1[[#This Row],[END date]]=Table1[[#This Row],[BEG date]]+1,2,IF(Table1[[#This Row],[END date]]=Table1[[#This Row],[BEG date]]+2,3,IF(Table1[[#This Row],[END date]]=Table1[[#This Row],[BEG date]]+3,4,IF(Table1[[#This Row],[END date]]=Table1[[#This Row],[BEG date]]+4,5,\">5\")))))","v":3},"Mailed","Contract needed, has been sent on 10/15","801-420-8824"]
["Craig Kirchhoff","kirch010@umn.edu",300,"2014-10-16",87264,"NA","NA","NA","Y","2014-10-15","2014-10-16","NA","NA","NA","Y",{"$f":"IF(AND(TODAY()<Table1[[#This Row],[BEG date]]-14, Table1[[#This Row],[Submitted on]]=\"\"), \"\", IF(AND(Table1[[#This Row],[BEG date]]-14<=TODAY(), TODAY()<Table1[[#This Row],[BEG date]], Table1[[#This Row],[Submitted on]]=\"\"), Table1[[#This Row],[BEG date]], IF(Table1[[#This Row],[Submitted on]]=\"\", \"PROCESS ASAP\", IF(Table1[[#This Row],[Payment Made]]=\"\", \"SUBMITTED\", \"DONE\"))))","v":"DONE"},{"$f":"IF(OR(Table1[[#This Row],[Recipient]]=\"\", Table1[[#This Row],[Email]]=\"\",Table1[[#This Row],[Amount]]=\"\",Table1[[#This Row],[Sent]]=\"\",Table1[[#This Row],[Vendor '#]]=\"\",Table1[[#This Row],[Completed (Date)]]=\"\",Table1[[#This Row],[Sent2]]=\"\",Table1[[#This Row],[Received]]=\"\",Table1[[#This Row],[On File (Y/leave blank)]]=\"\",Table1[[#This Row],[Requested]]=\"\",Table1[[#This Row],[Received3]]=\"\",Table1[[#This Row],[On File (Y/leave blank)4]]=\"\",Table1[[#This Row],[Requested5]]=\"\",Table1[[#This Row],[Received2]]=\"\", Table1[[#This Row],[On File(Y/leave blank)]]=\"\"), \"STOP\", \"GO\")","v":"GO"},"Andrew T","2014-10-21","FT152512","2014-10-23",null,"2014-10-13","Don Peterson",13263071,6200,35759,"ICO 7929","Honorarium for clinician/presenter","2014-11-04","2014-11-04",{"$f":"IF(Table1[[#This Row],[END date]]=Table1[[#This Row],[BEG date]],1,IF(Table1[[#This Row],[END date]]=Table1[[#This Row],[BEG date]]+1,2,IF(Table1[[#This Row],[END date]]=Table1[[#This Row],[BEG date]]+2,3,IF(Table1[[#This Row],[END date]]=Table1[[#This Row],[BEG date]]+3,4,IF(Table1[[#This Row],[END date]]=Table1[[#This Row],[BEG date]]+4,5,\">5\")))))","v":1},"Hand Delivered",null,"612-306-8315"]
["Hal Leonard Corporation","ncherwin@halleonard.com",70,"NA",15403,"NA","NA","NA","Y","NA","NA","NA","NA","NA","Y",{"$f":"IF(AND(TODAY()<Table1[[#This Row],[BEG date]]-14, Table1[[#This Row],[Submitted on]]=\"\"), \"\", IF(AND(Table1[[#This Row],[BEG date]]-14<=TODAY(), TODAY()<Table1[[#This Row],[BEG date]], Table1[[#This Row],[Submitted on]]=\"\"), Table1[[#This Row],[BEG date]], IF(Table1[[#This Row],[Submitted on]]=\"\", \"PROCESS ASAP\", IF(Table1[[#This Row],[Payment Made]]=\"\", \"SUBMITTED\", \"DONE\"))))","v":"DONE"},{"$f":"IF(OR(Table1[[#This Row],[Recipient]]=\"\", Table1[[#This Row],[Email]]=\"\",Table1[[#This Row],[Amount]]=\"\",Table1[[#This Row],[Sent]]=\"\",Table1[[#This Row],[Vendor '#]]=\"\",Table1[[#This Row],[Completed (Date)]]=\"\",Table1[[#This Row],[Sent2]]=\"\",Table1[[#This Row],[Received]]=\"\",Table1[[#This Row],[On File (Y/leave blank)]]=\"\",Table1[[#This Row],[Requested]]=\"\",Table1[[#This Row],[Received3]]=\"\",Table1[[#This Row],[On File (Y/leave blank)4]]=\"\",Table1[[#This Row],[Requested5]]=\"\",Table1[[#This Row],[Received2]]=\"\", Table1[[#This Row],[On File(Y/leave blank)]]=\"\"), \"STOP\", \"GO\")","v":"GO"},"Lindsey","2014-10-15","FT152355","2014-10-15",null,"2014-10-15","Karren Williamson",13263071,6200,0,"ROY 8999","mechanical license for \"Hymn of the Highlands\" for 2013-14 bands in review CD",null,null,{"$f":"IF(Table1[[#This Row],[END date]]=Table1[[#This Row],[BEG date]],1,IF(Table1[[#This Row],[END date]]=Table1[[#This Row],[BEG date]]+1,2,IF(Table1[[#This Row],[END date]]=Table1[[#This Row],[BEG date]]+2,3,IF(Table1[[#This Row],[END date]]=Table1[[#This Row],[BEG date]]+3,4,IF(Table1[[#This Row],[END date]]=Table1[[#This Row],[BEG date]]+4,5,\">5\")))))","v":1},"Mailed","Mail mechanical licenses with the check"]
["Luke McCollum","Luke.mccollum@dish.com",800,"NA",72463,"2014-11-03","2014-10-15","2014-10-24","Y","2014-11-06","2014-11-06","Y","2014-10-31","2014-10-31","Y",{"$f":"IF(AND(TODAY()<Table1[[#This Row],[BEG date]]-14, Table1[[#This Row],[Submitted on]]=\"\"), \"\", IF(AND(Table1[[#This Row],[BEG date]]-14<=TODAY(), TODAY()<Table1[[#This Row],[BEG date]], Table1[[#This Row],[Submitted on]]=\"\"), Table1[[#This Row],[BEG date]], IF(Table1[[#This Row],[Submitted on]]=\"\", \"PROCESS ASAP\", IF(Table1[[#This Row],[Payment Made]]=\"\", \"SUBMITTED\", \"DONE\"))))","v":"DONE"},{"$f":"IF(OR(Table1[[#This Row],[Recipient]]=\"\", Table1[[#This Row],[Email]]=\"\",Table1[[#This Row],[Amount]]=\"\",Table1[[#This Row],[Sent]]=\"\",Table1[[#This Row],[Vendor '#]]=\"\",Table1[[#This Row],[Completed (Date)]]=\"\",Table1[[#This Row],[Sent2]]=\"\",Table1[[#This Row],[Received]]=\"\",Table1[[#This Row],[On File (Y/leave blank)]]=\"\",Table1[[#This Row],[Requested]]=\"\",Table1[[#This Row],[Received3]]=\"\",Table1[[#This Row],[On File (Y/leave blank)4]]=\"\",Table1[[#This Row],[Requested5]]=\"\",Table1[[#This Row],[Received2]]=\"\", Table1[[#This Row],[On File(Y/leave blank)]]=\"\"), \"STOP\", \"GO\")","v":"GO"},"Andrew T","2014-11-06","FT155476","2014-11-10",null,"2014-10-15","Karren Williamson",19263118,6200,0,"ICO 8993","Assisting Cougar Marching Band drumline instructor for 2014 season per Karren Williamson","2014-09-11","2014-12-30",{"$f":"IF(Table1[[#This Row],[END date]]=Table1[[#This Row],[BEG date]],1,IF(Table1[[#This Row],[END date]]=Table1[[#This Row],[BEG date]]+1,2,IF(Table1[[#This Row],[END date]]=Table1[[#This Row],[BEG date]]+2,3,IF(Table1[[#This Row],[END date]]=Table1[[#This Row],[BEG date]]+3,4,IF(Table1[[#This Row],[END date]]=Table1[[#This Row],[BEG date]]+4,5,\">5\")))))","v":">5"},"Mailed","Brett is following up with Denise and Fred McCinnis on this one"]
["Patricia Wise","patwise@indiana.edu",1000,"2014-10-22",87321,"2014-10-22","2014-10-16","2014-10-16","Y","2014-10-16","2014-10-21","Y","2014-10-16","2014-10-21","Y",{"$f":"IF(AND(TODAY()<Table1[[#This Row],[BEG date]]-14, Table1[[#This Row],[Submitted on]]=\"\"), \"\", IF(AND(Table1[[#This Row],[BEG date]]-14<=TODAY(), TODAY()<Table1[[#This Row],[BEG date]], Table1[[#This Row],[Submitted on]]=\"\"), Table1[[#This Row],[BEG date]], IF(Table1[[#This Row],[Submitted on]]=\"\", \"PROCESS ASAP\", IF(Table1[[#This Row],[Payment Made]]=\"\", \"SUBMITTED\", \"DONE\"))))","v":"DONE"},{"$f":"IF(OR(Table1[[#This Row],[Recipient]]=\"\", Table1[[#This Row],[Email]]=\"\",Table1[[#This Row],[Amount]]=\"\",Table1[[#This Row],[Sent]]=\"\",Table1[[#This Row],[Vendor '#]]=\"\",Table1[[#This Row],[Completed (Date)]]=\"\",Table1[[#This Row],[Sent2]]=\"\",Table1[[#This Row],[Received]]=\"\",Table1[[#This Row],[On File (Y/leave blank)]]=\"\",Table1[[#This Row],[Requested]]=\"\",Table1[[#This Row],[Received3]]=\"\",Table1[[#This Row],[On File (Y/leave blank)4]]=\"\",Table1[[#This Row],[Requested5]]=\"\",Table1[[#This Row],[Received2]]=\"\", Table1[[#This Row],[On File(Y/leave blank)]]=\"\"), \"STOP\", \"GO\")","v":"GO"},"Lindsey","2014-10-22","FT153493","2014-11-24",null,"2014-10-16","Darrell Babidge",11263013,6200,35992,"ICO 8997","Teach master class and provide vocal coaching","2014-11-10","2014-11-15",{"$f":"IF(Table1[[#This Row],[END date]]=Table1[[#This Row],[BEG date]],1,IF(Table1[[#This Row],[END date]]=Table1[[#This Row],[BEG date]]+1,2,IF(Table1[[#This Row],[END date]]=Table1[[#This Row],[BEG date]]+2,3,IF(Table1[[#This Row],[END date]]=Table1[[#This Row],[BEG date]]+3,4,IF(Table1[[#This Row],[END date]]=Table1[[#This Row],[BEG date]]+4,5,\">5\")))))","v":">5"},"Mailed",null,"212-300-3192"]
["Star of the North Concert Band","lgbacklund@msn.com",1760,"NA",82133,"NA","NA","NA","Y","NA","NA","NA","NA","NA","Y",{"$f":"IF(AND(TODAY()<Table1[[#This Row],[BEG date]]-14, Table1[[#This Row],[Submitted on]]=\"\"), \"\", IF(AND(Table1[[#This Row],[BEG date]]-14<=TODAY(), TODAY()<Table1[[#This Row],[BEG date]], Table1[[#This Row],[Submitted on]]=\"\"), Table1[[#This Row],[BEG date]], IF(Table1[[#This Row],[Submitted on]]=\"\", \"PROCESS ASAP\", IF(Table1[[#This Row],[Payment Made]]=\"\", \"SUBMITTED\", \"DONE\"))))","v":"DONE"},{"$f":"IF(OR(Table1[[#This Row],[Recipient]]=\"\", Table1[[#This Row],[Email]]=\"\",Table1[[#This Row],[Amount]]=\"\",Table1[[#This Row],[Sent]]=\"\",Table1[[#This Row],[Vendor '#]]=\"\",Table1[[#This Row],[Completed (Date)]]=\"\",Table1[[#This Row],[Sent2]]=\"\",Table1[[#This Row],[Received]]=\"\",Table1[[#This Row],[On File (Y/leave blank)]]=\"\",Table1[[#This Row],[Requested]]=\"\",Table1[[#This Row],[Received3]]=\"\",Table1[[#This Row],[On File (Y/leave blank)4]]=\"\",Table1[[#This Row],[Requested5]]=\"\",Table1[[#This Row],[Received2]]=\"\", Table1[[#This Row],[On File(Y/leave blank)]]=\"\"), \"STOP\", \"GO\")","v":"GO"},"Andrew T","2014-10-24","FT153858","2014-10-28",null,"2014-10-16","Steve Call",null,null,null,null,"This is a payment for the hotel/meals of \"Star of the North Concert Band\" that will be performing in MN with Steve Call","2015-03-25","2015-04-04",{"$f":"IF(Table1[[#This Row],[END date]]=Table1[[#This Row],[BEG date]],1,IF(Table1[[#This Row],[END date]]=Table1[[#This Row],[BEG date]]+1,2,IF(Table1[[#This Row],[END date]]=Table1[[#This Row],[BEG date]]+2,3,IF(Table1[[#This Row],[END date]]=Table1[[#This Row],[BEG date]]+3,4,IF(Table1[[#This Row],[END date]]=Table1[[#This Row],[BEG date]]+4,5,\">5\")))))","v":">5"},"Mailed","Contact info through Gordon Backlund (Treasurer)","763-574-0369"]
["Lyle Durland","lyledurland@gmail.com",800,"NA",67454,"Y","NA","NA","Y","NA","NA","Y","2014-10-21","2014-10-21","Y",{"$f":"IF(AND(TODAY()<Table1[[#This Row],[BEG date]]-14, Table1[[#This Row],[Submitted on]]=\"\"), \"\", IF(AND(Table1[[#This Row],[BEG date]]-14<=TODAY(), TODAY()<Table1[[#This Row],[BEG date]], Table1[[#This Row],[Submitted on]]=\"\"), Table1[[#This Row],[BEG date]], IF(Table1[[#This Row],[Submitted on]]=\"\", \"PROCESS ASAP\", IF(Table1[[#This Row],[Payment Made]]=\"\", \"SUBMITTED\", \"DONE\"))))","v":"DONE"},{"$f":"IF(OR(Table1[[#This Row],[Recipient]]=\"\", Table1[[#This Row],[Email]]=\"\",Table1[[#This Row],[Amount]]=\"\",Table1[[#This Row],[Sent]]=\"\",Table1[[#This Row],[Vendor '#]]=\"\",Table1[[#This Row],[Completed (Date)]]=\"\",Table1[[#This Row],[Sent2]]=\"\",Table1[[#This Row],[Received]]=\"\",Table1[[#This Row],[On File (Y/leave blank)]]=\"\",Table1[[#This Row],[Requested]]=\"\",Table1[[#This Row],[Received3]]=\"\",Table1[[#This Row],[On File (Y/leave blank)4]]=\"\",Table1[[#This Row],[Requested5]]=\"\",Table1[[#This Row],[Received2]]=\"\", Table1[[#This Row],[On File(Y/leave blank)]]=\"\"), \"STOP\", \"GO\")","v":"GO"},"Andrew T","2014-10-22","FT153513","2014-10-24",null,"2014-10-20","Jean Applonie",13263084,6200,35782,"ICO 8993","Prepared arrangements for BYU Women's Chorus per Jean Applonie","2014-02-05","2014-03-07",{"$f":"IF(Table1[[#This Row],[END date]]=Table1[[#This Row],[BEG date]],1,IF(Table1[[#This Row],[END date]]=Table1[[#This Row],[BEG date]]+1,2,IF(Table1[[#This Row],[END date]]=Table1[[#This Row],[BEG date]]+2,3,IF(Table1[[#This Row],[END date]]=Table1[[#This Row],[BEG date]]+3,4,IF(Table1[[#This Row],[END date]]=Table1[[#This Row],[BEG date]]+4,5,\">5\")))))","v":">5"},"Mailed"]
["Minnesota Symphonic Winds","NA",400,"2014-10-23",87352,"NA","NA","NA","Y","NA","NA","NA","NA","NA","Y",{"$f":"IF(AND(TODAY()<Table1[[#This Row],[BEG date]]-14, Table1[[#This Row],[Submitted on]]=\"\"), \"\", IF(AND(Table1[[#This Row],[BEG date]]-14<=TODAY(), TODAY()<Table1[[#This Row],[BEG date]], Table1[[#This Row],[Submitted on]]=\"\"), Table1[[#This Row],[BEG date]], IF(Table1[[#This Row],[Submitted on]]=\"\", \"PROCESS ASAP\", IF(Table1[[#This Row],[Payment Made]]=\"\", \"SUBMITTED\", \"DONE\"))))","v":"DONE"},{"$f":"IF(OR(Table1[[#This Row],[Recipient]]=\"\", Table1[[#This Row],[Email]]=\"\",Table1[[#This Row],[Amount]]=\"\",Table1[[#This Row],[Sent]]=\"\",Table1[[#This Row],[Vendor '#]]=\"\",Table1[[#This Row],[Completed (Date)]]=\"\",Table1[[#This Row],[Sent2]]=\"\",Table1[[#This Row],[Received]]=\"\",Table1[[#This Row],[On File (Y/leave blank)]]=\"\",Table1[[#This Row],[Requested]]=\"\",Table1[[#This Row],[Received3]]=\"\",Table1[[#This Row],[On File (Y/leave blank)4]]=\"\",Table1[[#This Row],[Requested5]]=\"\",Table1[[#This Row],[Received2]]=\"\", Table1[[#This Row],[On File(Y/leave blank)]]=\"\"), \"STOP\", \"GO\")","v":"GO"},"Andrew T","2014-10-24","FT153743","2014-10-27",null,"2014-10-22","Don Peterson",13263071,6100,35933,"DUE 8699","Band composition consortium","2014-10-22","2014-10-22",{"$f":"IF(Table1[[#This Row],[END date]]=Table1[[#This Row],[BEG date]],1,IF(Table1[[#This Row],[END date]]=Table1[[#This Row],[BEG date]]+1,2,IF(Table1[[#This Row],[END date]]=Table1[[#This Row],[BEG date]]+2,3,IF(Table1[[#This Row],[END date]]=Table1[[#This Row],[BEG date]]+3,4,IF(Table1[[#This Row],[END date]]=Table1[[#This Row],[BEG date]]+4,5,\">5\")))))","v":1},"Mailed"]
["CopyCat Music Licensing LLC","david@copycatlicensing.com",87.5,"NA",58017,"NA","NA","NA","Y","NA","NA","NA","NA","NA","Y",{"$f":"IF(AND(TODAY()<Table1[[#This Row],[BEG date]]-14, Table1[[#This Row],[Submitted on]]=\"\"), \"\", IF(AND(Table1[[#This Row],[BEG date]]-14<=TODAY(), TODAY()<Table1[[#This Row],[BEG date]], Table1[[#This Row],[Submitted on]]=\"\"), Table1[[#This Row],[BEG date]], IF(Table1[[#This Row],[Submitted on]]=\"\", \"PROCESS ASAP\", IF(Table1[[#This Row],[Payment Made]]=\"\", \"SUBMITTED\", \"DONE\"))))","v":"DONE"},{"$f":"IF(OR(Table1[[#This Row],[Recipient]]=\"\", Table1[[#This Row],[Email]]=\"\",Table1[[#This Row],[Amount]]=\"\",Table1[[#This Row],[Sent]]=\"\",Table1[[#This Row],[Vendor '#]]=\"\",Table1[[#This Row],[Completed (Date)]]=\"\",Table1[[#This Row],[Sent2]]=\"\",Table1[[#This Row],[Received]]=\"\",Table1[[#This Row],[On File (Y/leave blank)]]=\"\",Table1[[#This Row],[Requested]]=\"\",Table1[[#This Row],[Received3]]=\"\",Table1[[#This Row],[On File (Y/leave blank)4]]=\"\",Table1[[#This Row],[Requested5]]=\"\",Table1[[#This Row],[Received2]]=\"\", Table1[[#This Row],[On File(Y/leave blank)]]=\"\"), \"STOP\", \"GO\")","v":"GO"},"Andrew T","2014-10-23","FT153737","2014-10-27",null,"2014-10-22","Don Peterson",13263071,6100,35933,"ROY 8999","Mechanical licensing fee for \"Sinfonia in B-flat Minor\" for the BYU Bands in review 2013-14 CD per Don Peterson","2014-10-23","2014-10-23",{"$f":"IF(Table1[[#This Row],[END date]]=Table1[[#This Row],[BEG date]],1,IF(Table1[[#This Row],[END date]]=Table1[[#This Row],[BEG date]]+1,2,IF(Table1[[#This Row],[END date]]=Table1[[#This Row],[BEG date]]+2,3,IF(Table1[[#This Row],[END date]]=Table1[[#This Row],[BEG date]]+3,4,IF(Table1[[#This Row],[END date]]=Table1[[#This Row],[BEG date]]+4,5,\">5\")))))","v":1},"Mailed",null,"608-788-1630"]
["Blanka Bednarz","bednarzb@dickinson.edu",300,"2014-10-28",87382,"NA","NA","NA","Y","2014-10-24","2014-10-24","NA","NA","NA","Y",{"$f":"IF(AND(TODAY()<Table1[[#This Row],[BEG date]]-14, Table1[[#This Row],[Submitted on]]=\"\"), \"\", IF(AND(Table1[[#This Row],[BEG date]]-14<=TODAY(), TODAY()<Table1[[#This Row],[BEG date]], Table1[[#This Row],[Submitted on]]=\"\"), Table1[[#This Row],[BEG date]], IF(Table1[[#This Row],[Submitted on]]=\"\", \"PROCESS ASAP\", IF(Table1[[#This Row],[Payment Made]]=\"\", \"SUBMITTED\", \"DONE\"))))","v":"DONE"},{"$f":"IF(OR(Table1[[#This Row],[Recipient]]=\"\", Table1[[#This Row],[Email]]=\"\",Table1[[#This Row],[Amount]]=\"\",Table1[[#This Row],[Sent]]=\"\",Table1[[#This Row],[Vendor '#]]=\"\",Table1[[#This Row],[Completed (Date)]]=\"\",Table1[[#This Row],[Sent2]]=\"\",Table1[[#This Row],[Received]]=\"\",Table1[[#This Row],[On File (Y/leave blank)]]=\"\",Table1[[#This Row],[Requested]]=\"\",Table1[[#This Row],[Received3]]=\"\",Table1[[#This Row],[On File (Y/leave blank)4]]=\"\",Table1[[#This Row],[Requested5]]=\"\",Table1[[#This Row],[Received2]]=\"\", Table1[[#This Row],[On File(Y/leave blank)]]=\"\"), \"STOP\", \"GO\")","v":"GO"},"Andrew T","2014-10-28","FT154346","2014-10-30",null,"2014-10-23","Monte Belknap",13263208,6200,21629,"ICO 7929","Taught a masterclass at school of music, per Monte Belknap","2014-10-20","2014-10-20",{"$f":"IF(Table1[[#This Row],[END date]]=Table1[[#This Row],[BEG date]],1,IF(Table1[[#This Row],[END date]]=Table1[[#This Row],[BEG date]]+1,2,IF(Table1[[#This Row],[END date]]=Table1[[#This Row],[BEG date]]+2,3,IF(Table1[[#This Row],[END date]]=Table1[[#This Row],[BEG date]]+3,4,IF(Table1[[#This Row],[END date]]=Table1[[#This Row],[BEG date]]+4,5,\">5\")))))","v":1},"Mailed",null,"717-422-3399"]
["Denise Tryon","denise.tryon@gmail.com",400,"2014-10-31",87412,"NA","NA","NA","Y","2014-10-28","2014-10-31","NA","NA","NA","Y",{"$f":"IF(AND(TODAY()<Table1[[#This Row],[BEG date]]-14, Table1[[#This Row],[Submitted on]]=\"\"), \"\", IF(AND(Table1[[#This Row],[BEG date]]-14<=TODAY(), TODAY()<Table1[[#This Row],[BEG date]], Table1[[#This Row],[Submitted on]]=\"\"), Table1[[#This Row],[BEG date]], IF(Table1[[#This Row],[Submitted on]]=\"\", \"PROCESS ASAP\", IF(Table1[[#This Row],[Payment Made]]=\"\", \"SUBMITTED\", \"DONE\"))))","v":"DONE"},{"$f":"IF(OR(Table1[[#This Row],[Recipient]]=\"\", Table1[[#This Row],[Email]]=\"\",Table1[[#This Row],[Amount]]=\"\",Table1[[#This Row],[Sent]]=\"\",Table1[[#This Row],[Vendor '#]]=\"\",Table1[[#This Row],[Completed (Date)]]=\"\",Table1[[#This Row],[Sent2]]=\"\",Table1[[#This Row],[Received]]=\"\",Table1[[#This Row],[On File (Y/leave blank)]]=\"\",Table1[[#This Row],[Requested]]=\"\",Table1[[#This Row],[Received3]]=\"\",Table1[[#This Row],[On File (Y/leave blank)4]]=\"\",Table1[[#This Row],[Requested5]]=\"\",Table1[[#This Row],[Received2]]=\"\", Table1[[#This Row],[On File(Y/leave blank)]]=\"\"), \"STOP\", \"GO\")","v":"GO"},"Andrew T","2014-11-07","FT155193","2014-11-10",null,"2014-10-28","Laurence Lowe",13263211,6200,21629,"ICO 7929","Honorarium to Denise Tryon, 4th horn, Philadelphia Orchestra, for a masterclass per Laurence Lowe.","2014-11-21","2014-11-21",{"$f":"IF(Table1[[#This Row],[END date]]=Table1[[#This Row],[BEG date]],1,IF(Table1[[#This Row],[END date]]=Table1[[#This Row],[BEG date]]+1,2,IF(Table1[[#This Row],[END date]]=Table1[[#This Row],[BEG date]]+2,3,IF(Table1[[#This Row],[END date]]=Table1[[#This Row],[BEG date]]+3,4,IF(Table1[[#This Row],[END date]]=Table1[[#This Row],[BEG date]]+4,5,\">5\")))))","v":1},"Hand Delivered"]
["Peruse Music","donald_peterson@byu.edu",1320,"NA",53650,"NA","NA","NA","Y","2014-10-31","2014-10-31","NA","NA","NA","Y",{"$f":"IF(AND(TODAY()<Table1[[#This Row],[BEG date]]-14, Table1[[#This Row],[Submitted on]]=\"\"), \"\", IF(AND(Table1[[#This Row],[BEG date]]-14<=TODAY(), TODAY()<Table1[[#This Row],[BEG date]], Table1[[#This Row],[Submitted on]]=\"\"), Table1[[#This Row],[BEG date]], IF(Table1[[#This Row],[Submitted on]]=\"\", \"PROCESS ASAP\", IF(Table1[[#This Row],[Payment Made]]=\"\", \"SUBMITTED\", \"DONE\"))))","v":"DONE"},{"$f":"IF(OR(Table1[[#This Row],[Recipient]]=\"\", Table1[[#This Row],[Email]]=\"\",Table1[[#This Row],[Amount]]=\"\",Table1[[#This Row],[Sent]]=\"\",Table1[[#This Row],[Vendor '#]]=\"\",Table1[[#This Row],[Completed (Date)]]=\"\",Table1[[#This Row],[Sent2]]=\"\",Table1[[#This Row],[Received]]=\"\",Table1[[#This Row],[On File (Y/leave blank)]]=\"\",Table1[[#This Row],[Requested]]=\"\",Table1[[#This Row],[Received3]]=\"\",Table1[[#This Row],[On File (Y/leave blank)4]]=\"\",Table1[[#This Row],[Requested5]]=\"\",Table1[[#This Row],[Received2]]=\"\", Table1[[#This Row],[On File(Y/leave blank)]]=\"\"), \"STOP\", \"GO\")","v":"GO"},"Andrew T","2014-10-31","FT155212","2014-11-03",null,"2014-10-28","Judi Hoffman",13263109,6100,21672,"GDS 8999","Batons and cases ordered by the instrument office per Judi Hoffman","2014-09-03","2014-09-03",{"$f":"IF(Table1[[#This Row],[END date]]=Table1[[#This Row],[BEG date]],1,IF(Table1[[#This Row],[END date]]=Table1[[#This Row],[BEG date]]+1,2,IF(Table1[[#This Row],[END date]]=Table1[[#This Row],[BEG date]]+2,3,IF(Table1[[#This Row],[END date]]=Table1[[#This Row],[BEG date]]+3,4,IF(Table1[[#This Row],[END date]]=Table1[[#This Row],[BEG date]]+4,5,\">5\")))))","v":1},"Hand Delivered",null,"801-422-7275"]
["Moss Harp Service","steve@mossharpservice.com",1610,"NA",62140,"Y","NA","NA","Y","NA","NA","Y","2014-10-28","2014-10-29","Y",{"$f":"IF(AND(TODAY()<Table1[[#This Row],[BEG date]]-14, Table1[[#This Row],[Submitted on]]=\"\"), \"\", IF(AND(Table1[[#This Row],[BEG date]]-14<=TODAY(), TODAY()<Table1[[#This Row],[BEG date]], Table1[[#This Row],[Submitted on]]=\"\"), Table1[[#This Row],[BEG date]], IF(Table1[[#This Row],[Submitted on]]=\"\", \"PROCESS ASAP\", IF(Table1[[#This Row],[Payment Made]]=\"\", \"SUBMITTED\", \"DONE\"))))","v":"DONE"},{"$f":"IF(OR(Table1[[#This Row],[Recipient]]=\"\", Table1[[#This Row],[Email]]=\"\",Table1[[#This Row],[Amount]]=\"\",Table1[[#This Row],[Sent]]=\"\",Table1[[#This Row],[Vendor '#]]=\"\",Table1[[#This Row],[Completed (Date)]]=\"\",Table1[[#This Row],[Sent2]]=\"\",Table1[[#This Row],[Received]]=\"\",Table1[[#This Row],[On File (Y/leave blank)]]=\"\",Table1[[#This Row],[Requested]]=\"\",Table1[[#This Row],[Received3]]=\"\",Table1[[#This Row],[On File (Y/leave blank)4]]=\"\",Table1[[#This Row],[Requested5]]=\"\",Table1[[#This Row],[Received2]]=\"\", Table1[[#This Row],[On File(Y/leave blank)]]=\"\"), \"STOP\", \"GO\")","v":"GO"},"Andrew T","2014-10-29","FT154613","2014-10-30",null,"2014-10-28","Judi Hoffman",13263109,6200,21672,"ICO 8993","5 pedal harp regulations and string replacements as needed per Judi Hoffman - Instrument office","2014-09-24","2014-09-24",{"$f":"IF(Table1[[#This Row],[END date]]=Table1[[#This Row],[BEG date]],1,IF(Table1[[#This Row],[END date]]=Table1[[#This Row],[BEG date]]+1,2,IF(Table1[[#This Row],[END date]]=Table1[[#This Row],[BEG date]]+2,3,IF(Table1[[#This Row],[END date]]=Table1[[#This Row],[BEG date]]+3,4,IF(Table1[[#This Row],[END date]]=Table1[[#This Row],[BEG date]]+4,5,\">5\")))))","v":1},"Mailed",null,"414-510-8448"]
["Lisa Webster","lisawebster1218@gmail.com",105,"2014-11-13",81317,"NA","NA","NA","Y","2014-10-30","2014-11-13","NA","NA","NA","Y",{"$f":"IF(AND(TODAY()<Table1[[#This Row],[BEG date]]-14, Table1[[#This Row],[Submitted on]]=\"\"), \"\", IF(AND(Table1[[#This Row],[BEG date]]-14<=TODAY(), TODAY()<Table1[[#This Row],[BEG date]], Table1[[#This Row],[Submitted on]]=\"\"), Table1[[#This Row],[BEG date]], IF(Table1[[#This Row],[Submitted on]]=\"\", \"PROCESS ASAP\", IF(Table1[[#This Row],[Payment Made]]=\"\", \"SUBMITTED\", \"DONE\"))))","v":"DONE"},{"$f":"IF(OR(Table1[[#This Row],[Recipient]]=\"\", Table1[[#This Row],[Email]]=\"\",Table1[[#This Row],[Amount]]=\"\",Table1[[#This Row],[Sent]]=\"\",Table1[[#This Row],[Vendor '#]]=\"\",Table1[[#This Row],[Completed (Date)]]=\"\",Table1[[#This Row],[Sent2]]=\"\",Table1[[#This Row],[Received]]=\"\",Table1[[#This Row],[On File (Y/leave blank)]]=\"\",Table1[[#This Row],[Requested]]=\"\",Table1[[#This Row],[Received3]]=\"\",Table1[[#This Row],[On File (Y/leave blank)4]]=\"\",Table1[[#This Row],[Requested5]]=\"\",Table1[[#This Row],[Received2]]=\"\", Table1[[#This Row],[On File(Y/leave blank)]]=\"\"), \"STOP\", \"GO\")","v":"GO"},"Andrew T","2014-11-13","FT157254","2014-11-24",null,"2014-10-27","Andrew Maxfield",11263000,6100,0,"ICO 8999","Designing business cards for mus 286 per Andrew Maxfield","2014-10-16","2014-10-16",{"$f":"IF(Table1[[#This Row],[END date]]=Table1[[#This Row],[BEG date]],1,IF(Table1[[#This Row],[END date]]=Table1[[#This Row],[BEG date]]+1,2,IF(Table1[[#This Row],[END date]]=Table1[[#This Row],[BEG date]]+2,3,IF(Table1[[#This Row],[END date]]=Table1[[#This Row],[BEG date]]+3,4,IF(Table1[[#This Row],[END date]]=Table1[[#This Row],[BEG date]]+4,5,\">5\")))))","v":1},"Mailed",null,"215-588-0555"]
["Ariana Fonnesbeck","ariana.fonnesbeck@gmail.com",160,"2014-10-30",87404,"NA","NA","NA","Y","2014-10-28","2014-10-29","NA","NA","NA","Y",{"$f":"IF(AND(TODAY()<Table1[[#This Row],[BEG date]]-14, Table1[[#This Row],[Submitted on]]=\"\"), \"\", IF(AND(Table1[[#This Row],[BEG date]]-14<=TODAY(), TODAY()<Table1[[#This Row],[BEG date]], Table1[[#This Row],[Submitted on]]=\"\"), Table1[[#This Row],[BEG date]], IF(Table1[[#This Row],[Submitted on]]=\"\", \"PROCESS ASAP\", IF(Table1[[#This Row],[Payment Made]]=\"\", \"SUBMITTED\", \"DONE\"))))","v":"DONE"},{"$f":"IF(OR(Table1[[#This Row],[Recipient]]=\"\", Table1[[#This Row],[Email]]=\"\",Table1[[#This Row],[Amount]]=\"\",Table1[[#This Row],[Sent]]=\"\",Table1[[#This Row],[Vendor '#]]=\"\",Table1[[#This Row],[Completed (Date)]]=\"\",Table1[[#This Row],[Sent2]]=\"\",Table1[[#This Row],[Received]]=\"\",Table1[[#This Row],[On File (Y/leave blank)]]=\"\",Table1[[#This Row],[Requested]]=\"\",Table1[[#This Row],[Received3]]=\"\",Table1[[#This Row],[On File (Y/leave blank)4]]=\"\",Table1[[#This Row],[Requested5]]=\"\",Table1[[#This Row],[Received2]]=\"\", Table1[[#This Row],[On File(Y/leave blank)]]=\"\"), \"STOP\", \"GO\")","v":"GO"},"Andrew T","2014-10-30","FT154956","2014-11-03",null,"2014-10-27","Larry Vincent",13263074,6200,21678,"ICO 8999","Controlled the supertitles for \"The Marriage of Figaro\" per Lawrence Vincent","2014-10-22","2014-10-23",{"$f":"IF(Table1[[#This Row],[END date]]=Table1[[#This Row],[BEG date]],1,IF(Table1[[#This Row],[END date]]=Table1[[#This Row],[BEG date]]+1,2,IF(Table1[[#This Row],[END date]]=Table1[[#This Row],[BEG date]]+2,3,IF(Table1[[#This Row],[END date]]=Table1[[#This Row],[BEG date]]+3,4,IF(Table1[[#This Row],[END date]]=Table1[[#This Row],[BEG date]]+4,5,\">5\")))))","v":2},"Hand Delivered","Email her when check is ready","510-610-4210"]
["Tad Calcara","tadchat@juno.com",400,"2014-10-30",87408,"NA","NA","NA","Y","2014-10-28","2014-10-30","NA","NA","NA","Y",{"$f":"IF(AND(TODAY()<Table1[[#This Row],[BEG date]]-14, Table1[[#This Row],[Submitted on]]=\"\"), \"\", IF(AND(Table1[[#This Row],[BEG date]]-14<=TODAY(), TODAY()<Table1[[#This Row],[BEG date]], Table1[[#This Row],[Submitted on]]=\"\"), Table1[[#This Row],[BEG date]], IF(Table1[[#This Row],[Submitted on]]=\"\", \"PROCESS ASAP\", IF(Table1[[#This Row],[Payment Made]]=\"\", \"SUBMITTED\", \"DONE\"))))","v":"DONE"},{"$f":"IF(OR(Table1[[#This Row],[Recipient]]=\"\", Table1[[#This Row],[Email]]=\"\",Table1[[#This Row],[Amount]]=\"\",Table1[[#This Row],[Sent]]=\"\",Table1[[#This Row],[Vendor '#]]=\"\",Table1[[#This Row],[Completed (Date)]]=\"\",Table1[[#This Row],[Sent2]]=\"\",Table1[[#This Row],[Received]]=\"\",Table1[[#This Row],[On File (Y/leave blank)]]=\"\",Table1[[#This Row],[Requested]]=\"\",Table1[[#This Row],[Received3]]=\"\",Table1[[#This Row],[On File (Y/leave blank)4]]=\"\",Table1[[#This Row],[Requested5]]=\"\",Table1[[#This Row],[Received2]]=\"\", Table1[[#This Row],[On File(Y/leave blank)]]=\"\"), \"STOP\", \"GO\")","v":"GO"},"Andrew T","2014-11-03","FT155034","2014-11-05",null,"2014-10-28","Steve Call",13263073,6200,21684,"ICO 7929","Guest soloist with Jazz legacy per Steve Call","2014-10-29","2014-10-29",{"$f":"IF(Table1[[#This Row],[END date]]=Table1[[#This Row],[BEG date]],1,IF(Table1[[#This Row],[END date]]=Table1[[#This Row],[BEG date]]+1,2,IF(Table1[[#This Row],[END date]]=Table1[[#This Row],[BEG date]]+2,3,IF(Table1[[#This Row],[END date]]=Table1[[#This Row],[BEG date]]+3,4,IF(Table1[[#This Row],[END date]]=Table1[[#This Row],[BEG date]]+4,5,\">5\")))))","v":1},"Mailed"]
["Utah Music Educators Association","rhonda@infowest.com",320,"NA","LE00009599","NA","NA","NA","Y","2014-10-30","2014-11-04","NA","NA","NA","Y",{"$f":"IF(AND(TODAY()<Table1[[#This Row],[BEG date]]-14, Table1[[#This Row],[Submitted on]]=\"\"), \"\", IF(AND(Table1[[#This Row],[BEG date]]-14<=TODAY(), TODAY()<Table1[[#This Row],[BEG date]], Table1[[#This Row],[Submitted on]]=\"\"), Table1[[#This Row],[BEG date]], IF(Table1[[#This Row],[Submitted on]]=\"\", \"PROCESS ASAP\", IF(Table1[[#This Row],[Payment Made]]=\"\", \"SUBMITTED\", \"DONE\"))))","v":"DONE"},{"$f":"IF(OR(Table1[[#This Row],[Recipient]]=\"\", Table1[[#This Row],[Email]]=\"\",Table1[[#This Row],[Amount]]=\"\",Table1[[#This Row],[Sent]]=\"\",Table1[[#This Row],[Vendor '#]]=\"\",Table1[[#This Row],[Completed (Date)]]=\"\",Table1[[#This Row],[Sent2]]=\"\",Table1[[#This Row],[Received]]=\"\",Table1[[#This Row],[On File (Y/leave blank)]]=\"\",Table1[[#This Row],[Requested]]=\"\",Table1[[#This Row],[Received3]]=\"\",Table1[[#This Row],[On File (Y/leave blank)4]]=\"\",Table1[[#This Row],[Requested5]]=\"\",Table1[[#This Row],[Received2]]=\"\", Table1[[#This Row],[On File(Y/leave blank)]]=\"\"), \"STOP\", \"GO\")","v":"GO"},"Andrew T","2014-12-03","FT155734","2014-12-04",null,"2014-10-30","Ron Brough",11263000,6160,0,"GDS 8999","Color full page advertisement in UMEA magazine per Ron Brough","2014-10-16","2014-10-16",{"$f":"IF(Table1[[#This Row],[END date]]=Table1[[#This Row],[BEG date]],1,IF(Table1[[#This Row],[END date]]=Table1[[#This Row],[BEG date]]+1,2,IF(Table1[[#This Row],[END date]]=Table1[[#This Row],[BEG date]]+2,3,IF(Table1[[#This Row],[END date]]=Table1[[#This Row],[BEG date]]+3,4,IF(Table1[[#This Row],[END date]]=Table1[[#This Row],[BEG date]]+4,5,\">5\")))))","v":1},"Mailed",null,"435-635-4101"]
["Aubrey Woods","aubreyawoods@gmail.com",250,"NA",78513,"NA","NA","NA","Y","2014-10-31","2014-10-31","NA","NA","NA","Y",{"$f":"IF(AND(TODAY()<Table1[[#This Row],[BEG date]]-14, Table1[[#This Row],[Submitted on]]=\"\"), \"\", IF(AND(Table1[[#This Row],[BEG date]]-14<=TODAY(), TODAY()<Table1[[#This Row],[BEG date]], Table1[[#This Row],[Submitted on]]=\"\"), Table1[[#This Row],[BEG date]], IF(Table1[[#This Row],[Submitted on]]=\"\", \"PROCESS ASAP\", IF(Table1[[#This Row],[Payment Made]]=\"\", \"SUBMITTED\", \"DONE\"))))","v":"DONE"},{"$f":"IF(OR(Table1[[#This Row],[Recipient]]=\"\", Table1[[#This Row],[Email]]=\"\",Table1[[#This Row],[Amount]]=\"\",Table1[[#This Row],[Sent]]=\"\",Table1[[#This Row],[Vendor '#]]=\"\",Table1[[#This Row],[Completed (Date)]]=\"\",Table1[[#This Row],[Sent2]]=\"\",Table1[[#This Row],[Received]]=\"\",Table1[[#This Row],[On File (Y/leave blank)]]=\"\",Table1[[#This Row],[Requested]]=\"\",Table1[[#This Row],[Received3]]=\"\",Table1[[#This Row],[On File (Y/leave blank)4]]=\"\",Table1[[#This Row],[Requested5]]=\"\",Table1[[#This Row],[Received2]]=\"\", Table1[[#This Row],[On File(Y/leave blank)]]=\"\"), \"STOP\", \"GO\")","v":"GO"},"Andrew T","2014-11-03","FT155459","2014-11-05",null,"2014-10-31","Mike Hicks",23263132,6200,35892,"ICO 7929","Honorarium for performance of Michael Hicks composition on Nova Chamber Series per Michael Hicks","2014-10-26","2014-10-26",{"$f":"IF(Table1[[#This Row],[END date]]=Table1[[#This Row],[BEG date]],1,IF(Table1[[#This Row],[END date]]=Table1[[#This Row],[BEG date]]+1,2,IF(Table1[[#This Row],[END date]]=Table1[[#This Row],[BEG date]]+2,3,IF(Table1[[#This Row],[END date]]=Table1[[#This Row],[BEG date]]+3,4,IF(Table1[[#This Row],[END date]]=Table1[[#This Row],[BEG date]]+4,5,\">5\")))))","v":1},"Mailed",null,"801-494-9785"]
["Day Murray Music","info@daymurraymusic.com",105.49,"NA","LE00012661","NA","NA","NA","Y","NA","NA","NA","NA","NA","Y",{"$f":"IF(AND(TODAY()<Table1[[#This Row],[BEG date]]-14, Table1[[#This Row],[Submitted on]]=\"\"), \"\", IF(AND(Table1[[#This Row],[BEG date]]-14<=TODAY(), TODAY()<Table1[[#This Row],[BEG date]], Table1[[#This Row],[Submitted on]]=\"\"), Table1[[#This Row],[BEG date]], IF(Table1[[#This Row],[Submitted on]]=\"\", \"PROCESS ASAP\", IF(Table1[[#This Row],[Payment Made]]=\"\", \"SUBMITTED\", \"DONE\"))))","v":"DONE"},{"$f":"IF(OR(Table1[[#This Row],[Recipient]]=\"\", Table1[[#This Row],[Email]]=\"\",Table1[[#This Row],[Amount]]=\"\",Table1[[#This Row],[Sent]]=\"\",Table1[[#This Row],[Vendor '#]]=\"\",Table1[[#This Row],[Completed (Date)]]=\"\",Table1[[#This Row],[Sent2]]=\"\",Table1[[#This Row],[Received]]=\"\",Table1[[#This Row],[On File (Y/leave blank)]]=\"\",Table1[[#This Row],[Requested]]=\"\",Table1[[#This Row],[Received3]]=\"\",Table1[[#This Row],[On File (Y/leave blank)4]]=\"\",Table1[[#This Row],[Requested5]]=\"\",Table1[[#This Row],[Received2]]=\"\", Table1[[#This Row],[On File(Y/leave blank)]]=\"\"), \"STOP\", \"GO\")","v":"GO"},"Andrew T","2014-11-04","FT155737","2014-11-06",null,"2014-11-03","Don Peterson",13263071,6200,35759,"GDS 8999","Concert Band Music- \"Finale Organ Symphony\" per Don Peterson","2014-10-30","2014-10-30",{"$f":"IF(Table1[[#This Row],[END date]]=Table1[[#This Row],[BEG date]],1,IF(Table1[[#This Row],[END date]]=Table1[[#This Row],[BEG date]]+1,2,IF(Table1[[#This Row],[END date]]=Table1[[#This Row],[BEG date]]+2,3,IF(Table1[[#This Row],[END date]]=Table1[[#This Row],[BEG date]]+3,4,IF(Table1[[#This Row],[END date]]=Table1[[#This Row],[BEG date]]+4,5,\">5\")))))","v":1},"Mailed"]
["Latif Bolat","lbolat@aol.com",750,"NA",30193,"NA","NA","NA","Y","NA","NA","NA","NA","NA","Y",{"$f":"IF(AND(TODAY()<Table1[[#This Row],[BEG date]]-14, Table1[[#This Row],[Submitted on]]=\"\"), \"\", IF(AND(Table1[[#This Row],[BEG date]]-14<=TODAY(), TODAY()<Table1[[#This Row],[BEG date]], Table1[[#This Row],[Submitted on]]=\"\"), Table1[[#This Row],[BEG date]], IF(Table1[[#This Row],[Submitted on]]=\"\", \"PROCESS ASAP\", IF(Table1[[#This Row],[Payment Made]]=\"\", \"SUBMITTED\", \"DONE\"))))","v":"DONE"},{"$f":"IF(OR(Table1[[#This Row],[Recipient]]=\"\", Table1[[#This Row],[Email]]=\"\",Table1[[#This Row],[Amount]]=\"\",Table1[[#This Row],[Sent]]=\"\",Table1[[#This Row],[Vendor '#]]=\"\",Table1[[#This Row],[Completed (Date)]]=\"\",Table1[[#This Row],[Sent2]]=\"\",Table1[[#This Row],[Received]]=\"\",Table1[[#This Row],[On File (Y/leave blank)]]=\"\",Table1[[#This Row],[Requested]]=\"\",Table1[[#This Row],[Received3]]=\"\",Table1[[#This Row],[On File (Y/leave blank)4]]=\"\",Table1[[#This Row],[Requested5]]=\"\",Table1[[#This Row],[Received2]]=\"\", Table1[[#This Row],[On File(Y/leave blank)]]=\"\"), \"STOP\", \"GO\")","v":"GO"},"Andrew T","2014-11-14","FT157373","2014-11-17",null,"2014-11-05","Luke Howard",13263324,6200,35715,"ICO 8000","Honorarium for Latif as a guest lecturer per Luke Howard","2014-11-13","2014-11-13",{"$f":"IF(Table1[[#This Row],[END date]]=Table1[[#This Row],[BEG date]],1,IF(Table1[[#This Row],[END date]]=Table1[[#This Row],[BEG date]]+1,2,IF(Table1[[#This Row],[END date]]=Table1[[#This Row],[BEG date]]+2,3,IF(Table1[[#This Row],[END date]]=Table1[[#This Row],[BEG date]]+3,4,IF(Table1[[#This Row],[END date]]=Table1[[#This Row],[BEG date]]+4,5,\">5\")))))","v":1},"Hand Delivered","Sent request for updated W9 just in case on 11/07/2014","505-301-7529"]
["Red Owl Records","andrew.maxfield@gmail.com",2500,"NA",61901,"NA","NA","NA","Y","NA","NA","NA","NA","NA","Y",{"$f":"IF(AND(TODAY()<Table1[[#This Row],[BEG date]]-14, Table1[[#This Row],[Submitted on]]=\"\"), \"\", IF(AND(Table1[[#This Row],[BEG date]]-14<=TODAY(), TODAY()<Table1[[#This Row],[BEG date]], Table1[[#This Row],[Submitted on]]=\"\"), Table1[[#This Row],[BEG date]], IF(Table1[[#This Row],[Submitted on]]=\"\", \"PROCESS ASAP\", IF(Table1[[#This Row],[Payment Made]]=\"\", \"SUBMITTED\", \"DONE\"))))","v":"DONE"},{"$f":"IF(OR(Table1[[#This Row],[Recipient]]=\"\", Table1[[#This Row],[Email]]=\"\",Table1[[#This Row],[Amount]]=\"\",Table1[[#This Row],[Sent]]=\"\",Table1[[#This Row],[Vendor '#]]=\"\",Table1[[#This Row],[Completed (Date)]]=\"\",Table1[[#This Row],[Sent2]]=\"\",Table1[[#This Row],[Received]]=\"\",Table1[[#This Row],[On File (Y/leave blank)]]=\"\",Table1[[#This Row],[Requested]]=\"\",Table1[[#This Row],[Received3]]=\"\",Table1[[#This Row],[On File (Y/leave blank)4]]=\"\",Table1[[#This Row],[Requested5]]=\"\",Table1[[#This Row],[Received2]]=\"\", Table1[[#This Row],[On File(Y/leave blank)]]=\"\"), \"STOP\", \"GO\")","v":"GO"},"Andrew T","2014-11-07","FT156335","2014-11-10",null,"2014-11-07","Mark Ammons",13263073,6200,35863,"ICO 7929","Payment for performance of Fictionist with BYU Jazz Ensemble in their variety show, per Mark Ammons","2014-11-06","2014-11-06",{"$f":"IF(Table1[[#This Row],[END date]]=Table1[[#This Row],[BEG date]],1,IF(Table1[[#This Row],[END date]]=Table1[[#This Row],[BEG date]]+1,2,IF(Table1[[#This Row],[END date]]=Table1[[#This Row],[BEG date]]+2,3,IF(Table1[[#This Row],[END date]]=Table1[[#This Row],[BEG date]]+3,4,IF(Table1[[#This Row],[END date]]=Table1[[#This Row],[BEG date]]+4,5,\">5\")))))","v":1},"Mailed"]
["Utah Music Educators Association","rhonda@infowest.com",200,"NA","LE00009599","NA","NA","NA","Y","NA","NA","NA","NA","NA","Y",{"$f":"IF(AND(TODAY()<Table1[[#This Row],[BEG date]]-14, Table1[[#This Row],[Submitted on]]=\"\"), \"\", IF(AND(Table1[[#This Row],[BEG date]]-14<=TODAY(), TODAY()<Table1[[#This Row],[BEG date]], Table1[[#This Row],[Submitted on]]=\"\"), Table1[[#This Row],[BEG date]], IF(Table1[[#This Row],[Submitted on]]=\"\", \"PROCESS ASAP\", IF(Table1[[#This Row],[Payment Made]]=\"\", \"SUBMITTED\", \"DONE\"))))","v":"DONE"},{"$f":"IF(OR(Table1[[#This Row],[Recipient]]=\"\", Table1[[#This Row],[Email]]=\"\",Table1[[#This Row],[Amount]]=\"\",Table1[[#This Row],[Sent]]=\"\",Table1[[#This Row],[Vendor '#]]=\"\",Table1[[#This Row],[Completed (Date)]]=\"\",Table1[[#This Row],[Sent2]]=\"\",Table1[[#This Row],[Received]]=\"\",Table1[[#This Row],[On File (Y/leave blank)]]=\"\",Table1[[#This Row],[Requested]]=\"\",Table1[[#This Row],[Received3]]=\"\",Table1[[#This Row],[On File (Y/leave blank)4]]=\"\",Table1[[#This Row],[Requested5]]=\"\",Table1[[#This Row],[Received2]]=\"\", Table1[[#This Row],[On File(Y/leave blank)]]=\"\"), \"STOP\", \"GO\")","v":"GO"},"Andrew T","2014-11-10","FT156527","2014-11-12",null,"2014-11-10","Kathy Colton",11263000,6160,0,"GDS 8999","Booth payment at recruiting event per Kathy Colton","2014-11-10","2014-11-10",{"$f":"IF(Table1[[#This Row],[END date]]=Table1[[#This Row],[BEG date]],1,IF(Table1[[#This Row],[END date]]=Table1[[#This Row],[BEG date]]+1,2,IF(Table1[[#This Row],[END date]]=Table1[[#This Row],[BEG date]]+2,3,IF(Table1[[#This Row],[END date]]=Table1[[#This Row],[BEG date]]+3,4,IF(Table1[[#This Row],[END date]]=Table1[[#This Row],[BEG date]]+4,5,\">5\")))))","v":1},"Mailed",null,"435-635-4101"]
["Nancy Ambrose King","nak@umich.edu",1000,"2014-11-12",53865,"NA","NA","NA","Y","2014-11-11","2014-11-12","NA","NA","NA","Y",{"$f":"IF(AND(TODAY()<Table1[[#This Row],[BEG date]]-14, Table1[[#This Row],[Submitted on]]=\"\"), \"\", IF(AND(Table1[[#This Row],[BEG date]]-14<=TODAY(), TODAY()<Table1[[#This Row],[BEG date]], Table1[[#This Row],[Submitted on]]=\"\"), Table1[[#This Row],[BEG date]], IF(Table1[[#This Row],[Submitted on]]=\"\", \"PROCESS ASAP\", IF(Table1[[#This Row],[Payment Made]]=\"\", \"SUBMITTED\", \"DONE\"))))","v":"DONE"},{"$f":"IF(OR(Table1[[#This Row],[Recipient]]=\"\", Table1[[#This Row],[Email]]=\"\",Table1[[#This Row],[Amount]]=\"\",Table1[[#This Row],[Sent]]=\"\",Table1[[#This Row],[Vendor '#]]=\"\",Table1[[#This Row],[Completed (Date)]]=\"\",Table1[[#This Row],[Sent2]]=\"\",Table1[[#This Row],[Received]]=\"\",Table1[[#This Row],[On File (Y/leave blank)]]=\"\",Table1[[#This Row],[Requested]]=\"\",Table1[[#This Row],[Received3]]=\"\",Table1[[#This Row],[On File (Y/leave blank)4]]=\"\",Table1[[#This Row],[Requested5]]=\"\",Table1[[#This Row],[Received2]]=\"\", Table1[[#This Row],[On File(Y/leave blank)]]=\"\"), \"STOP\", \"GO\")","v":"GO"},"Andrew T","2014-11-18","FT156935","2014-11-20",null,"2014-11-10","Geralyn Giovannetti",13263210,6200,21629,"ICO 7929","Payment for a masterclass and performance fee per Geralyn Giovannetti","2014-12-01","2014-12-02",{"$f":"IF(Table1[[#This Row],[END date]]=Table1[[#This Row],[BEG date]],1,IF(Table1[[#This Row],[END date]]=Table1[[#This Row],[BEG date]]+1,2,IF(Table1[[#This Row],[END date]]=Table1[[#This Row],[BEG date]]+2,3,IF(Table1[[#This Row],[END date]]=Table1[[#This Row],[BEG date]]+3,4,IF(Table1[[#This Row],[END date]]=Table1[[#This Row],[BEG date]]+4,5,\">5\")))))","v":2},"Hand Delivered",null,"734-395-2832"]
["Nancy Austen","ndausten@gmail.com",560,"NA",40543,"Y","NA","NA","Y","NA","NA","Y","2014-11-11","2014-11-14","Y",{"$f":"IF(AND(TODAY()<Table1[[#This Row],[BEG date]]-14, Table1[[#This Row],[Submitted on]]=\"\"), \"\", IF(AND(Table1[[#This Row],[BEG date]]-14<=TODAY(), TODAY()<Table1[[#This Row],[BEG date]], Table1[[#This Row],[Submitted on]]=\"\"), Table1[[#This Row],[BEG date]], IF(Table1[[#This Row],[Submitted on]]=\"\", \"PROCESS ASAP\", IF(Table1[[#This Row],[Payment Made]]=\"\", \"SUBMITTED\", \"DONE\"))))","v":"DONE"},{"$f":"IF(OR(Table1[[#This Row],[Recipient]]=\"\", Table1[[#This Row],[Email]]=\"\",Table1[[#This Row],[Amount]]=\"\",Table1[[#This Row],[Sent]]=\"\",Table1[[#This Row],[Vendor '#]]=\"\",Table1[[#This Row],[Completed (Date)]]=\"\",Table1[[#This Row],[Sent2]]=\"\",Table1[[#This Row],[Received]]=\"\",Table1[[#This Row],[On File (Y/leave blank)]]=\"\",Table1[[#This Row],[Requested]]=\"\",Table1[[#This Row],[Received3]]=\"\",Table1[[#This Row],[On File (Y/leave blank)4]]=\"\",Table1[[#This Row],[Requested5]]=\"\",Table1[[#This Row],[Received2]]=\"\", Table1[[#This Row],[On File(Y/leave blank)]]=\"\"), \"STOP\", \"GO\")","v":"GO"},"Andrew T","2014-11-14","FT157393","2014-11-17",null,"2014-11-10","Jean Applonie",13263294,6200,35782,"ICO 8993","Hemmed Women's Chorus skirts per Jean Applonie","2014-09-20","2014-09-22",{"$f":"IF(Table1[[#This Row],[END date]]=Table1[[#This Row],[BEG date]],1,IF(Table1[[#This Row],[END date]]=Table1[[#This Row],[BEG date]]+1,2,IF(Table1[[#This Row],[END date]]=Table1[[#This Row],[BEG date]]+2,3,IF(Table1[[#This Row],[END date]]=Table1[[#This Row],[BEG date]]+3,4,IF(Table1[[#This Row],[END date]]=Table1[[#This Row],[BEG date]]+4,5,\">5\")))))","v":3},"Mailed",null,"801-226-6686"]
["Day Murray Music","info@daymurraymusic.com",70.03,"NA","LE00012661","NA","NA","NA","Y","NA","NA","NA","NA","NA","Y",{"$f":"IF(AND(TODAY()<Table1[[#This Row],[BEG date]]-14, Table1[[#This Row],[Submitted on]]=\"\"), \"\", IF(AND(Table1[[#This Row],[BEG date]]-14<=TODAY(), TODAY()<Table1[[#This Row],[BEG date]], Table1[[#This Row],[Submitted on]]=\"\"), Table1[[#This Row],[BEG date]], IF(Table1[[#This Row],[Submitted on]]=\"\", \"PROCESS ASAP\", IF(Table1[[#This Row],[Payment Made]]=\"\", \"SUBMITTED\", \"DONE\"))))","v":"DONE"},{"$f":"IF(OR(Table1[[#This Row],[Recipient]]=\"\", Table1[[#This Row],[Email]]=\"\",Table1[[#This Row],[Amount]]=\"\",Table1[[#This Row],[Sent]]=\"\",Table1[[#This Row],[Vendor '#]]=\"\",Table1[[#This Row],[Completed (Date)]]=\"\",Table1[[#This Row],[Sent2]]=\"\",Table1[[#This Row],[Received]]=\"\",Table1[[#This Row],[On File (Y/leave blank)]]=\"\",Table1[[#This Row],[Requested]]=\"\",Table1[[#This Row],[Received3]]=\"\",Table1[[#This Row],[On File (Y/leave blank)4]]=\"\",Table1[[#This Row],[Requested5]]=\"\",Table1[[#This Row],[Received2]]=\"\", Table1[[#This Row],[On File(Y/leave blank)]]=\"\"), \"STOP\", \"GO\")","v":"GO"},"Andrew T","2014-11-18","FT157919","2014-11-20",null,"2014-11-17","Don Peterson",13263071,6100,35759,"GDS 8999","This was a purchased of band reference books per Don Peterson","2014-11-13","2014-11-13",{"$f":"IF(Table1[[#This Row],[END date]]=Table1[[#This Row],[BEG date]],1,IF(Table1[[#This Row],[END date]]=Table1[[#This Row],[BEG date]]+1,2,IF(Table1[[#This Row],[END date]]=Table1[[#This Row],[BEG date]]+2,3,IF(Table1[[#This Row],[END date]]=Table1[[#This Row],[BEG date]]+3,4,IF(Table1[[#This Row],[END date]]=Table1[[#This Row],[BEG date]]+4,5,\">5\")))))","v":1},"Mailed"]
["David Langr","dlangr@aol.com",200,"2014-12-03",58963,"NA","NA","NA","Y","2014-12-02","2014-12-03","NA","NA","NA","Y",{"$f":"IF(AND(TODAY()<Table1[[#This Row],[BEG date]]-14, Table1[[#This Row],[Submitted on]]=\"\"), \"\", IF(AND(Table1[[#This Row],[BEG date]]-14<=TODAY(), TODAY()<Table1[[#This Row],[BEG date]], Table1[[#This Row],[Submitted on]]=\"\"), Table1[[#This Row],[BEG date]], IF(Table1[[#This Row],[Submitted on]]=\"\", \"PROCESS ASAP\", IF(Table1[[#This Row],[Payment Made]]=\"\", \"SUBMITTED\", \"DONE\"))))","v":"DONE"},{"$f":"IF(OR(Table1[[#This Row],[Recipient]]=\"\", Table1[[#This Row],[Email]]=\"\",Table1[[#This Row],[Amount]]=\"\",Table1[[#This Row],[Sent]]=\"\",Table1[[#This Row],[Vendor '#]]=\"\",Table1[[#This Row],[Completed (Date)]]=\"\",Table1[[#This Row],[Sent2]]=\"\",Table1[[#This Row],[Received]]=\"\",Table1[[#This Row],[On File (Y/leave blank)]]=\"\",Table1[[#This Row],[Requested]]=\"\",Table1[[#This Row],[Received3]]=\"\",Table1[[#This Row],[On File (Y/leave blank)4]]=\"\",Table1[[#This Row],[Requested5]]=\"\",Table1[[#This Row],[Received2]]=\"\", Table1[[#This Row],[On File(Y/leave blank)]]=\"\"), \"STOP\", \"GO\")","v":"GO"},"Andrew T","2014-12-03","FT160213","2014-12-04",null,"2014-11-21","Monte Belknap",13263208,6200,21629,"ICO 7929","Payment for Utah Symphony guest performer in masterclass per Monte Belknap","2014-11-20","2014-11-20",{"$f":"IF(Table1[[#This Row],[END date]]=Table1[[#This Row],[BEG date]],1,IF(Table1[[#This Row],[END date]]=Table1[[#This Row],[BEG date]]+1,2,IF(Table1[[#This Row],[END date]]=Table1[[#This Row],[BEG date]]+2,3,IF(Table1[[#This Row],[END date]]=Table1[[#This Row],[BEG date]]+3,4,IF(Table1[[#This Row],[END date]]=Table1[[#This Row],[BEG date]]+4,5,\">5\")))))","v":1},"Mailed"]
["Ryan Turner* (See row 3 for other half)","ryanhturner@att.net",3000,"NA","0000086412","NA","NA","NA","Y","NA","NA","Y","NA","NA","Y",{"$f":"IF(AND(TODAY()<Table1[[#This Row],[BEG date]]-14, Table1[[#This Row],[Submitted on]]=\"\"), \"\", IF(AND(Table1[[#This Row],[BEG date]]-14<=TODAY(), TODAY()<Table1[[#This Row],[BEG date]], Table1[[#This Row],[Submitted on]]=\"\"), Table1[[#This Row],[BEG date]], IF(Table1[[#This Row],[Submitted on]]=\"\", \"PROCESS ASAP\", IF(Table1[[#This Row],[Payment Made]]=\"\", \"SUBMITTED\", \"DONE\"))))","v":"DONE"},{"$f":"IF(OR(Table1[[#This Row],[Recipient]]=\"\", Table1[[#This Row],[Email]]=\"\",Table1[[#This Row],[Amount]]=\"\",Table1[[#This Row],[Sent]]=\"\",Table1[[#This Row],[Vendor '#]]=\"\",Table1[[#This Row],[Completed (Date)]]=\"\",Table1[[#This Row],[Sent2]]=\"\",Table1[[#This Row],[Received]]=\"\",Table1[[#This Row],[On File (Y/leave blank)]]=\"\",Table1[[#This Row],[Requested]]=\"\",Table1[[#This Row],[Received3]]=\"\",Table1[[#This Row],[On File (Y/leave blank)4]]=\"\",Table1[[#This Row],[Requested5]]=\"\",Table1[[#This Row],[Received2]]=\"\", Table1[[#This Row],[On File(Y/leave blank)]]=\"\"), \"STOP\", \"GO\")","v":"GO"},"Andrew T","2014-11-21","FT158489","2014-11-24",null,"2014-06-04","Karren Williamson",19263118,6200,35933,"ICO 7950","Writing/designing drills for marching band per Karren Williamson","2014-06-03","2014-11-12",{"$f":"IF(Table1[[#This Row],[END date]]=Table1[[#This Row],[BEG date]],1,IF(Table1[[#This Row],[END date]]=Table1[[#This Row],[BEG date]]+1,2,IF(Table1[[#This Row],[END date]]=Table1[[#This Row],[BEG date]]+2,3,IF(Table1[[#This Row],[END date]]=Table1[[#This Row],[BEG date]]+3,4,IF(Table1[[#This Row],[END date]]=Table1[[#This Row],[BEG date]]+4,5,\">5\")))))","v":">5"},"Mailed","Half of the amount paid now ($6,000/2 = $3,000) and the other half ($3,000) to be paid later (THIS LINE IS FOR THE HALF PAID LATER)"]
["Nancy Austen","ndausten@gmail.com",204,"NA",40543,"Y","NA","NA","Y","NA","NA","Y","2014-12-04","2014-12-08","Y",{"$f":"IF(AND(TODAY()<Table1[[#This Row],[BEG date]]-14, Table1[[#This Row],[Submitted on]]=\"\"), \"\", IF(AND(Table1[[#This Row],[BEG date]]-14<=TODAY(), TODAY()<Table1[[#This Row],[BEG date]], Table1[[#This Row],[Submitted on]]=\"\"), Table1[[#This Row],[BEG date]], IF(Table1[[#This Row],[Submitted on]]=\"\", \"PROCESS ASAP\", IF(Table1[[#This Row],[Payment Made]]=\"\", \"SUBMITTED\", \"DONE\"))))","v":"DONE"},{"$f":"IF(OR(Table1[[#This Row],[Recipient]]=\"\", Table1[[#This Row],[Email]]=\"\",Table1[[#This Row],[Amount]]=\"\",Table1[[#This Row],[Sent]]=\"\",Table1[[#This Row],[Vendor '#]]=\"\",Table1[[#This Row],[Completed (Date)]]=\"\",Table1[[#This Row],[Sent2]]=\"\",Table1[[#This Row],[Received]]=\"\",Table1[[#This Row],[On File (Y/leave blank)]]=\"\",Table1[[#This Row],[Requested]]=\"\",Table1[[#This Row],[Received3]]=\"\",Table1[[#This Row],[On File (Y/leave blank)4]]=\"\",Table1[[#This Row],[Requested5]]=\"\",Table1[[#This Row],[Received2]]=\"\", Table1[[#This Row],[On File(Y/leave blank)]]=\"\"), \"STOP\", \"GO\")","v":"GO"},"Andrew T","2014-12-08","FT161001","2014-12-10",null,"2014-12-03","Rosalind Hall",13263255,6200,35743,"ICO 8993","Hemmed choir dresses for concert choir per Ros Hall","2014-11-03","2014-11-03",{"$f":"IF(Table1[[#This Row],[END date]]=Table1[[#This Row],[BEG date]],1,IF(Table1[[#This Row],[END date]]=Table1[[#This Row],[BEG date]]+1,2,IF(Table1[[#This Row],[END date]]=Table1[[#This Row],[BEG date]]+2,3,IF(Table1[[#This Row],[END date]]=Table1[[#This Row],[BEG date]]+3,4,IF(Table1[[#This Row],[END date]]=Table1[[#This Row],[BEG date]]+4,5,\">5\")))))","v":1},"Mailed",null,"801-226-6686"]
["Sleepless Productions (Rich Dixon)","richsleepless@hotmail.com",250,"2014-12-08",87703,"Y","NA","NA","Y","2014-12-04","2014-12-08","Y","2014-12-04","2014-12-08","Y",{"$f":"IF(AND(TODAY()<Table1[[#This Row],[BEG date]]-14, Table1[[#This Row],[Submitted on]]=\"\"), \"\", IF(AND(Table1[[#This Row],[BEG date]]-14<=TODAY(), TODAY()<Table1[[#This Row],[BEG date]], Table1[[#This Row],[Submitted on]]=\"\"), Table1[[#This Row],[BEG date]], IF(Table1[[#This Row],[Submitted on]]=\"\", \"PROCESS ASAP\", IF(Table1[[#This Row],[Payment Made]]=\"\", \"SUBMITTED\", \"DONE\"))))","v":"DONE"},{"$f":"IF(OR(Table1[[#This Row],[Recipient]]=\"\", Table1[[#This Row],[Email]]=\"\",Table1[[#This Row],[Amount]]=\"\",Table1[[#This Row],[Sent]]=\"\",Table1[[#This Row],[Vendor '#]]=\"\",Table1[[#This Row],[Completed (Date)]]=\"\",Table1[[#This Row],[Sent2]]=\"\",Table1[[#This Row],[Received]]=\"\",Table1[[#This Row],[On File (Y/leave blank)]]=\"\",Table1[[#This Row],[Requested]]=\"\",Table1[[#This Row],[Received3]]=\"\",Table1[[#This Row],[On File (Y/leave blank)4]]=\"\",Table1[[#This Row],[Requested5]]=\"\",Table1[[#This Row],[Received2]]=\"\", Table1[[#This Row],[On File(Y/leave blank)]]=\"\"), \"STOP\", \"GO\")","v":"GO"},"Andrew T","2014-12-08","FT161033","2014-12-12",null,"2014-12-03","Ron Brough",13263241,6200,35733,"ICO 7951","He will be rehearsing and performing with Q'd up per Ron Brough","2014-12-15","2015-01-21",{"$f":"IF(Table1[[#This Row],[END date]]=Table1[[#This Row],[BEG date]],1,IF(Table1[[#This Row],[END date]]=Table1[[#This Row],[BEG date]]+1,2,IF(Table1[[#This Row],[END date]]=Table1[[#This Row],[BEG date]]+2,3,IF(Table1[[#This Row],[END date]]=Table1[[#This Row],[BEG date]]+3,4,IF(Table1[[#This Row],[END date]]=Table1[[#This Row],[BEG date]]+4,5,\">5\")))))","v":">5"},"Mailed",null,"801-319-1109"]
["New Focus Recordings","contactnewfocus@gmail.com",1250,"NA",84982,"Y","NA","NA","Y","NA","NA","Y","2014-12-05","2014-12-05","Y",{"$f":"IF(AND(TODAY()<Table1[[#This Row],[BEG date]]-14, Table1[[#This Row],[Submitted on]]=\"\"), \"\", IF(AND(Table1[[#This Row],[BEG date]]-14<=TODAY(), TODAY()<Table1[[#This Row],[BEG date]], Table1[[#This Row],[Submitted on]]=\"\"), Table1[[#This Row],[BEG date]], IF(Table1[[#This Row],[Submitted on]]=\"\", \"PROCESS ASAP\", IF(Table1[[#This Row],[Payment Made]]=\"\", \"SUBMITTED\", \"DONE\"))))","v":"DONE"},{"$f":"IF(OR(Table1[[#This Row],[Recipient]]=\"\", Table1[[#This Row],[Email]]=\"\",Table1[[#This Row],[Amount]]=\"\",Table1[[#This Row],[Sent]]=\"\",Table1[[#This Row],[Vendor '#]]=\"\",Table1[[#This Row],[Completed (Date)]]=\"\",Table1[[#This Row],[Sent2]]=\"\",Table1[[#This Row],[Received]]=\"\",Table1[[#This Row],[On File (Y/leave blank)]]=\"\",Table1[[#This Row],[Requested]]=\"\",Table1[[#This Row],[Received3]]=\"\",Table1[[#This Row],[On File (Y/leave blank)4]]=\"\",Table1[[#This Row],[Requested5]]=\"\",Table1[[#This Row],[Received2]]=\"\", Table1[[#This Row],[On File(Y/leave blank)]]=\"\"), \"STOP\", \"GO\")","v":"GO"},"Andrew T","2014-12-05","FT160693","2014-12-08",null,"2014-12-04","Neil Thornock",20263371,6200,35702,"ICO 7953","Submissions for distribution, set up of sales, website and password, with label administration, web hostings and promotions. Per Neil Thornock","2014-12-05","2014-12-05",{"$f":"IF(Table1[[#This Row],[END date]]=Table1[[#This Row],[BEG date]],1,IF(Table1[[#This Row],[END date]]=Table1[[#This Row],[BEG date]]+1,2,IF(Table1[[#This Row],[END date]]=Table1[[#This Row],[BEG date]]+2,3,IF(Table1[[#This Row],[END date]]=Table1[[#This Row],[BEG date]]+3,4,IF(Table1[[#This Row],[END date]]=Table1[[#This Row],[BEG date]]+4,5,\">5\")))))","v":1},"Mailed",null,"917-609-2114"]
["Jason Huxtable","jasonperc@yahoo.co.uk",3500,null,null,"NA","NA","NA",null,"2014-12-12",null,"NA","NA","NA","Y",{"$f":"IF(AND(TODAY()<Table1[[#This Row],[BEG date]]-14, Table1[[#This Row],[Submitted on]]=\"\"), \"\", IF(AND(Table1[[#This Row],[BEG date]]-14<=TODAY(), TODAY()<Table1[[#This Row],[BEG date]], Table1[[#This Row],[Submitted on]]=\"\"), Table1[[#This Row],[BEG date]], IF(Table1[[#This Row],[Submitted on]]=\"\", \"PROCESS ASAP\", IF(Table1[[#This Row],[Payment Made]]=\"\", \"SUBMITTED\", \"DONE\"))))","v":""},{"$f":"IF(OR(Table1[[#This Row],[Recipient]]=\"\", Table1[[#This Row],[Email]]=\"\",Table1[[#This Row],[Amount]]=\"\",Table1[[#This Row],[Sent]]=\"\",Table1[[#This Row],[Vendor '#]]=\"\",Table1[[#This Row],[Completed (Date)]]=\"\",Table1[[#This Row],[Sent2]]=\"\",Table1[[#This Row],[Received]]=\"\",Table1[[#This Row],[On File (Y/leave blank)]]=\"\",Table1[[#This Row],[Requested]]=\"\",Table1[[#This Row],[Received3]]=\"\",Table1[[#This Row],[On File (Y/leave blank)4]]=\"\",Table1[[#This Row],[Requested5]]=\"\",Table1[[#This Row],[Received2]]=\"\", Table1[[#This Row],[On File(Y/leave blank)]]=\"\"), \"STOP\", \"GO\")","v":"STOP"},"Lindsey",null,null,null,null,"2014-12-08","Ron Brough",11263014,6200,35733,"ICO 8000","Giving concert and master class with Maraca2 and World Percussion Group per Ron Brough","2016-02-26","2016-02-27",{"$f":"IF(Table1[[#This Row],[END date]]=Table1[[#This Row],[BEG date]],1,IF(Table1[[#This Row],[END date]]=Table1[[#This Row],[BEG date]]+1,2,IF(Table1[[#This Row],[END date]]=Table1[[#This Row],[BEG date]]+2,3,IF(Table1[[#This Row],[END date]]=Table1[[#This Row],[BEG date]]+3,4,IF(Table1[[#This Row],[END date]]=Table1[[#This Row],[BEG date]]+4,5,\">5\")))))","v":2},"Hand delivered","Cannot pay until December 2015 or January 2016"]
["Utah Music Educators Association","NA",70,"NA","LE00009599","NA","NA","NA","Y","NA","NA","NA","NA","NA","Y",{"$f":"IF(AND(TODAY()<Table1[[#This Row],[BEG date]]-14, Table1[[#This Row],[Submitted on]]=\"\"), \"\", IF(AND(Table1[[#This Row],[BEG date]]-14<=TODAY(), TODAY()<Table1[[#This Row],[BEG date]], Table1[[#This Row],[Submitted on]]=\"\"), Table1[[#This Row],[BEG date]], IF(Table1[[#This Row],[Submitted on]]=\"\", \"PROCESS ASAP\", IF(Table1[[#This Row],[Payment Made]]=\"\", \"SUBMITTED\", \"DONE\"))))","v":"DONE"},{"$f":"IF(OR(Table1[[#This Row],[Recipient]]=\"\", Table1[[#This Row],[Email]]=\"\",Table1[[#This Row],[Amount]]=\"\",Table1[[#This Row],[Sent]]=\"\",Table1[[#This Row],[Vendor '#]]=\"\",Table1[[#This Row],[Completed (Date)]]=\"\",Table1[[#This Row],[Sent2]]=\"\",Table1[[#This Row],[Received]]=\"\",Table1[[#This Row],[On File (Y/leave blank)]]=\"\",Table1[[#This Row],[Requested]]=\"\",Table1[[#This Row],[Received3]]=\"\",Table1[[#This Row],[On File (Y/leave blank)4]]=\"\",Table1[[#This Row],[Requested5]]=\"\",Table1[[#This Row],[Received2]]=\"\", Table1[[#This Row],[On File(Y/leave blank)]]=\"\"), \"STOP\", \"GO\")","v":"GO"},"Lindsey","2014-12-08","FT161041","2014-12-10",null,"2014-12-08","Andy Dabczynski",11263010,6200,35732,"CFR 8699","Paul Broomhead's UMEA Conference registration",null,null,{"$f":"IF(Table1[[#This Row],[END date]]=Table1[[#This Row],[BEG date]],1,IF(Table1[[#This Row],[END date]]=Table1[[#This Row],[BEG date]]+1,2,IF(Table1[[#This Row],[END date]]=Table1[[#This Row],[BEG date]]+2,3,IF(Table1[[#This Row],[END date]]=Table1[[#This Row],[BEG date]]+3,4,IF(Table1[[#This Row],[END date]]=Table1[[#This Row],[BEG date]]+4,5,\">5\")))))","v":1},"Mailed"]
["Utah Music Educators Association","NA",70,"NA","LE00009599","NA","NA","NA","Y","NA","NA","NA","NA","NA","Y",{"$f":"IF(AND(TODAY()<Table1[[#This Row],[BEG date]]-14, Table1[[#This Row],[Submitted on]]=\"\"), \"\", IF(AND(Table1[[#This Row],[BEG date]]-14<=TODAY(), TODAY()<Table1[[#This Row],[BEG date]], Table1[[#This Row],[Submitted on]]=\"\"), Table1[[#This Row],[BEG date]], IF(Table1[[#This Row],[Submitted on]]=\"\", \"PROCESS ASAP\", IF(Table1[[#This Row],[Payment Made]]=\"\", \"SUBMITTED\", \"DONE\"))))","v":"DONE"},{"$f":"IF(OR(Table1[[#This Row],[Recipient]]=\"\", Table1[[#This Row],[Email]]=\"\",Table1[[#This Row],[Amount]]=\"\",Table1[[#This Row],[Sent]]=\"\",Table1[[#This Row],[Vendor '#]]=\"\",Table1[[#This Row],[Completed (Date)]]=\"\",Table1[[#This Row],[Sent2]]=\"\",Table1[[#This Row],[Received]]=\"\",Table1[[#This Row],[On File (Y/leave blank)]]=\"\",Table1[[#This Row],[Requested]]=\"\",Table1[[#This Row],[Received3]]=\"\",Table1[[#This Row],[On File (Y/leave blank)4]]=\"\",Table1[[#This Row],[Requested5]]=\"\",Table1[[#This Row],[Received2]]=\"\", Table1[[#This Row],[On File(Y/leave blank)]]=\"\"), \"STOP\", \"GO\")","v":"GO"},"Lindsey","2014-12-08","FT161046","2014-12-10",null,"2014-12-08","Andy Dabczynski",11263010,6200,35740,"CFR 8699","Andy Dabczynski's UMEA Conference registration",null,null,{"$f":"IF(Table1[[#This Row],[END date]]=Table1[[#This Row],[BEG date]],1,IF(Table1[[#This Row],[END date]]=Table1[[#This Row],[BEG date]]+1,2,IF(Table1[[#This Row],[END date]]=Table1[[#This Row],[BEG date]]+2,3,IF(Table1[[#This Row],[END date]]=Table1[[#This Row],[BEG date]]+3,4,IF(Table1[[#This Row],[END date]]=Table1[[#This Row],[BEG date]]+4,5,\">5\")))))","v":1},"Mailed"]
["Utah Music Educators Association","NA",70,"NA","LE00009599","NA","NA","NA","Y","NA","NA","NA","NA","NA","Y",{"$f":"IF(AND(TODAY()<Table1[[#This Row],[BEG date]]-14, Table1[[#This Row],[Submitted on]]=\"\"), \"\", IF(AND(Table1[[#This Row],[BEG date]]-14<=TODAY(), TODAY()<Table1[[#This Row],[BEG date]], Table1[[#This Row],[Submitted on]]=\"\"), Table1[[#This Row],[BEG date]], IF(Table1[[#This Row],[Submitted on]]=\"\", \"PROCESS ASAP\", IF(Table1[[#This Row],[Payment Made]]=\"\", \"SUBMITTED\", \"DONE\"))))","v":"DONE"},{"$f":"IF(OR(Table1[[#This Row],[Recipient]]=\"\", Table1[[#This Row],[Email]]=\"\",Table1[[#This Row],[Amount]]=\"\",Table1[[#This Row],[Sent]]=\"\",Table1[[#This Row],[Vendor '#]]=\"\",Table1[[#This Row],[Completed (Date)]]=\"\",Table1[[#This Row],[Sent2]]=\"\",Table1[[#This Row],[Received]]=\"\",Table1[[#This Row],[On File (Y/leave blank)]]=\"\",Table1[[#This Row],[Requested]]=\"\",Table1[[#This Row],[Received3]]=\"\",Table1[[#This Row],[On File (Y/leave blank)4]]=\"\",Table1[[#This Row],[Requested5]]=\"\",Table1[[#This Row],[Received2]]=\"\", Table1[[#This Row],[On File(Y/leave blank)]]=\"\"), \"STOP\", \"GO\")","v":"GO"},"Lindsey","2014-12-08","FT161048","2014-12-10",null,"2014-12-08","Andy Dabczynski",11263010,6200,57009,"CFR 8699","Rob Dunn's UMEA Conference registration",null,null,{"$f":"IF(Table1[[#This Row],[END date]]=Table1[[#This Row],[BEG date]],1,IF(Table1[[#This Row],[END date]]=Table1[[#This Row],[BEG date]]+1,2,IF(Table1[[#This Row],[END date]]=Table1[[#This Row],[BEG date]]+2,3,IF(Table1[[#This Row],[END date]]=Table1[[#This Row],[BEG date]]+3,4,IF(Table1[[#This Row],[END date]]=Table1[[#This Row],[BEG date]]+4,5,\">5\")))))","v":1},"Mailed"]
["Utah Music Educators Association","NA",70,"NA","LE00009599","NA","NA","NA","Y","NA","NA","NA","NA","NA","Y",{"$f":"IF(AND(TODAY()<Table1[[#This Row],[BEG date]]-14, Table1[[#This Row],[Submitted on]]=\"\"), \"\", IF(AND(Table1[[#This Row],[BEG date]]-14<=TODAY(), TODAY()<Table1[[#This Row],[BEG date]], Table1[[#This Row],[Submitted on]]=\"\"), Table1[[#This Row],[BEG date]], IF(Table1[[#This Row],[Submitted on]]=\"\", \"PROCESS ASAP\", IF(Table1[[#This Row],[Payment Made]]=\"\", \"SUBMITTED\", \"DONE\"))))","v":"DONE"},{"$f":"IF(OR(Table1[[#This Row],[Recipient]]=\"\", Table1[[#This Row],[Email]]=\"\",Table1[[#This Row],[Amount]]=\"\",Table1[[#This Row],[Sent]]=\"\",Table1[[#This Row],[Vendor '#]]=\"\",Table1[[#This Row],[Completed (Date)]]=\"\",Table1[[#This Row],[Sent2]]=\"\",Table1[[#This Row],[Received]]=\"\",Table1[[#This Row],[On File (Y/leave blank)]]=\"\",Table1[[#This Row],[Requested]]=\"\",Table1[[#This Row],[Received3]]=\"\",Table1[[#This Row],[On File (Y/leave blank)4]]=\"\",Table1[[#This Row],[Requested5]]=\"\",Table1[[#This Row],[Received2]]=\"\", Table1[[#This Row],[On File(Y/leave blank)]]=\"\"), \"STOP\", \"GO\")","v":"GO"},"Lindsey","2014-12-08","FT161050","2014-12-10",null,"2014-12-08","Andy Dabczynski",11263010,6200,0,"CFR 8699","Brittany May's UMEA Conference registration",null,null,{"$f":"IF(Table1[[#This Row],[END date]]=Table1[[#This Row],[BEG date]],1,IF(Table1[[#This Row],[END date]]=Table1[[#This Row],[BEG date]]+1,2,IF(Table1[[#This Row],[END date]]=Table1[[#This Row],[BEG date]]+2,3,IF(Table1[[#This Row],[END date]]=Table1[[#This Row],[BEG date]]+3,4,IF(Table1[[#This Row],[END date]]=Table1[[#This Row],[BEG date]]+4,5,\">5\")))))","v":1},"Mailed"]
["Utah Music Educators Association","NA",70,"NA","LE00009599","NA","NA","NA","Y","NA","NA","NA","NA","NA","Y",{"$f":"IF(AND(TODAY()<Table1[[#This Row],[BEG date]]-14, Table1[[#This Row],[Submitted on]]=\"\"), \"\", IF(AND(Table1[[#This Row],[BEG date]]-14<=TODAY(), TODAY()<Table1[[#This Row],[BEG date]], Table1[[#This Row],[Submitted on]]=\"\"), Table1[[#This Row],[BEG date]], IF(Table1[[#This Row],[Submitted on]]=\"\", \"PROCESS ASAP\", IF(Table1[[#This Row],[Payment Made]]=\"\", \"SUBMITTED\", \"DONE\"))))","v":"DONE"},{"$f":"IF(OR(Table1[[#This Row],[Recipient]]=\"\", Table1[[#This Row],[Email]]=\"\",Table1[[#This Row],[Amount]]=\"\",Table1[[#This Row],[Sent]]=\"\",Table1[[#This Row],[Vendor '#]]=\"\",Table1[[#This Row],[Completed (Date)]]=\"\",Table1[[#This Row],[Sent2]]=\"\",Table1[[#This Row],[Received]]=\"\",Table1[[#This Row],[On File (Y/leave blank)]]=\"\",Table1[[#This Row],[Requested]]=\"\",Table1[[#This Row],[Received3]]=\"\",Table1[[#This Row],[On File (Y/leave blank)4]]=\"\",Table1[[#This Row],[Requested5]]=\"\",Table1[[#This Row],[Received2]]=\"\", Table1[[#This Row],[On File(Y/leave blank)]]=\"\"), \"STOP\", \"GO\")","v":"GO"},"Lindsey","2014-12-08","FT151051","2014-12-10",null,"2014-12-08","Andy Dabczynski",11263010,6200,35866,"CFR 8699","Kirt Saville's UMEA Conference registration",null,null,{"$f":"IF(Table1[[#This Row],[END date]]=Table1[[#This Row],[BEG date]],1,IF(Table1[[#This Row],[END date]]=Table1[[#This Row],[BEG date]]+1,2,IF(Table1[[#This Row],[END date]]=Table1[[#This Row],[BEG date]]+2,3,IF(Table1[[#This Row],[END date]]=Table1[[#This Row],[BEG date]]+3,4,IF(Table1[[#This Row],[END date]]=Table1[[#This Row],[BEG date]]+4,5,\">5\")))))","v":1},"Mailed"]
["Liz Maxfield","liz.maxfield@gmail.com",1500,"NA",84950,"Y","NA","NA","Y","NA","NA","Y","2014-12-12","2014-12-17","Y",{"$f":"IF(AND(TODAY()<Table1[[#This Row],[BEG date]]-14, Table1[[#This Row],[Submitted on]]=\"\"), \"\", IF(AND(Table1[[#This Row],[BEG date]]-14<=TODAY(), TODAY()<Table1[[#This Row],[BEG date]], Table1[[#This Row],[Submitted on]]=\"\"), Table1[[#This Row],[BEG date]], IF(Table1[[#This Row],[Submitted on]]=\"\", \"PROCESS ASAP\", IF(Table1[[#This Row],[Payment Made]]=\"\", \"SUBMITTED\", \"DONE\"))))","v":"DONE"},{"$f":"IF(OR(Table1[[#This Row],[Recipient]]=\"\", Table1[[#This Row],[Email]]=\"\",Table1[[#This Row],[Amount]]=\"\",Table1[[#This Row],[Sent]]=\"\",Table1[[#This Row],[Vendor '#]]=\"\",Table1[[#This Row],[Completed (Date)]]=\"\",Table1[[#This Row],[Sent2]]=\"\",Table1[[#This Row],[Received]]=\"\",Table1[[#This Row],[On File (Y/leave blank)]]=\"\",Table1[[#This Row],[Requested]]=\"\",Table1[[#This Row],[Received3]]=\"\",Table1[[#This Row],[On File (Y/leave blank)4]]=\"\",Table1[[#This Row],[Requested5]]=\"\",Table1[[#This Row],[Received2]]=\"\", Table1[[#This Row],[On File(Y/leave blank)]]=\"\"), \"STOP\", \"GO\")","v":"GO"},"Andrew T","2014-12-17","FT162217","2014-12-18",null,"2014-12-11","Andrew Maxfield",11263000,6200,0,"ICO 8997","Payment for guest lecturing on various occasions throughout the fall semester per Andrew Maxfield","2014-09-30","2014-12-11",{"$f":"IF(Table1[[#This Row],[END date]]=Table1[[#This Row],[BEG date]],1,IF(Table1[[#This Row],[END date]]=Table1[[#This Row],[BEG date]]+1,2,IF(Table1[[#This Row],[END date]]=Table1[[#This Row],[BEG date]]+2,3,IF(Table1[[#This Row],[END date]]=Table1[[#This Row],[BEG date]]+3,4,IF(Table1[[#This Row],[END date]]=Table1[[#This Row],[BEG date]]+4,5,\">5\")))))","v":">5"},"Mailed","Contract reminder sent on 12/17","801-473-1413"]
["Yalecrest LLC","andrew.maxfield@gmail.com",200,"NA",53300,"NA","NA","NA","Y","2014-12-16","2015-01-05","NA","NA","NA","Y",{"$f":"IF(AND(TODAY()<Table1[[#This Row],[BEG date]]-14, Table1[[#This Row],[Submitted on]]=\"\"), \"\", IF(AND(Table1[[#This Row],[BEG date]]-14<=TODAY(), TODAY()<Table1[[#This Row],[BEG date]], Table1[[#This Row],[Submitted on]]=\"\"), Table1[[#This Row],[BEG date]], IF(Table1[[#This Row],[Submitted on]]=\"\", \"PROCESS ASAP\", IF(Table1[[#This Row],[Payment Made]]=\"\", \"SUBMITTED\", \"DONE\"))))","v":"DONE"},{"$f":"IF(OR(Table1[[#This Row],[Recipient]]=\"\", Table1[[#This Row],[Email]]=\"\",Table1[[#This Row],[Amount]]=\"\",Table1[[#This Row],[Sent]]=\"\",Table1[[#This Row],[Vendor '#]]=\"\",Table1[[#This Row],[Completed (Date)]]=\"\",Table1[[#This Row],[Sent2]]=\"\",Table1[[#This Row],[Received]]=\"\",Table1[[#This Row],[On File (Y/leave blank)]]=\"\",Table1[[#This Row],[Requested]]=\"\",Table1[[#This Row],[Received3]]=\"\",Table1[[#This Row],[On File (Y/leave blank)4]]=\"\",Table1[[#This Row],[Requested5]]=\"\",Table1[[#This Row],[Received2]]=\"\", Table1[[#This Row],[On File(Y/leave blank)]]=\"\"), \"STOP\", \"GO\")","v":"GO"},"Andrew T","2015-01-07","FT164233","2015-01-09",null,"2014-12-15","Andrew Maxfield",11263000,6200,0,"ICO 8999","Music 286: Social media marketing content design and classroom activities","2014-12-02","2014-12-02",{"$f":"IF(Table1[[#This Row],[END date]]=Table1[[#This Row],[BEG date]],1,IF(Table1[[#This Row],[END date]]=Table1[[#This Row],[BEG date]]+1,2,IF(Table1[[#This Row],[END date]]=Table1[[#This Row],[BEG date]]+2,3,IF(Table1[[#This Row],[END date]]=Table1[[#This Row],[BEG date]]+3,4,IF(Table1[[#This Row],[END date]]=Table1[[#This Row],[BEG date]]+4,5,\">5\")))))","v":1},"Hand Delivered","Worked a few sporatic hours leading up to a presentation on 12/2. Worked 5 hours in total."]
["Intermountain Harp Education Association","neo.poli.tan@hotmail.com",500,"2015-01-06",87832,"NA","NA","NA","Y","2014-12-15","2015-01-05","NA","NA","NA","Y",{"$f":"IF(AND(TODAY()<Table1[[#This Row],[BEG date]]-14, Table1[[#This Row],[Submitted on]]=\"\"), \"\", IF(AND(Table1[[#This Row],[BEG date]]-14<=TODAY(), TODAY()<Table1[[#This Row],[BEG date]], Table1[[#This Row],[Submitted on]]=\"\"), Table1[[#This Row],[BEG date]], IF(Table1[[#This Row],[Submitted on]]=\"\", \"PROCESS ASAP\", IF(Table1[[#This Row],[Payment Made]]=\"\", \"SUBMITTED\", \"DONE\"))))","v":"SUBMITTED"},{"$f":"IF(OR(Table1[[#This Row],[Recipient]]=\"\", Table1[[#This Row],[Email]]=\"\",Table1[[#This Row],[Amount]]=\"\",Table1[[#This Row],[Sent]]=\"\",Table1[[#This Row],[Vendor '#]]=\"\",Table1[[#This Row],[Completed (Date)]]=\"\",Table1[[#This Row],[Sent2]]=\"\",Table1[[#This Row],[Received]]=\"\",Table1[[#This Row],[On File (Y/leave blank)]]=\"\",Table1[[#This Row],[Requested]]=\"\",Table1[[#This Row],[Received3]]=\"\",Table1[[#This Row],[On File (Y/leave blank)4]]=\"\",Table1[[#This Row],[Requested5]]=\"\",Table1[[#This Row],[Received2]]=\"\", Table1[[#This Row],[On File(Y/leave blank)]]=\"\"), \"STOP\", \"GO\")","v":"GO"},"Andrew T","2015-01-07","FT164295",null,null,"2014-12-16","Nicole Brady",13263208,6100,35826,"ICO 7929","Payment for Emmanuel Ceysson (a harpist from France) to do an Intermountain Harp Education Masterclass per Nicole Brady","2015-01-20","2015-01-20",{"$f":"IF(Table1[[#This Row],[END date]]=Table1[[#This Row],[BEG date]],1,IF(Table1[[#This Row],[END date]]=Table1[[#This Row],[BEG date]]+1,2,IF(Table1[[#This Row],[END date]]=Table1[[#This Row],[BEG date]]+2,3,IF(Table1[[#This Row],[END date]]=Table1[[#This Row],[BEG date]]+3,4,IF(Table1[[#This Row],[END date]]=Table1[[#This Row],[BEG date]]+4,5,\">5\")))))","v":1},"Mailed",null,"801-836-4277"]
["Jayne Galloway","jcgalloway88@gmail.com",87.5,"NA",49334,"NA","NA","NA","Y","NA","NA","Y","2014-12-16","2014-12-18","Y",{"$f":"IF(AND(TODAY()<Table1[[#This Row],[BEG date]]-14, Table1[[#This Row],[Submitted on]]=\"\"), \"\", IF(AND(Table1[[#This Row],[BEG date]]-14<=TODAY(), TODAY()<Table1[[#This Row],[BEG date]], Table1[[#This Row],[Submitted on]]=\"\"), Table1[[#This Row],[BEG date]], IF(Table1[[#This Row],[Submitted on]]=\"\", \"PROCESS ASAP\", IF(Table1[[#This Row],[Payment Made]]=\"\", \"SUBMITTED\", \"DONE\"))))","v":"DONE"},{"$f":"IF(OR(Table1[[#This Row],[Recipient]]=\"\", Table1[[#This Row],[Email]]=\"\",Table1[[#This Row],[Amount]]=\"\",Table1[[#This Row],[Sent]]=\"\",Table1[[#This Row],[Vendor '#]]=\"\",Table1[[#This Row],[Completed (Date)]]=\"\",Table1[[#This Row],[Sent2]]=\"\",Table1[[#This Row],[Received]]=\"\",Table1[[#This Row],[On File (Y/leave blank)]]=\"\",Table1[[#This Row],[Requested]]=\"\",Table1[[#This Row],[Received3]]=\"\",Table1[[#This Row],[On File (Y/leave blank)4]]=\"\",Table1[[#This Row],[Requested5]]=\"\",Table1[[#This Row],[Received2]]=\"\", Table1[[#This Row],[On File(Y/leave blank)]]=\"\"), \"STOP\", \"GO\")","v":"GO"},"Andrew T","2014-12-18","FT162538","2014-12-23",null,"2014-12-16","Darrell Babidge",13263113,6200,21680,"ICO 7951","Accompanying services for English diction class per Darrell Babidge","2014-10-07","2014-10-08",{"$f":"IF(Table1[[#This Row],[END date]]=Table1[[#This Row],[BEG date]],1,IF(Table1[[#This Row],[END date]]=Table1[[#This Row],[BEG date]]+1,2,IF(Table1[[#This Row],[END date]]=Table1[[#This Row],[BEG date]]+2,3,IF(Table1[[#This Row],[END date]]=Table1[[#This Row],[BEG date]]+3,4,IF(Table1[[#This Row],[END date]]=Table1[[#This Row],[BEG date]]+4,5,\">5\")))))","v":2},"Mailed"]
["David Zabriskie","dave@holysheetmusic.com",1500,"NA",81357,"Y","NA","NA","Y","NA","NA","Y","2014-12-17","2014-12-23","Y",{"$f":"IF(AND(TODAY()<Table1[[#This Row],[BEG date]]-14, Table1[[#This Row],[Submitted on]]=\"\"), \"\", IF(AND(Table1[[#This Row],[BEG date]]-14<=TODAY(), TODAY()<Table1[[#This Row],[BEG date]], Table1[[#This Row],[Submitted on]]=\"\"), Table1[[#This Row],[BEG date]], IF(Table1[[#This Row],[Submitted on]]=\"\", \"PROCESS ASAP\", IF(Table1[[#This Row],[Payment Made]]=\"\", \"SUBMITTED\", \"DONE\"))))","v":"DONE"},{"$f":"IF(OR(Table1[[#This Row],[Recipient]]=\"\", Table1[[#This Row],[Email]]=\"\",Table1[[#This Row],[Amount]]=\"\",Table1[[#This Row],[Sent]]=\"\",Table1[[#This Row],[Vendor '#]]=\"\",Table1[[#This Row],[Completed (Date)]]=\"\",Table1[[#This Row],[Sent2]]=\"\",Table1[[#This Row],[Received]]=\"\",Table1[[#This Row],[On File (Y/leave blank)]]=\"\",Table1[[#This Row],[Requested]]=\"\",Table1[[#This Row],[Received3]]=\"\",Table1[[#This Row],[On File (Y/leave blank)4]]=\"\",Table1[[#This Row],[Requested5]]=\"\",Table1[[#This Row],[Received2]]=\"\", Table1[[#This Row],[On File(Y/leave blank)]]=\"\"), \"STOP\", \"GO\")","v":"GO"},"Laura","2015-01-12","FT163492","2015-01-14",null,"2014-12-16","Jean Applonie",13263084,6200,35782,"ICO 8993","Payment for preparation on the arrangement of \"Adon Olam\" per Jean Applonie, Women's Chorus","2014-07-01","2014-11-08",{"$f":"IF(Table1[[#This Row],[END date]]=Table1[[#This Row],[BEG date]],1,IF(Table1[[#This Row],[END date]]=Table1[[#This Row],[BEG date]]+1,2,IF(Table1[[#This Row],[END date]]=Table1[[#This Row],[BEG date]]+2,3,IF(Table1[[#This Row],[END date]]=Table1[[#This Row],[BEG date]]+3,4,IF(Table1[[#This Row],[END date]]=Table1[[#This Row],[BEG date]]+4,5,\">5\")))))","v":">5"},"Mailed",null,"801-870-2240"]
["Daniel Artie Henderson","danielhenderson1@gmail.com",1000,"NA",54689,"NA","NA","NA","Y","NA","NA","NA","NA","NA","Y",{"$f":"IF(AND(TODAY()<Table1[[#This Row],[BEG date]]-14, Table1[[#This Row],[Submitted on]]=\"\"), \"\", IF(AND(Table1[[#This Row],[BEG date]]-14<=TODAY(), TODAY()<Table1[[#This Row],[BEG date]], Table1[[#This Row],[Submitted on]]=\"\"), Table1[[#This Row],[BEG date]], IF(Table1[[#This Row],[Submitted on]]=\"\", \"PROCESS ASAP\", IF(Table1[[#This Row],[Payment Made]]=\"\", \"SUBMITTED\", \"DONE\"))))","v":"DONE"},{"$f":"IF(OR(Table1[[#This Row],[Recipient]]=\"\", Table1[[#This Row],[Email]]=\"\",Table1[[#This Row],[Amount]]=\"\",Table1[[#This Row],[Sent]]=\"\",Table1[[#This Row],[Vendor '#]]=\"\",Table1[[#This Row],[Completed (Date)]]=\"\",Table1[[#This Row],[Sent2]]=\"\",Table1[[#This Row],[Received]]=\"\",Table1[[#This Row],[On File (Y/leave blank)]]=\"\",Table1[[#This Row],[Requested]]=\"\",Table1[[#This Row],[Received3]]=\"\",Table1[[#This Row],[On File (Y/leave blank)4]]=\"\",Table1[[#This Row],[Requested5]]=\"\",Table1[[#This Row],[Received2]]=\"\", Table1[[#This Row],[On File(Y/leave blank)]]=\"\"), \"STOP\", \"GO\")","v":"GO"},"Andrew T","2014-12-18","FT162472","2014-12-22",null,"2014-12-17","Luke Howard",13263324,6200,35802,"ICO 8000","Honorarium for Oscarson guest lecture per Luke Howard","2015-01-08","2015-01-08",{"$f":"IF(Table1[[#This Row],[END date]]=Table1[[#This Row],[BEG date]],1,IF(Table1[[#This Row],[END date]]=Table1[[#This Row],[BEG date]]+1,2,IF(Table1[[#This Row],[END date]]=Table1[[#This Row],[BEG date]]+2,3,IF(Table1[[#This Row],[END date]]=Table1[[#This Row],[BEG date]]+3,4,IF(Table1[[#This Row],[END date]]=Table1[[#This Row],[BEG date]]+4,5,\">5\")))))","v":1},"Hand delivered"]
["Atar Arad","aarad@indiana.edu",500,"NA",84061,"NA","NA","NA","Y","NA","NA","NA","NA","NA","Y",{"$f":"IF(AND(TODAY()<Table1[[#This Row],[BEG date]]-14, Table1[[#This Row],[Submitted on]]=\"\"), \"\", IF(AND(Table1[[#This Row],[BEG date]]-14<=TODAY(), TODAY()<Table1[[#This Row],[BEG date]], Table1[[#This Row],[Submitted on]]=\"\"), Table1[[#This Row],[BEG date]], IF(Table1[[#This Row],[Submitted on]]=\"\", \"PROCESS ASAP\", IF(Table1[[#This Row],[Payment Made]]=\"\", \"SUBMITTED\", \"DONE\"))))","v":"DONE"},{"$f":"IF(OR(Table1[[#This Row],[Recipient]]=\"\", Table1[[#This Row],[Email]]=\"\",Table1[[#This Row],[Amount]]=\"\",Table1[[#This Row],[Sent]]=\"\",Table1[[#This Row],[Vendor '#]]=\"\",Table1[[#This Row],[Completed (Date)]]=\"\",Table1[[#This Row],[Sent2]]=\"\",Table1[[#This Row],[Received]]=\"\",Table1[[#This Row],[On File (Y/leave blank)]]=\"\",Table1[[#This Row],[Requested]]=\"\",Table1[[#This Row],[Received3]]=\"\",Table1[[#This Row],[On File (Y/leave blank)4]]=\"\",Table1[[#This Row],[Requested5]]=\"\",Table1[[#This Row],[Received2]]=\"\", Table1[[#This Row],[On File(Y/leave blank)]]=\"\"), \"STOP\", \"GO\")","v":"GO"},"Andrew T","2014-12-18","FT162477","2014-12-22",null,"2014-12-16","Claudine Bigelow",11263012,6200,35728,"ICO 7929","Performance at Primrose Memorial Concert and Master Class per Claudine Bigelow","2015-01-23","2015-01-24",{"$f":"IF(Table1[[#This Row],[END date]]=Table1[[#This Row],[BEG date]],1,IF(Table1[[#This Row],[END date]]=Table1[[#This Row],[BEG date]]+1,2,IF(Table1[[#This Row],[END date]]=Table1[[#This Row],[BEG date]]+2,3,IF(Table1[[#This Row],[END date]]=Table1[[#This Row],[BEG date]]+3,4,IF(Table1[[#This Row],[END date]]=Table1[[#This Row],[BEG date]]+4,5,\">5\")))))","v":2},"Hand Delivered",null,"812-334-8270"]
["New person","@gmail.com",20,"NA",12345,"NA","NA","NA","Y","NA","NA","NA","NA","NA","Y",{"$f":"IF(AND(TODAY()<Table1[[#This Row],[BEG date]]-14, Table1[[#This Row],[Submitted on]]=\"\"), \"\", IF(AND(Table1[[#This Row],[BEG date]]-14<=TODAY(), TODAY()<Table1[[#This Row],[BEG date]], Table1[[#This Row],[Submitted on]]=\"\"), Table1[[#This Row],[BEG date]], IF(Table1[[#This Row],[Submitted on]]=\"\", \"PROCESS ASAP\", IF(Table1[[#This Row],[Payment Made]]=\"\", \"SUBMITTED\", \"DONE\"))))","v":"PROCESS ASAP"},{"$f":"IF(OR(Table1[[#This Row],[Recipient]]=\"\", Table1[[#This Row],[Email]]=\"\",Table1[[#This Row],[Amount]]=\"\",Table1[[#This Row],[Sent]]=\"\",Table1[[#This Row],[Vendor '#]]=\"\",Table1[[#This Row],[Completed (Date)]]=\"\",Table1[[#This Row],[Sent2]]=\"\",Table1[[#This Row],[Received]]=\"\",Table1[[#This Row],[On File (Y/leave blank)]]=\"\",Table1[[#This Row],[Requested]]=\"\",Table1[[#This Row],[Received3]]=\"\",Table1[[#This Row],[On File (Y/leave blank)4]]=\"\",Table1[[#This Row],[Requested5]]=\"\",Table1[[#This Row],[Received2]]=\"\", Table1[[#This Row],[On File(Y/leave blank)]]=\"\"), \"STOP\", \"GO\")","v":"GO"},"Andrew T",null,null,null,null,"2014-12-16","Claudine Bigelow",11263012,6200,35728,"ICO 7929","Performance at Primrose Memorial Concert and Master Class per Claudine Bigelow","2014-08-01","2014-08-03",{"$f":"IF(Table1[[#This Row],[END date]]=Table1[[#This Row],[BEG date]],1,IF(Table1[[#This Row],[END date]]=Table1[[#This Row],[BEG date]]+1,2,IF(Table1[[#This Row],[END date]]=Table1[[#This Row],[BEG date]]+2,3,IF(Table1[[#This Row],[END date]]=Table1[[#This Row],[BEG date]]+3,4,IF(Table1[[#This Row],[END date]]=Table1[[#This Row],[BEG date]]+4,5,\">5\")))))","v":3}]

{"sheet":"Instruction Sheet","index":2,"n_rows":10,"n_cols":2,"rows_kept":10,"cut":false,"hidden":false,"merged":[]}
[null,"INSTRUCTIONS"]
[null,"1. Receive the invoice (formal invoice from vendor, formal email from requester, or payment request)"]
[null,"2. Scan/Save Invoice in file using appropriate formatting"]
[null,"3. Place 'Y' in the invoice column to indicate that the invoice is saved"]
[null,"4. Click 'Begin New Fast Track' (Found in the 'FAST TRACK' tab of the ribbon)"]
[null,"5. Fill out all useforms and complete as prompted"]
[null,"6. Upon completion, if the W9 cells appear yellow, click 'Send W9 Request' (Found in the 'FAST TRACK' tab of the ribbon)"]
[null,"          6a. This will automatically send an email to Laura, giving her an update on the payment"]
[null,"7. Unhighlight the blank cells as they are filled (Select 'no fill')"]
[null,"8. When the revise field turns green and says 'GO', the payment may be processed"]

{"sheet":"useful info","index":3,"n_rows":7,"n_cols":3,"rows_kept":7,"cut":false,"hidden":false,"merged":[]}
[]
[null,"Question/Fact","Answer/Source"]
[null,"EIN application link","https://sa.www4.irs.gov/modiein/individual/index.jsp"]
[null,"When is an EIN required?","\"When we pay an independent contractor $600 or more in the same calendar year, then that has to be reported to the IRS.    When reporting to the IRS, we want to be sure those being paid as Independent Contractors qualify as such.    Getting the EIN helps to show that the person is not an employee.  Only BYU requires the EIN for non-corporation vendors; so he might do similar work for someone else and they won’t require it.\" (Denise Haney)"]
[null,"Useful contacts","Denise Haney (7534) for all ICO questions.\nSallie Schmitt (9030) or Kelly Taylor (7015) for all other questions.\nBrian Ewell (7014) for when the other three can't answer our questions!\nFinancial Services (24701)\nPaul Buckner (27313)\nAshley (20220; ashley_urquhart@byu.edu) Cheryl 2-1553"]
[null,"What if the check is sent to the wrong address before we can catch it?","Contact either Sallie or Kelly (See above) and explain to them that a new check needs to be issued and the old voided. You will be asked top provide the name, fast track number, and correct address."]
[null,"How do we mail a check that was originally meant to be hand delivered?","Give it back to financial services"]

{"sheet":"Operating Units","index":4,"n_rows":160,"n_cols":2,"rows_kept":160,"cut":false,"hidden":false,"merged":[]}
["Anderson, Richard-Faculty Cons","20263329"]
["Applied Music Fees","13263113"]
["Asplund, Chris-Faculty Consoli","20263330"]
["ASTA Student Chapter","47263266"]
["Babidge, Darrell-Faculty Conso","20263367"]
["Band Operations","13263071"]
["Barlow","23263132"]
["Bastian",31263166]
["Belknap, Monte-Faculty Consoli","20263331"]
["Ben Peay Scholarship","23263287"]
["Bevan, Julie-Faculty Consolida","20263333"]
["Bigelow, Claudine-Faculty Cons","20263332"]
["Brandt, Rob-Faculty Cons",20263398]
["Brass & Percussion","11263014"]
["Brass & Percussion Master Cls","13263211"]
["Broomhead, Paul-Faculty Consoli","20263334"]
["Brough, Ron-Faculty Consolidat","20263335"]
["Brown, David-Faculty Consolida","20263336"]
["BYU Folks","47263189"]
["BYU Music Group","13263095"]
["Call, Steve-Faculty Consolidat","20263338"]
["Choral Event Income","13263077"]
["Clayton, April-Faculty Consolid","20263316"]
["Color Guard","47263170"]
["Commercial Music",13263387]
["Composition","23263137"]
["Composition-Theory","11263009"]
["Concert Choir Clothes","13263255"]
["Concert Choir Operations","13263081"]
["Concert Choir Performance","13263292"]
["Concert Choir Recordings","13263223"]
["Cook, Don-Faculty Consolidate","20263339"]
["Cougar Band-Alumni","23263128"]
["Dabczynski, Andy-Faculty Conso","20263340"]
["Donation Holdings","23263130"]
["Dunn, Rob-Faculty Consolidate","20263369"]
["Durham, Tom-Faculty Consolidat","20263327"]
["Edra Duncan Muir","23263284"]
["Faculty Mentoring - Music","21263268"]
["Folk Ensemble","13263275"]
["Folk Ensemble Gifts","23263123"]
["Gamelan","13263086"]
["General Choral Recordings","13263239"]
["General Music Scholarship","23263135"]
["Giovannetti, Geralyn-Faculty C","20263341"]
["Graduate Scholarships","11263195"]
["Grimshaw, Jeremy-Faculty Conso","20263364"]
["Guest Artist/Visiting Scholar",13263368]
["Guitar Event","13263080"]
["Hall, Rosalind-Faculty Consoli","20263342"]
["Hampton Scholarship","23263246"]
["Hansen, Eric-Faculty Consolida","20263343"]
["Harker, Brian-Faculty Consolid","20263344"]
["Heritage Series Recordings","13263100"]
["Hicks, Mike-Faculty Consolidat","20263345"]
["Hinckley, Jaren-Faculty Consol","20263323"]
["Holden, Scott-Faculty Consolid","20263346"]
["Hopkin, Arden-Faculty Consolid","20263347"]
["Howard, Luke-Faculty Consolida","20263348"]
["Instrument Shop","13263109"]
["Jaccard, Jerry-Faculty Consoli","20263349"]
["Jaccard-Scott Scholarship","23263289"]
["Jazz Operations","13263073"]
["Jewkes Tour Fund","23263120"]
["Johnson, Steve-Faculty Consoli","20263350"]
["Katseanes, Kory-Faculty Consol","20263351"]
["Kenney, Susan-Faculty Consolid","20263352"]
["Keyboard Master Class","13263209"]
["Keyboard Repair/Piano Shop","13263110"]
["Keyboard Studies","11263011"]
["Kimball, Will-Faculty Consolida","20263317"]
["Laycock Music Grants","23263303"]
["Lindeman, Steve-Faculty Consol","20263353"]
["Lockwood, Gayle-Faculty Consol","20263354"]
["Lowe, Larry-Faculty Consolidat","20263355"]
["Marching Band Gifts","23263124"]
["Marching Band Operations","19263118"]
["Marching Band Performance","13263290"]
["MDT Awards","23263122"]
["Men's Chorus Clothes","13263256"]
["Men's Chorus Operations","13263083"]
["Men's Chorus Performance","13263293"]
["Men's Chorus Recording","13263168"]
["Music Dance Theatre","13263092"]
["Music Dept Gifts","23263126"]
["Music Ed Scholarships","23263136"]
["Music Education","11263010"]
["Music Educators (MENC / NAfME)","47263187"]
["Music Event Income","13263078"]
["Music Graduate TA Wages","11263016"]
["Music History","11263008"]
["Music Library","13263111"]
["Music Maintenace","11263022"]
["Music Office: C-550 HFAC","11263002"]
["Music Teachers Natl Assoc","47263378"]
["New Horizons Orchestra","13263281"]
["Opera Operations","13263074"]
["Orchestra Gifts","23263366"]
["Orchestra Operations","13263072"]
["Orchestra Recordings",13263194]
["Organ- Cook",13263221]
["Orpheus Winds","13263299"]
["Orpheus Winds","13263307"]
["Oscarson Lecture Series","13263324"]
["Peery-Fox, Irene-Faculty Conso","20263357"]
["Percussion Operations","13263079"]
["Peterson, Don-Faculty Consolid","20263358"]
["Piano Capital Equiment",11263018]
["Piano Swim Spencer Scholarship","23263131"]
["Q'd Up","13263241"]
["Recruiting/Music Dvlpmnt/Director","13263296"]
["Reich, Diane-Faculty Consolida","20263368"]
["Ricks, Steven-Faculty Consolid","20263360"]
["Rocky Mountain",13263369]
["Saltmarsh, Ron-Faculty Consolid","20263379"]
["Saville, Kirt-Faculty Consolid","20263370"]
["School of Music","11263000"]
["Shurtleff Y.A. Tech Support","11263314"]
["Smith, Chris-Faculty Consolida","20263361"]
["Smith, Ray-Faculty Consolidate","20263375"]
["SNATS","47263383"]
["Sound Recording","13263105"]
["Staheli, Ron-Faculty Consolida","20263362"]
["String Scholarships","23263285"]
["Strings","11263012"]
["Strings Master Class","13263208"]
["Student Advisory Council","13263254"]
["Student Competitions/Festivals","23263288"]
["Sundance Trio","13263094"]
["Sym Orch Hansen","13263089"]
["Synthesis","13263367"]
["Thornock, Neil-Faculty Consoli","20263371"]
["Undergraduate Scholarships","11263190"]
["Univ Chorale Broomhead Evening","13263085"]
["Univ Chorale Staheli Day","13263315"]
["University Singers Clothes","13263258"]
["University Singers Gifts","23263133"]
["University Singers Operations","13263082"]
["University Singers Performance","13263297"]
["University Singers Recordings","13263108"]
["University String Orchestra","13263090"]
["Vincent, Lawrence-Faculty Cons","20263363"]
["Vocal","11263013"]
["Vocal Point",19623016]
["Voice Master Class","13263207"]
["Voice Scholarships","23263127"]
["Wimmer Lecture Fund","23263121"]
["Women's Chorus Operations","13263084"]
["Women's Chorus Performance","13263294"]
["Women's Chorus Recordings","13263257"]
["Woods, Alex-Faculty Consolidate","20263380"]
["Woodwind","11263003"]
["Woodwind Chamber","13263240"]
["Woodwind Master Class","13263210"]
["Y.A. Scholarships","23263093"]
["Y.A. Tour Clothing","13263259"]
["YA 2013 Show","13263283"]
["Young Ambassadors Operations",13263075]
["Young Ambassadors Perf/Dues","13263295"]
["Young Musician's Academy","13263279"]

{"sheet":"Account Codes","index":5,"n_rows":10,"n_cols":2,"rows_kept":10,"cut":false,"hidden":false,"merged":[]}
["Contract Service - Off Campus",6200]
["Supplies",6100]
["Domestic - Prof Development Travel",7020]
["Foreign - Prof Development Travel",7070]
["Hosting, Food, Entertainment",6180]
["Advertising and Promotion",6160]
["Printing and Copying",6120]
["Rental Expense",6220]
["Prizes and Awards",6405]
["Royalties Expense",6410]

{"sheet":"Class Codes","index":6,"n_rows":259,"n_cols":2,"rows_kept":259,"cut":false,"hidden":false,"merged":[]}
["A.L.M.A. Lab","21639"]
["Accompanist","21680"]
["Allen, Barbara","35789"]
["American Piano Quartet","35780"]
["Ammons, Mark","35863"]
["Anderson, Richard","35726"]
["Annual Fund",57013]
["Applied Music","35712"]
["Applonie, Jean","35782"]
["Asplund, Chris","35795"]
["Babidge, Darrell","35992"]
["Band","21682"]
["Barlow","35892"]
["Basic Conducting 135. 235","35711"]
["Bassoon",21614]
["Belknap, Monte","35809"]
["Bigelow, Claudine","35728"]
["Boothe, Randy","35730"]
["Bounous, Barry","35790"]
["Bounous, Debra","35817"]
["Bowden",57072]
["Bradford, Daron","35816"]
["Brady, Nicole","35826"]
["Brandt, Robert ",57043]
["Brass","21644"]
["Broomhead, Paul","35732"]
["Brough, Ron","35733"]
["Brown, David","35734"]
["Busby, Jim","35777"]
["BYU Broadcasting",57005]
["C.D.","21603"]
["Call, Steve","35736"]
["Campus Performance","21690"]
["Carrillon","21628"]
["Cello","35818"]
["Chamber Orchestra","35910"]
["Choral","21683"]
["Choral Showcase","35929"]
["Christensen, Janielle","35769"]
["Christensen, Ruth","35737"]
["Clarinet","21612"]
["Clayton, April","35738"]
["College Computer Support","35861"]
["Colton, Kathy","35821"]
["Concert Band Festival","21637"]
["Concert Choir","21631"]
["Concert Net Income","21600"]
["Concerto Competition","21624"]
["Conferences and Workshops","35987"]
["Contingency","21619"]
["Cook, Don",35739]
["Costumes","21653"]
["Cougar Marching Band","35671"]
["Covey Center for the Arts",57002]
["Dabczynski, Andrew","35740"]
["Dance","35944"]
["DAP","21020"]
["David Day","35724"]
["Dean's Office","20200"]
["deJong Concert Hall",57006]
["Development/Recruiting","35999"]
["Double Reed Roundup",57095]
["Dues & Memberships","16421"]
["Dunn, Rob",57009]
["Durham, Tom","35741"]
["Evening Classes","21695"]
["Faculty Recitals","21692"]
["Faculty Recruitment","21697"]
["Fales, Ben","35803"]
["FHZ 'Found Horizons' CD","35637"]
["Fiddle","35823"]
["Flute","21615"]
["Folk Ensemble","35916"]
["Gamelan",57060]
["Geslison, Mark","35783"]
["Giovannetti, Geralyn","35742"]
["Green, Larry","35784"]
["Grimshaw, Jeremy","35781"]
["Group for New Music","35924"]
["Group Piano","21681"]
["Guitar","35721"]
["Hall, Rosalind","35743"]
["Hancock, Robin","35810"]
["Hansen, Eric","35744"]
["Harker, Brian",35745]
["Harp","35713"]
["Hicks, Mike","35746"]
["Hinckley, Jaren","35747"]
["History of Civ.","21677"]
["Hoffman, Judi","35778"]
["Holden, Scott","35798"]
["Holt, Laura",35776]
["Hopkin, Arden","35748"]
["Hosting","21630"]
["Howard, Luke","35802"]
["Hutchins","35954"]
["Instrument Office Fees","21672"]
["Instrument Office Lockers","21670"]
["Instrument Office Repairs","21669"]
["Instrument Office Sales","21671"]
["Instrument Shop","21679"]
["Instrumental Conducting","35718"]
["Instrumental Showcase","35928"]
["Jaccard, Jerry","35749"]
["Jazz","21684"]
["Jazz Combo","35922"]
["Jazz Ensemble","35921"]
["Jazz Festival","21617"]
["Jazz Lab Band","35923"]
["Jazz Legacy","35920"]
["Jazz Showcase","35927"]
["Jazz Voices","35919"]
["Johnson, Mark",57079]
["Johnson, Steven","35751"]
["Kaluau, Shauna",57091]
["Katseanes, Kory",35752]
["Kenney, Susan","35904"]
["Kesler, Michelle",57093]
["Keyboard Technology","21675"]
["Kimball, Will","35864"]
["Kopp, Keith","35799"]
["Lawrence, Jay","35827"]
["LCV 'Late Conversations' CD","35638"]
["Lecture Series","21616"]
["Lee, Erika","35905"]
["Les Olsen","35800"]
["LeSuer","35707"]
["LGX 'Lamanite Generation' VHS","35622"]
["Lindeman, Steve","35754"]
["Living Legends","35714"]
["Lockwood, Gayle","35755"]
["Lowe, Larry","35756"]
["Madsen Recital Hall",36002]
["Marching Band","35933"]
["Marketing",57074]
["Master Class","21629"]
["McInnis, Fred","35794"]
["MDT NYC Showcase","35796"]
["MDT Showcase","21676"]
["Media Music/Jazz","35717"]
["Men & Women's Chorus","35930"]
["Men's Chorus","21633"]
["Morgan, LeeAnn","35787"]
["MTNA",35991]
["Music",21366]
["Music",57008]
["Music 101","35893"]
["Music 111R-Basic Vocal Skills","35811"]
["Music 113/114","35812"]
["Music 160R Coordinator","35701"]
["Music 190","35813"]
["Music 193","35814"]
["Music 197/8,297/8 Sightsinging","21686"]
["Music 200","35894"]
["Music 201 and 202","35895"]
["Music 204","35897"]
["Music 293","35815"]
["Music 301","35898"]
["Music 302","35899"]
["Music 303","35900"]
["Music 304","35901"]
["Music 405","35902"]
["Music Education","35727"]
["Music Education","35984"]
["Music History","21685"]
["Music Honors 201 and 202","35896"]
["Music Sponsored Events","35983"]
["N.A.S.M.","21627"]
["New Horizons","35806"]
["Non Ticketed Ensembles","21693"]
["Oboe","21613"]
["Octubafest","21625"]
["Office Staff","21620"]
["Opera","21678"]
["Opportunity Grants","35998"]
["Orchestra","21687"]
["Organ Lab","21640"]
["Organ Workshop","35948"]
["Organ/Carillion","35953"]
["Orpheus Winds","35879"]
["Oscarson","35715"]
["Parks, Marilyn",35945]
["Peery-Fox, Irene","35758"]
["Pep Band","35956"]
["Percussion","21645"]
["Percussion Ensemble","35918"]
["Performance Library","21691"]
["Performing Arts Management","35722"]
["Peterson, Don","35759"]
["Philharmonic Orchestra","35914"]
["Philharmonic/Choral","35943"]
["Piano","21647"]
["Piano Lab","21699"]
["Q'd Up","35909"]
["Recording Mastering & Editing","21660"]
["Reed, Heidi",57083]
["Regalia",57080]
["Reich, Diane",35770]
["Repair, Maint. & Motor Pool","21673"]
["Rich, Harvey","35824"]
["Richards, Cynthia","35792"]
["Ricks, Steve","35761"]
["Royalties","21601"]
["Saltmarsh, Ron",57090]
["Sauer","35708"]
["Saville, Kirt",35866]
["Saxophone","21611"]
["Scholarship Support","21618"]
["Scripting","21656"]
["Set Design & Construction","21654"]
["Shumway, Jeff","35764"]
["Shurtleff TA",57084]
["Shurtleff Technical","21696"]
["Singers/Concert Choir","35932"]
["Smith, Chris","35723"]
["Smith, Ray","35765"]
["SMSA","35903"]
["SMSA Music Student Association","35876"]
["Sound Services Holloman","21661"]
["Sound Systems OIT","21626"]
["Spring Chorale","35926"]
["Spring Opera","35925"]
["Staheli, Ron","35766"]
["String","21642"]
["String Pedagogy","35804"]
["Student Competitions-Festivals",57003]
["Student Recitals","21674"]
["Student Technician","35889"]
["Summerfrst","21638"]
["Symphonic Band","35937"]
["Symphony Orchestra","35935"]
["Synthesis","35942"]
["Tantara","35940"]
["Theory-Composition","21688"]
["Thomas, Brett","35775"]
["Thornock, Neil","35702"]
["Thornock, Neil","35771"]
["Tim Threlfall","35805"]
["Tour Clothing","21658"]
["Univ. Singers & Concert Choir","35786"]
["University Band","35985"]
["University Choral","21635"]
["University Singers","21632"]
["University Strings","35934"]
["Vincent, Larry","35767"]
["Vocal Point","21623"]
["VocalPoint","35917"]
["Voice","21646"]
["Williamson, Karen",57081]
["Wind Symphony","35936"]
["Wind Symphony/Symphonic Band",35791]
["Winds/Brass/Conducting","35719"]
["Winter Choirfest","35911"]
["Women's Chorus","21634"]
["Woods, Alexander",57077]
["Woodwind","21643"]
["YA/LL","35941"]
["Young Ambassadors","35913"]
["Young Musicians Academy","35793"]